Workbook

Sheet CurTiPot
R1: Sumário dos recursos e usos (veja histórico das versões do CurTiPot no final):
R2: • Cálculo de pH, atividade e capacidade de tamponamento de soluções aquosas simples ou complexas (até sete sistemas hexapróticos)
R3: • Análise de dados de pH em função de volume de titulante - reais ou simulados
R4: » representação gráfica das curvas de titulação, com derivadas
R5: » localização automática e precisa das inflexões das curvas (por interpolação com alisamento por splines) para determinação de concentrações
R6: » determinação de concentrações e pKas (inclusive de amostras diluídas com múltiplos componentes) por regressão não linear
R7: • Titulação virtual de ácidos e bases com adição de titulante por bureta e detecção de ponto final por indicador visual
R8: • Simulação de curvas de titulação de ácidos, bases e misturas complexas de sistemas multipróticos
R9: » simulação de dispersão nas medidas de pH e de volume, para avaliar o efeito dos erros nos resultados
R10: • Geração de diagramas de distribuição (composição fracionária), capacidade de tamponamento e protonação em função do pH e do Volume
R11: • Constantes de equilíbrio (pKas) de 250 ácidos e bases disponíveis diretamente nos diversos módulos
AM12: Como habilitar arquivos Excel com macros e usar o CurTiPot
R13: CurTiPot não requer instalação. Basta que o programa Microsoft Excel® (2007 ou posterior) se encontre instalado em ambiente Windows® ou Windows for Mac (certas versões) | AM13: Excel e Office para Windows
R14: Obtenha cópia atualizada do CurTiPot em www.iq.usp.br/gutz/Curtipot.html e abra o arquivo curtipot.xlsm ou curtipot-i.xlsm (para iniciantes) | AM14: 1. Baixe o arquivo CurTiPot do site do autor para um folder da sua preferência
R15: Leia a licença no final desta página (células B48 a P95) e, se estiver de acordo, utilize o programa gratuitamente no ensino e em aplicações não comerciais | AM15: 2. Abra o folder e clique com o botão direito no arquivo curtipot.xlsm
R16: Habilite a edição e o conteúdo, permitindo a execução de macros pelo Excel®; siga as instruções à direita ------> ------> ------> ------> ------> ------> ------> | AM16: 3. Escolha "Propriedades" na janela que se abrir
R17: Para usar o módulo Analise_II ative ou instale o suplemento Solver do Excel (pré-instalado ou disponível no disco do Office®) | AM17: 4. Assinale "desbloquear" (em geral, próximo ao canto inferior direito)
AM18: 5. Clique OK
R19: O autor não garante o funcionamento correto e exato do programa e se isenta de qualquer responsabilidade pelos resultados e consequências do uso (mais detalhes na licença de uso) | AM19: 6. Dê um clique duplo no arquivo curtipot.xlsm para abrí-lo
R20: CurTiPot considera somente os equilíbrios de protonação em água, ignorando outros equilíbrios e reações, p.ex., entre dois ou mais sistemas ácido-base, quando presentes simultaneamente | AM20: 7. Escolha "Habilitar conteúdo", se a pregunta aparecer na barra de segurança
R21: O programa calcula coeficientes de atividade pela equação de Davies nos módulos pH, Distribuição, Simulação e Analise_II, estando sujeito às suas limitações | AM21: 8. Leia a página de rosto do CurTiPot
R22: Favor comunicar erros e incompatibilidades do programa (testado em versões de 2003 a 2013 do Excel); | AC22: Use o e-mail: | AD22: gutz@iq.usp.br | AM22: 9. Use o programa, seguindo as instruções
R23: Dependendo da resolução da tela do monitor usado, pode ser necessário redimensionar ou reposicionar algumas figuras | AM23: 10. Salve seus dados, ajustes e resultados em arquivo Curtipot_qualquer_nome.xlsm
AM24: 11. Feche o arquivo, momento em que também todas as macros serão removidas
R25: Alterne entre os módulos com Ctrl+PgDn ou, no rodapé desta planilha, clique na aba do módulo escolhido, p.ex., Titulador, para efetuar titulações virtuais usando bureta e indicador visual
R26: Leia as informações e siga as instruções que aparecem ao se posicionar o mouse sobre células com marca vermelha no canto superior direito; se for iniciante, prefira CurTiPot-i | AM26: Versões anteriores do Office e do Excel
R27: Para simular automaticamente curvas de titulação, use o módulo Simulador; para calcular o pH de uma solução, entre no módulo pH | AM27: 1. Abra o Excel com uma planilha em branco
R28: Vá direto para a Analise_I para analisar os seus dados experimentais ou simulados | AM28: 2. Clique em Arquivo (canto superior esquerdo da tela)
R29: O módulo Analise_II é mais poderoso e seu uso requer aprendizado; guie-se pelas instruções locais e pelos Exemplos | AM29: 3. Clique em "opções do Excel" (canto inferior direito)
R30: Grave seus dados e resultados em arquivos curtipot_qualquer-nome.xlsm de modo a manter inalterado o programa curtipot-i.xlsm original | AM30: 4. Clique em "Central de Confiabilidade"
AM31: 5. Clique em "Configurações da Central de Confiabilidade"
R32: Veja breve histórico e conheça a origem do nome CurTiPot no final desta página (células S51 a AE97) | AM32: 6. Clique em "Configurações de macro"
D33: Ivano Gebhardt Rolf Gutz | R33: A versão 1 do programa CurTiPot foi desenvolvida em 1991/1992 em Turbo Basic (Boreland) para DOS (Disk Operating System, Microsoft) e lançada em 1992 | AM33: 7. Assinale "desabilitar todas as macros com notificação"
D34: Professor Titular do Instituto de Química desde 1992 | R34: A versão 2 (para DOS), datada de 1993 e distribuída pela AllChemy (http://allchemy.iq.usp.br) comporta análise de titulações com geração coulométrica de reagentes | AM34: 8. Clique OK e OK; (não é preciso reconfigurar a cada dia)
D35: Docente do Instituto de Química desde 1978 | R35: A versão 3 para Excel, com o novo módulo de análise de dados por regressão não linear multiparamétrica, começou a ser escrita em 2005 e foi lançada em 2006 | AM35: 9. Feche e reabra o Excel; carregue curtipot.xlsm
D36: Universidade de São Paulo, São Paulo, SP, Brasil | R36: A versão 3.1 foi a 1ª a ser traduzida para o inglês e distribuída a partir de 01/05/2006 no site www.iq.usp.br/gutz/Curtipot_.html | AM36: 10. Clique "Habilitar este Conteúdo" no
D37: Comendador da Ordem Nacional do Mérito Científico | R37: A versão 3.2, lançada em janeiro de 2007, inclui uma planilha específica para cálculos de pH, com estimativas das atividades dos íons
D38: Membro da Academia Brasileira de Ciências | R38: A versão 3.3, lançada em janeiro de 2008, tem interface mais amigável com a base de dados de pKa e gera diagrama logarítmico de distribuição sobreposto às titulações
D39: Membro da Academia de Ciências do Estado de São Paulo | R39: A versão 3.4, lançada em outubro de 2008, contempla cálculos de força iônica e estimativas de coeficiente de atividade no módulo de Analise_II (anteriormente disponíveis só no módulo pH)
B40: Formação, carreira, linhas de pesquisa, publicações e outras informações: | R40: A versão 3.5, janeiro/2010, explicita a capacidade de tamponamento, CT, das soluções (módulo pH), traça curvas de CT e de carga média e detecta pontos isoelétricos (módulo Distribuição)
B41: https://www.iq.usp.br/gutz/ | F41: https://scholar.google.com.br/citations?user=qXFK1_YAAAAJ&hl=pt-BR | R41: A versão 3.6, março/2012, localiza automaticamente as inflexões (pontos finais) de curvas de titulação reais ou simuladas, listando os volumes respectivos no módulo Analise_I
B42: Cópia atualizada de CurTiPot: https://www.iq.usp.br/docente/gutz/Curtipot.html | R42: A versão 4.0, janeiro/2014, recebeu o módulo Titulador, para iniciantes praticarem com indicador visual; no Simulador os cálculos de pH foram refinados levando em conta as atividades iônicas
R43: Na versão 4.1, fevereiro/2014, o módulo Titulador passa a importar as cores dos indicadores da módulo Constantes; Distribuição e Analise_I e II passam a importar dados do Titulador
B44: CurTiPot encontrou uso em mais de cem países, figura em vários livros didáticos foi e usado por centenas de autores | R44: A versão 4.2, fevereiro/2015, traz a correção do efeito da força iônica também para o módulo Distribuição e amplia as opções de ponderação de dados em Análise II
B45: em pesquisas publicadas e teses listadas em: http://scholar.google.com.br/scholar?hl=pt-BR&as_sdt=0,5&q=curtipot | R45: A versão 4.2.2, setembro/2015, passa a sublinhar com linha verde as células com a concentração de bases protonadas até a neutralidade
B46: Saiu-se melhor numa comparação de 21 aplicativos para cálculo de pH: https://doi.org/10.1021/acs.jchemed.2c01203 | R46: A versão 4.2.3, março/2016, volta a carregar cores de indicadores no Titulador (funcionalidade ausente na 4.2.2.)
B47: A Agência Fapesp publicou reportagem sobre o software: https://agencia.fapesp.br/mais-de-16-mil-downloads/7123 | R47: Na versão 4.3.0, janeiro/2018, o módulo Simulador permite carregar dados reais introduzidos em Analise_I e fazer ajuste manual da curva simulada à real (por quem não domine a Analise_II)
R48: A versão 4.3.1, maio/2021, permite salvar os resultados nas novas abas +pH, +I e +II e copiar dados de Análise_II para o Simulador e também traz instruções melhoradas
R49: Na versão 4.4.0, janeiro/2024, introduziu-se o processamento em lote para cálculo de pH e outros parâmetros de (longas) listas de soluções com diferente composição

Sheet pH
B1: Calculadora de pH com processamento em lote | H1: ↑ Passe o mouse ↑ nas marcas vermelhas . | K1: pKa dos ácidos e bases em solução | N1: Clique em K2 a Q2; selecione ácidos/bases; clique em J2; leia M1 | R1: Constantes cumulativas de protonação = bp = PKp (não preencher - calculado pelo programa) | Z1: pKas dos HiB, carregados da planilha Constantes
A2: Composição da solução aquosa - reagentes adicionados, mol/L | F2: Preencha um ou mais campos; Enter; clique em B20. | K2: 6 | L2: 1 | M2: 4 | N2: 2 | O2: 8 | P2: 7 | Q2: 5 | R2: pKa(n) = -log Kd(HB-->B) = log Kp(1) | AB2: Clique em J2 para usar estes pKas no cálculo de pH
A3: Ácido / Base protonação | B3: =K3 -> Ácido fosfórico | C3: =L3 -> Ácido acético | D3: Ácido clorídrico | E3: Ácido carbônico | F3: Hidróxido de sódio | G3: Hidróxido de amônio | H3: Ácido EDTA | J3: Ácido / Base | K3: Ácido fosfórico | L3: Ácido acético | M3: Ácido clorídrico | N3: Ácido carbônico | O3: Hidróxido de sódio | P3: Hidróxido de amônio | Q3: Ácido EDTA | R3: Ácido / Base | S3: =K3 -> Ácido fosfórico | T3: =L3 -> Ácido acético | U3: Ácido clorídrico | V3: Ácido carbônico | W3: Hidróxido de sódio | X3: Hidróxido de amônio | Y3: Ácido EDTA | Z3: Ácido / Base | AA3: =IF(VLOOKUP(K$2,Constantes!$B$23:$N$303,2)="","",VLOOKUP(K$2,Constantes!$B$23:$N$303,2)) -> Ácido fosfórico | AB3: =IF(VLOOKUP(L$2,Constantes!$B$23:$N$303,2)="","",VLOOKUP(L$2,Constantes!$B$23:$N$303,2)) -> Ácido acético | AC3: =IF(VLOOKUP(M$2,Constantes!$B$23:$N$303,2)="","",VLOOKUP(M$2,Constantes!$B$23:$N$303,2)) -> Ácido clorídrico | AD3: =IF(VLOOKUP(N$2,Constantes!$B$23:$N$303,2)="","",VLOOKUP(N$2,Constantes!$B$23:$N$303,2)) -> Ácido carbônico | AE3: =IF(VLOOKUP(O$2,Constantes!$B$23:$N$303,2)="","",VLOOKUP(O$2,Constantes!$B$23:$N$303,2)) -> Hidróxido de sódio | AF3: =IF(VLOOKUP(P$2,Constantes!$B$23:$N$303,2)="","",VLOOKUP(P$2,Constantes!$B$23:$N$303,2)) -> Hidróxido de amônio | AG3: =IF(VLOOKUP(Q$2,Constantes!$B$23:$N$303,2)="","",VLOOKUP(Q$2,Constantes!$B$23:$N$303,2)) -> Ácido EDTA
A4: [B] | J4: Carga de B | K4: -3 | L4: -1 | M4: -1 | N4: -2 | O4: -1 | P4: 0 | Q4: -4 | R4: Carga de B | S4: =IF(K4="","",K4) -> -3 | T4: =IF(L4="","",L4) -> -1 | U4: -1 | V4: -2 | W4: -1 | X4: 0 | Y4: -4 | Z4: Carga de B | AA4: =IF(VLOOKUP(K$2,Constantes!$B$23:$N$303,3)="","",VLOOKUP(K$2,Constantes!$B$23:$N$303,3)) -> -3 | AB4: =IF(VLOOKUP(L$2,Constantes!$B$23:$N$303,3)="","",VLOOKUP(L$2,Constantes!$B$23:$N$303,3)) -> -1 | AC4: =IF(VLOOKUP(M$2,Constantes!$B$23:$N$303,3)="","",VLOOKUP(M$2,Constantes!$B$23:$N$303,3)) -> -1 | AD4: =IF(VLOOKUP(N$2,Constantes!$B$23:$N$303,3)="","",VLOOKUP(N$2,Constantes!$B$23:$N$303,3)) -> -2 | AE4: =IF(VLOOKUP(O$2,Constantes!$B$23:$N$303,3)="","",VLOOKUP(O$2,Constantes!$B$23:$N$303,3)) -> -1 | AF4: =IF(VLOOKUP(P$2,Constantes!$B$23:$N$303,3)="","",VLOOKUP(P$2,Constantes!$B$23:$N$303,3)) -> 0 | AG4: =IF(VLOOKUP(Q$2,Constantes!$B$23:$N$303,3)="","",VLOOKUP(Q$2,Constantes!$B$23:$N$303,3)) -> -4
A5: [HB] | B5: 0.0265 | J5: pKa1 | K5: 2.148 | L5: 4.757 | M5: -7 | N5: 6.352 | O5: 13.997 | P5: 9.244 | Q5: -0.21 | R5: bp1 | S5: =IF(K5="","",IF(K6="",10^K5,(IF(K7="",10^K6,(IF(K8="",10^K7,(IF(K9="",10^K8,(IF(K10="",10^K9,10^K10)))))))))) -> 2.238721139e+12 | T5: 57147.86367 | U5: 1e-07 | V5: 2.133044913e+10 | W5: 9.931160484e+13 | X5: 1753880502 | Y5: 1.071519305e+11 | Z5: pKa1 = logKpn | AA5: =IF(VLOOKUP(K$2,Constantes!$B$23:$N$303,4)="","",VLOOKUP(K$2,Constantes!$B$23:$N$303,4)) -> 2.148 | AB5: =IF(VLOOKUP(L$2,Constantes!$B$23:$N$303,4)="","",VLOOKUP(L$2,Constantes!$B$23:$N$303,4)) -> 4.757 | AC5: =IF(VLOOKUP(M$2,Constantes!$B$23:$N$303,4)="","",VLOOKUP(M$2,Constantes!$B$23:$N$303,4)) -> -7 | AD5: =IF(VLOOKUP(N$2,Constantes!$B$23:$N$303,4)="","",VLOOKUP(N$2,Constantes!$B$23:$N$303,4)) -> 6.352 | AE5: =IF(VLOOKUP(O$2,Constantes!$B$23:$N$303,4)="","",VLOOKUP(O$2,Constantes!$B$23:$N$303,4)) -> 13.997 | AF5: =IF(VLOOKUP(P$2,Constantes!$B$23:$N$303,4)="","",VLOOKUP(P$2,Constantes!$B$23:$N$303,4)) -> 9.244 | AG5: =IF(VLOOKUP(Q$2,Constantes!$B$23:$N$303,4)="","",VLOOKUP(Q$2,Constantes!$B$23:$N$303,4)) -> -0.21
A6: [H2B] | B6: 0.02 | J6: pKa2 | K6: 7.199 | N6: 10.329 | Q6: 1.5 | R6: bp2 | S6: =IF(K6="","",IF(K7="",S5*10^K5,(IF(K8="",S5*10^K6,(IF(K9="",S5*10^K7,(IF(K10="",S5*10^K8,S5*10^K9)))))))) -> 3.539973411e+19 | V6: 4.797334486e+16 | Y6: 6.025595861e+17 | Z6: pKa2 = logKpn-1 | AA6: =IF(VLOOKUP(K$2,Constantes!$B$23:$N$303,5)="","",VLOOKUP(K$2,Constantes!$B$23:$N$303,5)) -> 7.199 | AB6: =IF(VLOOKUP(L$2,Constantes!$B$23:$N$303,5)="","",VLOOKUP(L$2,Constantes!$B$23:$N$303,5)) ->  | AC6: =IF(VLOOKUP(M$2,Constantes!$B$23:$N$303,5)="","",VLOOKUP(M$2,Constantes!$B$23:$N$303,5)) ->  | AD6: =IF(VLOOKUP(N$2,Constantes!$B$23:$N$303,5)="","",VLOOKUP(N$2,Constantes!$B$23:$N$303,5)) -> 10.329 | AE6: =IF(VLOOKUP(O$2,Constantes!$B$23:$N$303,5)="","",VLOOKUP(O$2,Constantes!$B$23:$N$303,5)) ->  | AF6: =IF(VLOOKUP(P$2,Constantes!$B$23:$N$303,5)="","",VLOOKUP(P$2,Constantes!$B$23:$N$303,5)) ->  | AG6: =IF(VLOOKUP(Q$2,Constantes!$B$23:$N$303,5)="","",VLOOKUP(Q$2,Constantes!$B$23:$N$303,5)) -> 1.5
A7: [H3B] | J7: pKa3 | K7: 12.35 | Q7: 2.21 | R7: bp3 | S7: =IF(K7="","",IF(K8="",S6*10^K5,(IF(K9="",S6*10^K6,(IF(K10="",S6*10^K7,S6*10^K8)))))) -> 4.97737085e+21 | Y7: 7.762471166e+20 | Z7: pKa3 = logKpn-2 | AA7: =IF(VLOOKUP(K$2,Constantes!$B$23:$N$303,6)="","",VLOOKUP(K$2,Constantes!$B$23:$N$303,6)) -> 12.35 | AB7: =IF(VLOOKUP(L$2,Constantes!$B$23:$N$303,6)="","",VLOOKUP(L$2,Constantes!$B$23:$N$303,6)) ->  | AC7: =IF(VLOOKUP(M$2,Constantes!$B$23:$N$303,6)="","",VLOOKUP(M$2,Constantes!$B$23:$N$303,6)) ->  | AD7: =IF(VLOOKUP(N$2,Constantes!$B$23:$N$303,6)="","",VLOOKUP(N$2,Constantes!$B$23:$N$303,6)) ->  | AE7: =IF(VLOOKUP(O$2,Constantes!$B$23:$N$303,6)="","",VLOOKUP(O$2,Constantes!$B$23:$N$303,6)) ->  | AF7: =IF(VLOOKUP(P$2,Constantes!$B$23:$N$303,6)="","",VLOOKUP(P$2,Constantes!$B$23:$N$303,6)) ->  | AG7: =IF(VLOOKUP(Q$2,Constantes!$B$23:$N$303,6)="","",VLOOKUP(Q$2,Constantes!$B$23:$N$303,6)) -> 2.21
A8: [H4B] | J8: pKa4 | Q8: 3.11 | R8: bp4 | S8: =IF(K8="","",IF(K9="",S7*10^K5,(IF(K10="",S7*10^K6,S7*10^K7)))) ->  | Y8: 1.258925412e+23 | Z8: pKa4 = logKpn-3 | AA8: =IF(VLOOKUP(K$2,Constantes!$B$23:$N$303,7)="","",VLOOKUP(K$2,Constantes!$B$23:$N$303,7)) ->  | AB8: =IF(VLOOKUP(L$2,Constantes!$B$23:$N$303,7)="","",VLOOKUP(L$2,Constantes!$B$23:$N$303,7)) ->  | AC8: =IF(VLOOKUP(M$2,Constantes!$B$23:$N$303,7)="","",VLOOKUP(M$2,Constantes!$B$23:$N$303,7)) ->  | AD8: =IF(VLOOKUP(N$2,Constantes!$B$23:$N$303,7)="","",VLOOKUP(N$2,Constantes!$B$23:$N$303,7)) ->  | AE8: =IF(VLOOKUP(O$2,Constantes!$B$23:$N$303,7)="","",VLOOKUP(O$2,Constantes!$B$23:$N$303,7)) ->  | AF8: =IF(VLOOKUP(P$2,Constantes!$B$23:$N$303,7)="","",VLOOKUP(P$2,Constantes!$B$23:$N$303,7)) ->  | AG8: =IF(VLOOKUP(Q$2,Constantes!$B$23:$N$303,7)="","",VLOOKUP(Q$2,Constantes!$B$23:$N$303,7)) -> 3.11
A9: [H5B] | I9: Total | J9: pKa5 | Q9: 6.75 | R9: bp5 | S9: =IF(K9="","",IF(K10="",S8*10^K5,S8*10^K6)) ->  | Y9: 3.981071706e+24 | Z9: pKa5 = logKpn-4 | AA9: =IF(VLOOKUP(K$2,Constantes!$B$23:$N$303,8)="","",VLOOKUP(K$2,Constantes!$B$23:$N$303,8)) ->  | AB9: =IF(VLOOKUP(L$2,Constantes!$B$23:$N$303,8)="","",VLOOKUP(L$2,Constantes!$B$23:$N$303,8)) ->  | AC9: =IF(VLOOKUP(M$2,Constantes!$B$23:$N$303,8)="","",VLOOKUP(M$2,Constantes!$B$23:$N$303,8)) ->  | AD9: =IF(VLOOKUP(N$2,Constantes!$B$23:$N$303,8)="","",VLOOKUP(N$2,Constantes!$B$23:$N$303,8)) ->  | AE9: =IF(VLOOKUP(O$2,Constantes!$B$23:$N$303,8)="","",VLOOKUP(O$2,Constantes!$B$23:$N$303,8)) ->  | AF9: =IF(VLOOKUP(P$2,Constantes!$B$23:$N$303,8)="","",VLOOKUP(P$2,Constantes!$B$23:$N$303,8)) ->  | AG9: =IF(VLOOKUP(Q$2,Constantes!$B$23:$N$303,8)="","",VLOOKUP(Q$2,Constantes!$B$23:$N$303,8)) -> 6.75
A10: [H6B] | I10: SS | J10: pKa6 | Q10: 11.03 | R10: bp6 | S10: =IF(K10="","",S9*10^K5) ->  | Y10: 2.454708916e+24 | Z10: pKa6 = logKpn-5 | AA10: =IF(VLOOKUP(K$2,Constantes!$B$23:$N$303,9)="","",VLOOKUP(K$2,Constantes!$B$23:$N$303,9)) ->  | AB10: =IF(VLOOKUP(L$2,Constantes!$B$23:$N$303,9)="","",VLOOKUP(L$2,Constantes!$B$23:$N$303,9)) ->  | AC10: =IF(VLOOKUP(M$2,Constantes!$B$23:$N$303,9)="","",VLOOKUP(M$2,Constantes!$B$23:$N$303,9)) ->  | AD10: =IF(VLOOKUP(N$2,Constantes!$B$23:$N$303,9)="","",VLOOKUP(N$2,Constantes!$B$23:$N$303,9)) ->  | AE10: =IF(VLOOKUP(O$2,Constantes!$B$23:$N$303,9)="","",VLOOKUP(O$2,Constantes!$B$23:$N$303,9)) ->  | AF10: =IF(VLOOKUP(P$2,Constantes!$B$23:$N$303,9)="","",VLOOKUP(P$2,Constantes!$B$23:$N$303,9)) ->  | AG10: =IF(VLOOKUP(Q$2,Constantes!$B$23:$N$303,9)="","",VLOOKUP(Q$2,Constantes!$B$23:$N$303,9)) -> 11.03
A11: S[HiB] | B11: =SUM(B4:B10) -> 0.0465 | C11: =SUM(C4:C10) -> 0 | D11: 0 | E11: 0 | F11: 0 | G11: 0 | H11: 0 | I11: =SUM(B11:H11) -> 0.0465 | J11: Eletrólito | K11: Na+ | L11: K+ | M11: Ca++ | N11: Cl- | O11: NO3- | P11: ClO4- | Q11: - | R11: Kw | S11: =10^-K13 -> 1.006931669e-14 | Z11: Temperatura | AA11: =IF(VLOOKUP(K$2,Constantes!$B$23:$N$303,10)="","indetermin.",VLOOKUP(K$2,Constantes!$B$23:$N$303,10)) -> 25 | AB11: =IF(VLOOKUP(L$2,Constantes!$B$23:$N$303,10)="","indetermin.",VLOOKUP(L$2,Constantes!$B$23:$N$303,10)) -> 25 | AC11: =IF(VLOOKUP(M$2,Constantes!$B$23:$N$303,10)="","indetermin.",VLOOKUP(M$2,Constantes!$B$23:$N$303,10)) -> 25 | AD11: =IF(VLOOKUP(N$2,Constantes!$B$23:$N$303,10)="","indetermin.",VLOOKUP(N$2,Constantes!$B$23:$N$303,10)) -> 25 | AE11: =IF(VLOOKUP(O$2,Constantes!$B$23:$N$303,10)="","indetermin.",VLOOKUP(O$2,Constantes!$B$23:$N$303,10)) -> 25 | AF11: =IF(VLOOKUP(P$2,Constantes!$B$23:$N$303,10)="","indetermin.",VLOOKUP(P$2,Constantes!$B$23:$N$303,10)) -> 25 | AG11: =IF(VLOOKUP(Q$2,Constantes!$B$23:$N$303,10)="","indetermin.",VLOOKUP(Q$2,Constantes!$B$23:$N$303,10)) -> 25
A12: S[H] | B12: =B5+2*B6+3*B7+4*B8+5*B9+6*B10 -> 0.0665 | C12: 0 | D12: 0 | E12: 0 | F12: 0 | G12: 0 | H12: 0 | I12: =SUM(B12:H12) -> 0.0665 | J12: Carga do íon | K12: 1 | L12: 1 | M12: 2 | N12: -1 | O12: -1 | P12: -1 | Z12: Força Iônica | AA12: =IF(VLOOKUP(K$2,Constantes!$B$23:$N$303,11)="","indetermin.",VLOOKUP(K$2,Constantes!$B$23:$N$303,11)) -> 0 | AB12: =IF(VLOOKUP(L$2,Constantes!$B$23:$N$303,11)="","indetermin.",VLOOKUP(L$2,Constantes!$B$23:$N$303,11)) -> 0 | AC12: =IF(VLOOKUP(M$2,Constantes!$B$23:$N$303,11)="","indetermin.",VLOOKUP(M$2,Constantes!$B$23:$N$303,11)) -> 0 | AD12: =IF(VLOOKUP(N$2,Constantes!$B$23:$N$303,11)="","indetermin.",VLOOKUP(N$2,Constantes!$B$23:$N$303,11)) -> 0 | AE12: =IF(VLOOKUP(O$2,Constantes!$B$23:$N$303,11)="","indetermin.",VLOOKUP(O$2,Constantes!$B$23:$N$303,11)) -> 0 | AF12: =IF(VLOOKUP(P$2,Constantes!$B$23:$N$303,11)="","indetermin.",VLOOKUP(P$2,Constantes!$B$23:$N$303,11)) -> 0 | AG12: =IF(VLOOKUP(Q$2,Constantes!$B$23:$N$303,11)="","indetermin.",VLOOKUP(Q$2,Constantes!$B$23:$N$303,11)) -> 0
A13: SziCi | B13: =IF(K4="",0,K4*B4+(K4+1)*B5+(K4+2)*B6+(K4+3)*B7+(K4+4)*B8+(K4+5)*B9+(K4+6)*B10) -> -0.073 | C13: =IF(L4="",0,L4*C4+(L4+1)*C5+(L4+2)*C6+(L4+3)*C7+(L4+4)*C8+(L4+5)*C9+(L4+6)*C10) -> 0 | D13: 0 | E13: 0 | F13: 0 | G13: 0 | H13: 0 | I13: =SUM(B13:H13) -> -0.073 | J13: pKw | K13: 13.997
A14: Eletrólito | B14: =K11 -> Na+ | C14: =L11 -> K+ | D14: Ca++ | E14: Cl- | F14: NO3- | G14: ClO4- | H14: - | J14: Parâm. Equação de Davies para | N14: código de cores
A15: Ci (mol/L) | B15: 0.073 | E15: 0 | J15: estimativa de coefic. de atividade | N15: N ã o a l t e r e
A16: ziCi | B16: =B15*K12 -> 0.073 | C16: 0 | D16: 0 | E16: 0 | F16: 0 | G16: 0 | H16: 0 | I16: =SUM(B16:H16) -> 0.073 | J16: A | K16: 0.509 | N16: M u d e c r I t e r o s a m e n t e
A17: Balanço de carga | B17: =IF(I17=0,"Correto", "Atenção") -> Correto | C17: =IF(I17<0,"Adicionar cátions ou retirar ânions", "") ->  | F17: =IF(I17>0,"Adicionar ânions ou retirar cátions", "") ->  | H17: =IF(I17<>0,"Desbalanço","") ->  | I17: =I13+I16 -> 0 | J17: b | K17: 0.3 | N17: Preencha, altere ou deixe em branco
A22: Resultados - pH e Equilíbrio Químico | J22: -log das constantes de protonação aparente recalculadas para I = | N22: =E26 -> 0.09950075163 | R22: Constantes aparentes cumulativas de protonação para I | W22: =E26 -> 0.09950075163 | AA22: Como habilitar arquivos Excel com macros e usar o CurTiPot
A23: pH | B23: 7.000618768 | C23: a H+ | D23: 9.985762575e-08 | E23: a OH- | F23: 1.008366022e-07 | G23: pOH | H23: 6.996381797 | J23: Ácido / Base | K23: =K3 -> Ácido fosfórico | L23: =L3 -> Ácido acético | M23: Ácido clorídrico | N23: Ácido carbônico | O23: Hidróxido de sódio | P23: Hidróxido de amônio | Q23: Ácido EDTA | R23: Ácido / Base | S23: =K3 -> Ácido fosfórico | T23: =L3 -> Ácido acético | U23: Ácido clorídrico | V23: Ácido carbônico | W23: Hidróxido de sódio | X23: Hidróxido de amônio | Y23: Ácido EDTA | AA23: Excel e Office para Windows
A24: p[H] | B24: 6.893756066 | C24: [H+] | D24: 1.277155957e-07 | E24: [OH-] | F24: 1.289676853e-07 | G24: p[OH] | H24: 6.889519095 | J24: Carga de B | K24: =K4 -> -3 | L24: -1 | M24: -1 | N24: -2 | O24: -1 | P24: 0 | Q24: -4 | R24: Carga de B | S24: =K4 -> -3 | T24: -1 | U24: -1 | V24: -2 | W24: -1 | X24: 0 | Y24: -4 | AA24: 1. Baixe o arquivo CurTiPot do site do autor para um folder da sua preferência
A25: "pH" | B25: 7.321204169 | C25: "[H+]" | D25: 4.773048323e-08 | E25: "[OH-]" | F25: 2.109616937e-07 | G25: "pOH" | H25: 6.675796397 | J25: pK'an = logK'p1 | K25: 11.70882429 | L25: 4.543274788 | M25: -7.213725687 | N25: 9.901549609 | O25: 15.53127523 | P25: 9.244000373 | Q25: 10.17509883 | R25: b'p1 | S25: 5.114742971e+11 | T25: 34936.1147 | U25: 6.113284462e-08 | V25: 7971668116 | W25: 3.398400858e+15 | X25: 1753880502 | Y25: 1.496574768e+10 | AA25: 2. Abra o folder e clique com o botão direito no arquivo curtipot.xlsm
A26: g H+ | B26: 0.7818749556 | C26: Força iônica, I (mol/L) | E26: 0.09950075163 | G26: g OH- | H26: 0.7818749556 | J26: pK'an-1 = logK'p2 | K26: 6.771549483 | N26: 6.138274853 | Q26: 6.108824061 | R26: b'p2 | S26: 3.022546728e+18 | V26: 1.096033464e+16 | Y26: 1.922747402e+16 | AA26: 3. Escolha "Propriedades" na janela que se abrir
A27: Capacidade de tamponamento, CT | D27: Dmol.L-1/DpH | E27: 0.02624798791 | F27: Força do tampão | H27: 0.01139935677 | J27: pK'an-2 = logK'p3 | K27: 1.934274683 | Q27: 2.682549318 | R27: b'p3 | S27: 2.598050739e+20 | Y27: 9.257025127e+18 | AA27: 4. Assinale "desbloquear" (em geral, próximo ao canto inferior direito)
A28: Carga média (zm) das espécies e protonação média (hm) das bases (conjugadas) | G28: para pH | H28: =B23 -> 7.000618768 | J28: pK'an-3 = logK'p4 | Q28: 1.996274685 | R28: b'p4 | Y28: 9.177957606e+20 | AA28: 5. Clique OK
A29: Ácido / Base | B29: =K3 -> Ácido fosfórico | C29: Ácido acético | D29: Ácido clorídrico | E29: Ácido carbônico | F29: Hidróxido de sódio | G29: Hidróxido de amônio | H29: Ácido EDTA | J29: pK'an-4 = logK'p5 | Q29: 1.500000061 | R29: b'p5 | Y29: 2.90232503e+22 | AA29: 6. Dê um clique duplo no arquivo curtipot.xlsm para abrí-lo
A30: zm | B30: -1.569892445 | C30: -0.9955579333 | D30: -1 | E30: -0.8515907131 | F30: -2.303994662e-09 | G30: 0.9955555139 | H30: -2.859540567 | J30: pK'an-5 = logK'p6 | Q30: 0.003725395421 | R30: b'p6 | Y30: 2.927328376e+22 | AA30: 7. Escolha "Habilitar conteúdo", se a pregunta aparecer na barra de segurança
A31: hm | B31: 1.430107555 | C31: 0.004442066703 | D31: 7.80761767e-15 | E31: 1.148409287 | F31: 0.9999999977 | G31: 0.9955555139 | H31: 1.140459433 | J31: pK'w | K31: 13.78327516 | R31: K'w | S31: 1.647120587e-14 | AA31: 8. Leia a página de rosto do CurTiPot
A32: Concentração de equilíbrio das espécies, mol/L | J32: Coeficiente de atividade (g) das espécies | N32: para pH = | O32: =B23 -> 7.000618768 | P32: e para I = | Q32: =E26 -> 0.09950075163 | AA32: 9. Use o programa, seguindo as instruções
A33: Ácido / Base protonação | B33: =K3 -> Ácido fosfórico | C33: Ácido acético | D33: Ácido clorídrico | E33: Ácido carbônico | F33: Hidróxido de sódio | G33: Hidróxido de amônio | H33: Ácido EDTA | I33: [H+] | J33: Ácido / Base protonação | K33: =K3 -> Ácido fosfórico | L33: Ácido acético | M33: Ácido clorídrico | N33: Ácido carbônico | O33: Hidróxido de sódio | P33: Hidróxido de amônio | Q33: Ácido EDTA | AA33: 10. Salve seus dados, ajustes e resultados em arquivo Curtipot_qualquer_nome.xlsm
A34: [B] | B34: 4.056658103e-07 | I34: =D24 -> 1.277155957e-07 | J34: g B | K34: 0.1092032896 | L34: 0.7818749556 | M34: 0.7818749556 | N34: 0.3737224691 | O34: 0.7818749556 | P34: 1 | Q34: 0.0195072854 | AA34: 11. Feche o arquivo, momento em que também todas as macros serão removidas
A35: [HB] | B35: 0.02649940693 | J35: g HB | K35: 0.3737224691 | L35: 1 | M35: 1 | N35: 0.7818749556 | O35: 1 | P35: 0.7818749556 | Q35: 0.1092032896
A36: [H2B] | B36: 0.01999996784 | I36: [OH-] | J36: g H2B | K36: 0.7818749556 | N36: 1 | Q36: 0.3737224691 | AA36: Versões anteriores do Office e do Excel
A37: [H3B] | B37: 2.195572769e-07 | I37: =F24 -> 1.289676853e-07 | J37: g H3B | K37: 1 | Q37: 0.7818749556 | AA37: 1. Abra o Excel com uma planilha em branco
A38: [H4B] | J38: g H4B | Q38: 1 | AA38: 2. Clique em Arquivo (canto superior esquerdo da tela)
A39: [H5B] | J39: g H5B | Q39: 0.7818749556 | AA39: 3. Clique em "opções do Excel" (canto inferior direito)
A40: [H6B] | I40: SS | J40: g H6B | Q40: 0.3737224691 | AA40: 4. Clique em "Central de Confiabilidade"
A41: S[HiB] | B41: =B34+B35+B36+B37+B38+B39+B40 -> 0.0465 | C41: =C34+C35+C36+C37+C38+C39+C40 -> 0 | D41: 0 | E41: 0 | F41: 0 | G41: 0 | H41: 0 | I41: =SUM(B41:H41) -> 0.0465 | AA41: 5. Clique em "Configurações da Central de Confiabilidade"
A42: Distribuição das espécies (composição fracionária, %) | E42: para pH = | F42: =B23 -> 7.000618768 | G42: p[H] = | H42: =$B$24 -> 6.893756066 | J42: Eletrólito | K42: =K11 -> Na+ | L42: K+ | M42: Ca++ | N42: Cl- | O42: NO3- | P42: ClO4- | Q42: - | AA42: 6. Clique em "Configurações de macro"
A43: Ácido / Base protonação | B43: =K3 -> Ácido fosfórico | C43: Ácido acético | D43: Ácido clorídrico | E43: Ácido carbônico | F43: Hidróxido de sódio | G43: Hidróxido de amônio | H43: Ácido EDTA | J43: gi | K43: 0.7818749556 | L43: 0.7818749556 | M43: 0.3737224691 | N43: 0.7818749556 | O43: 0.7818749556 | P43: 0.7818749556 | AA43: 7. Assinale "desabilitar todas as macros com notificação"
A44: % B | B44: 0.0008723995919 | C44: 99.55579333 | D44: 100 | E44: 0.08348058213 | F44: 2.30399462e-07 | G44: 0.4444486061 | H44: 0.04492356422 | AA44: 8. Clique OK e OK; (não é preciso reconfigurar a cada dia)
A45: % HB | B45: 56.9879719 | C45: 0.4442066703 | D45: 7.80761767e-13 | E45: 84.99211015 | F45: 99.99999977 | G45: 99.55555139 | H45: 85.8650759 | AA45: 9. Feche e reabra o Excel; carregue curtipot.xlsm
A46: % H2B | B46: 43.01068353 | E46: 14.92440927 | H46: 14.0891342 | AA46: 10. Clique "Habilitar este Conteúdo" no
A47: % H3B | B47: 0.0004721661868 | H47: 0.000866318221
A48: % H4B | H48: 1.096973123e-08
A49: % H5B | H49: 4.430369215e-14
A50: % H6B | H50: 5.707018094e-21
A51: % S[HiB] | B51: =B44+B45+B46+B47+B48+B49+B50 -> 100 | C51: =C44+C45+C46+C47+C48+C49+C50 -> 100 | D51: 100 | E51: 100 | F51: 100 | G51: 100 | H51: 100
B57: Cálculo de pH com processamento em lote
A58: Ident. Amostra | B58: Espécies adicionadas à solução, em mol/L | H58: pH e outros parâmetros calculados
A59: Ident. célula . | B59: B5 | C59: B6 | D59: D5 | E59: G4 | F59: E6 | H59: B23 | I59: E26 | J59: K35 | K59: K36 | L59: B45 | M59: E27
A60: Espécie | B60: HPO4= | C60: H2PO4- | D60: HCl | E60: NH4OH | F60: CO2 | G60: log HB/H2B | H60: pH | I60: I | J60: g HPO4= | K60: g H2PO4- | L60: % HPO4= | M60: buff. cap.
A61: Razão mistura 1 | B61: 0.01 | C61: 0.04 | G61: =LOG10(B61/C61) -> -0.6020599913 | H61: 6.293606142 | I61: 0.08300355308 | J61: 0.3938374898 | K61: 0.7921898318 | L61: 20.00565314 | M61: 0.01843363258
A62: 2 | B62: =B61+0.001 -> 0.011 | C62: =C61-0.001 -> 0.039 | G62: -0.5496719219 | H62: 6.344829653 | I62: 0.0840031108 | J62: 0.3924715157 | K62: 0.7915020347 | L62: 22.00486938 | M62: 0.01976745449
A63: 3 | B63: =B62+0.001 -> 0.012 | C63: =C62-0.001 -> 0.038 | G63: -0.5006023506 | H63: 6.392755913 | I63: 0.08500274537 | J63: 0.3911265661 | K63: 0.7908230675 | L63: 24.00421009 | M63: 0.02100947471
A64: 4 | B64: 0.013 | C64: 0.037 | G64: -0.4542583718 | H64: 6.437975314 | I64: 0.08600243939 | J64: 0.3898021763 | K64: 0.7901527663 | L64: 26.00364532 | M64: 0.02215962547
A65: 5 | B65: 0.014 | C65: 0.036 | G65: -0.4101744651 | H65: 6.480951642 | I65: 0.0870021804 | J65: 0.3884978904 | K65: 0.7894909685 | L65: 28.0031535 | M65: 0.0232178585
A66: 6 | B66: 0.015 | C66: 0.035 | G66: -0.3679767853 | H66: 6.522057492 | I66: 0.0880019593 | J66: 0.3872132625 | K66: 0.7888375144 | L66: 30.00271862 | M66: 0.02418413852
A67: 7 | B67: 0.016 | C67: 0.034 | G67: -0.3273589344 | H67: 6.56159832 | I67: 0.08900176929 | J67: 0.3859478584 | K67: 0.7881922474 | L67: 32.00232854 | M67: 0.0250584393
A68: 8 | B68: 0.017 | C68: 0.033 | G68: -0.2880650185 | H68: 6.599829285 | I68: 0.09000160521 | J68: 0.3847012554 | K68: 0.7875550142 | L68: 34.0019738 | M68: 0.02584074099
A69: 9 | B69: 0.018 | C69: 0.032 | G69: -0.2498774732 | H69: 6.636967356 | I69: 0.0910014631 | J69: 0.3834730429 | K69: 0.7869256653 | L69: 36.00164688 | M69: 0.02653102839
A70: 10 | B70: 0.019 | C70: 0.031 | G70: -0.2126080929 | H70: 6.673200244 | I70: 0.09200133992 | J70: 0.3822628219 | K70: 0.7863040551 | L70: 38.0013417 | M70: 0.02712928975
A71: 11 | B71: 0.02 | C71: 0.03 | G71: -0.1760912591 | H71: 6.708693132 | I71: 0.093001233 | J71: 0.3810702057 | K71: 0.7856900416 | L71: 40.00105273 | M71: 0.02763551585
A72: 12 | B72: 0.021 | C72: 0.029 | G72: -0.1401787032 | H72: 6.743593922 | I72: 0.09400114061 | J72: 0.3798948181 | K72: 0.7850834864 | L72: 42.00077584 | M72: 0.02804969973
A73: 13 | B73: 0.022 | C73: 0.028 | G73: -0.1047353505 | H73: 6.77803735 | I73: 0.0950010613 | J73: 0.3787362943 | K73: 0.7844842548 | L73: 44.00050716 | M73: 0.02837183594
A74: 14 | B74: 0.023 | C74: 0.027 | G74: -0.06963592814 | H74: 6.812148378 | I74: 0.09600099371 | J74: 0.3775942804 | K74: 0.7838922158 | L74: 46.00024291 | M74: 0.02860192038
A75: 15 | B75: 0.024 | C75: 0.026 | G75: -0.03476210626 | H75: 6.845083233 | I75: 0.0980009392 | J75: 0.3753583641 | K75: 0.7827291798 | L75: 47.99998088 | M75: 0.02873995563
A76: 16 | B76: 0.025 | C76: 0.025 | G76: 3.857309866e-16 | H76: 6.877949136 | I76: 0.1000008948 | J76: 0.3731845252 | K76: 0.7815934418 | L76: 49.99971614 | M76: 0.02878593357
A77: 17 | B77: 0.026 | C77: 0.024 | G77: 0.03476210626 | H77: 6.910856341 | I77: 0.1020008595 | J77: 0.3710702777 | K77: 0.7804840681 | L77: 51.9994449 | M77: 0.02873985339
A78: 18 | B78: 0.027 | C78: 0.023 | G78: 0.06963592814 | H78: 6.94391519 | I78: 0.1040008338 | J78: 0.3690132761 | K78: 0.7794001729 | L78: 53.99916439 | M78: 0.02860171518
A79: 19 | B79: 0.028 | C79: 0.022 | G79: 0.1047353505 | H79: 6.977238248 | I79: 0.1060008173 | J79: 0.3670113064 | K79: 0.7783409156 | L79: 55.99887096 | M79: 0.02837151984
A80: 20 | B80: 0.029 | C80: 0.021 | G80: 0.1401787032 | H80: 7.010942567 | I80: 0.10800081 | J80: 0.3650622763 | K80: 0.7773054977 | L80: 57.99856025 | M80: 0.02804926928
A81: 21 | B81: 0.03 | C81: 0.02 | G81: 0.1760912591 | H81: 7.045152205 | I81: 0.1100008124 | J81: 0.3631642057 | K81: 0.7762931594 | L81: 59.99822828 | M81: 0.0276349663
A82: 22 | B82: 0.031 | C82: 0.019 | G82: 0.2126080929 | H82: 7.080001043 | I82: 0.112000825 | J82: 0.3613152202 | K82: 0.7753031779 | L82: 61.99786973 | M82: 0.02712861499
A83: 23 | B83: 0.032 | C83: 0.018 | G83: 0.2498774732 | H83: 7.11563618 | I83: 0.1140008484 | J83: 0.3595135431 | K83: 0.7743348644 | L83: 63.99747851 | M83: 0.02653022081
A84: 24 | B84: 0.033 | C84: 0.017 | G84: 0.2880650185 | H84: 7.152222078 | I84: 0.1160008839 | J84: 0.3577574886 | K84: 0.7733875621 | L84: 65.9970474 | M84: 0.02583979095
A85: 25 | B85: 0.034 | C85: 0.016 | G85: 0.3273589344 | H85: 7.189945773 | I85: 0.1180009327 | J85: 0.3560454564 | K85: 0.7724606442 | L85: 67.99656744 | M85: 0.02505733486
A86: 26 | B86: 0.035 | C86: 0.015 | G86: 0.3679767853 | H86: 7.229023626 | I86: 0.1200009967 | J86: 0.3543759254 | K86: 0.7715535122 | L86: 69.99602757 | M86: 0.02418286484
A87: 27 | B87: 0.036 | C87: 0.014 | G87: 0.4101744651 | H87: 7.269710252 | I87: 0.1220010785 | J87: 0.3527474488 | K87: 0.7706655937 | L87: 71.9954136 | M87: 0.02321639708
A88: 28 | B88: 0.037 | C88: 0.013 | G88: 0.4542583718 | H88: 7.312310649 | I88: 0.1240011816 | J88: 0.3511586494 | K88: 0.769796341 | L88: 73.99470734 | M88: 0.02215795302
A89: 29 | B89: 0.038 | C89: 0.012 | G89: 0.5006023506 | H89: 7.357197029 | I89: 0.1260013103 | J89: 0.3496082148 | K89: 0.7689452299 | L89: 75.99388401 | M89: 0.02100756187
A90: 30 | B90: 0.039 | C90: 0.011 | G90: 0.5496719219 | H90: 7.404832938 | I90: 0.1280014711 | J90: 0.3480948929 | K90: 0.7681117574 | L90: 77.99291105 | M90: 0.01976526319
A91: 31 | B91: 0.04 | C91: 0.01 | G91: 0.6020599913 | H91: 7.455808683 | I91: 0.1300016729 | J91: 0.346617488 | K91: 0.7672954407 | L91: 79.99174227 | M91: 0.01843111297
A92: pH7 referência | B92: 0.0265 | C92: 0.02 | D92: 0 | H92: 7.000618768 | I92: 0.09950075163 | J92: 0.3737224691 | K92: 0.7818749556 | L92: 56.9879719 | M92: 0.02624798791
A93: Adição HCl 1 | B93: 0.0265 | C93: 0.02 | D93: =D92+0.001 -> 0.001 | H93: 6.963674598 | I93: 0.09850076796 | J93: 0.3748093585 | K93: 0.7824428144 | L93: 54.83775769 | M93: 0.02652025572
A94: 2 | B94: 0.0265 | C94: 0.02 | D94: =D93+0.001 -> 0.002 | H94: 6.927058242 | I94: 0.09750079042 | J94: 0.3759116022 | K94: 0.7830174353 | L94: 52.68752209 | M94: 0.02669353891
A95: 3 | B95: 0.0265 | C95: 0.02 | D95: 0.003 | H95: 6.89062685 | I95: 0.09650083069 | J95: 0.3770295071 | K95: 0.7835989314 | L95: 50.5372858 | M95: 0.0267678353
A96: 4 | B96: 0.0265 | C96: 0.02 | D96: 0.004 | H96: 6.854240956 | I96: 0.09550087739 | J96: 0.3781634152 | K96: 0.7841874323 | L96: 48.38703692 | M96: 0.02674314567
A97: 5 | B97: 0.0265 | C97: 0.02 | D97: 0.005 | H97: 6.817762242 | I97: 0.09450093514 | J97: 0.3793136609 | K97: 0.7847830618 | L97: 46.23678516 | M97: 0.02661947068
A98: 6 | B98: 0.0265 | C98: 0.02 | D98: 0.006 | H98: 6.78104997 | I98: 0.09350100468 | J98: 0.3804805934 | K98: 0.7853859496 | L98: 44.08653454 | M98: 0.02639681245
A99: 7 | B99: 0.0265 | C99: 0.02 | D99: 0.007 | H99: 6.743957842 | I99: 0.09250108686 | J99: 0.3816645728 | K99: 0.7859962288 | L99: 41.93628895 | M99: 0.0260751743
A100: 8 | B100: 0.0265 | C100: 0.02 | D100: 0.008 | H100: 6.706330453 | I100: 0.09150118334 | J100: 0.3828659693 | K100: 0.7866140361 | L100: 39.78605319 | M100: 0.02565456105
A101: 9 | B101: 0.0265 | C101: 0.02 | D101: 0.009 | H101: 6.667999173 | I101: 0.0905012959 | J101: 0.3840851651 | K101: 0.7872395118 | L101: 37.63583217 | M101: 0.02513497918
A102: 10 | B102: 0.0265 | C102: 0.02 | D102: 0.01 | H102: 6.628777216 | I102: 0.0895014267 | J102: 0.3853225539 | K102: 0.7878728001 | L102: 35.48563132 | M102: 0.02451643724
A103: 11 | B103: 0.0265 | C103: 0.02 | D103: 0.011 | H103: 6.588453494 | I103: 0.08850157933 | J103: 0.3865785404 | K103: 0.7885140488 | L103: 33.33545812 | M103: 0.02379894678
A104: 12 | B104: 0.0265 | C104: 0.02 | D104: 0.012 | H104: 6.546784633 | I104: 0.08750175725 | J104: 0.3878535428 | K104: 0.7891634099 | L104: 31.18532014 | M104: 0.02298252248
A105: 13 | B105: 0.0265 | C105: 0.02 | D105: 0.013 | H105: 6.503484478 | I105: 0.08650196581 | J105: 0.3891479905 | K105: 0.7898210388 | L105: 29.03522793 | M105: 0.0220671841
A106: 14 | B106: 0.0265 | C106: 0.02 | D106: 0.014 | H106: 6.458209684 | I106: 0.08550221188 | J106: 0.3904623253 | K106: 0.7904870946 | L106: 26.88519471 | M106: 0.02105295799
A107: 15 | B107: 0.0265 | C107: 0.02 | D107: 0.015 | H107: 6.410539539 | I107: 0.08450250483 | J107: 0.3917970002 | K107: 0.7911617394 | L107: 24.73523815 | M107: 0.01993987999
A108: 16 | B108: 0.0265 | C108: 0.02 | D108: 0.016 | H108: 6.359946766 | I108: 0.08350285763 | J108: 0.3931524786 | K108: 0.7918451381 | L108: 22.58538229 | M108: 0.01872799995
A109: 17 | B109: 0.0265 | C109: 0.02 | D109: 0.017 | H109: 6.305753887 | I109: 0.08250328886 | J109: 0.3945292317 | K109: 0.7925374563 | L109: 20.4356612 | M109: 0.01741738904
A110: 18 | B110: 0.0265 | C110: 0.02 | D110: 0.018 | H110: 6.247065469 | I110: 0.08150382555 | J110: 0.3959277344 | K110: 0.793238859 | L110: 18.28612418 | M110: 0.01600815188
A111: 19 | B111: 0.0265 | C111: 0.02 | D111: 0.019 | H111: 6.18265816 | I111: 0.08050450946 | J111: 0.3973484564 | K111: 0.7939495055 | L111: 16.13684696 | M111: 0.0145004493
A112: 20 | B112: 0.0265 | C112: 0.02 | D112: 0.02 | H112: 6.110792251 | I112: 0.07950540789 | J112: 0.3987918453 | K112: 0.7946695411 | L112: 13.9879513 | M112: 0.01289454097
A113: 21 | B113: 0.0265 | C113: 0.02 | D113: 0.021 | H113: 6.028866214 | I113: 0.07850663692 | J113: 0.4002582897 | K113: 0.7953990791 | L113: 11.83964682 | M113: 0.01119087485
A114: 22 | B114: 0.0265 | C114: 0.02 | D114: 0.022 | H114: 5.932725591 | I114: 0.0775084152 | J114: 0.4017480328 | K114: 0.7961381581 | L114: 9.692327984 | M114: 0.009390294792
A115: 23 | B115: 0.0265 | C115: 0.02 | D115: 0.023 | H115: 5.815107209 | I115: 0.07651120873 | J115: 0.4032609389 | K115: 0.7968866279 | L115: 7.546835066 | M115: 0.007494599604
A116: 24 | B116: 0.0265 | C116: 0.02 | D116: 0.024 | H116: 5.661488507 | I116: 0.07551621574 | J116: 0.4047957062 | K116: 0.7976437641 | L116: 5.405328062 | M116: 0.005508414604
A117: 25 | B117: 0.0265 | C117: 0.02 | D117: 0.025 | H117: 5.435590046 | I117: 0.07452769666 | J117: 0.4063460846 | K117: 0.7984064189 | L117: 3.275486013 | M117: 0.003448186864
A118: 26 | B118: 0.0265 | C118: 0.02 | D118: 0.026 | H118: 4.996911483 | I118: 0.0735771287 | J118: 0.4078616295 | K118: 0.799149832 | L118: 1.214034127 | M118: 0.001435440573
A119: pH7 referência | B119: 0.0265 | C119: 0.02 | E119: 0 | H119: 7.000618768 | I119: 0.09950075163 | J119: 0.3737224691 | K119: 0.7818749556 | L119: 56.9879719 | M119: 0.02624798791
A120: Adic. Amônia 1 | B120: 0.0265 | C120: 0.02 | E120: =E119+0.001 -> 0.001 | H120: 7.036938464 | I120: 0.1014911007 | J120: 0.3716036377 | K120: 0.7807643754 | L120: 59.12779309 | M120: 0.025889823
A121: 2 | B121: 0.0265 | C121: 0.02 | E121: =E120+0.001 -> 0.002 | H121: 7.073889317 | I121: 0.1034797842 | J121: 0.3695437936 | K121: 0.7796801511 | L121: 61.26578467 | M121: 0.02543597616
A122: 3 | B122: 0.0265 | C122: 0.02 | E122: 0.003 | H122: 7.111636945 | I122: 0.105466523 | J122: 0.3675408637 | K122: 0.7786215291 | L122: 63.40163932 | M122: 0.02488710338
A123: 4 | B123: 0.0265 | C123: 0.02 | E123: 0.004 | H123: 7.15036459 | I123: 0.1074509699 | J123: 0.3655929437 | K123: 0.7775878235 | L123: 65.53497439 | M123: 0.02424401794
A124: 5 | B124: 0.0265 | C124: 0.02 | E124: 0.005 | H124: 7.190278642 | I124: 0.109432688 | J124: 0.3636983033 | K124: 0.7765784214 | L124: 67.66530853 | M124: 0.02350773996
A125: 6 | B125: 0.0265 | C125: 0.02 | E125: 0.006 | H125: 7.231615603 | I125: 0.1114111224 | J125: 0.3618553956 | K125: 0.77559279 | L125: 69.7920309 | M125: 0.02267956484
A126: 7 | B126: 0.0265 | C126: 0.02 | E126: 0.007 | H126: 7.274650937 | I126: 0.1133855569 | J126: 0.3600628785 | K126: 0.7746304903 | L126: 71.91435266 | M126: 0.02176116209
A127: 8 | B127: 0.0265 | C127: 0.02 | E127: 0.008 | H127: 7.319710678 | I127: 0.1153550516 | J127: 0.3583196476 | K127: 0.7736911971 | L127: 74.03123913 | M127: 0.02075471791
A128: 9 | B128: 0.0265 | C128: 0.02 | E128: 0.009 | H128: 7.367186844 | I128: 0.117318353 | J128: 0.3566248877 | K128: 0.7727747299 | L128: 76.1413101 | M128: 0.01966314609
A129: 10 | B129: 0.0265 | C129: 0.02 | E129: 0.01 | H129: 7.417558089 | I129: 0.1192737534 | J129: 0.3549781574 | K129: 0.7718811011 | L129: 78.24268558 | M129: 0.01849040907
A130: 11 | B130: 0.0265 | C130: 0.02 | E130: 0.011 | H130: 7.471417672 | I130: 0.1212188746 | J130: 0.3533795224 | K130: 0.7710105929 | L130: 80.33274741 | M130: 0.01724201688
A131: 12 | B131: 0.0265 | C131: 0.02 | E131: 0.012 | H131: 7.529511225 | I131: 0.1231503202 | J131: 0.3518297727 | K131: 0.7701638803 | L131: 82.40775664 | M131: 0.01592582499
A132: 13 | B132: 0.0265 | C132: 0.02 | E132: 0.013 | H132: 7.592786775 | I132: 0.1250631029 | J132: 0.3503307835 | K132: 0.7693422355 | L132: 84.46222296 | M132: 0.01455334495
A133: 14 | B133: 0.0265 | C133: 0.02 | E133: 0.014 | H133: 7.662456969 | I133: 0.1269496766 | J133: 0.3488861251 | K133: 0.7685478723 | L133: 86.48783932 | M133: 0.01314195122
A134: 15 | B134: 0.0265 | C134: 0.02 | E134: 0.015 | H134: 7.740062647 | I134: 0.128798271 | J134: 0.347502111 | K134: 0.7677845379 | L134: 88.4716486 | M134: 0.01171865769
A135: 16 | B135: 0.0265 | C135: 0.02 | E135: 0.016 | H135: 7.827490882 | I135: 0.1305900429 | J135: 0.3461895773 | K135: 0.7670585181 | L135: 90.39290799 | M135: 0.01032652706
A136: 17 | B136: 0.0265 | C136: 0.02 | E136: 0.017 | H136: 7.926797319 | I136: 0.1322945155 | J136: 0.3449666892 | K136: 0.7663802252 | L136: 92.21806826 | M136: 0.009034786429
A137: 18 | B137: 0.0265 | C137: 0.02 | E137: 0.018 | H137: 8.039456241 | I137: 0.1338639501 | J137: 0.3438622577 | K137: 0.7657660843 | L137: 93.89457895 | M137: 0.0079508596
A138: 19 | B138: 0.0265 | C138: 0.02 | E138: 0.019 | H138: 8.164497379 | I138: 0.1352327165 | J138: 0.3429155208 | K138: 0.7652384539 | L138: 95.35019656 | M138: 0.007220020173
A139: 20 | B139: 0.0265 | C139: 0.02 | E139: 0.02 | H139: 8.296114723 | I139: 0.1363370753 | J139: 0.3421626291 | K139: 0.7648180758 | L139: 96.51476341 | M139: 0.006978104813
A140: 21 | B140: 0.0265 | C140: 0.02 | E140: 0.021 | H140: 8.424418059 | I140: 0.1371574136 | J140: 0.3416095985 | K140: 0.7645088483 | L140: 97.36670157 | M140: 0.007256463802
A141: 22 | B141: 0.0265 | C141: 0.02 | E141: 0.022 | H141: 8.54099161 | I141: 0.1377354386 | J141: 0.3412230729 | K141: 0.7642924992 | L141: 97.95193648 | M141: 0.007949818873
A142: 23 | B142: 0.0265 | C142: 0.02 | E142: 0.023 | H142: 8.642683221 | I142: 0.1381399039 | J142: 0.3409541413 | K142: 0.7641418623 | L142: 98.34616339 | M142: 0.008900065082
A143: 24 | B143: 0.0265 | C143: 0.02 | E143: 0.024 | H143: 8.73026888 | I143: 0.1384302771 | J143: 0.3407618443 | K143: 0.7640340961 | L143: 98.61485162 | M143: 0.009977951351
A144: 25 | B144: 0.0265 | C144: 0.02 | E144: 0.025 | H144: 8.805930333 | I144: 0.1386469686 | J144: 0.340618762 | K144: 0.763953881 | L144: 98.80248878 | M144: 0.01110147289
A145: 26 | B145: 0.0265 | C145: 0.02 | E145: 0.026 | H145: 8.871905212 | I145: 0.138815261 | J145: 0.3405078845 | K145: 0.7638917033 | L145: 98.93690795 | M145: 0.01222409992
A146: pH7 referência | B146: 0.0265 | C146: 0.02 | F146: 0 | H146: 7.000618768 | I146: 0.09950075163 | J146: 0.3737224691 | K146: 0.7818749556 | L146: 56.9879719 | M146: 0.02624798791
A147: Absorção CO2 1 | B147: 0.0265 | C147: 0.02 | F147: =F146+0.001 -> 0.001 | H147: 6.969481858 | I147: 0.09865943343 | J147: 0.3746358867 | K147: 0.7823522648 | L147: 55.17728121 | M147: 0.02679354944
A148: do ar 2 | B148: 0.0265 | C148: 0.02 | F148: =F147+0.001 -> 0.002 | H148: 6.939299839 | I148: 0.09783730546 | J148: 0.3755389378 | K148: 0.7828232997 | L148: 53.40808982 | M148: 0.02729533051
A149: 3 | B149: 0.0265 | C149: 0.02 | F149: 0.003 | H149: 6.909994968 | I149: 0.09703484418 | J149: 0.3764305359 | K149: 0.783287528 | L149: 51.68138834 | M149: 0.02775748911
A150: 4 | B150: 0.0265 | C150: 0.02 | F150: 0.004 | H150: 6.881501554 | I150: 0.0962524889 | J150: 0.3773096096 | K150: 0.7837444286 | L150: 49.99809286 | M150: 0.02818406924
A151: 5 | B151: 0.0265 | C151: 0.02 | F151: 0.005 | H151: 6.853763979 | I151: 0.09549063504 | J151: 0.3781751136 | K151: 0.7841934969 | L151: 48.35902973 | M151: 0.02857897789
A152: 6 | B152: 0.0265 | C152: 0.02 | F152: 0.006 | H152: 6.826735101 | I152: 0.09474962849 | J152: 0.3790260394 | K152: 0.7846342505 | L152: 46.76492236 | M152: 0.02894596206
A153: 7 | B153: 0.0265 | C153: 0.02 | F153: 0.007 | H153: 6.800374924 | I153: 0.09402976004 | J153: 0.3798614262 | K153: 0.7850662341 | L153: 45.21637874 | M153: 0.02928858679
A154: 8 | B154: 0.0265 | C154: 0.02 | F154: 0.008 | H154: 6.774649483 | I154: 0.09333126083 | J154: 0.3806803707 | K154: 0.7854890241 | L154: 43.71388084 | M154: 0.02961021501
A155: 9 | B155: 0.0265 | C155: 0.02 | F155: 0.009 | H155: 6.749529884 | I155: 0.09265429768 | J155: 0.3814820378 | K155: 0.7859022343 | L155: 42.25777468 | M155: 0.02991398973
A156: 10 | B156: 0.0265 | C156: 0.02 | F156: 0.01 | H156: 6.724991498 | I156: 0.09199897061 | J156: 0.3822656687 | K156: 0.786305519 | L156: 40.84826412 | M156: 0.03020281942
A157: 11 | B157: 0.0265 | C157: 0.02 | F157: 0.011 | H157: 6.701013248 | I157: 0.09136531038 | J157: 0.3830305889 | K157: 0.7866985769 | L157: 39.48540564 | M157: 0.03047936693
A158: 12 | B158: 0.0265 | C158: 0.02 | F158: 0.012 | H158: 6.677576995 | I158: 0.09075327761 | J158: 0.3837762145 | K158: 0.787081154 | L158: 38.16910616 | M158: 0.0307460423
A159: 13 | B159: 0.0265 | C159: 0.02 | F159: 0.013 | H159: 6.654667001 | I159: 0.09016276304 | J159: 0.3845020569 | K159: 0.7874530452 | L159: 36.89912334 | M159: 0.03100499965
A160: 14 | B160: 0.0265 | C160: 0.02 | F160: 0.014 | H160: 6.632269466 | I160: 0.08959358884 | J160: 0.3852077256 | K160: 0.787814096 | L160: 35.67506839 | M160: 0.03125813821
A161: pH7 referência | B161: 0.0265 | C161: 0.02 | H161: 7.000618768 | I161: 0.09950075163 | J161: 0.3737224691 | K161: 0.7818749556 | L161: 56.9879719 | M161: 0.02624798791

Sheet +pH
C1: Compilação de dados e resultados de cálculos de pH
B4: Identifique os resultados e acrescente observações (nas células em cinza)

Sheet Titulador
B1: Titulador virtual manual com indicador visual | H1: <--- leia instruções | K1: pKa dos ácidos e bases em solução | N1: Clique em K2 a Q2; selecione ácidos/bases; clique em J2; leia M1 | U1: Constantes cumulativas de protonação = bp = PKp (calculado pela planilha) | AA1: pKa(n) = -log Kd(HB-->B) = log Kp(1) | AF1: pKas dos ácidos HiB, carregados da planilha Constantes
A2: Composição da amostra hipotética (titulado) e do titulante (concentrações em mol/L) | K2: 4 | L2: 2 | M2: 1 | N2: 264 | O2: 7 | P2: 8 | Q2: 181 | S2: Titulante | V2: Titulado | AC2: Titulante | AG2: Titulado | AH2: Clique em J2 para usar estes pKas na simulação
A3: AMOSTRA Espécie | B3: =K3 -> Ácido clorídrico | C3: =L3 -> Ácido carbônico | D3: Ácido acético | E3: Vermelho de fenol (pKa 7,7) | F3: Hidróxido de amônio | G3: Hidróxido de sódio | H3: o-Fenotidina | J3: Ácido / Base | K3: Ácido clorídrico | L3: Ácido carbônico | M3: Ácido acético | N3: Vermelho de fenol (pKa 7,7) | O3: Hidróxido de amônio | P3: Hidróxido de sódio | Q3: o-Fenotidina | R3: Ácido forte | S3: Base forte | T3: Ác. carbônico | U3: Ácido / Base | V3: =IF(K3="","",K3) -> Ácido clorídrico | W3: Ácido carbônico | X3: Ácido acético | Y3: Vermelho de fenol (pKa 7,7) | Z3: Hidróxido de amônio | AA3: Hidróxido de sódio | AB3: o-Fenotidina | AC3: =R3 -> Ácido forte | AD3: =S3 -> Base forte | AE3: =T3 -> Ác. carbônico | AF3: Ácido / Base | AG3: =IF(VLOOKUP(K$2,Constantes!$B$23:$N$303,2)="","",VLOOKUP(K$2,Constantes!$B$23:$N$303,2)) -> Ácido clorídrico | AH3: =IF(VLOOKUP(L$2,Constantes!$B$23:$N$303,2)="","",VLOOKUP(L$2,Constantes!$B$23:$N$303,2)) -> Ácido carbônico | AI3: =IF(VLOOKUP(M$2,Constantes!$B$23:$N$303,2)="","",VLOOKUP(M$2,Constantes!$B$23:$N$303,2)) -> Ácido acético | AJ3: =IF(VLOOKUP(N$2,Constantes!$B$23:$N$303,2)="","",VLOOKUP(N$2,Constantes!$B$23:$N$303,2)) -> Vermelho de fenol (pKa 7,7) | AK3: =IF(VLOOKUP(O$2,Constantes!$B$23:$N$303,2)="","",VLOOKUP(O$2,Constantes!$B$23:$N$303,2)) -> Hidróxido de amônio | AL3: =IF(VLOOKUP(P$2,Constantes!$B$23:$N$303,2)="","",VLOOKUP(P$2,Constantes!$B$23:$N$303,2)) -> Hidróxido de sódio | AM3: =IF(VLOOKUP(Q$2,Constantes!$B$23:$N$303,2)="","",VLOOKUP(Q$2,Constantes!$B$23:$N$303,2)) -> o-Fenotidina
A4: [B] | J4: Carga de B | K4: -1 | L4: -2 | M4: -1 | N4: -2 | O4: 0 | P4: -1 | Q4: 0 | R4: -1 | S4: -1 | T4: -2 | U4: Carga de B | V4: -1 | W4: -2 | X4: -1 | Y4: -2 | Z4: 0 | AA4: -1 | AB4: 0 | AC4: =IF(R4="","",R4) -> -1 | AD4: =IF(S4="","",S4) -> -1 | AE4: =IF(T4="","",T4) -> -2 | AF4: Carga de B | AG4: =IF(VLOOKUP(K$2,Constantes!$B$23:$N$303,3)="","",VLOOKUP(K$2,Constantes!$B$23:$N$303,3)) -> -1 | AH4: =IF(VLOOKUP(L$2,Constantes!$B$23:$N$303,3)="","",VLOOKUP(L$2,Constantes!$B$23:$N$303,3)) -> -2 | AI4: =IF(VLOOKUP(M$2,Constantes!$B$23:$N$303,3)="","",VLOOKUP(M$2,Constantes!$B$23:$N$303,3)) -> -1 | AJ4: =IF(VLOOKUP(N$2,Constantes!$B$23:$N$303,3)="","",VLOOKUP(N$2,Constantes!$B$23:$N$303,3)) -> -2 | AK4: =IF(VLOOKUP(O$2,Constantes!$B$23:$N$303,3)="","",VLOOKUP(O$2,Constantes!$B$23:$N$303,3)) -> 0 | AL4: =IF(VLOOKUP(P$2,Constantes!$B$23:$N$303,3)="","",VLOOKUP(P$2,Constantes!$B$23:$N$303,3)) -> -1 | AM4: =IF(VLOOKUP(Q$2,Constantes!$B$23:$N$303,3)="","",VLOOKUP(Q$2,Constantes!$B$23:$N$303,3)) -> 0
A5: [HB] | D5: 0.1 | J5: pKa1 | K5: -7 | L5: 6.352 | M5: 4.757 | N5: 1.2 | O5: 9.244 | P5: 13.997 | Q5: 4.43 | R5: -6 | S5: 13.997 | T5: 6.352 | U5: bp1 | V5: =IF(K5="","",IF(K6="",10^K5,(IF(K7="",10^K6,(IF(K8="",10^K7,(IF(K9="",10^K8,(IF(K10="",10^K9,10^K10)))))))))) -> 1e-07 | W5: 2.133044913e+10 | X5: 57147.86367 | Y5: 50118723.36 | Z5: 1753880502 | AA5: 9.931160484e+13 | AB5: 26915.34804 | AC5: =IF(R5="","",IF(R6="",10^R5,10^R6)) -> 1e-06 | AD5: =IF(S5="","",IF(S6="",10^S5,10^S6)) -> 9.931160484e+13 | AE5: =IF(T5="","",IF(T6="",10^T5,10^T6)) -> 2.133044913e+10 | AF5: pKa1 = logKpn | AG5: =IF(VLOOKUP(K$2,Constantes!$B$23:$N$303,4)="","",VLOOKUP(K$2,Constantes!$B$23:$N$303,4)) -> -7 | AH5: =IF(VLOOKUP(L$2,Constantes!$B$23:$N$303,4)="","",VLOOKUP(L$2,Constantes!$B$23:$N$303,4)) -> 6.352 | AI5: =IF(VLOOKUP(M$2,Constantes!$B$23:$N$303,4)="","",VLOOKUP(M$2,Constantes!$B$23:$N$303,4)) -> 4.757 | AJ5: =IF(VLOOKUP(N$2,Constantes!$B$23:$N$303,4)="","",VLOOKUP(N$2,Constantes!$B$23:$N$303,4)) -> 1.2 | AK5: =IF(VLOOKUP(O$2,Constantes!$B$23:$N$303,4)="","",VLOOKUP(O$2,Constantes!$B$23:$N$303,4)) -> 9.244 | AL5: =IF(VLOOKUP(P$2,Constantes!$B$23:$N$303,4)="","",VLOOKUP(P$2,Constantes!$B$23:$N$303,4)) -> 13.997 | AM5: =IF(VLOOKUP(Q$2,Constantes!$B$23:$N$303,4)="","",VLOOKUP(Q$2,Constantes!$B$23:$N$303,4)) -> 4.43
A6: [H2B] | E6: 5e-05 | J6: pKa2 | L6: 10.329 | N6: 7.7 | T6: 10.329 | U6: bp2 | V6: =IF(K6="","",IF(K7="",V5*10^K5,(IF(K8="",V5*10^K6,(IF(K9="",V5*10^K7,(IF(K10="",V5*10^K8,V5*10^K9)))))))) ->  | W6: 4.797334486e+16 | Y6: 794328234.7 | AC6: =IF(R6="","",AC5*10^R5) ->  | AD6: =IF(S6="","",AD5*10^S5) ->  | AE6: =IF(T6="","",AE5*10^T5) -> 4.797334486e+16 | AF6: pKa2 = logKpn-1 | AG6: =IF(VLOOKUP(K$2,Constantes!$B$23:$N$303,5)="","",VLOOKUP(K$2,Constantes!$B$23:$N$303,5)) ->  | AH6: =IF(VLOOKUP(L$2,Constantes!$B$23:$N$303,5)="","",VLOOKUP(L$2,Constantes!$B$23:$N$303,5)) -> 10.329 | AI6: =IF(VLOOKUP(M$2,Constantes!$B$23:$N$303,5)="","",VLOOKUP(M$2,Constantes!$B$23:$N$303,5)) ->  | AJ6: =IF(VLOOKUP(N$2,Constantes!$B$23:$N$303,5)="","",VLOOKUP(N$2,Constantes!$B$23:$N$303,5)) -> 7.7 | AK6: =IF(VLOOKUP(O$2,Constantes!$B$23:$N$303,5)="","",VLOOKUP(O$2,Constantes!$B$23:$N$303,5)) ->  | AL6: =IF(VLOOKUP(P$2,Constantes!$B$23:$N$303,5)="","",VLOOKUP(P$2,Constantes!$B$23:$N$303,5)) ->  | AM6: =IF(VLOOKUP(Q$2,Constantes!$B$23:$N$303,5)="","",VLOOKUP(Q$2,Constantes!$B$23:$N$303,5)) -> 
A7: [H3B] | J7: pKa3 | U7: bp3 | V7: =IF(K7="","",IF(K8="",V6*10^K5,(IF(K9="",V6*10^K6,(IF(K10="",V6*10^K7,V6*10^K8)))))) ->  | AF7: pKa3 = logKpn-2 | AG7: =IF(VLOOKUP(K$2,Constantes!$B$23:$N$303,6)="","",VLOOKUP(K$2,Constantes!$B$23:$N$303,6)) ->  | AH7: =IF(VLOOKUP(L$2,Constantes!$B$23:$N$303,6)="","",VLOOKUP(L$2,Constantes!$B$23:$N$303,6)) ->  | AI7: =IF(VLOOKUP(M$2,Constantes!$B$23:$N$303,6)="","",VLOOKUP(M$2,Constantes!$B$23:$N$303,6)) ->  | AJ7: =IF(VLOOKUP(N$2,Constantes!$B$23:$N$303,6)="","",VLOOKUP(N$2,Constantes!$B$23:$N$303,6)) ->  | AK7: =IF(VLOOKUP(O$2,Constantes!$B$23:$N$303,6)="","",VLOOKUP(O$2,Constantes!$B$23:$N$303,6)) ->  | AL7: =IF(VLOOKUP(P$2,Constantes!$B$23:$N$303,6)="","",VLOOKUP(P$2,Constantes!$B$23:$N$303,6)) ->  | AM7: =IF(VLOOKUP(Q$2,Constantes!$B$23:$N$303,6)="","",VLOOKUP(Q$2,Constantes!$B$23:$N$303,6)) -> 
A8: [H4B] | I8: Total | J8: pKa4 | U8: bp4 | V8: =IF(K8="","",IF(K9="",V7*10^K5,(IF(K10="",V7*10^K6,V7*10^K7)))) ->  | AF8: pKa4 = logKpn-3 | AG8: =IF(VLOOKUP(K$2,Constantes!$B$23:$N$303,7)="","",VLOOKUP(K$2,Constantes!$B$23:$N$303,7)) ->  | AH8: =IF(VLOOKUP(L$2,Constantes!$B$23:$N$303,7)="","",VLOOKUP(L$2,Constantes!$B$23:$N$303,7)) ->  | AI8: =IF(VLOOKUP(M$2,Constantes!$B$23:$N$303,7)="","",VLOOKUP(M$2,Constantes!$B$23:$N$303,7)) ->  | AJ8: =IF(VLOOKUP(N$2,Constantes!$B$23:$N$303,7)="","",VLOOKUP(N$2,Constantes!$B$23:$N$303,7)) ->  | AK8: =IF(VLOOKUP(O$2,Constantes!$B$23:$N$303,7)="","",VLOOKUP(O$2,Constantes!$B$23:$N$303,7)) ->  | AL8: =IF(VLOOKUP(P$2,Constantes!$B$23:$N$303,7)="","",VLOOKUP(P$2,Constantes!$B$23:$N$303,7)) ->  | AM8: =IF(VLOOKUP(Q$2,Constantes!$B$23:$N$303,7)="","",VLOOKUP(Q$2,Constantes!$B$23:$N$303,7)) -> 
A9: [H5B] | I9: Titulado(s) | J9: pKa5 | U9: bp5 | V9: =IF(K9="","",IF(K10="",V8*10^K5,V8*10^K6)) ->  | AF9: pKa5 = logKpn-4 | AG9: =IF(VLOOKUP(K$2,Constantes!$B$23:$N$303,8)="","",VLOOKUP(K$2,Constantes!$B$23:$N$303,8)) ->  | AH9: =IF(VLOOKUP(L$2,Constantes!$B$23:$N$303,8)="","",VLOOKUP(L$2,Constantes!$B$23:$N$303,8)) ->  | AI9: =IF(VLOOKUP(M$2,Constantes!$B$23:$N$303,8)="","",VLOOKUP(M$2,Constantes!$B$23:$N$303,8)) ->  | AJ9: =IF(VLOOKUP(N$2,Constantes!$B$23:$N$303,8)="","",VLOOKUP(N$2,Constantes!$B$23:$N$303,8)) ->  | AK9: =IF(VLOOKUP(O$2,Constantes!$B$23:$N$303,8)="","",VLOOKUP(O$2,Constantes!$B$23:$N$303,8)) ->  | AL9: =IF(VLOOKUP(P$2,Constantes!$B$23:$N$303,8)="","",VLOOKUP(P$2,Constantes!$B$23:$N$303,8)) ->  | AM9: =IF(VLOOKUP(Q$2,Constantes!$B$23:$N$303,8)="","",VLOOKUP(Q$2,Constantes!$B$23:$N$303,8)) -> 
A10: [H6B] | I10: SS | J10: pKa6 | U10: bp6 | V10: =IF(K10="","",V9*10^K5) ->  | AF10: pKa6 = logKpn-5 | AG10: =IF(VLOOKUP(K$2,Constantes!$B$23:$N$303,9)="","",VLOOKUP(K$2,Constantes!$B$23:$N$303,9)) ->  | AH10: =IF(VLOOKUP(L$2,Constantes!$B$23:$N$303,9)="","",VLOOKUP(L$2,Constantes!$B$23:$N$303,9)) ->  | AI10: =IF(VLOOKUP(M$2,Constantes!$B$23:$N$303,9)="","",VLOOKUP(M$2,Constantes!$B$23:$N$303,9)) ->  | AJ10: =IF(VLOOKUP(N$2,Constantes!$B$23:$N$303,9)="","",VLOOKUP(N$2,Constantes!$B$23:$N$303,9)) ->  | AK10: =IF(VLOOKUP(O$2,Constantes!$B$23:$N$303,9)="","",VLOOKUP(O$2,Constantes!$B$23:$N$303,9)) ->  | AL10: =IF(VLOOKUP(P$2,Constantes!$B$23:$N$303,9)="","",VLOOKUP(P$2,Constantes!$B$23:$N$303,9)) ->  | AM10: =IF(VLOOKUP(Q$2,Constantes!$B$23:$N$303,9)="","",VLOOKUP(Q$2,Constantes!$B$23:$N$303,9)) -> 
A11: S[HiB] | B11: =SUM(B4:B10) -> 0 | C11: =SUM(C4:C10) -> 0 | D11: 0.1 | E11: 5e-05 | F11: 0 | G11: 0 | H11: 0 | I11: =SUM(B11:H11) -> 0.10005 | J11: pKw | K11: 13.997 | L11: Observação: este titulador virtual calcula "pH", ou seja, ignora interações iônicas, que são consideradas nos módulos Simulador e pH | U11: Kw | V11: =10^-K11 -> 1.006931669e-14 | AF11: Indicador: pKa1 ou 2 | AG11: =IF(VLOOKUP(K$2,Constantes!$B$23:$R$303,14)="","",VLOOKUP(K$2,Constantes!$B$23:$R$303,14)) ->  | AH11: =IF(VLOOKUP(L$2,Constantes!$B$23:$R$303,14)="","",VLOOKUP(L$2,Constantes!$B$23:$R$303,14)) ->  | AI11: =IF(VLOOKUP(M$2,Constantes!$B$23:$R$303,14)="","",VLOOKUP(M$2,Constantes!$B$23:$R$303,14)) ->  | AJ11: =IF(VLOOKUP(N$2,Constantes!$B$23:$R$303,14)="","",VLOOKUP(N$2,Constantes!$B$23:$R$303,14)) -> 7.7 | AK11: =IF(VLOOKUP(O$2,Constantes!$B$23:$R$303,14)="","",VLOOKUP(O$2,Constantes!$B$23:$R$303,14)) ->  | AL11: =IF(VLOOKUP(P$2,Constantes!$B$23:$R$303,14)="","",VLOOKUP(P$2,Constantes!$B$23:$R$303,14)) ->  | AM11: =IF(VLOOKUP(Q$2,Constantes!$B$23:$R$303,14)="","",VLOOKUP(Q$2,Constantes!$B$23:$R$303,14)) -> 
A12: S[H] | B12: =B5+2*B6+3*B7+4*B8+5*B9+6*B10 -> 0 | C12: =C5+2*C6+3*C7+4*C8+5*C9+6*C10 -> 0 | D12: 0.1 | E12: 0.0001 | F12: 0 | G12: 0 | H12: 0 | I12: =SUM(B12:H12) -> 0.1001 | N12: código de cores | AF12: nº cor pH < pKa indic | AG12: =IF(VLOOKUP(K$2,Constantes!$B$23:$R$303,15)="","",VLOOKUP(K$2,Constantes!$B$23:$R$303,15)) ->  | AH12: =IF(VLOOKUP(L$2,Constantes!$B$23:$R$303,15)="","",VLOOKUP(L$2,Constantes!$B$23:$R$303,15)) ->  | AI12: =IF(VLOOKUP(M$2,Constantes!$B$23:$R$303,15)="","",VLOOKUP(M$2,Constantes!$B$23:$R$303,15)) ->  | AJ12: =IF(VLOOKUP(N$2,Constantes!$B$23:$R$303,15)="","",VLOOKUP(N$2,Constantes!$B$23:$R$303,15)) -> 4907000 | AK12: =IF(VLOOKUP(O$2,Constantes!$B$23:$R$303,15)="","",VLOOKUP(O$2,Constantes!$B$23:$R$303,15)) ->  | AL12: =IF(VLOOKUP(P$2,Constantes!$B$23:$R$303,15)="","",VLOOKUP(P$2,Constantes!$B$23:$R$303,15)) ->  | AM12: =IF(VLOOKUP(Q$2,Constantes!$B$23:$R$303,15)="","",VLOOKUP(Q$2,Constantes!$B$23:$R$303,15)) -> 
A13: TITULANTE | B13: =R3 -> Ácido forte | C13: =S3 -> Base forte | D13: =T3 -> Ác. carbônico | E13: Total | F13: Volume de titulado no béquer (mL) | N13: N ã o a l t e r e | AF13: nº cor pH = pKa indic | AG13: =IF(VLOOKUP(K$2,Constantes!$B$23:$R$303,16)="","",VLOOKUP(K$2,Constantes!$B$23:$R$303,16)) ->  | AH13: =IF(VLOOKUP(L$2,Constantes!$B$23:$R$303,16)="","",VLOOKUP(L$2,Constantes!$B$23:$R$303,16)) ->  | AI13: =IF(VLOOKUP(M$2,Constantes!$B$23:$R$303,16)="","",VLOOKUP(M$2,Constantes!$B$23:$R$303,16)) ->  | AJ13: =IF(VLOOKUP(N$2,Constantes!$B$23:$R$303,16)="","",VLOOKUP(N$2,Constantes!$B$23:$R$303,16)) -> 4961023 | AK13: =IF(VLOOKUP(O$2,Constantes!$B$23:$R$303,16)="","",VLOOKUP(O$2,Constantes!$B$23:$R$303,16)) ->  | AL13: =IF(VLOOKUP(P$2,Constantes!$B$23:$R$303,16)="","",VLOOKUP(P$2,Constantes!$B$23:$R$303,16)) ->  | AM13: =IF(VLOOKUP(Q$2,Constantes!$B$23:$R$303,16)="","",VLOOKUP(Q$2,Constantes!$B$23:$R$303,16)) -> 
A14: [B] | C14: 0.1 | E14: Titulante(s) | F14: Amostra | G14: Água | H14: Titulado | J14: Reservatório de titulante | N14: M u d e c r I t e r o s a m e n t e | AF14: nº cor pH > pKa indic | AG14: =IF(VLOOKUP(K$2,Constantes!$B$23:$R$303,17)="","",VLOOKUP(K$2,Constantes!$B$23:$R$303,17)) ->  | AH14: =IF(VLOOKUP(L$2,Constantes!$B$23:$R$303,17)="","",VLOOKUP(L$2,Constantes!$B$23:$R$303,17)) ->  | AI14: =IF(VLOOKUP(M$2,Constantes!$B$23:$R$303,17)="","",VLOOKUP(M$2,Constantes!$B$23:$R$303,17)) ->  | AJ14: =IF(VLOOKUP(N$2,Constantes!$B$23:$R$303,17)="","",VLOOKUP(N$2,Constantes!$B$23:$R$303,17)) -> 5263615 | AK14: =IF(VLOOKUP(O$2,Constantes!$B$23:$R$303,17)="","",VLOOKUP(O$2,Constantes!$B$23:$R$303,17)) ->  | AL14: =IF(VLOOKUP(P$2,Constantes!$B$23:$R$303,17)="","",VLOOKUP(P$2,Constantes!$B$23:$R$303,17)) ->  | AM14: =IF(VLOOKUP(Q$2,Constantes!$B$23:$R$303,17)="","",VLOOKUP(Q$2,Constantes!$B$23:$R$303,17)) -> 
A15: [HB] | F15: pipetada | G15: adicionada | H15: (=vol. inicial) | J15: Composição: células B13 a D16 | N15: Preencha, altere ou deixe em branco
A16: [H2B] | E16: SS | F16: 20 | G16: 0 | H16: =F16+G16 -> 20
A17: S[HiB] | B17: =SUM(B14:B16) -> 0 | C17: =SUM(C14:C16) -> 0.1 | D17: =SUM(D14:D16) -> 0 | E17: =SUM(B17:D17) -> 0.1 | F17: Capacidade da bureta motorizada
A18: S[H] | B18: =B15+2*B16 -> 0 | C18: =C15+2*C16 -> 0 | D18: =D15+2*D16 -> 0 | E18: =SUM(B18:D18) -> 0 | F18: 50 | H18: mL de titulante .
A19: Amostra desconhecida
A20: BURETA digital | B20: motor | C20: =B21 -> 27.42 | G20: pH-metro
A21: Vol. adic., mL | B21: 27.42 | C21: Seringa com Titulante | F21: "pH" | G21: 12.18982196
B22: Adição de titulante (mL)
G24: Mostrar/ocultar
F25: TRUE | G25: pH e curva de titulação
F26: TRUE | G26: Espécies em equilíbrio
A28: Indicador | G28: Equilíbrio do TITULADO
A29: pKa, indicador | B29: 7.7 | G29: Fração molar | H29: Ácido acético
A30: Região | B30: Cores | G30: % B | H30: 99.99999631
A31: pH > pK+1 | B31: =B29+1 -> 8.7 | D31: 12.18982196 | E31: =$D$31 -> 12.18982196 | G31: % HB | H31: 3.691288816e-06
A32: pH = pK | B32: =B29 -> 7.7 | D32: =$D$31 -> 12.18982196 | E32: =$D$31 -> 12.18982196 | G32: % H2B
A33: pH < pK-1 | B33: =B29-1 -> 6.7 | D33: =$D$31 -> 12.18982196 | E33: =$D$31 -> 12.18982196 | G33: % H3B | R33: Ler dados nas curvas
A34: Equilíbrio do INDICADOR | D34: =$D$31 -> 12.18982196 | E34: =$D$31 -> 12.18982196 | G34: % H4B | R34: Copiar e colar o gráfico
A35: Fração molar | B35: Indicador | D35: =$D$31 -> 12.18982196 | E35: =$D$31 -> 12.18982196 | G35: % H5B | R35: Mudar escalas
A36: % Ind | B36: 99.99676284 | D36: Agitador magnético | G36: % H6B | R36: Gerar outros gráficos
A37: % Hind | B37: 0.003237158647 | R37: Analisar os dados
A39: V adic. | B39: "pH" | C39: V adic. | D39: "pH" | E39: [H] | F39: CHtot = | G39: fatores de diluição | I39: h1 | J39: h2 | K39: h3 | L39: h4 | M39: h5 | N39: h6 | O39: h7 | P39: h1 titulante | Q39: h2 titulante | R39: h3 titulante
C40: no gráfico | D40: no gráfico | F40: CHcalc | G40: Titulado (amostra) | H40: Titulante (bureta) | I40: =K3 -> Ácido clorídrico | J40: Ácido carbônico | K40: Ácido acético | L40: Vermelho de fenol (pKa 7,7) | M40: Hidróxido de amônio | N40: Hidróxido de sódio | O40: o-Fenotidina | P40: Ácido forte | Q40: Base forte | R40: Ác. carbônico
A41: 0 | B41: 2.873230236 | C41: 0 | D41: 2.873230236 | E41: 0.001338966662 | F41: 0.1001 | G41: 1 | H41: 0 | K41: 0.9870999508 | L41: 1.020765316 | Q41: 1
A42: 1 | B42: 3.50318016 | C42: 1 | D42: 3.50318016 | E42: 0.0003139206177 | F42: 0.09533333333 | G42: 0.9523809524 | H42: 0.04761904762 | K42: 0.9472013903 | L42: 1.004887121 | Q42: 1
A43: 2 | B43: 3.808567535 | C43: 2 | D43: 3.808567535 | E43: 0.0001553933629 | F43: 0.09100000001 | G43: 0.9090909091 | H43: 0.09090909091 | K43: 0.8987895096 | L43: 1.002328385 | Q43: 1
A44: 3 | B44: 4.005832674 | C44: 3 | D44: 4.005832674 | E44: 9.866595539e-05 | F44: 0.08704347825 | G44: 0.8695652174 | H44: 0.1304347826 | K44: 0.849364663 | L44: 1.001359126 | Q44: 1
A45: 4 | B45: 4.155858394 | C45: 4 | D45: 4.155858394 | E45: 6.984601064e-05 | F45: 0.08341666666 | G45: 0.8333333333 | H45: 0.1666666667 | K45: 0.7996614394 | L45: 1.000820177 | Q45: 1
A46: 5 | B46: 4.280239703 | C46: 5 | D46: 4.280239703 | E46: 5.245178802e-05 | F46: 0.08008000001 | G46: 0.8 | H46: 0.2 | K46: 0.74984413 | L46: 1.00045036 | Q46: 1
A47: 6 | B47: 4.389086878 | C47: 6 | D47: 4.389086878 | E47: 4.082377123e-05 | F47: 0.07699999997 | G47: 0.7692307692 | H47: 0.2307692308 | K47: 0.6999692148 | L47: 1.000158084 | Q47: 1
A48: 7 | B48: 4.488037807 | C48: 7 | D48: 4.488037807 | E48: 3.250589982e-05 | F48: 0.07414814817 | G48: 0.7407407407 | H48: 0.2592592593 | K48: 0.6500612241 | L48: 0.9999014796 | Q48: 1
A49: 8 | B49: 4.58066895 | C49: 8 | D49: 4.58066895 | E49: 2.626219671e-05 | F49: 0.07150000001 | G49: 0.7142857143 | H49: 0.2857142857 | K49: 0.6001325063 | L49: 0.9996568843 | Q49: 1
A50: 9 | B50: 4.669516496 | C50: 9 | D50: 4.669516496 | E50: 2.140343628e-05 | F50: 0.06903448278 | G50: 0.6896551724 | H50: 0.3103448276 | K50: 0.5501899534 | L50: 0.9994077587 | Q50: 1
A51: 10 | B51: 4.756587051 | C51: 10 | D51: 4.756587051 | E51: 1.751511321e-05 | F51: 0.06673333333 | G51: 0.6666666667 | H51: 0.3333333333 | K51: 0.5002377121 | L51: 0.9991396487 | Q51: 1
A52: 11 | B52: 4.843661635 | C52: 11 | D52: 4.843661635 | E52: 1.433304173e-05 | F52: 0.06458064514 | G52: 0.6451612903 | H52: 0.3548387097 | K52: 0.4502784299 | L52: 0.9988369748 | Q52: 1
A53: 12 | B53: 4.93252335 | C53: 12 | D53: 4.93252335 | E53: 1.168090926e-05 | F53: 0.06256249998 | G53: 0.625 | H53: 0.375 | K53: 0.400313879 | L53: 0.9984798684 | Q53: 1
A54: 13 | B54: 5.0251863 | C54: 13 | D54: 5.0251863 | E54: 9.436559882e-06 | F54: 0.06066666667 | G54: 0.6060606061 | H54: 0.3939393939 | K54: 0.3503452946 | L54: 0.9980396018 | Q54: 1
A55: 14 | B55: 5.124204487 | C55: 14 | D55: 5.124204487 | E55: 7.512690765e-06 | F55: 0.05888235293 | G55: 0.5882352941 | H55: 0.4117647059 | K55: 0.3003735718 | L55: 0.9974702323 | Q55: 1
A56: 15 | B56: 5.233196659 | C56: 15 | D56: 5.233196659 | E56: 5.845253377e-06 | F56: 0.0572 | G56: 0.5714285714 | H56: 0.4285714286 | K56: 0.2503993929 | L56: 0.9966907691 | Q56: 1
A57: 16 | B57: 5.357911869 | C57: 16 | D57: 5.357911869 | E57: 4.38619697e-06 | F57: 0.05561111112 | G57: 0.5555555556 | H57: 0.4444444444 | K57: 0.2004233194 | L57: 0.9955411522 | Q57: 1
A58: 17 | B58: 5.508810659 | C58: 17 | D58: 5.508810659 | E58: 3.098769984e-06 | F58: 0.05410810811 | G58: 0.5405405405 | H58: 0.4594594595 | K58: 0.1504459072 | L58: 0.9936514169 | Q58: 0.9999999999
A59: 18 | B59: 5.70898885 | C59: 18 | D59: 5.70898885 | E59: 1.95438963e-06 | F59: 0.05268421053 | G59: 0.5263157895 | H59: 0.4736842105 | K59: 0.1004680022 | L59: 0.9899250112 | Q59: 0.9999999999
A60: 18.2 | B60: 5.75929915 | C60: 18.2 | D60: 5.75929915 | E60: 1.740607497e-06 | F60: 0.05240837695 | G60: 0.5235602094 | H60: 0.4764397906 | K60: 0.09047251759 | L60: 0.9886944715 | Q60: 0.9999999999
A61: 18.4 | B61: 5.814889995 | C61: 18.4 | D61: 5.814889995 | E61: 1.531475329e-06 | F61: 0.05213541667 | G61: 0.5208333333 | H61: 0.4791666667 | K61: 0.08047714036 | L61: 0.9871634557 | Q61: 0.9999999999
A62: 18.6 | B62: 5.877180013 | C62: 18.6 | D62: 5.877180013 | E62: 1.326844372e-06 | F62: 0.05186528498 | G62: 0.518134715 | H62: 0.481865285 | K62: 0.07048193547 | L62: 0.9852061535 | Q62: 0.9999999999
A63: 18.8 | B63: 5.948240669 | C63: 18.8 | D63: 5.948240669 | E63: 1.126572981e-06 | F63: 0.05159793815 | G63: 0.5154639175 | H63: 0.4845360825 | K63: 0.06048701049 | L63: 0.982615165 | Q63: 0.9999999998
A64: 19 | B64: 6.031271031 | C64: 19 | D64: 6.031271031 | E64: 9.305269792e-07 | F64: 0.05133333333 | G64: 0.5128205128 | H64: 0.4871794872 | K64: 0.05049255466 | L64: 0.9790225777 | Q64: 0.9999999998
A65: 19.2 | B65: 6.13160183 | C65: 19.2 | D65: 6.13160183 | E65: 7.385810651e-07 | F65: 0.05107142857 | G65: 0.5102040816 | H65: 0.4897959184 | K65: 0.04049893754 | L65: 0.9737074958 | Q65: 0.9999999998
A66: 19.4 | B66: 6.259145271 | C66: 19.4 | D66: 6.259145271 | E66: 5.506234832e-07 | F66: 0.05081218274 | G66: 0.5076142132 | H66: 0.4923857868 | K66: 0.03050699357 | L66: 0.965039458 | Q66: 0.9999999997
A67: 19.6 | B67: 6.435837806 | C67: 19.6 | D67: 6.435837806 | E67: 3.665744522e-07 | F67: 0.05055555555 | G67: 0.5050505051 | H67: 0.4949494949 | K67: 0.0205190934 | L67: 0.9483855471 | Q67: 0.9999999995
A68: 19.8 | B68: 6.729320949 | C68: 19.8 | D68: 6.729320949 | E68: 1.865000921e-07 | F68: 0.05030150754 | G68: 0.5025125628 | H68: 0.4974874372 | K68: 0.01054568505 | L68: 0.9033579258 | Q68: 0.999999999
A69: 19.9 | B69: 7.007585801 | C69: 19.9 | D69: 7.007585801 | E69: 9.826847112e-08 | F69: 0.0501754386 | G69: 0.5012531328 | H69: 0.4987468672 | K69: 0.005584471735 | L69: 0.8312277147 | Q69: 0.9999999982
A70: 19.95 | B70: 7.259317195 | C70: 19.95 | D70: 7.259317195 | E70: 5.504055512e-08 | F70: 0.0501126408 | G70: 0.5006257822 | H70: 0.4993742178 | K70: 0.00313558731 | L70: 0.7339416357 | Q70: 0.9999999967
A71: 19.97 | B71: 7.418359358 | C71: 19.97 | D71: 7.418359358 | E71: 3.816283606e-08 | F71: 0.05008756567 | G71: 0.5003752815 | H71: 0.4996247185 | K71: 0.002176178469 | L71: 0.6566732427 | Q71: 0.9999999953
A72: 19.98 | B72: 7.524222098 | C72: 19.98 | D72: 7.524222098 | E72: 2.990734786e-08 | F72: 0.05007503752 | G72: 0.5002501251 | H72: 0.4997498749 | K72: 0.001706224861 | L72: 0.5998272185 | Q72: 0.999999994
A73: 19.99 | B73: 7.660449476 | C73: 19.99 | D73: 7.660449476 | E73: 2.185498559e-08 | F73: 0.05006251563 | G73: 0.5001250313 | H73: 0.4998749687 | K73: 0.001247407766 | L73: 0.5227516574 | Q73: 0.9999999918
A74: 20 | B74: 7.849929627 | C74: 20 | D74: 7.849929627 | E74: 1.412766452e-08 | F74: 0.05005 | G74: 0.5 | H74: 0.5 | K74: 0.000806714533 | L74: 0.414540795 | Q74: 0.9999999873
A75: 20.01 | B75: 8.155788376 | C75: 20.01 | D75: 8.155788376 | E75: 6.985727225e-09 | F75: 0.05003749063 | G75: 0.4998750312 | H75: 0.5001249688 | K75: 0.000399060075 | L75: 0.2593228048 | Q75: 0.9999999742
A76: 20.02 | B76: 8.800253792 | C76: 20.02 | D76: 8.800253792 | E76: 1.583967286e-09 | F76: 0.05002498751 | G76: 0.4997501249 | H76: 0.5002498751 | K76: 9.051215323e-05 | L76: 0.07354773105 | Q76: 0.9999998864
A77: 20.03 | B77: 9.420395975 | C77: 20.03 | D77: 9.420395975 | E77: 3.798429109e-10 | F77: 0.05001249063 | G77: 0.499625281 | H77: 0.500374719 | K77: 2.170673967e-05 | L77: 0.01868159592 | Q77: 0.9999995264
A78: 20.04 | B78: 9.70215944 | C78: 20.04 | D78: 9.70215944 | E78: 1.985365909e-10 | F78: 0.05 | G78: 0.4995004995 | H78: 0.5004995005 | K78: 1.134581331e-05 | L78: 0.009852365568 | Q78: 0.9999990939
A79: 20.05 | B79: 9.874292415 | C79: 20.05 | D79: 9.874292415 | E79: 1.335695875e-10 | F79: 0.04998751561 | G79: 0.4993757803 | H79: 0.5006242197 | K79: 7.633158305e-06 | L79: 0.006649821084 | Q79: 0.9999986532
A80: 20.07 | B80: 10.09390996 | C80: 20.07 | D80: 10.09390996 | E80: 8.055454252e-11 | F80: 0.04996256551 | G80: 0.4991265286 | H80: 0.5008734714 | K80: 4.603498816e-06 | L80: 0.004021056663 | Q80: 0.9999977669
A81: 20.12 | B81: 10.39353848 | C81: 20.12 | D81: 10.39353848 | E81: 4.040745669e-11 | F81: 0.0499002991 | G81: 0.4985044865 | H81: 0.5014955135 | K81: 2.309194496e-06 | L81: 0.002021077123 | Q81: 0.9999955482
A82: 20.22 | B82: 10.69327039 | C82: 20.22 | D82: 10.69327039 | E82: 2.026420675e-11 | F82: 0.04977623073 | G82: 0.4972650423 | H82: 0.5027349577 | K82: 1.158054785e-06 | L82: 0.001014585744 | Q82: 0.999991123
A83: 20.32 | B83: 10.86824214 | C83: 20.32 | D83: 10.86824214 | E83: 1.354434039e-11 | F83: 0.04965277778 | G83: 0.496031746 | H83: 0.503968254 | K83: 7.740295196e-07 | L83: 0.0006783645591 | Q83: 0.9999867188
A84: 20.52 | B84: 11.08791951 | C84: 20.52 | D84: 11.08791951 | E84: 8.167337277e-12 | F84: 0.0494076999 | G84: 0.4935834156 | H84: 0.5064165844 | K84: 4.667456589e-07 | L84: 0.0004091690294 | Q84: 0.9999779753
A85: 20.72 | B85: 11.23190165 | C85: 20.72 | D85: 11.23190165 | E85: 5.862709111e-12 | F85: 0.04916502947 | G85: 0.4911591356 | H85: 0.5088408644 | K85: 3.350411884e-07 | L85: 0.0002937451843 | Q85: 0.9999693177
A86: 20.92 | B86: 11.33891406 | C86: 20.92 | D86: 11.33891406 | E86: 4.582325503e-12 | F86: 0.04892473119 | G86: 0.4887585533 | H86: 0.5112414467 | K86: 2.618700448e-07 | L86: 0.0002296075728 | Q86: 0.9999607448
A87: 21.42 | B87: 11.52551844 | C87: 21.42 | D87: 11.52551844 | E87: 2.981820931e-12 | F87: 0.0483341381 | G87: 0.4828585225 | H87: 0.5171414775 | K87: 1.704046672e-07 | L87: 0.000149422728 | Q87: 0.9999396757
A88: 22.42 | B88: 11.74923128 | C88: 22.42 | D88: 11.74923128 | E88: 1.781429828e-12 | F88: 0.04719471948 | G88: 0.471475719 | H88: 0.528524281 | K88: 1.018048987e-07 | L88: 8.927501808e-05 | Q88: 0.9998990311
A89: 23.42 | B89: 11.89037114 | C89: 23.42 | D89: 11.89037114 | E89: 1.287149103e-12 | F89: 0.04610778445 | G89: 0.4606172271 | H89: 0.5393827729 | K89: 7.355781615e-08 | L89: 6.450610861e-05 | Q89: 0.9998602633
A90: 24.42 | B90: 11.99244804 | C90: 24.42 | D90: 11.99244804 | E90: 1.0175411e-12 | F90: 0.04506978838 | G90: 0.4502476362 | H90: 0.5497523638 | K90: 5.815029663e-08 | L90: 5.099526021e-05 | Q90: 0.9998232452
A91: 25.42 | B91: 12.07171283 | C91: 25.42 | D91: 12.07171283 | E91: 8.477878188e-13 | F91: 0.0440774989 | G91: 0.4403346543 | H91: 0.5596653457 | K91: 4.844926029e-08 | L91: 4.248823779e-05 | Q91: 0.9997878609
A92: 26.42 | B92: 12.13603367 | C92: 26.42 | D92: 12.13603367 | E92: 7.310824026e-13 | F92: 0.04312796207 | G92: 0.4308487721 | H92: 0.5691512279 | K92: 4.177979568e-08 | L92: 3.663957415e-05 | Q92: 0.9997540047
A93: 27.42 | B93: 12.18982196 | C93: 27.42 | D93: 12.18982196 | E93: 6.459189749e-13 | F93: 0.04221847319 | G93: 0.4217629692 | H93: 0.5782370308 | K93: 3.691288812e-08 | L93: 3.237158643e-05 | Q93: 0.9997215796

Sheet Simulador
B1: Titulador Virtual – Simulador de curvas | H1: <--- leia instruções | K1: pKa dos ácidos e bases em solução | N1: Clique em K2 a Q2; selecione ácidos/bases; clique em J2; leia M1 | U1: Constantes cumulativas de protonação = bp = PKp (calculado pela planilha) | AA1: pKa(n) = -log Kd(HB-->B) = log Kp(1) | AF1: pKas dos ácidos HiB, carregados da planilha Constantes
A2: Composição da amostra hipotética (titulado) e do titulante (concentrações em mol/L) | K2: 5 | L2: 6 | M2: 59 | N2: 1 | O2: 7 | P2: 4 | Q2: 2 | S2: Titulante | V2: Titulado | AC2: Titulante | AG2: Titulado | AH2: Clique em J2 para usar estes pKas na simulação
A3: AMOSTRA Espécie | B3: =K3 -> Ácido EDTA | C3: =L3 -> Ácido fosfórico | D3: Ácido l-glutâmico | E3: Ácido acético | F3: Hidróxido de amônio | G3: Ácido clorídrico | H3: Ácido carbônico | J3: Ácido / Base | K3: Ácido EDTA | L3: Ácido fosfórico | M3: Ácido l-glutâmico | N3: Ácido acético | O3: Hidróxido de amônio | P3: Ácido clorídrico | Q3: Ácido carbônico | R3: Ácido forte | S3: Base forte | T3: Ác. carbônico | U3: Ácido / Base | V3: =IF(K3="","",K3) -> Ácido EDTA | W3: Ácido fosfórico | X3: Ácido l-glutâmico | Y3: Ácido acético | Z3: Hidróxido de amônio | AA3: Ácido clorídrico | AB3: Ácido carbônico | AC3: =R3 -> Ácido forte | AD3: =S3 -> Base forte | AE3: =T3 -> Ác. carbônico | AF3: Ácido / Base | AG3: =IF(VLOOKUP(K$2,Constantes!$B$23:$N$303,2)="","",VLOOKUP(K$2,Constantes!$B$23:$N$303,2)) -> Ácido EDTA | AH3: =IF(VLOOKUP(L$2,Constantes!$B$23:$N$303,2)="","",VLOOKUP(L$2,Constantes!$B$23:$N$303,2)) -> Ácido fosfórico | AI3: =IF(VLOOKUP(M$2,Constantes!$B$23:$N$303,2)="","",VLOOKUP(M$2,Constantes!$B$23:$N$303,2)) -> Ácido l-glutâmico | AJ3: =IF(VLOOKUP(N$2,Constantes!$B$23:$N$303,2)="","",VLOOKUP(N$2,Constantes!$B$23:$N$303,2)) -> Ácido acético | AK3: =IF(VLOOKUP(O$2,Constantes!$B$23:$N$303,2)="","",VLOOKUP(O$2,Constantes!$B$23:$N$303,2)) -> Hidróxido de amônio | AL3: =IF(VLOOKUP(P$2,Constantes!$B$23:$N$303,2)="","",VLOOKUP(P$2,Constantes!$B$23:$N$303,2)) -> Ácido clorídrico | AM3: =IF(VLOOKUP(Q$2,Constantes!$B$23:$N$303,2)="","",VLOOKUP(Q$2,Constantes!$B$23:$N$303,2)) -> Ácido carbônico
A4: [B] | J4: Carga de B | K4: -4 | L4: -3 | M4: -2 | N4: -1 | O4: 0 | P4: -1 | Q4: -2 | R4: -1 | S4: -1 | T4: -2 | U4: Carga de B | V4: -4 | W4: =IF(L4="","",L4) -> -3 | X4: -2 | Y4: -1 | Z4: 0 | AA4: -1 | AB4: -2 | AC4: =IF(R4="","",R4) -> -1 | AD4: =IF(S4="","",S4) -> -1 | AE4: =IF(T4="","",T4) -> -2 | AF4: Carga de B | AG4: =IF(VLOOKUP(K$2,Constantes!$B$23:$N$303,3)="","",VLOOKUP(K$2,Constantes!$B$23:$N$303,3)) -> -4 | AH4: =IF(VLOOKUP(L$2,Constantes!$B$23:$N$303,3)="","",VLOOKUP(L$2,Constantes!$B$23:$N$303,3)) -> -3 | AI4: =IF(VLOOKUP(M$2,Constantes!$B$23:$N$303,3)="","",VLOOKUP(M$2,Constantes!$B$23:$N$303,3)) -> -2 | AJ4: =IF(VLOOKUP(N$2,Constantes!$B$23:$N$303,3)="","",VLOOKUP(N$2,Constantes!$B$23:$N$303,3)) -> -1 | AK4: =IF(VLOOKUP(O$2,Constantes!$B$23:$N$303,3)="","",VLOOKUP(O$2,Constantes!$B$23:$N$303,3)) -> 0 | AL4: =IF(VLOOKUP(P$2,Constantes!$B$23:$N$303,3)="","",VLOOKUP(P$2,Constantes!$B$23:$N$303,3)) -> -1 | AM4: =IF(VLOOKUP(Q$2,Constantes!$B$23:$N$303,3)="","",VLOOKUP(Q$2,Constantes!$B$23:$N$303,3)) -> -2
A5: [HB] | J5: pKa1 | K5: -0.21 | L5: 2.148 | M5: 2.23 | N5: 4.757 | O5: 9.244 | P5: -7 | Q5: 6.352 | R5: -6 | S5: 13.997 | T5: 6.352 | U5: bp1 | V5: =IF(K5="","",IF(K6="",10^K5,(IF(K7="",10^K6,(IF(K8="",10^K7,(IF(K9="",10^K8,(IF(K10="",10^K9,10^K10)))))))))) -> 1.071519305e+11 | W5: 2.238721139e+12 | X5: 8912509381 | Y5: 57147.86367 | Z5: 1753880502 | AA5: 1e-07 | AB5: 2.133044913e+10 | AC5: =IF(R5="","",IF(R6="",10^R5,10^R6)) -> 1e-06 | AD5: =IF(S5="","",IF(S6="",10^S5,10^S6)) -> 9.931160484e+13 | AE5: =IF(T5="","",IF(T6="",10^T5,10^T6)) -> 2.133044913e+10 | AF5: pKa1 = logKpn | AG5: =IF(VLOOKUP(K$2,Constantes!$B$23:$N$303,4)="","",VLOOKUP(K$2,Constantes!$B$23:$N$303,4)) -> -0.21 | AH5: =IF(VLOOKUP(L$2,Constantes!$B$23:$N$303,4)="","",VLOOKUP(L$2,Constantes!$B$23:$N$303,4)) -> 2.148 | AI5: =IF(VLOOKUP(M$2,Constantes!$B$23:$N$303,4)="","",VLOOKUP(M$2,Constantes!$B$23:$N$303,4)) -> 2.23 | AJ5: =IF(VLOOKUP(N$2,Constantes!$B$23:$N$303,4)="","",VLOOKUP(N$2,Constantes!$B$23:$N$303,4)) -> 4.757 | AK5: =IF(VLOOKUP(O$2,Constantes!$B$23:$N$303,4)="","",VLOOKUP(O$2,Constantes!$B$23:$N$303,4)) -> 9.244 | AL5: =IF(VLOOKUP(P$2,Constantes!$B$23:$N$303,4)="","",VLOOKUP(P$2,Constantes!$B$23:$N$303,4)) -> -7 | AM5: =IF(VLOOKUP(Q$2,Constantes!$B$23:$N$303,4)="","",VLOOKUP(Q$2,Constantes!$B$23:$N$303,4)) -> 6.352
A6: [H2B] | J6: pKa2 | K6: 1.5 | L6: 7.199 | M6: 4.42 | Q6: 10.329 | T6: 10.329 | U6: bp2 | V6: =IF(K6="","",IF(K7="",V5*10^K5,(IF(K8="",V5*10^K6,(IF(K9="",V5*10^K7,(IF(K10="",V5*10^K8,V5*10^K9)))))))) -> 6.025595861e+17 | W6: 3.539973411e+19 | X6: 2.344228815e+14 | AB6: 4.797334486e+16 | AC6: =IF(R6="","",AC5*10^R5) ->  | AD6: =IF(S6="","",AD5*10^S5) ->  | AE6: =IF(T6="","",AE5*10^T5) -> 4.797334486e+16 | AF6: pKa2 = logKpn-1 | AG6: =IF(VLOOKUP(K$2,Constantes!$B$23:$N$303,5)="","",VLOOKUP(K$2,Constantes!$B$23:$N$303,5)) -> 1.5 | AH6: =IF(VLOOKUP(L$2,Constantes!$B$23:$N$303,5)="","",VLOOKUP(L$2,Constantes!$B$23:$N$303,5)) -> 7.199 | AI6: =IF(VLOOKUP(M$2,Constantes!$B$23:$N$303,5)="","",VLOOKUP(M$2,Constantes!$B$23:$N$303,5)) -> 4.42 | AJ6: =IF(VLOOKUP(N$2,Constantes!$B$23:$N$303,5)="","",VLOOKUP(N$2,Constantes!$B$23:$N$303,5)) ->  | AK6: =IF(VLOOKUP(O$2,Constantes!$B$23:$N$303,5)="","",VLOOKUP(O$2,Constantes!$B$23:$N$303,5)) ->  | AL6: =IF(VLOOKUP(P$2,Constantes!$B$23:$N$303,5)="","",VLOOKUP(P$2,Constantes!$B$23:$N$303,5)) ->  | AM6: =IF(VLOOKUP(Q$2,Constantes!$B$23:$N$303,5)="","",VLOOKUP(Q$2,Constantes!$B$23:$N$303,5)) -> 10.329
A7: [H3B] | C7: 0.05 | J7: pKa3 | K7: 2.21 | L7: 12.35 | M7: 9.95 | U7: bp3 | V7: =IF(K7="","",IF(K8="",V6*10^K5,(IF(K9="",V6*10^K6,(IF(K10="",V6*10^K7,V6*10^K8)))))) -> 7.762471166e+20 | W7: 4.97737085e+21 | X7: 3.981071706e+16 | AF7: pKa3 = logKpn-2 | AG7: =IF(VLOOKUP(K$2,Constantes!$B$23:$N$303,6)="","",VLOOKUP(K$2,Constantes!$B$23:$N$303,6)) -> 2.21 | AH7: =IF(VLOOKUP(L$2,Constantes!$B$23:$N$303,6)="","",VLOOKUP(L$2,Constantes!$B$23:$N$303,6)) -> 12.35 | AI7: =IF(VLOOKUP(M$2,Constantes!$B$23:$N$303,6)="","",VLOOKUP(M$2,Constantes!$B$23:$N$303,6)) -> 9.95 | AJ7: =IF(VLOOKUP(N$2,Constantes!$B$23:$N$303,6)="","",VLOOKUP(N$2,Constantes!$B$23:$N$303,6)) ->  | AK7: =IF(VLOOKUP(O$2,Constantes!$B$23:$N$303,6)="","",VLOOKUP(O$2,Constantes!$B$23:$N$303,6)) ->  | AL7: =IF(VLOOKUP(P$2,Constantes!$B$23:$N$303,6)="","",VLOOKUP(P$2,Constantes!$B$23:$N$303,6)) ->  | AM7: =IF(VLOOKUP(Q$2,Constantes!$B$23:$N$303,6)="","",VLOOKUP(Q$2,Constantes!$B$23:$N$303,6)) -> 
A8: [H4B] | J8: pKa4 | K8: 3.11 | U8: bp4 | V8: =IF(K8="","",IF(K9="",V7*10^K5,(IF(K10="",V7*10^K6,V7*10^K7)))) -> 1.258925412e+23 | AF8: pKa4 = logKpn-3 | AG8: =IF(VLOOKUP(K$2,Constantes!$B$23:$N$303,7)="","",VLOOKUP(K$2,Constantes!$B$23:$N$303,7)) -> 3.11 | AH8: =IF(VLOOKUP(L$2,Constantes!$B$23:$N$303,7)="","",VLOOKUP(L$2,Constantes!$B$23:$N$303,7)) ->  | AI8: =IF(VLOOKUP(M$2,Constantes!$B$23:$N$303,7)="","",VLOOKUP(M$2,Constantes!$B$23:$N$303,7)) ->  | AJ8: =IF(VLOOKUP(N$2,Constantes!$B$23:$N$303,7)="","",VLOOKUP(N$2,Constantes!$B$23:$N$303,7)) ->  | AK8: =IF(VLOOKUP(O$2,Constantes!$B$23:$N$303,7)="","",VLOOKUP(O$2,Constantes!$B$23:$N$303,7)) ->  | AL8: =IF(VLOOKUP(P$2,Constantes!$B$23:$N$303,7)="","",VLOOKUP(P$2,Constantes!$B$23:$N$303,7)) ->  | AM8: =IF(VLOOKUP(Q$2,Constantes!$B$23:$N$303,7)="","",VLOOKUP(Q$2,Constantes!$B$23:$N$303,7)) -> 
A9: [H5B] | I9: Total | J9: pKa5 | K9: 6.75 | U9: bp5 | V9: =IF(K9="","",IF(K10="",V8*10^K5,V8*10^K6)) -> 3.981071706e+24 | AF9: pKa5 = logKpn-4 | AG9: =IF(VLOOKUP(K$2,Constantes!$B$23:$N$303,8)="","",VLOOKUP(K$2,Constantes!$B$23:$N$303,8)) -> 6.75 | AH9: =IF(VLOOKUP(L$2,Constantes!$B$23:$N$303,8)="","",VLOOKUP(L$2,Constantes!$B$23:$N$303,8)) ->  | AI9: =IF(VLOOKUP(M$2,Constantes!$B$23:$N$303,8)="","",VLOOKUP(M$2,Constantes!$B$23:$N$303,8)) ->  | AJ9: =IF(VLOOKUP(N$2,Constantes!$B$23:$N$303,8)="","",VLOOKUP(N$2,Constantes!$B$23:$N$303,8)) ->  | AK9: =IF(VLOOKUP(O$2,Constantes!$B$23:$N$303,8)="","",VLOOKUP(O$2,Constantes!$B$23:$N$303,8)) ->  | AL9: =IF(VLOOKUP(P$2,Constantes!$B$23:$N$303,8)="","",VLOOKUP(P$2,Constantes!$B$23:$N$303,8)) ->  | AM9: =IF(VLOOKUP(Q$2,Constantes!$B$23:$N$303,8)="","",VLOOKUP(Q$2,Constantes!$B$23:$N$303,8)) -> 
A10: [H6B] | I10: SS | J10: pKa6 | K10: 11.03 | U10: bp6 | V10: =IF(K10="","",V9*10^K5) -> 2.454708916e+24 | AF10: pKa6 = logKpn-5 | AG10: =IF(VLOOKUP(K$2,Constantes!$B$23:$N$303,9)="","",VLOOKUP(K$2,Constantes!$B$23:$N$303,9)) -> 11.03 | AH10: =IF(VLOOKUP(L$2,Constantes!$B$23:$N$303,9)="","",VLOOKUP(L$2,Constantes!$B$23:$N$303,9)) ->  | AI10: =IF(VLOOKUP(M$2,Constantes!$B$23:$N$303,9)="","",VLOOKUP(M$2,Constantes!$B$23:$N$303,9)) ->  | AJ10: =IF(VLOOKUP(N$2,Constantes!$B$23:$N$303,9)="","",VLOOKUP(N$2,Constantes!$B$23:$N$303,9)) ->  | AK10: =IF(VLOOKUP(O$2,Constantes!$B$23:$N$303,9)="","",VLOOKUP(O$2,Constantes!$B$23:$N$303,9)) ->  | AL10: =IF(VLOOKUP(P$2,Constantes!$B$23:$N$303,9)="","",VLOOKUP(P$2,Constantes!$B$23:$N$303,9)) ->  | AM10: =IF(VLOOKUP(Q$2,Constantes!$B$23:$N$303,9)="","",VLOOKUP(Q$2,Constantes!$B$23:$N$303,9)) -> 
A11: S[HiB] | B11: =SUM(B4:B10) -> 0 | C11: =SUM(C4:C10) -> 0.05 | D11: 0 | E11: 0 | F11: 0 | G11: 0 | H11: 0 | I11: =SUM(B11:H11) -> 0.05 | J11: pKw | K11: 13.997 | U11: Kw | V11: =10^-K11 -> 1.006931669e-14
A12: S[H] | B12: =B5+2*B6+3*B7+4*B8+5*B9+6*B10 -> 0 | C12: =C5+2*C6+3*C7+4*C8+5*C9+6*C10 -> 0.15 | D12: 0 | E12: 0 | F12: 0 | G12: 0 | H12: 0 | I12: =SUM(B12:H12) -> 0.15
A13: SziCi | B13: =K4*B4+(K4+1)*B5+(K4+2)*B6+(K4+3)*B7+(K4+4)*B8+(K4+5)*B9+(K4+6)*B10 -> 0 | C13: =L4*C4+(L4+1)*C5+(L4+2)*C6+(L4+3)*C7+(L4+4)*C8+(L4+5)*C9+(L4+6)*C10 -> 0 | D13: 0 | E13: 0 | F13: 0 | G13: 0 | H13: 0 | I13: =SUM(B13:H13) -> 0
A14: TITULANTE | B14: =R3 -> Ácido forte | C14: =S3 -> Base forte | D14: =T3 -> Ác. carbônico | E14: Total de | F14: Volume de titulado (amostra) (mL) | I14: Contra-íons e outros íons | K14: =IF(K17<>K16, "erro: K16><K17","") ->  | L14: =IF(K20<>K19, "erro: K19><K20","") ->  | M14: Simulação de | O14: Parâmetros da eq. de Davies
A15: [B] | C15: 0.1 | E15: Titulante(s) | F15: Amostra | G15: Água | H15: Titulado | I15: Titulado | J15: Mínimo (mol/L) | K15: Adicional (mol/L) | L15: Soma (mol/L) | M15: dispersão de dados | O15: para estimar coefic. de atividade
A16: [HB] | F16: pipetado | G16: adicionada | H16: (Vol inicial) | I16: Cátions (monov.) | J16: =IF(I13<0,-I13,0) -> 0 | K16: 0 | L16: =J16+K16 -> 0 | M16: S pH= | N16: 0 | O16: A | P16: 0.509
A17: [H2B] | E17: SS | F17: 20 | G17: 0 | H17: =F17+G17 -> 20 | I17: Ânions (monov.) | J17: =IF(I13>0,I13,0) -> 0 | K17: 0 | L17: =J17+K17 -> 0 | M17: S Vol= | N17: 0 | O17: b | P17: 0.3
A18: S[HiB] | B18: =SUM(B15:B17) -> 0 | C18: =SUM(C15:C17) -> 0.1 | D18: =SUM(D15:D17) -> 0 | E18: =SUM(B18:D18) -> 0.1 | F18: Vol. max. e nº adições de titulante | I18: Titulante | J18: Mínimo (mol/L) | K18: Adicional (mol/L) | L18: Soma (mol/L)
A19: S[H] | B19: =B16+2*B17 -> 0 | C19: =C16+2*C17 -> 0 | D19: =D16+2*D17 -> 0 | E19: =SUM(B19:D19) -> 0 | F19: Volume (mL) | G19: Nº de adições | I19: I > 0.1 mol/L; a exatidão do cálculo de pH diminui com o aumento de I. Leia comentário em P15. | J19: =IF(E20<0,-E20,0) -> 0.1 | K19: 0 | L19: =J19+K19 -> 0.1 | N19: I > 0.1 mol/L; a exatidão do cálculo de pH diminui com o aumento de I. Leia comentário em P15.
A20: SziCi | B20: =R4*B15+(R4+1)*B16+(R4+2)*B17 -> 0 | C20: =S4*C15+(S4+1)*C16+(S4+2)*C17 -> -0.1 | D20: =T4*D15+(T4+1)*D16+(T4+2)*D17 -> 0 | E20: =SUM(B20:D20) -> -0.1 | F20: 50 | G20: 50 | I20: Ânions (monov.) | J20: =IF(E20>0,E20,0) -> 0 | K20: 0 | L20: =J20+K20 -> 0
A21: 2 | D21: ]
O22: código de cores
O23: N ã o a l t e r e
O24: M u d e c r I t e r o s a m e n t e
O25: Preencha, altere ou deixe em branco
N26: Ler dados nas curvas
N27: Copiar e colar o gráfico
N28: Mudar escalas
N29: Gerar outros gráficos
N30: Analisar os dados
AW37: Curva copiada | AY37: Curva copiada
AW38: de Análise_I | AY38: de Análise_II | BA38: Curvas retidas de simulações anteriores
A39: V adic. | B39: =IF(A21=2,"pH", "'pH'") -> pH | C39: V adic. | D39: =IF(A21=2,"pH", "'pH'") -> pH | E39: [H] | F39: CHtot = | G39: fatores de diluição | I39: h1 | J39: h2 | K39: h3 | L39: h4 | M39: h5 | N39: h6 | O39: h7 | P39: h1 titulante | Q39: h2 titulante | R39: h3 titulante | S39: parâmetros calculados somente na opção: atividades, plotar pH | AW39: Vol | AX39: pH | AY39: Vol | AZ39: pH | BA39: Vol | BB39: pH | BC39: Vol | BD39: pH | BE39: Vol | BF39: pH | BG39: Vol | BH39: pH | BI39: Vol | BJ39: pH | BK39: Vol | BL39: pH | BM39: Vol | BN39: pH | BO39: Vol | BP39: pH | BQ39: Vol | BR39: pH | BS39: Vol | BT39: pH | BU39: Vol | BV39: pH | BW39: Vol | BX39: pH | BY39: Vol | BZ39: pH
A40: (mL) | B40: simulado | C40: com "erro" (não use) | D40: simulado com "erro" | F40: CHcalc | G40: Titulado (amostra) | H40: Titulante (bureta) | I40: =K3 -> Ácido EDTA | J40: Ácido fosfórico | K40: Ácido l-glutâmico | L40: Ácido acético | M40: Hidróxido de amônio | N40: Ácido clorídrico | O40: Ácido carbônico | P40: Ácido forte | Q40: Base forte | R40: Ác. carbônico | S40: I | T40: íons extras | U40: gH+ | V40: p[H] | BA40: 1 | BB40: 1 | BC40: 2 | BD40: 2 | BE40: 3 | BF40: 3 | BG40: 4 | BH40: 4 | BI40: 5 | BJ40: 5 | BK40: 6 | BL40: 6 | BM40: 7 | BN40: 7 | BO40: 8 | BP40: 8 | BQ40: 9 | BR40: 9 | BS40: 10 | BT40: 10 | BU40: 11 | BV40: 11 | BW40: 12 | BX40: 12 | BY40: 13 | BZ40: 13
A41: 0 | B41: 1.81710722 | E41: 0.01735785675 | F41: 0.1500000039 | G41: 1 | H41: 0 | J41: 2.652842943 | Q41: 1 | S41: 0.01735796129 | T41: 0 | U41: 0.8778022344 | V41: 1.7605039 | BA41: 0 | BB41: 3.353082641 | BC41: 0 | BD41: 1.386411696
A42: 2.30044427 | B42: 2.032047787 | E42: 0.0106950686 | F42: 0.1345264679 | G42: 0.8968431192 | H42: 0.1031568808 | J42: 2.531450792 | Q42: 1 | S42: 0.02101097504 | T42: 0.01031568808 | U42: 0.8684976364 | V42: 1.970816425 | BA42: 0.6894471691 | BB42: 3.540827492 | BC42: 3.117809592 | BD42: 1.607250963
A43: 4.325429381 | B43: 2.246139561 | E43: 0.006589782024 | F43: 0.1233277305 | G43: 0.8221848703 | H43: 0.1778151297 | J43: 2.407157785 | Q43: 1 | S43: 0.02437172063 | T43: 0.01778151297 | U43: 0.8609727233 | V43: 2.181128951 | BA43: 1.458208715 | BB43: 3.72895565 | BC43: 5.483084255 | BD43: 1.829576772
A44: 5.998288551 | B44: 2.459283684 | E44: 0.004060303748 | F44: 0.115392211 | G44: 0.7692814071 | H44: 0.2307185929 | J44: 2.294610195 | Q44: 1 | S44: 0.02713295242 | T44: 0.02307185929 | U44: 0.8553774454 | V44: 2.391441476 | BA44: 2.354237575 | BB44: 3.917140366 | BC44: 7.136162159 | BD44: 2.052947459
A45: 7.285792401 | B45: 2.671584041 | E45: 0.00250176204 | F45: 0.1099473292 | G45: 0.7329821947 | H45: 0.2670178053 | J45: 2.2031582 | Q45: 1 | S45: 0.0292049469 | T45: 0.02670178053 | U45: 0.8514712001 | V45: 2.601754001 | BA45: 3.385618357 | BB45: 4.104981039 | BC45: 8.226362318 | BD45: 2.277009381
A46: 8.21507308 | B46: 2.883229922 | E46: 0.001541464308 | F46: 0.1063261467 | G46: 0.7088409781 | H46: 0.2911590219 | J46: 2.135000164 | Q46: 1 | S46: 0.03065978856 | T46: 0.02911590219 | U46: 0.8488610529 | V46: 2.812066527 | BA46: 4.508503924 | BB46: 4.292116589 | BC46: 8.918093691 | BD46: 2.501510735
A47: 8.852646742 | B47: 3.094410589 | E47: 0.0009497754682 | F47: 0.1039765962 | G47: 0.6931773081 | H47: 0.3068226919 | J47: 2.08733179 | Q47: 1 | S47: 0.03163613275 | T47: 0.03068226919 | U47: 0.8471658997 | V47: 3.022379052 | BA47: 5.6376073 | BB47: 4.47833262 | BC47: 9.346292847 | BD47: 2.726284443
A48: 9.274525116 | B48: 3.305278628 | E48: 0.0005852055316 | F48: 0.1024781781 | G48: 0.6831878541 | H48: 0.3168121459 | J48: 2.055415875 | Q48: 1 | S48: 0.03227322165 | T48: 0.03168121459 | U48: 0.8460829683 | V48: 3.232691577 | BA48: 6.67908755 | BB48: 4.663594178 | BC48: 9.607319733 | BD48: 2.951224303
A49: 9.547219268 | B49: 3.515944479 | E49: 0.0003605752367 | F49: 0.1015323971 | G49: 0.6768826473 | H49: 0.3231173527 | J49: 2.034624079 | Q49: 1 | S49: 0.03268352158 | T49: 0.03231173527 | U49: 0.8453949068 | V49: 3.443004103 | BA49: 7.564980905 | BB49: 4.848001382 | BC49: 9.76495275 | BD49: 3.17626455
A50: 9.721389788 | B50: 3.726483748 | E50: 0.0002221689548 | F50: 0.1009374064 | G50: 0.6729160427 | H50: 0.3270839573 | J50: 2.021257853 | Q50: 1 | S50: 0.03294893428 | T50: 0.03270839573 | U50: 0.8449536435 | V50: 3.653316628 | BA50: 8.268340318 | BB50: 5.031717382 | BC50: 9.859607455 | BD50: 3.401365094
A51: 9.832768223 | B51: 3.936947183 | E51: 0.0001368897236 | F51: 0.1005605641 | G51: 0.6704037604 | H51: 0.3295962396 | J51: 2.012639381 | Q51: 1 | S51: 0.03312649812 | T51: 0.03295962396 | U51: 0.8446600884 | V51: 3.863629153 | BA51: 8.797147083 | BB51: 5.214911459 | BC51: 9.916251492 | BD51: 3.626501728
A52: 9.905640735 | B52: 4.147369504 | E52: 8.434480165e-05 | F52: 0.1003155233 | G52: 0.6687701553 | H52: 0.3312298447 | J52: 2.006913546 | Q52: 1 | S52: 0.03325615043 | T52: 0.03312298447 | U52: 0.8444465726 | V52: 4.073941679 | BA52: 9.178828941 | BB52: 5.397729422 | BC52: 9.950079636 | BD52: 3.851659918
A53: 9.956512624 | B53: 4.35777638 | E53: 5.196917182e-05 | F53: 0.1001451684 | G53: 0.6676344557 | H53: 0.3323655443 | J53: 2.002791931 | Q53: 1 | S53: 0.03336787635 | T53: 0.03323655443 | U53: 0.8442631368 | V53: 4.284254204 | BA53: 9.446391159 | BB53: 5.580284758 | BC53: 9.97025734 | BD53: 4.076830965
A54: 9.997179986 | B54: 4.568189978 | E54: 3.202088056e-05 | F54: 0.1000094009 | G54: 0.6667293395 | H54: 0.3332706605 | J54: 1.999321478 | Q54: 1 | S54: 0.0334878844 | T54: 0.03332706605 | U54: 0.8440666754 | V54: 4.494566729 | BA54: 9.630238129 | BB54: 5.762660643 | BC54: 9.98228411 | BD54: 4.302009677
A55: 10.03719047 | B55: 4.778633876 | E55: 1.972971198e-05 | F55: 0.09987618525 | G55: 0.665841235 | H55: 0.334158765 | J55: 1.995688349 | Q55: 1 | S55: 0.03364436736 | T55: 0.0334158765 | U55: 0.8438113868 | V55: 4.704879255 | BA55: 9.754962799 | BB55: 5.944915856 | BC55: 9.989449488 | BD55: 4.527192956
A56: 10.0859496 | B56: 4.989138111 | E56: 1.215649064e-05 | F56: 0.09971431978 | G56: 0.6647621318 | H56: 0.3352378682 | J56: 1.991039335 | Q56: 1 | S56: 0.03387373543 | T56: 0.03352378682 | U56: 0.8434389877 | V56: 4.91519178 | BA56: 9.839040846 | BB56: 6.127091086 | BC56: 9.993717445 | BD56: 4.752378954
A57: 10.15480394 | B57: 5.199745019 | E57: 7.49023933e-06 | F57: 0.09948663589 | G57: 0.6632442393 | H57: 0.3367557607 | J57: 1.984293796 | Q57: 1 | S57: 0.03422830443 | T57: 0.03367557607 | U57: 0.8428674644 | V57: 5.125504305 | BA57: 9.895767509 | BB57: 6.309214285 | BC57: 9.996259261 | BD57: 4.977566572
A58: 10.25942789 | B58: 5.410516025 | E58: 4.615121822e-06 | F58: 0.09914265433 | G58: 0.6609510289 | H58: 0.3390489711 | J58: 1.973917653 | Q58: 0.9999999999 | S58: 0.03478626286 | T58: 0.03390489711 | U58: 0.8419781256 | V58: 5.335816831 | BA58: 9.93450237 | BB58: 6.491304794 | BC58: 9.997773012 | BD58: 5.202755155
A59: 10.42273878 | B59: 5.621538168 | E59: 2.843614001e-06 | F59: 0.09861045127 | G59: 0.6574030085 | H59: 0.3425969915 | J59: 1.957639764 | Q59: 0.9999999999 | S59: 0.03566381887 | T59: 0.03425969915 | U59: 0.8406034947 | V59: 5.546129356 | BA59: 9.961818154 | BB59: 6.67337642 | BC59: 9.998674628 | BD59: 5.427944313
A60: 10.67815728 | B60: 5.832925773 | E60: 1.752096889e-06 | F60: 0.09778944584 | G60: 0.6519296389 | H60: 0.3480703611 | J60: 1.932130772 | Q60: 0.9999999999 | S60: 0.03702634914 | T60: 0.03480703611 | U60: 0.8385251851 | V60: 5.756441881 | BA60: 9.982437371 | BB60: 6.855439717 | BC60: 9.999211897 | BD60: 5.653133813
A61: 11.07177496 | B61: 6.044806479 | E61: 1.079557038e-06 | F61: 0.09655064774 | G61: 0.6436709852 | H61: 0.3563290148 | J61: 1.892789375 | Q61: 0.9999999998 | S61: 0.03908744762 | T61: 0.03563290148 | U61: 0.8355028411 | V61: 5.966754407 | BA61: 9.999968707 | BB61: 7.03750379 | BC61: 9.999532504 | BD61: 5.878323517
A62: 11.65903515 | B62: 6.257274825 | E62: 6.651706343e-07 | F62: 0.09475967873 | G62: 0.6317311915 | H62: 0.3682688085 | J62: 1.83407612 | Q62: 0.9999999996 | S62: 0.04207022402 | T62: 0.03682688085 | U62: 0.8313657143 | V62: 6.177066932 | BA62: 10.0175018 | BB62: 7.219577849 | BC62: 9.999724584 | BD62: 6.103513345
A63: 12.48750713 | B63: 6.470307287 | E63: 4.098458506e-07 | F63: 0.09234318864 | G63: 0.6156212578 | H63: 0.3843787422 | J63: 1.751237142 | Q63: 0.9999999994 | S63: 0.046096405 | T63: 0.03843787422 | U63: 0.8261752379 | V63: 6.387379457 | BA63: 10.03813214 | BB63: 7.401672774 | BC63: 9.999840941 | BD63: 6.328703246
A64: 13.56029233 | B64: 6.683685211 | E64: 2.52527115e-07 | F64: 0.08939135483 | G64: 0.5959423655 | H64: 0.4040576345 | J64: 1.643964282 | Q64: 0.9999999989 | S64: 0.05101537444 | T64: 0.04040576345 | U64: 0.8203643431 | V64: 6.597691983 | BA64: 10.06549076 | BB64: 7.583802879 | BC64: 9.999913569 | BD64: 6.553893195
A65: 14.79919416 | B65: 6.897030427 | E65: 1.55594948e-07 | F65: 0.08620889283 | G65: 0.5747259522 | H65: 0.4252740478 | J65: 1.520078565 | Q65: 0.9999999983 | S65: 0.05631907798 | T65: 0.04252740478 | U65: 0.8146556699 | V65: 6.808004508 | BA65: 10.10435681 | BB65: 7.765988103 | BC65: 9.999962432 | BD65: 6.779083176
A66: 16.05457604 | B66: 7.109980438 | E66: 9.587005279e-08 | F66: 0.08320719115 | G66: 0.5547146076 | H66: 0.4452853924 | J66: 1.39454472 | Q66: 0.9999999971 | S66: 0.06132175381 | T66: 0.04452853924 | U66: 0.8097232302 | V66: 7.018317033 | BA66: 10.16143545 | BB66: 7.948256733 | BC66: 10.00000097 | BD66: 7.004273183
A67: 17.17392239 | B67: 7.322349069 | E67: 5.907047202e-08 | F67: 0.0807017341 | G67: 0.5380115607 | H67: 0.4619884393 | J67: 1.28261533 | Q67: 0.9999999953 | S67: 0.06549753895 | T67: 0.04619884393 | U67: 0.8058987718 | V67: 7.228629559 | BA67: 10.24638257 | BB67: 8.130648616 | BC67: 10.00003977 | BD67: 7.229463218
A68: 18.06846896 | B68: 7.534138653 | E68: 3.639635697e-08 | F68: 0.07880537574 | G68: 0.5253691716 | H68: 0.4746308284 | J68: 1.193168059 | Q68: 0.9999999923 | S68: 0.06865833635 | T68: 0.04746308284 | U68: 0.8031625231 | V68: 7.438942084 | BA68: 10.3731254 | BB68: 8.313218267 | BC68: 10.00008951 | BD68: 7.454653289
A69: 18.72548398 | B69: 7.74545465 | E69: 2.242566811e-08 | F69: 0.07746836684 | G69: 0.5164557791 | H69: 0.4835442209 | J69: 1.127477836 | Q69: 0.9999999875 | S69: 0.07088710189 | T69: 0.04835442209 | U69: 0.8013088937 | V69: 7.649254609 | BA69: 10.56140253 | BB69: 8.49603619 | BC69: 10.00016386 | BD69: 7.679843417
A70: 19.17987481 | B70: 7.956424921 | E70: 1.381760792e-08 | F70: 0.07656992307 | G70: 0.5104661537 | H70: 0.4895338463 | J70: 1.082056618 | Q70: 0.9999999797 | S70: 0.07238523886 | T70: 0.04895338463 | U70: 0.800096219 | V70: 7.859567135 | BA70: 10.83808912 | BB70: 8.679184718 | BC70: 10.00028326 | BD70: 7.905033634
A71: 19.48181737 | B71: 8.167159455 | E71: 8.51373915e-09 | F71: 0.07598434417 | G71: 0.5065622945 | H71: 0.4934377055 | J71: 1.051891077 | Q71: 0.9999999669 | S71: 0.07336242051 | T71: 0.04934377055 | U71: 0.7993191344 | V71: 8.06987966 | BA71: 11.23705525 | BB71: 8.862742306 | BC71: 10.00048054 | BD71: 8.130224001
A72: 19.67773416 | B72: 8.377740037 | E72: 5.24575272e-09 | F72: 0.07560915619 | G72: 0.5040610412 | H72: 0.4959389588 | J72: 1.032345834 | Q72: 0.9999999463 | S72: 0.07398972654 | T72: 0.04959389588 | U72: 0.7988259277 | V72: 8.280192185 | BA72: 11.79492671 | BB72: 9.046750393 | BC72: 10.00080996 | BD72: 8.355414618
A73: 19.80371251 | B73: 8.588223221 | E73: 3.232178143e-09 | F73: 0.07536985399 | G73: 0.5024656933 | H73: 0.4975343067 | J73: 1.019823269 | Q73: 0.9999999127 | S73: 0.07439180704 | T73: 0.04975343067 | U73: 0.7985120864 | V73: 8.490504711 | BA73: 12.53917969 | BB73: 9.231166912 | BC73: 10.00136208 | BD73: 8.580605654
A74: 19.88554011 | B74: 8.798646879 | E74: 1.991511249e-09 | F74: 0.07521522813 | G74: 0.5014348545 | H74: 0.4985651455 | J74: 1.01176263 | Q74: 0.9999998583 | S74: 0.074654783 | T74: 0.04985651455 | U74: 0.7983077789 | V74: 8.700817236 | BA74: 13.46812335 | BB74: 9.415834211 | BC74: 10.00228877 | BD74: 8.805797393
A75: 19.94107382 | B75: 9.009036446 | E75: 1.227072543e-09 | F75: 0.07511064959 | G75: 0.5007376639 | H75: 0.4992623361 | J75: 1.006407501 | Q75: 0.9999997699 | S75: 0.07483761927 | T75: 0.04992623361 | U75: 0.7981661753 | V75: 8.911129762 | BA75: 14.53299353 | BB75: 9.60050444 | BC75: 10.00384493 | BD75: 9.030990312
A76: 19.98292472 | B76: 9.219409882 | E76: 7.560625264e-10 | F76: 0.07503202983 | G76: 0.5002135322 | H76: 0.4997864678 | J76: 1.002544333 | Q76: 0.9999996264 | S76: 0.07498248039 | T76: 0.04997864678 | U76: 0.7980542397 | V76: 9.121442287 | BA76: 15.64163694 | BB76: 9.784928554 | BC76: 10.00645878 | BD76: 9.256185214
A77: 20.02083246 | B77: 9.429781504 | E77: 4.658490217e-10 | F77: 0.07496095947 | G77: 0.4997397298 | H77: 0.5002602702 | J77: 0.9992765577 | Q77: 0.9999993935 | S77: 0.07512329007 | T77: 0.05002602702 | U77: 0.7979456515 | V77: 9.331754812 | BA77: 16.69047923 | BB77: 9.968946649 | BC77: 10.01084999 | BD77: 9.481383444
A78: 20.06373115 | B78: 9.640165166 | E78: 2.870335501e-10 | F78: 0.07488069418 | G78: 0.4992046278 | H78: 0.5007953722 | J78: 0.9958369266 | Q78: 0.9999990154 | S78: 0.0752931305 | T78: 0.05007953722 | U78: 0.7978149592 | V78: 9.542067338 | BA78: 17.60333176 | BB78: 10.15251546 | BC78: 10.01822874 | BD78: 9.706587263
A79: 20.12175506 | B79: 9.850577294 | E79: 1.76856138e-10 | F79: 0.07477240205 | G79: 0.4984826803 | H79: 0.5015173197 | J79: 0.9914182018 | Q79: 0.9999984013 | S79: 0.07553156172 | T79: 0.05015173197 | U79: 0.7976320072 | V79: 9.752379863 | BA79: 18.35030156 | BB79: 10.33567696 | BC79: 10.03063189 | BD79: 9.931800462
A80: 20.20853606 | B80: 10.06104023 | E80: 1.089701658e-10 | F80: 0.07461102279 | G80: 0.4974068186 | H80: 0.5025931814 | J80: 0.9849955849 | Q80: 0.9999974035 | S80: 0.07589302738 | T80: 0.05025931814 | U80: 0.7973558025 | V80: 9.962692388 | BA80: 18.94261266 | BB80: 10.51851148 | BC80: 10.0514925 | BD80: 10.1570294
A81: 20.34421443 | B81: 10.27158618 | E81: 6.714212565e-11 | F81: 0.07436010448 | G81: 0.4957340299 | H81: 0.5042659701 | J81: 0.975113973 | Q81: 0.9999957814 | S81: 0.07645732485 | T81: 0.05042659701 | U81: 0.7969273643 | V81: 10.17300491 | BA81: 19.4169797 | BB81: 10.70110428 | BC81: 10.08661091 | BD81: 10.38228474
A82: 20.55962796 | B82: 10.48226135 | E82: 4.136971806e-11 | F82: 0.07396517546 | G82: 0.4931011699 | H82: 0.5068988301 | J82: 0.9596216812 | Q82: 0.9999931419 | S82: 0.07734221967 | T82: 0.05068988301 | U82: 0.796262189 | V82: 10.38331744 | BA82: 19.82249548 | BB82: 10.88353008 | BC82: 10.1458266 | BD82: 10.60758431
A83: 20.90204919 | B83: 10.6931286 | E83: 2.549001176e-11 | F83: 0.07334595843 | G83: 0.4889730562 | H83: 0.5110269438 | J83: 0.9353673087 | Q83: 0.9999888411 | S83: 0.07871539697 | T83: 0.05110269438 | U83: 0.7952457779 | V83: 10.59362996 | BA83: 20.21505539 | BB83: 11.06584948 | BC83: 10.24594355 | BD83: 10.83295783
A84: 21.44228569 | B84: 10.90426337 | E84: 1.57057077e-11 | F84: 0.07238982961 | G84: 0.482598864 | H84: 0.517401136 | J84: 0.8979827729 | Q84: 0.9999818207 | S84: 0.08079553217 | T84: 0.0517401136 | U84: 0.7937415736 | V84: 10.80394249 | BA84: 20.65937522 | BB84: 11.24811132 | BC84: 10.41598412 | BD84: 11.05845469
A85: 22.28144263 | B85: 11.11573345 | E85: 9.677094567e-12 | F85: 0.07095311352 | G85: 0.473020757 | H85: 0.526979243 | J85: 0.8421257953 | Q85: 0.9999703381 | S85: 0.08381793652 | T85: 0.0526979243 | U85: 0.7916287777 | V85: 11.01425501 | BA85: 21.23817571 | BB85: 11.4303574 | BC85: 10.70701791 | BD85: 11.28415622
A86: 23.55372357 | B86: 11.32755315 | E86: 5.962555847e-12 | F86: 0.06888044819 | G86: 0.4592029879 | H86: 0.5407970121 | J86: 0.7629272782 | Q86: 0.999951525 | S86: 0.08792694044 | T86: 0.05407970121 | U86: 0.7888862599 | V86: 11.22456754 | BA86: 22.07067786 | BB86: 11.61262788 | BC86: 11.2117296 | BD86: 11.51019469
A87: 25.42594728 | B87: 11.53962405 | E87: 3.673837429e-12 | F87: 0.06604155016 | G87: 0.4402770046 | H87: 0.5597229954 | J87: 0.6592911713 | Q87: 0.999920689 | S87: 0.09298709759 | T87: 0.05597229954 | U87: 0.7856986695 | V87: 11.43488007 | BA87: 23.34858722 | BB87: 11.79496739 | BC87: 12.10709623 | BD87: 11.73678051
A88: 28.12249199 | B88: 11.75171817 | E88: 2.263640258e-12 | F88: 0.0623409112 | G88: 0.4156060747 | H88: 0.5843939253 | J88: 0.5377321988 | Q88: 0.9998702261 | S88: 0.09843197684 | T88: 0.05843939253 | U88: 0.782482126 | V88: 11.64519259 | BA88: 25.41308428 | BB88: 11.9774318 | BC88: 13.76041579 | BD88: 11.96423606
A89: 32.06528089 | B89: 11.96355436 | E89: 1.394745227e-12 | F89: 0.05761997143 | G89: 0.3841331432 | H89: 0.6158668568 | J89: 0.4123844461 | Q89: 0.9997879143 | S89: 0.1033656684 | T89: 0.06158668568 | U89: 0.7797416942 | V89: 11.85550512 | BA89: 28.94504279 | BB89: 12.16009642 | BC89: 17.04709647 | BD89: 12.1930247
A90: 38.31748264 | B90: 12.1749088 | E90: 8.593742934e-13 | F90: 0.05144254966 | G90: 0.3429503315 | H90: 0.6570496685 | J90: 0.2988492179 | Q90: 0.9996541803 | S90: 0.1068984983 | T90: 0.06570496685 | U90: 0.7778732733 | V90: 12.06581764 | BA90: 35.53627921 | BB90: 12.34306554 | BC90: 24.62739218 | BD90: 12.42373891
A91: 50 | B91: 12.38564465 | E91: 5.295047167e-13 | F91: 0.04285551121 | G91: 0.2857310835 | H91: 0.7142689165 | J91: 0.2070335694 | Q91: 0.9994377689 | S91: 0.1083729367 | T91: 0.07142689165 | U91: 0.7771154129 | V91: 12.27613017 | BA91: 49.99999999 | BB91: 12.52648266 | BC91: 50 | BD91: 12.6569694

Sheet Distribuição
B1: Distribuição das Espécies e Protonação Média das Bases vs. pH e vs. Volume | J1: <--- leia instruções
D2: Sistema ácido/base HiB | F2: Const. globais de protonação bp | H2: Corrig. para I | I2: Espécie | J2: Cor da curva | M2: código de cores | Z2: Opções do seletor em K12 (não modifique)
E3: 6 | F3: Força Iônica, I | G3: 0 | H3: =IF(C7<0,0,IF(C7>3,3,C7)) -> 0.1 | I3: a B | M3: N ã o a l t e r e | Z3: Curva de titulação do Titulador
D4: pKa1 = logKpn | E4: =IF(VLOOKUP(E$3,Constantes!$B$23:$N$303,4)="","",VLOOKUP(E$3,Constantes!$B$23:$N$303,4)) -> 2.148 | F4: bp1 | G4: =IF(E4="","",IF(E5="",10^E4,(IF(E6="",10^E5,(IF(E7="",10^E6,(IF(E8="",10^E7,(IF(E9="",10^E8,10^E9)))))))))) -> 2.238721139e+12 | H4: =IF(G4="","",(G4*$H$10^(-2*$E$10))) -> 5.103723218e+11 | I4: a HB | M4: M u d e c r I t e r o s a m e n t e | Z4: Curva de titulação do Simulador
B5: do sistema ácido/base | D5: pKa2 = logKpn-1 | E5: =IF(VLOOKUP(E$3,Constantes!$B$23:$N$303,5)="","",VLOOKUP(E$3,Constantes!$B$23:$N$303,5)) -> 7.199 | F5: bp2 | G5: =IF(E5="","",IF(E6="",G4*10^E4,(IF(E7="",G4*10^E5,(IF(E8="",G4*10^E6,(IF(E9="",G4*10^E7,G4*10^E8)))))))) -> 3.539973411e+19 | H5: =IF(G5="","",(G5*$H$10^(-4*$E$10-2))) -> 3.011701024e+18 | I5: a H2B | M5: Preencha, altere ou deixe em branco | Z5: Curva de titulação da Análise I
B6: =IF(VLOOKUP(E$3,Constantes!$B$23:$N$303,2)="","",VLOOKUP(E$3,Constantes!$B$23:$N$303,2)) -> Ácido fosfórico | D6: pKa3 = logKpn-2 | E6: =IF(VLOOKUP(E$3,Constantes!$B$23:$N$303,6)="","",VLOOKUP(E$3,Constantes!$B$23:$N$303,6)) -> 12.35 | F6: bp3 | G6: =IF(E6="","",IF(E7="",G5*10^E4,(IF(E8="",G5*10^E5,(IF(E9="",G5*10^E6,G5*10^E7)))))) -> 4.97737085e+21 | H6: =IF(G6="","",(G6*$H$10^(-6*$E$10-6))) -> 2.586867758e+20 | I6: a H3B | Z6: Curva de titulação da Análise II (regressão)
B7: em força iônica I (mol/L) | C7: 0.1 | D7: pKa4 = logKpn-3 | E7: =IF(VLOOKUP(E$3,Constantes!$B$23:$N$303,7)="","",VLOOKUP(E$3,Constantes!$B$23:$N$303,7)) ->  | F7: bp4 | G7: =IF(E7="","",IF(E8="",G6*10^E4,(IF(E9="",G6*10^E5,G6*10^E6)))) ->  | H7: =IF(G7="","",(G7*$H$10^(-8*$E$10-12))) ->  | I7: a H4B | M7: Ler dados nas curvas | Z7: Nenhuma titulação
B8: Gerar Capacidade de Tamponamento | D8: pKa5 = logKpn-4 | E8: =IF(VLOOKUP(E$3,Constantes!$B$23:$N$303,8)="","",VLOOKUP(E$3,Constantes!$B$23:$N$303,8)) ->  | F8: bp5 | G8: =IF(E8="","",IF(E9="",G7*10^E4,G7*10^E5)) ->  | H8: =IF(G8="","",(G8*$H$10^(-10*$E$10-20))) ->  | I8: a H5B | M8: Copiar e colar o gráfico
B9: para S[HiB] (mol/L) | C9: 0.05 | D9: pKa6 = logKpn-5 | E9: =IF(VLOOKUP(E$3,Constantes!$B$23:$N$303,9)="","",VLOOKUP(E$3,Constantes!$B$23:$N$303,9)) ->  | F9: bp6 | G9: =IF(E9="","",G8*10^E4) ->  | H9: =IF(G9="","",(G9*$H$10^(-12*$E$10-30))) ->  | I9: a H6B | M9: Mudar escalas | P9: Fração molar de cada espécie em função do pH | Z9: Fração molar de cada espécie durante a titulação | AM9: logaritmo da fração molar de cada espécie em função do pH | AY9: logaritmo da fração molar de cada espécie durante a titulação | BJ9: Carga média das espécies HiB
B10: =IF(C9>C7,"Geralmente C9 <= C7","") ->  | D10: Carga de B | E10: =IF(VLOOKUP(E$3,Constantes!$B$23:$N$303,3)="","",VLOOKUP(E$3,Constantes!$B$23:$N$303,3)) -> -3 | F10: gH+ | G10: 1 | H10: =10^(-0.509*(H3^0.5/(1+H3^0.5)-0.3*H3)) -> 0.7815939439 | M10: Gerar outros gráficos | Q10: alfa 0 | R10: alfa 1 | S10: alfa 2 | T10: alfa 3 | U10: alfa 4 | V10: alfa 5 | W10: alfa 6 | X10: Capac. | AB10: alfa 0 | AC10: alfa 1 | AD10: alfa 2 | AE10: alfa 3 | AF10: alfa 4 | AG10: alfa 5 | AH10: alfa 6 | AL10: Capac. | AN10: log alfa 0 | AO10: log alfa 1 | AP10: log alfa 2 | AQ10: log alfa 3 | AR10: log alfa 4 | AS10: log alfa 5 | AT10: log alfa 6 | AU10: Capac. | AX10: log alfa 0 | AY10: log alfa 1 | AZ10: log alfa 2 | BA10: log alfa 3 | BB10: log alfa 4 | BC10: log alfa 5 | BD10: log alfa 6 | BG10: Capac. | BH10: vs | BJ10: vs
B11: =IF(C7>0.1, "I < 0,1 dá resultados mais precisos ","") ->  | D11: Protonações, n | E11: =IF(E4="","",IF(E5="",1,(IF(E6="",2,(IF(E7="",3,(IF(E8="",4,(IF(E9="",5,6)))))))))) -> 3 | F11: pKw | G11: 13.997 | H11: =G11+LOG10(H10^2) -> 13.78296237 | O11: pH | P11: h médio | Q11: B | R11: HB | S11: H2B | T11: H3B | U11: H4B | V11: H5B | W11: H6B | X11: tampão | Y11: Vol | Z11: pH | AA11: h médio | AB11: B | AC11: HB | AD11: H2B | AE11: H3B | AF11: H4B | AG11: H5B | AH11: H6B | AL11: tampão | AM11: pH | AN11: B | AO11: HB | AP11: H2B | AQ11: H3B | AR11: H4B | AS11: H5B | AT11: H6B | AU11: tampão | AV11: Vol | AW11: pH | AX11: B | AY11: HB | AZ11: H2B | BA11: H3B | BB11: H4B | BC11: H5B | BD11: H6B | BG11: tampão | BH11: pH | BI11: zm | BJ11: Vol | BK11: zm
C12: Não há Ponto Isoelétrico entre pH | D12: 0 e 14 | E12: para | G12: =IF(VLOOKUP(E$3,Constantes!$B$23:$N$303,2)="","",VLOOKUP(E$3,Constantes!$B$23:$N$303,2)) -> Ácido fosfórico | J12: Plotar curvas sobrepostas à | K12: 2 | O12: 0 | P12: 2.990982525 | Q12: 1.829091055e-21 | R12: 1.194376512e-09 | S12: 0.009017472182 | T12: 0.9909825266 | X12: 2.947059835 | Y12: 0 | Z12: 1.81710728 | AA12: 2.626086989 | AB12: 3.266841788e-16 | AC12: 3.250324717e-06 | AD12: 0.3739065107 | AE12: 0.626090239 | AI12: 0.1297933771 | AJ12: 0.3893801314 | AK12: 0.06489668857 | AL12: 0.07184089704 | AM12: 0 | AO12: -8.922800979 | AP12: -2.04490195 | AQ12: -0.003933977622 | AU12: 0.4693859148 | AV12: 0 | AW12: 0 | AX12: -15.48577164 | AY12: -5.48803772 | AZ12: -0.4272342067 | BA12: -0.2033617504 | BE12: -6.961652983 | BF12: -3.480826491 | BG12: -1.14362085 | BH12: 0 | BI12: -0.009017474571 | BJ12: 1.81710728 | BK12: -0.3739130113 | BL12: -2.610619869
O13: 0.2 | P13: 2.985783247 | Q13: 7.243538343e-21 | R13: 2.984397666e-09 | S13: 0.01421674745 | T13: 0.9857832496 | X13: 1.860433412 | Y13: 2.300444881 | Z13: 2.032047847 | AA13: 2.505131641 | AB13: 1.163385136e-15 | AC13: 7.056374009e-06 | AD13: 0.4948542465 | AE13: 0.5051386972 | AI13: 0.1451462748 | AJ13: 0.4354388244 | AK13: 0.0725731374 | AL13: 0.05614571588 | AM13: 0.2 | AO13: -8.525088117 | AP13: -1.847187793 | AQ13: -0.006218525396 | AU13: 0.269612385 | AV13: 2.300444881 | AW13: 0.2 | AX13: -14.93417981 | AY13: -5.151385058 | AZ13: -0.3055207207 | BA13: -0.2965874401 | BE13: -6.838829802 | BF13: -3.419414901 | BG13: -1.250675279 | BH13: 0.2 | BI13: -0.01421675342 | BJ13: 2.032047847 | BK13: -0.4948683592 | BL13: -2.564561176
O14: 0.4 | P14: 2.977653774 | Q14: 2.859923481e-20 | R14: 7.434646809e-09 | S14: 0.02234621118 | T14: 0.9776537814 | X14: 1.175351304 | Y14: 4.325429893 | Z14: 2.246139619 | AA14: 2.384029693 | AB14: 3.881228876e-15 | AC14: 1.437922776e-05 | AD14: 0.6159415482 | AE14: 0.3840440726 | AI14: 0.1604385442 | AJ14: 0.4813156327 | AK14: 0.08021927212 | AL14: 0.04395208041 | AM14: 0.4 | AN14: -19.54351906 | AO14: -8.128687033 | AP14: -1.650785414 | AQ14: -0.009814852075 | AU14: 0.07016723917 | AV14: 4.325429893 | AW14: 0.4 | AX14: -14.41093745 | AY14: -4.842233088 | AZ14: -0.2104591372 | BA14: -0.4156162428 | BE14: -6.716491646 | BF14: -3.358245823 | BG14: -1.357011778 | BH14: 0.4 | BI14: -0.02234622605 | BJ14: 2.246139619 | BK14: -0.6159703066 | BL14: -2.518684367
O15: 0.6 | P15: 2.96504053 | Q15: 1.123866927e-19 | R15: 1.843405246e-08 | S15: 0.03495943267 | T15: 0.9650405489 | X15: 0.7438937135 | Y15: 5.99828897 | Z15: 2.459283742 | AA15: 2.276207286 | AB15: 1.217023827e-14 | AC15: 2.760077442e-05 | AD15: 0.723737512 | AE15: 0.2762348873 | AI15: 0.1756631244 | AJ15: 0.5269893732 | AK15: 0.0878315622 | AL15: 0.03325461507 | AM15: 0.6 | AN15: -18.94916243 | AO15: -7.734329109 | AP15: -1.456426195 | AQ15: -0.01545433811 | AU15: -0.1284882796 | AV15: 5.99828897 | AW15: 0.6 | AX15: -13.91461084 | AY15: -4.559049217 | AZ15: -0.1404180079 | BA15: -0.5587178556 | BE15: -6.594695005 | BF15: -3.297347502 | BG15: -1.478138505 | BH15: 0.6 | BI15: -0.03495946954 | BJ15: 2.459283742 | BK15: -0.7237927135 | BL15: -2.473010627
O16: 0.8 | P16: 2.945703178 | Q16: 4.384541635e-19 | R16: 4.537640932e-08 | S16: 0.05429673107 | T16: 0.9457032236 | X16: 0.4728262337 | Y16: 7.285792693 | Z16: 2.671584097 | AA16: 2.189631425 | AB16: 3.621990409e-14 | AC16: 5.03812719e-05 | AD16: 0.8102678128 | AE16: 0.189681806 | AI16: 0.1908274355 | AJ16: 0.5724823065 | AK16: 0.09541371775 | AL16: 0.02397935361 | AM16: 0.8 | AN16: -18.35795695 | AO16: -7.343122334 | AP16: -1.265218125 | AQ16: -0.02424497365 | AU16: -0.3252963297 | AV16: 7.285792693 | AW16: 0.8 | AX16: -13.44096569 | AY16: -4.297703049 | AZ16: -0.09137082121 | BA16: -0.72196965 | BE16: -6.473380516 | BF16: -3.236690258 | BG16: -1.620152039 | BH16: 0.8 | BI16: -0.05429682182 | BJ16: 2.671584097 | BK16: -0.8103685753 | BL16: -2.427517694
O17: 1 | P17: 2.916594047 | Q17: 1.691789844e-18 | R17: 1.104720319e-07 | S17: 0.08340573214 | T17: 0.9165941574 | X17: 0.3034047464 | Y17: 8.215073279 | Z17: 2.883229976 | AA17: 2.125619721 | AB17: 1.035673603e-13 | AC17: 8.849095036e-05 | AD17: 0.874203297 | AE17: 0.1257082121 | AI17: 0.2059449983 | AJ17: 0.6178349949 | AK17: 0.1029724992 | AL17: 0.01652103556 | AM17: 1 | AN17: -17.77153853 | AO17: -6.95670262 | AP17: -1.078797117 | AQ17: -0.03782267052 | AU17: -0.5179742762 | AV17: 8.215073279 | AW17: 1 | AX17: -12.98469303 | AY17: -4.053074901 | AZ17: -0.05838718194 | BA17: -0.9006305198 | BE17: -6.352440014 | BF17: -3.176220007 | BG17: -1.781951197 | BH17: 1 | BI17: -0.08340595308 | BJ17: 2.883229976 | BK17: -0.8743802789 | BL17: -2.382165005
O18: 1.2 | P18: 2.873959003 | Q18: 6.421855381e-18 | R18: 2.645857494e-07 | S18: 0.1260404678 | T18: 0.8739592676 | X18: 0.198564158 | Y18: 8.852646874 | Z18: 3.094410642 | AA18: 2.081076962 | AB18: 2.87811392e-13 | AC18: 0.0001512179221 | AD18: 0.9186206017 | AE18: 0.08122818038 | AI18: 0.2210293316 | AJ18: 0.6630879947 | AK18: 0.1105146658 | AL18: 0.0109828336 | AM18: 1.2 | AN18: -17.19222818 | AO18: -6.577390968 | AP18: -0.8994841703 | AQ18: -0.05850842916 | AU18: -0.7020945961 | AV18: 8.852646874 | AW18: 1.2 | AX18: -12.54081083 | AY18: -3.820372001 | AZ18: -0.03686358033 | BA18: -1.090286217 | BE18: -6.231765347 | BF18: -3.115882674 | BG18: -1.959272912 | BH18: 1.2 | BI18: -0.126040997 | BJ18: 3.094410642 | BK18: -0.9189230375 | BL18: -2.336912005
O19: 1.4 | P19: 2.813953456 | Q19: 2.381053924e-17 | R19: 6.189779229e-07 | S19: 0.1860453057 | T19: 0.8139540754 | X19: 0.1347182572 | Y19: 9.2745252 | Z19: 3.30527868 | AA19: 2.051338271 | AB19: 7.844891891e-13 | AC19: 0.0002536379368 | AD19: 0.9481544534 | AE19: 0.05159190869 | AI19: 0.2360913343 | AJ19: 0.7082740028 | AK19: 0.1180456671 | AL19: 0.007124214459 | AM19: 1.4 | AN19: -16.62312315 | AO19: -6.208284648 | AP19: -0.7303765552 | AQ19: -0.08939951926 | AU19: -0.8705679082 | AV19: 9.2745252 | AW19: 1.4 | AX19: -12.10533467 | AY19: -3.595762509 | AZ19: -0.0231207611 | BA19: -1.28741007 | BE19: -6.111269326 | BF19: -3.055634663 | BG19: -2.147249114 | BH19: 1.4 | BI19: -0.1860465436 | BJ19: 3.30527868 | BK19: -0.9486617292 | BL19: -2.291725997
O20: 1.6 | P20: 2.734072532 | Q20: 8.548878259e-17 | R20: 1.40221646e-06 | S20: 0.2659246632 | T20: 0.7340739346 | X20: 0.09647580922 | Y20: 9.547219322 | Z20: 3.515944529 | AA20: 2.031979666 | AB20: 2.111284726e-12 | AC20: 0.0004202504671 | AD20: 0.9671798332 | AE20: 0.03239991633 | AI20: 0.251138895 | AJ20: 0.7534166849 | AK20: 0.1255694475 | AL20: 0.004558876574 | AM20: 1.6 | AN20: -16.06798684 | AO20: -5.853147046 | AP20: -0.5752376581 | AQ20: -0.1342593273 | AU20: -1.015574995 | AV20: 9.547219322 | AW20: 1.6 | AX20: -11.67537761 | AY20: -3.376469936 | AZ20: -0.01449267376 | BA20: -1.489446469 | BE20: -5.99088884 | BF20: -2.99544442 | BG20: -2.341127009 | BH20: 1.6 | BI20: -0.2659274676 | BJ20: 3.515944529 | BK20: -0.9680203341 | BL20: -2.246583315
O21: 1.8 | P21: 2.635261988 | Q21: 2.945264361e-16 | R21: 3.048107016e-06 | S21: 0.3647319156 | T21: 0.6352650363 | X21: 0.07336825078 | Y21: 9.721389825 | Z21: 3.726483798 | AA21: 2.019508127 | AB21: 5.635723656e-12 | AC21: 0.0006908310043 | AD21: 0.9791102109 | AE21: 0.02019895808 | AI21: 0.2661774141 | AJ21: 0.7985322423 | AK21: 0.1330887071 | AL21: 0.002914263042 | AM21: 1.8 | AN21: -15.53077517 | AO21: -5.515934079 | AP21: -0.4380233966 | AQ21: -0.197043771 | AU21: -1.13448449 | AV21: 9.721389825 | AW21: 1.8 | AX21: -11.24897748 | AY21: -3.160607718 | AZ21: -0.009168360897 | BA21: -1.694660061 | BE21: -5.870580687 | BF21: -2.935290344 | BG21: -2.535454837 | BH21: 1.8 | BI21: -0.3647380118 | BJ21: 3.726483798 | BK21: -0.9804918729 | BL21: -2.201467758
O22: 2 | P22: 2.523563563 | Q22: 9.663711991e-16 | R22: 6.310298544e-06 | S22: 0.4764238161 | T22: 0.5235698736 | X22: 0.05818033821 | Y22: 9.832768243 | Z22: 3.936947231 | AA22: 2.011403251 | AB22: 1.49647789e-11 | AC22: 0.001129871364 | AD22: 0.9863370062 | AE22: 0.01253312243 | AI22: 0.2812105165 | AJ22: 0.8436315495 | AK22: 0.1406052583 | AL22: 0.001898685548 | AM22: 2 | AN22: -15.01475882 | AO22: -5.199916429 | AP22: -0.3220044519 | AQ22: -0.2810235315 | AU22: -1.235215762 | AV22: 9.832768243 | AW22: 2 | AX22: -10.82485961 | AY22: -2.94695192 | AZ22: -0.005974633679 | BA22: -1.901928405 | BE22: -5.750315868 | BF22: -2.875157934 | BG22: -2.721529336 | BH22: 2 | BI22: -0.4764364367 | BJ22: 3.936947231 | BK22: -0.988596749 | BL22: -2.15636845
O23: 2.2 | P23: 2.409453119 | Q23: 3.008753866e-15 | R23: 1.239631461e-05 | S23: 0.590522088 | T23: 0.4094655157 | X23: 0.04642963278 | Y23: 9.90564075 | Z23: 4.147369551 | AA23: 2.005910412 | AB23: 3.960070219e-11 | AC23: 0.001841786408 | AD23: 0.9904060147 | AE23: 0.007752198835 | AI23: 0.2962406822 | AJ23: 0.8887220467 | AK23: 0.1481203411 | AL23: 0.001310364211 | AM23: 2.2 | AN23: -14.52151933 | AO23: -4.906675644 | AP23: -0.2287623723 | AQ23: -0.3877801572 | AU23: -1.33319612 | AV23: 9.90564075 | AW23: 2.2 | AX23: -10.40222977 | AY23: -2.734743032 | AZ23: -0.004186703749 | BA23: -2.110561433 | BE23: -5.630074542 | BF23: -2.815037271 | BG23: -2.882589315 | BH23: 2.2 | BI23: -0.5905468806 | BJ23: 4.147369551 | BK23: -0.9940895877 | BL23: -2.111277953
O24: 2.4 | P24: 2.304319163 | Q24: 8.902903332e-15 | R24: 2.314395553e-05 | S24: 0.6956345487 | T24: 0.3043423073 | X24: 0.03610774819 | Y24: 9.956512634 | Z24: 4.357776426 | AA24: 2.001788935 | AB24: 1.045469922e-10 | AC24: 0.002995304955 | AD24: 0.9922204552 | AE24: 0.004784239757 | AI24: 0.3112697447 | AJ24: 0.9338092341 | AK24: 0.1556348724 | AL24: 0.001024550287 | AM24: 2.4 | AN24: -14.05037738 | AO24: -4.635532403 | AP24: -0.1576178364 | AQ24: -0.5166343265 | AU24: -1.442390257 | AV24: 9.956512634 | AW24: 2.4 | AX24: -9.980623842 | AY24: -2.523542618 | AZ24: -0.003391802024 | BA24: -2.320172043 | BE24: -5.509842042 | BF24: -2.754921021 | BG24: -2.989447367 | BH24: 2.4 | BI24: -0.6956808367 | BJ24: 4.357776426 | BK24: -0.9982110654 | BL24: -2.066190766
O25: 2.6 | P25: 2.216278825 | Q25: 2.519221171e-14 | R25: 4.132113343e-05 | S25: 0.7836385324 | T25: 0.2163201464 | X25: 0.02692440918 | Y25: 9.997179995 | Z25: 4.568190023 | AA25: 1.998084743 | AB25: 2.755025956e-10 | AC25: 0.004862298313 | AD25: 0.9921906596 | AE25: 0.002947041809 | AI25: 0.3262992874 | AJ25: 0.9788978621 | AK25: 0.1631496437 | AL25: 0.0009782928368 | AM25: 2.6 | AN25: -13.59864566 | AO25: -4.383799394 | AP25: -0.1058835319 | AQ25: -0.6648987271 | AU25: -1.569843655 | AV25: 9.997179995 | AW25: 2.6 | AX25: -9.559812415 | AY25: -2.313143424 | AZ25: -0.003404843648 | BA25: -2.53059732 | BE25: -5.389605701 | BF25: -2.694802851 | BG25: -3.009511643 | BH25: 2.6 | BI25: -0.7837211747 | BJ25: 4.568190023 | BK25: -1.001915257 | BL25: -2.021102138
O26: 2.8 | P26: 2.148255121 | Q26: 6.876816931e-14 | R26: 7.116941425e-05 | S26: 0.8516025406 | T26: 0.14832629 | X26: 0.01922363489 | Y26: 10.03719048 | Z26: 4.77863392 | AA26: 1.99393301 | AB26: 7.247516809e-10 | AC26: 0.007878821112 | AD26: 0.9903093453 | AE26: 0.001811832908 | AI26: 0.3413309943 | AJ26: 1.023992983 | AK26: 0.1706654971 | AL26: 0.001160495344 | AM26: 2.8 | AN26: -13.16252732 | AO26: -4.147679756 | AP26: -0.06976259995 | AQ26: -0.8287765004 | AU26: -1.71615338 | AV26: 10.03719048 | AW26: 2.8 | AX26: -9.139751598 | AY26: -2.103525142 | AZ26: -0.004229095244 | BA26: -2.741864106 | BE26: -5.269352046 | BF26: -2.634676023 | BG26: -2.935337594 | BH26: 2.8 | BI26: -0.8517448794 | BJ26: 4.77863392 | BK26: -1.00606699 | BL26: -1.976007017
O27: 3 | P27: 2.098883402 | Q27: 1.827327851e-13 | R27: 0.0001193225159 | S27: 0.9008779534 | T27: 0.09900272409 | X27: 0.01323221952 | Y27: 10.08594962 | Z27: 4.989138153 | AA27: 1.988372118 | AB27: 1.902697252e-09 | AC27: 0.01273906243 | AD27: 0.9861497519 | AE27: 0.001111183803 | AI27: 0.3563670109 | AJ27: 1.069101033 | AK27: 0.1781835055 | AL27: 0.001609222575 | AM27: 3 | AN27: -12.73810106 | AO27: -3.923252199 | AP27: -0.04533374767 | AQ27: -1.004346353 | AU27: -1.878355142 | AV27: 10.08594962 | AW27: 3 | AX27: -8.720573852 | AY27: -1.894850267 | AZ27: -0.006057091007 | BA27: -2.954194972 | BE27: -5.149063912 | BF27: -2.574531956 | BG27: -2.793365799 | BH27: 3 | BI27: -0.9011165984 | BJ27: 4.989138153 | BK27: -1.011627882 | BL27: -1.930898967
O28: 3.2 | P28: 2.064634368 | Q28: 4.763757291e-13 | R28: 0.0001962707377 | S28: 0.934973091 | T28: 0.06483063829 | X28: 0.008864400733 | Y28: 10.15480396 | Z28: 5.19974506 | AA28: 1.980144329 | AB28: 4.981136649e-09 | AC28: 0.0205347455 | AD28: 0.9787861648 | AE28: 0.0006790847033 | AI28: 0.3714103614 | AJ28: 1.114231084 | AK28: 0.1857051807 | AL28: 0.002415564644 | AM28: 3.2 | AN28: -12.3219706 | AO28: -3.707120445 | AP28: -0.02920069913 | AQ28: -1.18821201 | AU28: -2.052337332 | AV28: 10.15480396 | AW28: 3.2 | AX28: -8.302617793 | AY28: -1.68749975 | AZ28: -0.009312117759 | BA28: -3.168055542 | BE28: -5.028717109 | BF28: -2.514358554 | BG28: -2.616964393 | BH28: 3.2 | BI28: -0.9353656324 | BJ28: 5.19974506 | BK28: -1.019855671 | BL28: -1.885768916
O29: 3.4 | P29: 2.041584445 | Q29: 1.225788331e-12 | R29: 0.0003186554943 | S29: 0.9577782445 | T29: 0.04190310003 | X29: 0.005834736463 | Y29: 10.25942792 | Z29: 5.410516065 | AA29: 1.967464188 | AB29: 1.298514452e-08 | AC29: 0.0329485761 | AD29: 0.9666386208 | AE29: 0.0004127900909 | AI29: 0.3864654332 | AJ29: 1.1593963 | AK29: 0.1932327166 | AL29: 0.003730481275 | AM29: 3.4 | AN29: -11.9115074 | AO29: -3.496655952 | AP29: -0.01873491071 | AQ29: -1.377744927 | AU29: -2.233964292 | AV29: 10.25942792 | AW29: 3.4 | AX29: -7.886502155 | AY29: -1.482153754 | AZ29: -0.01473576176 | BA29: -3.384248827 | BE29: -4.908276534 | BF29: -2.454138267 | BG29: -2.428219415 | BH29: 3.4 | BI29: -0.9584155555 | BJ29: 5.410516065 | BK29: -1.032535812 | BL29: -1.8406037
O30: 3.6 | P30: 2.026336392 | Q30: 3.126811413e-12 | R30: 0.0005128703787 | S30: 0.9726378672 | T30: 0.02684926241 | X30: 0.003810357194 | Y30: 10.42273882 | Z30: 5.621538207 | AA30: 1.947760167 | AB30: 3.362770943e-08 | AC30: 0.05248860222 | AD30: 0.9472625281 | AE30: 0.0002488360717 | AI30: 0.4015384433 | AJ30: 1.20461533 | AK30: 0.2007692217 | AL30: 0.005764541425 | AM30: 3.6 | AN30: -11.50482383 | AO30: -3.289971084 | AP30: -0.01204874827 | AQ30: -1.57105747 | AU30: -2.41901865 | AV30: 10.42273882 | AW30: 3.6 | AX30: -7.473254332 | AY30: -1.279926706 | AZ30: -0.0235294899 | BA30: -3.604063331 | BE30: -4.787692453 | BF30: -2.393846227 | BG30: -2.239220739 | BH30: 3.6 | BI30: -0.973663608 | BJ30: 5.621538207 | BK30: -1.052239833 | BL30: -1.79538467
O31: 3.8 | P31: 2.016284364 | Q31: 7.930394745e-12 | R31: 0.0008207308038 | S31: 0.9820741747 | T31: 0.01710509444 | X31: 0.002500184671 | Y31: 10.67815734 | Z31: 5.832925811 | AA31: 1.917462235 | AB31: 8.61886658e-08 | AC31: 0.0826856748 | AD31: 0.9171661566 | AE31: 0.0001480823833 | AI31: 0.4166375579 | AJ31: 1.249912674 | AK31: 0.208318779 | AL31: 0.008756717466 | AM31: 3.8 | AN31: -11.10063333 | AO31: -3.085779289 | AP31: -0.007855658436 | AQ31: -1.766863085 | AU31: -2.602011066 | AV31: 10.67815734 | AW31: 3.8 | AX31: -7.064504106 | AY31: -1.082562716 | AZ31: -0.03755173598 | BA31: -3.829471812 | BE31: -4.666899536 | BF31: -2.333449768 | BG31: -2.057645341 | BH31: 3.8 | BI31: -0.9837156364 | BJ31: 5.832925811 | BK31: -1.082537765 | BL31: -1.750087326
O32: 4 | P32: 2.0095475 | Q32: 2.003711683e-11 | R32: 0.001308401878 | S32: 0.9878356964 | T32: 0.01085590168 | X32: 0.00168458503 | Y32: 11.07177505 | Z32: 6.044806516 | AA32: 1.872053521 | AB32: 2.173805609e-07 | AC32: 0.1280324682 | AD32: 0.8718808909 | AE32: 8.642349581e-05 | AI32: 0.431771894 | AJ32: 1.295315682 | AK32: 0.215885947 | AL32: 0.01286840541 | AM32: 4 | AN32: -10.69809551 | AO32: -2.883240175 | AP32: -0.005315249819 | AQ32: -1.964321381 | AU32: -2.773489107 | AV32: 11.07177505 | AW32: 4 | AX32: -6.66273616 | AY32: -0.8926741029 | AZ32: -0.05954245521 | BA32: -4.063341864 | BE32: -4.545824848 | BF32: -2.272912424 | BG32: -1.890463026 | BH32: 4 | BI32: -0.9904525002 | BJ32: 6.044806516 | BK32: -1.127946479 | BL32: -1.704684318
O33: 4.2 | P33: 2.004791463 | Q33: 5.049461572e-11 | R33: 0.002080419902 | S33: 0.9910476973 | T33: 0.006871882775 | X33: 0.001213917923 | Y33: 11.65903527 | Z33: 6.257274861 | AA33: 1.806825204 | AB33: 5.350904469e-07 | AC33: 0.1932227528 | AD33: 0.8067276853 | AE33: 4.90267705e-05 | AI33: 0.4469482043 | AJ33: 1.340844613 | AK33: 0.2234741022 | AL33: 0.01795706034 | AM33: 4.2 | AN33: -10.29668827 | AO33: -2.681831638 | AP33: -0.003905417947 | AQ33: -2.162910255 | AU33: -2.915791799 | AV33: 11.65903527 | AW33: 4.2 | AX33: -6.2715322 | AY33: -0.7139371129 | AZ33: -0.0932724348 | BA33: -4.309538814 | BE33: -4.424414365 | BF33: -2.212207183 | BG33: -1.745753456 | BH33: 4.2 | BI33: -0.9952085372 | BJ33: 6.257274861 | BK33: -1.193174796 | BL33: -1.659155387
O34: 4.4 | P34: 2.001039993 | Q34: 1.270042834e-10 | R34: 0.003301598791 | S34: 0.9923568088 | T34: 0.004341592312 | X34: 0.0009971204794 | Y34: 12.48750729 | Z34: 6.470307321 | AA34: 1.71885232 | AB34: 1.271666655e-06 | AC34: 0.281171884 | AD34: 0.7188000969 | AE34: 2.674742581e-05 | AI34: 0.4621648086 | AJ34: 1.386494426 | AK34: 0.2310824043 | AL34: 0.02327573143 | AM34: 4.4 | AN34: -9.896117564 | AO34: -2.481259639 | AP34: -0.003332124602 | AQ34: -2.362335667 | AU34: -3.001232934 | AV34: 12.48750729 | AW34: 4.4 | AX34: -5.895588548 | AY34: -0.5510245417 | AZ34: -0.1433909447 | BA34: -4.572688405 | BE34: -4.302681531 | BF34: -2.151340765 | BG34: -1.63308609 | BH34: 4.4 | BI34: -0.9989600067 | BJ34: 6.470307321 | BK34: -1.28114768 | BL34: -1.613505574
O35: 4.6 | P35: 1.997507497 | Q35: 3.189154609e-10 | R35: 0.005230961246 | S35: 0.9920305794 | T35: 0.002738459013 | X35: 0.0009908063824 | Y35: 13.56029251 | Z35: 6.683685244 | AA35: 1.610010874 | AB35: 2.882974874e-06 | AC35: 0.3899972474 | AD35: 0.6099859824 | AE35: 1.388723538e-05 | AI35: 0.4774060888 | AJ35: 1.432218267 | AK35: 0.2387030444 | AL35: 0.02739376658 | AM35: 4.6 | AN35: -9.496262947 | AO35: -2.281403728 | AP35: -0.003474917981 | AQ35: -2.562477165 | AU35: -3.003991757 | AV35: 13.56029251 | AW35: 4.6 | AX35: -5.540123276 | AY35: -0.4089358107 | AZ35: -0.2146787552 | BA35: -4.857352757 | BE35: -4.180751289 | BF35: -2.090375645 | BG35: -1.562338135 | BH35: 4.6 | BI35: -1.002492503 | BJ35: 6.683685244 | BK35: -1.389989126 | BL35: -1.567781733
O36: 4.8 | P36: 1.993450753 | Q36: 7.994414069e-10 | R36: 0.008273562786 | S36: 0.9900021186 | T36: 0.001724317793 | X36: 0.001192811447 | Y36: 14.79919435 | Z36: 6.897030459 | AA36: 1.489015564 | AB36: 6.173443794e-06 | AC36: 0.5109789006 | AD36: 0.4890081141 | AE36: 6.811876912e-06 | AI36: 0.4926450328 | AJ36: 1.477935098 | AK36: 0.2463225164 | AL36: 0.02877220612 | AM36: 4.8 | AN36: -9.097154466 | AO36: -2.082293952 | AP36: -0.004363847752 | AQ36: -2.7633648 | AU36: -2.923409275 | AV36: 14.79919435 | AW36: 4.8 | AX36: -5.209438775 | AY36: -0.2915951446 | AZ36: -0.3106819233 | BA36: -5.166699759 | BE36: -4.058839738 | BF36: -2.029419869 | BG36: -1.541016861 | BH36: 4.8 | BI36: -1.006549247 | BJ36: 6.897030459 | BK36: -1.510984436 | BL36: -1.522064902
O37: 5 | P37: 1.98802558 | Q37: 1.999701667e-09 | R37: 0.01305783381 | S37: 0.9858587466 | T37: 0.001083417583 | X37: 0.001641038355 | Y37: 16.05457621 | Z37: 7.109980469 | AA37: 1.369506204 | AB37: 1.24377091e-05 | AC37: 0.6304720734 | AD37: 0.3695123366 | AE37: 3.152315368e-06 | AI37: 0.5078557478 | AJ37: 1.523567243 | AK37: 0.2539278739 | AL37: 0.02682619431 | AM37: 5 | AN37: -8.698978474 | AO37: -1.884116665 | AP37: -0.006185266073 | AQ37: -2.965184924 | AU37: -2.784863239 | AV37: 16.05457621 | AW37: 5 | AX37: -4.905227848 | AY37: -0.2003328487 | AZ37: -0.4323682584 | BA37: -5.501334725 | BE37: -3.937154018 | BF37: -1.968577009 | BG37: -1.57143076 | BH37: 5 | BI37: -1.01197442 | BJ37: 7.109980469 | BK37: -1.630493796 | BL37: -1.476432757
O38: 5.2 | P38: 1.980132104 | Q38: 4.98693001e-09 | R38: 0.02054656382 | S38: 0.9787747529 | T38: 0.0006786782699 | X38: 0.002416811677 | Y38: 17.17392253 | Z38: 7.322349098 | AA38: 1.264361163 | AB38: 2.366359338e-05 | AC38: 0.7355928926 | AD38: 0.2643820607 | AE38: 1.383133406e-06 | AI38: 0.5230249356 | AJ38: 1.569074807 | AK38: 0.2615124678 | AL38: 0.02239636126 | AM38: 5.2 | AN38: -8.302112979 | AO38: -1.687249875 | AP38: -0.009317181296 | AQ38: -3.168315544 | AU38: -2.616740249 | AV38: 17.17392253 | AW38: 5.2 | AX38: -4.625889358 | AY38: -0.1333616122 | AZ38: -0.5777642763 | BA38: -5.859097997 | BE38: -3.815800515 | BF38: -1.907900258 | BG38: -1.649811855 | BH38: 5.2 | BI38: -1.019867896 | BJ38: 7.322349098 | BK38: -1.735638837 | BL38: -1.430925193
O39: 5.4 | P39: 1.968237831 | Q39: 1.238091447e-08 | R39: 0.0321853808 | S39: 0.96739137 | T39: 0.000423236773 | X39: 0.003649824439 | Y39: 18.06846906 | Z39: 7.534138681 | AA39: 1.180749153 | AB39: 4.291453962e-05 | AC39: 0.8191655984 | AD39: 0.1807909062 | AE39: 5.80789942e-07 | AI39: 0.5381527629 | AJ39: 1.614458289 | AK39: 0.2690763815 | AL39: 0.01705943954 | AM39: 5.4 | AN39: -7.907196085 | AO39: -1.492331687 | AP39: -0.01439769799 | AQ39: -3.373394766 | AU39: -2.437712243 | AV39: 18.06846906 | AW39: 5.4 | AX39: -4.367367268 | AY39: -0.08662773373 | AZ39: -0.7428186092 | BA39: -6.235940542 | BE39: -3.694777897 | BF39: -1.847388948 | BG39: -1.768023795 | BH39: 5.4 | BI39: -1.031762169 | BJ39: 7.534138681 | BK39: -1.819250847 | BL39: -1.385541711
O40: 5.6 | P40: 1.95018655 | Q40: 3.052950082e-08 | R40: 0.05007553888 | S40: 0.9496622803 | T40: 0.0002621503092 | X40: 0.005517122868 | Y40: 18.72548406 | Z40: 7.745454677 | AA40: 1.119380189 | AB40: 7.503489871e-05 | AC40: 0.8804699771 | AD40: 0.1194547521 | AE40: 2.359010858e-07 | AI40: 0.5532467627 | AJ40: 1.659740288 | AK40: 0.2766233813 | AL40: 0.01212248664 | AM40: 5.6 | AN40: -7.515231643 | AO40: -1.30036595 | AP40: -0.02243066622 | AQ40: -3.58142644 | AU40: -2.258272724 | AV40: 18.72548406 | AW40: 5.6 | AX40: -4.124709996 | AY40: -0.05528509042 | AZ40: -0.9227905944 | BA40: -6.627227155 | BE40: -3.574025899 | BF40: -1.787012949 | BG40: -1.916395879 | BH40: 5.6 | BI40: -1.04981345 | BJ40: 7.745454677 | BK40: -1.880619811 | BL40: -1.340259712
O41: 5.8 | P41: 1.923047286 | Q41: 7.45114888e-08 | R41: 0.07711327879 | S41: 0.9227259326 | T41: 0.0001607140746 | X41: 0.008219509333 | Y41: 19.17987486 | Z41: 7.956424946 | AA41: 1.076900077 | AB41: 0.0001278343226 | AC41: 0.9228443478 | AD41: 0.07702772431 | AE41: 9.358436692e-08 | AI41: 0.5683160676 | AJ41: 1.704948203 | AK41: 0.2841580338 | AL41: 0.008204843104 | AM41: 5.8 | AN41: -7.127730614 | AO41: -1.112863626 | AP41: -0.03492704753 | AQ41: -3.793921526 | AU41: -2.085140608 | AV41: 19.17987486 | AW41: 5.8 | AX41: -3.89332732 | AY41: -0.03487131764 | AZ41: -1.113345725 | BA41: -7.028751189 | BE41: -3.453471459 | BF41: -1.72673573 | BG41: -2.085916215 | BH41: 5.8 | BI41: -1.076952714 | BJ41: 7.956424946 | BK41: -1.923099923 | BL41: -1.295051797
O42: 6 | P42: 1.883148173 | Q42: 1.790971743e-07 | R42: 0.1169485017 | S42: 0.8829542862 | T42: 9.703298793e-05 | X42: 0.01190648533 | Y42: 19.4818174 | Z42: 8.167159479 | AA42: 1.048643653 | AB42: 0.0002139938868 | AC42: 0.9509283961 | AD42: 0.04885757351 | AE42: 3.653874283e-08 | AI42: 0.5833685342 | AJ42: 1.750105603 | AK42: 0.2916842671 | AL42: 0.005381584354 | AM42: 6 | AN42: -6.746867587 | AO42: -0.9319993041 | AP42: -0.05406143086 | AQ42: -4.013054615 | AU42: -1.924203961 | AV42: 19.4818174 | AW42: 6 | AX42: -3.669574876 | AY42: -0.02185204229 | AZ42: -1.311059618 | BA42: -7.437198251 | BE42: -3.333051726 | BF42: -1.666525863 | BG42: -2.269075158 | BH42: 6 | BI42: -1.116851827 | BJ42: 8.167159479 | BK42: -1.951356347 | BL42: -1.249894397
O43: 6.2 | P43: 1.826566538 | Q43: 4.210836049e-07 | R43: 0.1734899255 | S43: 0.8264523475 | T43: 5.730585589e-05 | X43: 0.01651957816 | Y43: 19.67773418 | Z43: 8.37774006 | AA43: 1.030302402 | AB43: 0.0003541221919 | AC43: 0.9689893681 | AD43: 0.03065649563 | AE43: 1.411768977e-08 | AI43: 0.5984100043 | AJ43: 1.795230013 | AK43: 0.2992050021 | AL43: 0.003471633907 | AM43: 6.2 | AN43: -6.375590392 | AO43: -0.7607208144 | AP43: -0.08278164646 | AQ43: -4.241773535 | AU43: -1.78198951 | AV43: 19.67773418 | AW43: 6.2 | AX43: -3.450824516 | AY43: -0.01368089951 | AZ43: -1.513467693 | BA43: -7.850185543 | BE43: -3.212719966 | BF43: -1.606359983 | BG43: -2.459450156 | BH43: 6.2 | BI43: -1.173433462 | BJ43: 8.37774006 | BK43: -1.969697598 | BL43: -1.204769987
O44: 6.4 | P44: 1.75039419 | Q44: 9.602902818e-07 | R44: 0.2496367168 | S44: 0.7503294958 | T44: 3.28271519e-05 | X44: 0.02157319282 | Y44: 19.80371252 | Z44: 8.588223243 | AA44: 1.018520664 | AB44: 0.0005816790172 | AC44: 0.9803159832 | AD44: 0.01910233239 | AE44: 5.41806662e-09 | AI44: 0.6134445173 | AJ44: 1.840333552 | AK44: 0.3067222587 | AL44: 0.002238232734 | AM44: 6.4 | AN44: -6.017558508 | AO44: -0.6026876361 | AP44: -0.1247471733 | AQ44: -4.483737767 | AU44: -1.666074789 | AV44: 19.80371252 | AW44: 6.4 | AX44: -3.235295657 | AY44: -0.008633860627 | AZ44: -1.718902474 | BA44: -8.266102144 | BE44: -3.092443861 | BF44: -1.546221931 | BG44: -2.6500776 | BH44: 6.4 | BI44: -1.24960581 | BJ44: 8.588223243 | BK44: -1.981479336 | BL44: -1.159666448
O45: 6.6 | P45: 1.654771735 | Q45: 2.104834037e-06 | R45: 0.3452421292 | S45: 0.6547376922 | T45: 1.807376075e-05 | X45: 0.02603014703 | Y45: 19.88554013 | Z45: 8.7986469 | AA45: 1.010898623 | AB45: 0.0009509242259 | AC45: 0.9871995308 | AD45: 0.0118495429 | AE45: 2.070312401e-09 | AI45: 0.6284747786 | AJ45: 1.885424336 | AK45: 0.3142373893 | AL45: 0.0014787071 | AM45: 6.6 | AN45: -5.676745391 | AO45: -0.4618732235 | AP45: -0.1839314659 | AQ45: -4.742920765 | AU45: -1.584513121 | AV45: 19.88554013 | AW45: 6.6 | AX45: -3.021834525 | AY45: -0.005595023499 | AZ45: -1.926285932 | BA45: -8.683907897 | BE45: -2.972201772 | BF45: -1.486100886 | BG45: -2.83009952 | BH45: 6.6 | BI45: -1.345228265 | BJ45: 8.7986469 | BK45: -1.989101377 | BL45: -1.114575664
O46: 6.8 | P46: 1.544754884 | Q46: 4.398858841e-06 | R46: 0.4552458065 | S46: 0.5447403067 | T46: 9.487913064e-06 | X46: 0.02855574631 | Y46: 19.94107383 | Z46: 9.009036466 | AA46: 1.005779085 | AB46: 0.001549734891 | AC46: 0.9911214458 | AD46: 0.007328818472 | AE46: 7.888214011e-10 | AI46: 0.6435026047 | AJ46: 1.930507814 | AK46: 0.3217513023 | AL46: 0.001048634228 | AM46: 6.8 | AN46: -5.356625295 | AO46: -0.3417518335 | AP46: -0.2638087811 | AQ46: -5.022796786 | AU46: -1.544296487 | AV46: 19.94107383 | AW46: 6.8 | AX46: -2.809724399 | AY46: -0.003873101439 | AZ46: -2.134952214 | BA46: -9.102962382 | BE46: -2.851979162 | BF46: -1.425989581 | BG46: -2.979356682 | BH46: 6.8 | BI46: -1.455245116 | BJ46: 9.009036466 | BK46: -1.994220915 | BL46: -1.069492186
O47: 7 | P47: 1.430192456 | Q47: 8.725946951e-06 | R47: 0.5697948199 | S47: 0.4301917265 | T47: 4.727627382e-06 | X47: 0.02822514984 | Y47: 19.98292472 | Z47: 9.2194099 | AA47: 1.002003194 | AB47: 0.002520195074 | AC47: 0.9929564166 | AD47: 0.004523388021 | AE47: 2.999405125e-10 | AI47: 0.6585292786 | AJ47: 1.975587836 | AK47: 0.3292646393 | AL47: 0.0008596316461 | AM47: 7 | AN47: -5.059154678 | AO47: -0.2442799218 | AP47: -0.3663355746 | AQ47: -5.325322284 | AU47: -1.549353713 | AV47: 19.98292472 | AW47: 7 | AX47: -2.598549019 | AY47: -0.003069793507 | AZ47: -2.344520978 | BA47: -9.522903219 | BE47: -2.731765771 | BF47: -1.365882886 | BG47: -3.065667758 | BH47: 7 | BI47: -1.569807544 | BJ47: 9.2194099 | BK47: -1.997996806 | BL47: -1.024412164
O48: 7.2 | P48: 1.322644601 | Q48: 1.64395915e-05 | R48: 0.6773247573 | S48: 0.3226565658 | T48: 2.237286967e-06 | X48: 0.0251660496 | Y48: 20.02083247 | Z48: 9.429781521 | AA48: 0.9986957197 | AB48: 0.004091456318 | AC48: 0.9931213678 | AD48: 0.002787175798 | AE48: 1.138581248e-10 | AI48: 0.6735558229 | AJ48: 2.020667469 | AK48: 0.3367779115 | AL48: 0.0008715451397 | AM48: 7.2 | AN48: -4.784078006 | AO48: -0.1692019545 | AP48: -0.4912563125 | AQ48: -5.650241727 | AU48: -1.599174599 | AV48: 20.02083247 | AW48: 7.2 | AX48: -2.388106621 | AY48: -0.002997654422 | AZ48: -2.554819098 | BA48: -9.943571598 | BE48: -2.611553417 | BF48: -1.305776708 | BG48: -3.059690306 | BH48: 7.2 | BI48: -1.677355399 | BJ48: 9.429781521 | BK48: -2.00130428 | BL48: -0.9793325312
O49: 7.4 | P49: 1.231070889 | Q49: 2.957655144e-05 | R49: 0.768870969 | S49: 0.2310984434 | T49: 1.011062973e-06 | X49: 0.02046387387 | Y49: 20.06373116 | Z49: 9.640165182 | AA49: 0.9950828881 | AB49: 0.006631615981 | AC49: 0.99165388 | AD49: 0.001714503951 | AE49: 4.314738636e-11 | AI49: 0.6885832273 | AJ49: 2.065749682 | AK49: 0.3442916137 | AL49: 0.001087645454 | AM49: 7.4 | AN49: -4.529023144 | AO49: -0.1141457979 | AP49: -0.6361988611 | AQ49: -5.995182981 | AU49: -1.689001215 | AV49: 20.06373116 | AW49: 7.4 | AX49: -2.178366528 | AY49: -0.00363986096 | AZ49: -2.765843604 | BA49: -10.3649784 | BE49: -2.491334182 | BF49: -1.245667091 | BG49: -2.963493465 | BH49: 7.4 | BI49: -1.768929111 | BJ49: 9.640165182 | BK49: -2.004917112 | BL49: -0.9342503181
O50: 7.6 | P50: 1.159355164 | Q50: 5.124528308e-05 | R50: 0.8405427853 | S50: 0.1594055293 | T50: 4.400323111e-07 | X50: 0.01543609699 | Y50: 20.12175506 | Z50: 9.850577309 | AA50: 0.9903243464 | AB50: 0.01072814754 | AC50: 0.9882193585 | AD50: 0.001052493944 | AE50: 1.631636765e-11 | AI50: 0.7036126649 | AJ50: 2.110837995 | AK50: 0.3518063325 | AL50: 0.00155581547 | AM50: 7.6 | AN50: -4.290318328 | AO50: -0.07543968679 | AP50: -0.7974914552 | AQ50: -6.356474281 | AU50: -1.811450774 | AV50: 20.12175506 | AW50: 7.6 | AX50: -1.969462512 | AY50: -0.00514660953 | AZ50: -2.977761116 | BA50: -10.78730668 | BE50: -2.371098681 | BF50: -1.18554934 | BG50: -2.808023735 | BH50: 7.6 | BI50: -1.840644836 | BJ50: 9.850577309 | BK50: -2.009675654 | BL50: -0.8891620053
O51: 7.8 | P51: 1.106775371 | Q51: 8.629207879e-05 | R51: 0.8930522308 | S51: 0.106861291 | T51: 1.861236678e-07 | X51: 0.01100228454 | Y51: 20.20853606 | Z51: 10.06104025 | AA51: 0.9833354369 | AB51: 0.0173087852 | AC51: 0.9820469927 | AD51: 0.0006442220423 | AE51: 6.151436131e-12 | AI51: 0.7186457319 | AJ51: 2.155937196 | AK51: 0.359322866 | AL51: 0.00237636854 | AM51: 7.8 | AN51: -4.064002758 | AO51: -0.04912282233 | AP51: -0.971173296 | AQ51: -6.730154826 | AU51: -1.958504448 | AV51: 20.20853606 | AW51: 7.8 | AX51: -1.761722006 | AY51: -0.007867678994 | AZ51: -3.190943761 | BA51: -11.2109509 | BE51: -2.250834145 | BF51: -1.125417072 | BG51: -2.624069217 | BH51: 7.8 | BI51: -1.893224629 | BJ51: 10.06104025 | BK51: -2.016664563 | BL51: -0.8440628043
O52: 8 | P52: 1.07004718 | Q52: 0.0001423711609 | R52: 0.9296681547 | S52: 0.07018939704 | T52: 7.713521552e-08 | X52: 0.007535430192 | Y52: 20.34421444 | Z52: 10.27158619 | AA52: 0.9725791581 | AB52: 0.02781342498 | AC52: 0.9717939919 | AD52: 0.0003925830786 | AE52: 2.308482421e-12 | AI52: 0.7336847279 | AJ52: 2.201054184 | AK52: 0.3668423639 | AL52: 0.003715191685 | AM52: 8 | AN52: -3.846553071 | AO52: -0.03167184029 | AP52: -1.153721019 | AQ52: -7.112701255 | AU52: -2.122878205 | AV52: 20.34421444 | AW52: 8 | AX52: -1.555735456 | AY52: -0.01242570982 | AZ52: -3.406046373 | BA52: -11.63659809 | BE52: -2.130522177 | BF52: -1.065261088 | BG52: -2.430003042 | BH52: 8 | BI52: -1.92995282 | BJ52: 10.27158619 | BK52: -2.027420842 | BL52: -0.7989458164
O53: 8.2 | P53: 1.045228724 | Q53: 0.0002316235234 | R53: 0.9543080605 | S53: 0.04546028447 | T53: 3.152196879e-08 | X53: 0.00502972974 | Y53: 20.55962799 | Z53: 10.48226136 | AA53: 0.9558238601 | AB53: 0.04441373861 | AC53: 0.9553486627 | AD53: 0.0002375987198 | AE53: 8.601296554e-13 | AI53: 0.7487329543 | AJ53: 2.246198863 | AK53: 0.3743664772 | AL53: 0.005816559778 | AM53: 8.2 | AN53: -3.635193802 | AO53: -0.02031127643 | AP53: -1.34235916 | AQ53: -7.501338101 | AU53: -2.29844047 | AV53: 20.55962799 | AW53: 8.2 | AX53: -1.352473912 | AY53: -0.01983797157 | AZ53: -3.624132441 | BA53: -12.06535797 | BE53: -2.010136365 | BF53: -1.005068183 | BG53: -2.235319333 | BH53: 8.2 | BI53: -1.954771276 | BJ53: 10.48226136 | BK53: -2.04417614 | BL53: -0.753801137
O54: 8.4 | P54: 1.028795624 | Q54: 0.0003733109352 | R54: 0.9704577665 | S54: 0.02916890977 | T54: 1.276148995e-08 | X54: 0.003313200453 | Y54: 20.90204921 | Z54: 10.69312861 | AA54: 0.9299109084 | AB54: 0.07023136488 | AC54: 0.9296263618 | AD54: 0.0001422732923 | AE54: 3.169392026e-13 | AI54: 0.7637949004 | AJ54: 2.291384701 | AK54: 0.3818974502 | AL54: 0.008999952784 | AM54: 8.4 | AN54: -3.427907096 | AO54: -0.01302327566 | AP54: -1.535069865 | AQ54: -7.894047511 | AU54: -2.479736234 | AV54: 20.90204921 | AW54: 8.4 | AX54: -1.153461424 | AY54: -0.03169136413 | AZ54: -3.846851714 | BA54: -12.49894312 | BE54: -1.889640796 | BF54: -0.9448203982 | BG54: -2.045746525 | BH54: 8.4 | BI54: -1.971204376 | BJ54: 10.69312861 | BK54: -2.070089092 | BL54: -0.7086152987
O55: 8.6 | P55: 1.018002549 | Q55: 0.0005979642298 | R55: 0.9808015276 | S55: 0.01860050308 | T55: 5.134591248e-09 | X55: 0.002184826278 | Y55: 21.44228573 | Z55: 10.90426337 | AA55: 0.8906878667 | AB55: 0.1093959487 | AC55: 0.8905202359 | AD55: 8.381542954e-05 | AE55: 1.148264098e-13 | AI55: 0.7788759553 | AJ55: 2.336627866 | AK55: 0.3894379777 | AL55: 0.01360828259 | AM55: 8.6 | AN55: -3.223303927 | AO55: -0.008418811927 | AP55: -1.730464106 | AQ55: -8.289440458 | AU55: -2.660565865 | AV55: 21.44228573 | AW55: 8.6 | AX55: -0.9609925396 | AY55: -0.05035588133 | AZ55: -4.076649633 | BA55: -12.93987444 | BE55: -1.768992357 | BF55: -0.8844961787 | BG55: -1.866184599 | BH55: 8.6 | BI55: -1.981997451 | BJ55: 10.90426337 | BK55: -2.109312133 | BL55: -0.663372134
O56: 8.8 | P56: 1.010859162 | Q56: 0.000953923905 | R56: 0.9872329921 | S56: 0.01181308197 | T56: 2.0575216e-09 | X56: 0.001475011758 | Y56: 22.28144268 | Z56: 11.11573345 | AA56: 0.8334543037 | AB56: 0.1665938957 | AC56: 0.8333579049 | AD56: 4.819940346e-05 | AE56: 4.057788396e-14 | AI56: 0.7939809609 | AJ56: 2.381942883 | AK56: 0.3969904805 | AL56: 0.01986440543 | AM56: 8.8 | AN56: -3.020466713 | AO56: -0.005580303373 | AP56: -1.927624303 | AQ56: -8.68659936 | AU56: -2.831186188 | AV56: 22.28144268 | AW56: 8.8 | AX56: -0.778335877 | AY56: -0.07916792815 | AZ56: -4.316930389 | BA56: -13.39162391 | BE56: -1.648152313 | BF56: -0.8240761563 | BG56: -1.701913411 | BH56: 8.8 | BI56: -1.989140838 | BJ56: 11.11573345 | BK56: -2.166545696 | BL56: -0.6180571172
O57: 9 | P57: 1.005964359 | Q57: 0.001517636935 | R57: 0.9910003679 | S57: 0.007481994295 | T57: 8.222399206e-10 | X57: 0.001061699801 | Y57: 23.55372362 | Z57: 11.32755316 | AA57: 0.7544246038 | AB57: 0.2456021864 | AC57: 0.7543710234 | AD57: 2.679016548e-05 | AE57: 1.384852193e-14 | AI57: 0.8091109399 | AJ57: 2.42733282 | AK57: 0.40455547 | AL57: 0.0276426176 | AM57: 9 | AN57: -2.818813863 | AO57: -0.003926158848 | AP57: -2.125968864 | AQ57: -9.084942625 | AU57: -2.97397901 | AV57: 23.55372362 | AW57: 9 | AX57: -0.6097638237 | AY57: -0.1224142094 | AZ57: -4.571995004 | BA57: -13.85850686 | BE57: -1.527112481 | BF57: -0.7635562403 | BG57: -1.558410745 | BH57: 9 | BI57: -1.994035641 | BJ57: 11.32755316 | BK57: -2.245575396 | BL57: -0.5726671802
O58: 9.2 | P58: 1.002319874 | Q58: 0.002409807269 | R58: 0.992860512 | S58: 0.004729680403 | T58: 3.279540368e-10 | X58: 0.0008683667118 | Y58: 25.42594758 | Z58: 11.53962406 | AA58: 0.6533833485 | AB58: 0.3466308901 | AC58: 0.6533548713 | AD58: 1.423864405e-05 | AE58: 4.516746967e-15 | AI58: 0.8242588612 | AJ58: 2.472776584 | AK58: 0.4121294306 | AL58: 0.03635406027 | AM58: 9.2 | AN58: -2.618000741 | AO58: -0.003111741554 | AP58: -2.325153152 | AQ58: -9.484125619 | AU58: -3.061277014 | AV58: 25.42594758 | AW58: 9.2 | AX58: -0.4601297587 | AY58: -0.1848496698 | AZ58: -4.84649999 | BA58: -14.34508137 | BE58: -1.40592911 | BF58: -0.7029645551 | BG58: -1.439437758 | BH58: 9.2 | BI58: -1.997680126 | BJ58: 11.53962406 | BK58: -2.346616651 | BL58: -0.5272234163
O59: 9.4 | P59: 0.9991646591 | Q59: 0.003820570748 | R59: 0.9931941996 | S59: 0.002985229547 | T59: 1.306047335e-10 | X59: 0.0008579865873 | Y59: 28.12249205 | Z59: 11.75171817 | AA59: 0.5363202628 | AB59: 0.4636869092 | AC59: 0.5363059189 | AD59: 7.171961899e-06 | AE59: 1.396050042e-15 | AI59: 0.839408441 | AJ59: 2.518225323 | AK59: 0.4197042205 | AL59: 0.04537998851 | AM59: 9.4 | AN59: -2.417856101 | AO59: -0.002965806264 | AP59: -2.525005922 | AQ59: -9.883977094 | AU59: -3.066499649 | AV59: 28.12249205 | AW59: 9.4 | AX59: -0.3337730041 | AY59: -0.2705856582 | AZ59: -5.144328722 | BA59: -14.85500284 | BE59: -1.284732472 | BF59: -0.6423662362 | BG59: -1.343126923 | BH59: 9.4 | BI59: -2.000835341 | BJ59: 11.75171817 | BK59: -2.463679737 | BL59: -0.4817746771
O60: 9.6 | P60: 0.995833077 | Q60: 0.006048344106 | R60: 0.9920702349 | S60: 0.001881420954 | T60: 5.193584025e-11 | X60: 0.001029052163 | Y60: 32.06528099 | Z60: 11.96355437 | AA60: 0.4152621974 | AB60: 0.5847412122 | AC60: 0.4152553782 | AD60: 3.409608044e-06 | AE60: 4.075034374e-16 | AI60: 0.8545395976 | AJ60: 2.563618793 | AK60: 0.4272697988 | AL60: 0.05523328549 | AM60: 9.6 | AN60: -2.218349147 | AO60: -0.003457557937 | AP60: -2.725496378 | AQ60: -10.28446626 | AU60: -2.987543269 | AV60: 32.06528099 | AW60: 9.6 | AX60: -0.2330347876 | AY60: -0.381682263 | AZ60: -5.467260148 | BA60: -15.38976909 | BE60: -1.163683219 | BF60: -0.5818416097 | BG60: -1.25779098 | BH60: 9.6 | BI60: -2.004166923 | BJ60: 11.96355437 | BK60: -2.584737803 | BL60: -0.4363812073
O61: 9.8 | P61: 0.9916249299 | Q61: 0.00955880076 | R61: 0.9892574686 | S61: 0.001183730655 | T61: 2.061740872e-11 | X61: 0.001415883156 | Y61: 38.31748274 | Z61: 12.1749088 | AA61: 0.3038724333 | AB61: 0.6961291004 | AC61: 0.303869366 | AD61: 1.533633827e-06 | AE61: 1.126663091e-16 | AI61: 0.8696363427 | AJ61: 2.608909028 | AK61: 0.4348181713 | AL61: 0.06873005146 | AM61: 9.8 | AN61: -2.019583516 | AO61: -0.004690631903 | AP61: -2.926728158 | AQ61: -10.68569674 | AU61: -2.848954141 | AV61: 38.31748274 | AW61: 9.8 | AX61: -0.1573091926 | AY61: -0.5173097312 | AZ61: -5.814240679 | BA61: -15.94810268 | BE61: -1.042909259 | BF61: -0.5214546293 | BG61: -1.162845803 | BH61: 9.8 | BI61: -2.00837507 | BJ61: 12.1749088 | BK61: -2.696127567 | BL61: -0.3910909719
O62: 10 | P62: 0.9856710571 | Q62: 0.01507199672 | R62: 0.9841849494 | S62: 0.0007430538288 | T62: 8.165851203e-12 | X62: 0.00209379393 | Y62: 50 | Z62: 12.38564394 | AA62: 0.2117905934 | AB62: 0.7882100646 | AC62: 0.2117892775 | AD62: 6.579662087e-07 | AE62: 2.975369043e-17 | AI62: 0.8846888525 | AJ62: 2.654066558 | AK62: 0.4423444263 | AL62: 0.09131045024 | AM62: 10 | AN62: -1.821817414 | AO62: -0.006923235839 | AP62: -3.128959467 | AQ62: -11.08792675 | AU62: -2.679048719 | AV62: 50 | AW62: 10 | AX62: -0.1033573548 | AY62: -0.6740916672 | AZ62: -6.181756389 | BA62: -16.52635217 | BE62: -0.9224891796 | BF62: -0.4612445898 | BG62: -1.039472786 | BH62: 10 | BI62: -2.014328943 | BJ62: 12.38564394 | BK62: -2.788209407 | BL62: -0.3459334424
O63: 10.2 | P63: 0.9767796619 | Q63: 0.02368520282 | R63: 0.9758499324 | S63: 0.0004648647263 | T63: 3.223352331e-12 | X63: 0.003188472145 | AM63: 10.2 | AN63: -1.625512368 | AO63: -0.01061689487 | AP63: -3.332651831 | AQ63: -11.49161782 | AU63: -2.496401211 | AW63: 10.2 | BH63: 10.2 | BI63: -2.023220338 | BJ63: 9.615013208 | BK63: -2.004442932
O64: 10.4 | P64: 0.9632574952 | Q64: 0.03703185579 | R64: 0.9626787932 | S64: 0.0002893509828 | T64: 1.265919669e-12 | X64: 0.004886502846 | AM64: 10.4 | AN64: -1.431415256 | AO64: -0.01651848818 | AP64: -3.538552129 | AQ64: -11.89751683 | AU64: -2.310986883 | AW64: 10.4 | BH64: 10.4 | BI64: -2.036742505 | BJ64: 9.727952337 | BK64: -2.006708624
O65: 10.6 | P65: 0.9427254642 | Q65: 0.0574532521 | R65: 0.9423680316 | S65: 0.0001787162742 | T65: 4.933388165e-13 | X65: 0.007438465095 | AM65: 10.6 | AN65: -1.240677351 | AO65: -0.02577928818 | AP65: -3.747811635 | AQ65: -12.30677504 | AU65: -2.128502891 | AW65: 10.6 | BH65: 10.6 | BI65: -2.057274536 | BJ65: 9.940143601 | BK65: -2.012301163
O66: 10.8 | P66: 0.9120066216 | Q66: 0.08810248163 | R66: 0.9117884151 | S66: 0.0001091032347 | T66: 1.900285316e-13 | X66: 0.01113607189 | AM66: 10.8 | AN66: -1.055005028 | AO66: -0.04010567045 | AP66: -3.962136722 | AQ66: -12.72109883 | AU66: -1.953255329 | AW66: 10.8 | BH66: 10.8 | BI66: -2.087993378 | BJ66: 10.08020713 | BK66: -2.017460228
O67: 11 | P67: 0.8672701148 | Q67: 0.1327953537 | R67: 0.8671391778 | S67: 6.546849619e-05 | T67: 7.194714268e-14 | X67: 0.0162344476 | AM67: 11 | AN67: -0.8768114435 | AO67: -0.06191079087 | AP67: -4.183940548 | AQ67: -13.14290136 | AU67: -1.789550899 | AW67: 11 | BH67: 11 | BI67: -2.132729885 | BJ67: 10.19061499 | BK67: -2.022715113
O68: 11.2 | P68: 0.8047364708 | Q68: 0.1953018607 | R68: 0.8046598078 | S68: 3.833150456e-05 | T68: 2.657890298e-14 | X68: 0.02280136692 | AM68: 11.2 | AN68: -0.7092890272 | AO68: -0.09438707975 | AP68: -4.416415542 | AQ68: -13.57537506 | AU68: -1.642028486 | AW68: 11.2 | BH68: 11.2 | BI68: -2.195263529 | BJ68: 10.37236084 | BK68: -2.034518316
O69: 11.4 | P69: 0.722218814 | Q69: 0.2778028924 | R69: 0.7221754013 | S69: 2.170632236e-05 | T69: 9.496584438e-15 | X69: 0.03055363075 | AM69: 11.4 | AN69: -0.5562596356 | AO69: -0.1413563934 | AP69: -4.663383561 | AQ69: -14.02234178 | AU69: -1.514927367 | AW69: 11.4 | BH69: 11.4 | BI69: -2.277781186 | BJ69: 10.49727056 | BK69: -2.045675014
O70: 11.6 | P70: 0.6212620005 | Q70: 0.378749781 | R70: 0.6212384375 | S70: 1.178153494e-05 | T70: 3.252243552e-15 | X70: 0.0389019447 | AM70: 11.6 | AN70: -0.4216448799 | AO70: -0.2067403429 | AP70: -4.928766215 | AQ70: -14.48772314 | AU70: -1.410019559 | AW70: 11.6 | BH70: 11.6 | BI70: -2.378737999 | BJ70: 10.6137927 | BK70: -2.059024957
O71: 11.8 | P71: 0.508588776 | Q71: 0.4914173096 | R71: 0.5085766049 | S71: 6.085551404e-06 | T71: 1.059939607e-15 | X71: 0.04749245476 | AM71: 11.8 | AN71: -0.3085475525 | AO71: -0.2936417207 | AP71: -5.215666298 | AQ71: -14.97462193 | AU71: -1.323366815 | AW71: 11.8 | BH71: 11.8 | BI71: -2.491411224 | BJ71: 10.78607182 | BK71: -2.085446428
O72: 12 | P72: 0.3950401181 | Q72: 0.6049628644 | R72: 0.3950341531 | S72: 2.982484543e-06 | T72: 3.277625934e-16 | X72: 0.05717936753 | AM72: 12 | AN72: -0.2182698706 | AO72: -0.403362744 | AP72: -5.525386027 | AQ72: -15.48434037 | AU72: -1.242752607 | AW72: 12 | BH72: 12 | BI72: -2.604959882 | BJ72: 10.93059039 | BK72: -2.115365641
O73: 12.2 | P73: 0.2917912225 | Q73: 0.7082101675 | R73: 0.2917884425 | S73: 1.389989894e-06 | T73: 9.63813108e-17 | X73: 0.07080692615 | AM73: 12.2 | AN73: -0.1498368725 | AO73: -0.534928451 | AP73: -5.856950439 | AQ73: -16.01590348 | AU73: -1.149916814 | AW73: 12.2 | BH73: 12.2 | BI73: -2.708208778 | BJ73: 11.11530782 | BK73: -2.166409608
O74: 12.4 | P74: 0.2063248964 | Q74: 0.7936757237 | R74: 0.2063236561 | S74: 6.201440511e-07 | T74: 2.713149767e-17 | X74: 0.09336715173 | AM74: 12.4 | AN74: -0.1003562536 | AO74: -0.6854465374 | AP74: -6.207467231 | AQ74: -16.56641898 | AU74: -1.029799223 | AW74: 12.4 | BH74: 12.4 | BI74: -2.793675104 | BJ74: 11.22873805 | BK74: -2.205876497
O75: 12.6 | P75: 0.1409112709 | Q75: 0.8590889963 | R75: 0.1409107365 | S75: 2.672314952e-07 | T75: 7.3768139e-18 | X75: 0.1320337348 | AM75: 12.6 | AN75: -0.06596141658 | AO75: -0.8510504056 | AP75: -6.573069804 | AQ75: -17.13202026 | AU75: -0.8793093993 | AW75: 12.6 | BH75: 12.6 | BI75: -2.859088729 | BJ75: 11.38774794 | BK75: -2.272155839
O76: 12.8 | P76: 0.09378595601 | Q76: 0.9062141562 | R76: 0.09378573157 | S76: 1.122226003e-07 | T76: 1.954616286e-18 | X76: 0.1969554049 | AM76: 12.8 | AN76: -0.04276888099 | AO76: -1.027856575 | AP76: -6.949874679 | AQ76: -17.70882384 | AU76: -0.7056275285 | AW76: 12.8 | BH76: 12.8 | BI76: -2.906214044 | BJ76: 11.54005687 | BK76: -2.346842414
O77: 13 | P77: 0.06129641593 | Q77: 0.9387036304 | R77: 0.06129632337 | S77: 4.627836241e-08 | T77: 5.085798723e-19 | X77: 0.3032696874 | AM77: 13 | AN77: -0.02747132469 | AO77: -1.212557724 | AP77: -7.334574533 | AQ77: -18.2935224 | AU77: -0.5181676418 | AW77: 13 | BH77: 13 | BI77: -2.938703584 | BJ77: 11.66938937 | BK77: -2.416995571
O78: 13.2 | P78: 0.03957052659 | Q78: 0.9604294923 | R78: 0.03957048889 | S78: 1.885015705e-08 | T78: 1.30706191e-19 | X78: 0.4745264318 | AM78: 13.2 | AN78: -0.01753439885 | AO78: -1.402619503 | AP78: -7.724635018 | AQ78: -18.88358159 | AU78: -0.3237374958 | AW78: 13.2 | BH78: 13.2 | BI78: -2.960429473 | BJ78: 11.81789754 | BK78: -2.501713513
O79: 13.4 | P79: 0.02533731167 | Q79: 0.9746626959 | R79: 0.02533729644 | S79: 7.615594816e-09 | T79: 3.331846732e-20 | X79: 0.7479822097 | AM79: 13.4 | AN79: -0.01114558357 | AO79: -1.596229393 | AP79: -8.118243613 | AQ79: -19.47718889 | AU79: -0.126107915 | AW79: 13.4 | BH79: 13.4 | BI79: -2.974662688 | BJ79: 11.95771568 | BK79: -2.581469555
O80: 13.6 | P80: 0.01613765526 | Q80: 0.9838623478 | R80: 0.01613764914 | S80: 3.060439692e-09 | T80: 8.448216046e-21 | X80: 1.182793729 | AM80: 13.6 | AN80: -0.007065613724 | AO80: -1.792148129 | AP80: -8.514161053 | AU80: 0.07290854141 | AW80: 13.6 | BH80: 13.6 | BI80: -2.983862345 | BJ80: 12.13374935 | BK80: -2.675715375
O81: 13.8 | P81: 0.01024317373 | Q81: 0.9897568275 | R81: 0.01024317128 | S81: 1.225682517e-09 | T81: 2.134809748e-21 | X81: 1.872871847 | AM81: 13.8 | AN81: -0.004471464785 | AO81: -1.989552685 | AP81: -8.911564315 | AU81: 0.2725062972 | AW81: 13.8 | BH81: 13.8 | BI81: -2.989756826 | BJ81: 12.2537876 | BK81: -2.73312825
O82: 14 | P82: 0.006487529072 | Q82: 0.9935124714 | R82: 0.006487528092 | S82: 4.898045424e-10 | T82: 5.382747329e-22 | X82: 2.96719399 | AM82: 14 | AN82: -0.002826658584 | AO82: -2.187906584 | AP82: -9.309916919 | AU82: 0.4723428827 | AW82: 14 | BH82: 14 | BI82: -2.993512471 | BJ82: 12.37042415 | BK82: -2.782300053

Sheet Analise_I
C1: Análise de Dados de Curvas de Titulação Reais ou Simuladas I – método das derivadas | O1: <--- leia instruções | U1: código de cores
A2: Interpolação de dados com alisamento por spline | H2: Intensidade do alisamento | J2: Intervalo a analisar | M2: Estatísticas do ajuste | Q2: Localizador de inflexões com base nas derivadas | U2: N ã o a l t e r e
H3: (0 a 100%) | I3: 85 | J3: Volume inicial | K3: 0 | M3: Desv. Padrão, spH | N3: 0.08539642067 | P3: Limiar de detecção |dpH/dV| > | Q3: 1 | R3: sugestão | S3: 0.3869594691 | T3: P r e e n c h a o u m o d i f i q u e
H4: nº ptos. interpolados | I4: 300 | J4: Volume final | K4: 50 | M4: Coefic. de correl., R | N4: 0.9995684402 | Q4: Detecção de pontos de inflexão | V4: Dados interpolados e alisados
A5: Volume | B5: pH | C5: pH ajust. | D5: dpH/dV | O5: ponto | P5: Volume | Q5: pH | R5: dpH/dV | S5: d2pH/dV2 | T5: Vol. Interp. | U5: pH ajust | V5: dpH/dV | W5: d2pH/dV2
A6: 0 | B6: 2.248236162 | C6: 2.24779123 | D6: 0.04439407991 | O6: 1 | P6: 10.04783336 | Q6: 4.606986091 | R6: 1.821642099 | S6: 0.001222861812 | T6: 0 | U6: 2.24779123 | V6: 0.04438840153 | W6: 0
A7: 2.144118842 | B7: 2.364792201 | C7: 2.365354309 | D7: 0.07644367659 | O7: 2 | P7: 30.0125 | Q7: 9.339215029 | R7: 1.886930924 | S7: -0.003471654964 | T7: 0.1666666667 | U7: 2.255199813 | V7: 0.04457787235 | W7: 0.001135691541
A8: 4.004995925 | B8: 2.550649992 | C8: 2.55298878 | D8: 0.1244084829 | O8: 3 | T8: 0.3333333333 | U8: 2.262671489 | V8: 0.04514590627 | W8: 0.002271383082
A9: 5.537641699 | B9: 2.735061717 | C9: 2.72418427 | D9: 0.06785983666 | O9: 4 | T9: 0.5 | U9: 2.270269353 | V9: 0.04609250326 | W9: 0.003407074623
A10: 6.745316282 | B10: 2.800158914 | C10: 2.816892109 | D10: 0.1515255601 | O10: 5 | T10: 0.6666666666 | U10: 2.278056499 | V10: 0.04741766335 | W10: 0.00454275817
A11: 7.663840234 | B11: 3.021008977 | C11: 3.010548991 | D11: 0.2393589575 | O11: 6 | T11: 0.8333333333 | U11: 2.28609602 | V11: 0.04912138652 | W11: 0.005678457704
A12: 8.343835549 | B12: 3.205916236 | C12: 3.173511772 | D12: 0.2458507706 | O12: 7 | T12: 1 | U12: 2.29445101 | V12: 0.05120367278 | W12: 0.006814133258
A13: 8.837465245 | B13: 3.322417464 | C13: 3.319118546 | D13: 0.4025422876 | O13: 8 | T13: 1.166666667 | U13: 2.303184564 | V13: 0.05366452212 | W13: 0.007949832793
A14: 9.191113659 | B14: 3.557732853 | C14: 3.499496391 | D14: 0.6812867497 | O14: 9 | T14: 1.333333333 | U14: 2.312359774 | V14: 0.05650393455 | W14: 0.00908551634
A15: 9.442684516 | B15: 3.6543098 | C15: 3.702783939 | D15: 1.034353835 | O15: 10 | T15: 1.5 | U15: 2.322039735 | V15: 0.05972191007 | W15: 0.01022119189
A16: 9.621614414 | B16: 3.790270381 | C16: 3.908782775 | D16: 1.36734665 | O16: 11 | T16: 1.666666667 | U16: 2.332287541 | V16: 0.06331844867 | W16: 0.01135689143
A17: 9.750126088 | B17: 3.969519892 | C17: 4.093756388 | D17: 1.593183552 | O17: 12 | T17: 1.833333333 | U17: 2.343166285 | V17: 0.06729355036 | W17: 0.01249257498
A18: 9.844849129 | B18: 4.296344553 | C18: 4.247624685 | D18: 1.71239013 | O18: 13 | T18: 2 | U18: 2.354739061 | V18: 0.07164721514 | W18: 0.01362825852
A19: 9.918394931 | B19: 4.423468832 | C19: 4.374372116 | D19: 1.774885149 | O19: 14 | T19: 2.166666667 | U19: 2.367068931 | V19: 0.07637503386 | W19: 0.01456984133
A20: 9.980747061 | B20: 4.316168836 | C20: 4.485300613 | D20: 1.811445513 | O20: 15 | T20: 2.333333333 | U20: 2.380199648 | V20: 0.08118175219 | W20: 0.01427076057
A21: 10.04046945 | B21: 4.354954839 | C21: 4.59357274 | D21: 1.817646279 | Q21: Cálculo de concentrações no titulado | T21: 2.5 | U21: 2.394123184 | V21: 0.08588877177 | W21: 0.01397164784
A22: 10.10579878 | B22: 4.858052011 | C22: 4.712078221 | D22: 1.768752101 | Q22: (opcional e modificável) | T22: 2.666666667 | U22: 2.408822923 | V22: 0.0904960926 | W22: 0.01367255909
A23: 10.18571341 | B23: 5.135799195 | C23: 4.85178763 | D23: 1.643715212 | Q23: Presume-se titulante monoprótico | T23: 2.833333333 | U23: 2.424282249 | V23: 0.0950037147 | W23: 0.01337346234
A24: 10.29107799 | B24: 5.132900852 | C24: 5.019453845 | D24: 1.439369492 | Q24: Volume de titulado (pipetado na célula) | R24: 20 | S24: mL | T24: 3 | U24: 2.440484546 | V24: 0.09941163805 | W24: 0.01307437358
A25: 10.4359553 | B25: 5.24238336 | C25: 5.214649277 | D25: 1.164120413 | Q25: Concentração do titulante (na bureta) | R25: 0.1 | S25: mol/L | T25: 3.166666667 | U25: 2.457413197 | V25: 0.1037198627 | W25: 0.01277527684
A26: 10.6391407 | B26: 5.434436474 | C26: 5.425103306 | D26: 0.841118769 | Q26: Número de mols - titulante | S26: Result.(mol/L) | T26: 3.333333333 | U26: 2.475051585 | V26: 0.1079283885 | W26: 0.01247618009
A27: 10.92587135 | B27: 5.585926502 | C27: 5.626370019 | D27: 0.5406243959 | O27: etapa | P27: Vol. Inflex. | Q27: total | R27: parcial | S27: [espécie] | T27: 3.5 | U27: 2.493383095 | V27: 0.1120372156 | W27: 0.01217707535
A28: 11.32941198 | B28: 5.781785381 | C28: 5.800969958 | D28: 0.3266260185 | O28: 1 | P28: 10.04783336 | Q28: =IF(P28<>"",P28*0.001*$R$25,"") -> 0.001004783336 | R28: =IF(P28<>"",Q28,"") -> 0.001004783336 | S28: =IF(P28<>"",R28/$R$24/0.001,"") -> 0.05023916681 | T28: 3.666666667 | U28: 2.512391108 | V28: 0.116046344 | W28: 0.0118779866
A29: 11.89169546 | B29: 5.933377568 | C29: 5.949850535 | D29: 0.2184231049 | O29: 2 | P29: 30.0125 | Q29: =IF(P29<>"",P29*0.001*$R$25,"") -> 0.00300125 | R29: =IF(P29<>"",(Q29-Q28),"") -> 0.001996466664 | S29: =IF(P29<>"",R29/$R$24/0.001,"") -> 0.0998233332 | T29: 3.833333333 | U29: 2.532059011 | V29: 0.1199557737 | W29: 0.01157888985
A30: 12.66130396 | B30: 6.101524616 | C30: 6.097549755 | D30: 0.1596176759 | O30: 3 | R30: =IF(P30<>"",(Q30-Q29),"") ->  | T30: 4 | U30: 2.552370184 | V30: 0.1237655045 | W30: 0.0112797931
A31: 13.68609246 | B31: 6.234370658 | C31: 6.237358506 | D31: 0.1294047151 | O31: 4 | T31: 4.166666667 | U31: 2.573257561 | V31: 0.1265383652 | W31: 0.005189872532
A32: 14.99801696 | B32: 6.423708726 | C32: 6.427256757 | D32: 0.1641581425 | O32: 5 | T32: 4.333333333 | U32: 2.594433263 | V32: 0.1272224696 | W32: -0.001078992895
A33: 16.59174004 | B33: 6.669278283 | C33: 6.662366432 | D33: 0.08669502372 | O33: 6 | T33: 4.5 | U33: 2.615549021 | V33: 0.1258169532 | W33: -0.007347858322
A34: 18.40685482 | B34: 6.726594871 | C34: 6.731730346 | D34: 0.05054550164 | O34: 7 | T34: 4.666666667 | U34: 2.636256565 | V34: 0.122321816 | W34: -0.01361671576
A35: 20.32898345 | B35: 6.919625802 | C35: 6.919493749 | D35: 0.1192055633 | O35: 8 | T35: 4.833333333 | U35: 2.656207626 | V35: 0.116737058 | W35: -0.01988558118
A36: 22.2166203 | B36: 7.095325615 | C36: 7.088791869 | D36: 0.03396232194 | O36: 9 | T36: 5 | U36: 2.675053933 | V36: 0.1090626792 | W36: -0.02615443862
A37: 23.9413856 | B37: 7.151250074 | C37: 7.164741442 | D37: 0.1359781735 | O37: 10 | T37: 5.166666667 | U37: 2.692447215 | V37: 0.09929867959 | W37: -0.03242328806
A38: 25.41912176 | B38: 7.451478729 | C38: 7.432958076 | D38: 0.135033808 | O38: Resultado do exemplo: | T38: 5.333333333 | U38: 2.708039204 | V38: 0.08744505921 | W38: -0.03869216148
A39: 26.61856255 | B39: 7.54015933 | C39: 7.559629984 | D39: 0.1517249831 | O39: [H3PO4] = 0,0501 mol/L (nos 20 mL de amostra sem diluir) | T39: 5.5 | U39: 2.721481628 | V39: 0.07350181804 | W39: -0.04496101891
A40: 27.55093508 | B40: 7.756377495 | C40: 7.742981368 | D40: 0.203681425 | O40: [NaH2PO4] = [H2PO4- titulado] - [H3PO4] = 0,1000 - 0,0501 = 0,0499 mol/L | T40: 5.666666667 | U40: 2.732545492 | V40: 0.06024581108 | W40: -0.02973582181
A41: 28.2521101 | B41: 7.91345105 | C41: 7.877298484 | D41: 0.1892415237 | O41: ou seja, nesta amostra metade do H2PO4- titulado provém do H3PO4 | T41: 5.833333333 | U41: 2.741960327 | V41: 0.05392010045 | W41: -0.008239944727
A42: 28.76675076 | B42: 7.996399676 | C42: 8.004907616 | D42: 0.3790135236 | T42: 6 | U42: 2.750917388 | V42: 0.05475968129 | W42: 0.01325592436
A43: 29.13815985 | B43: 8.226381967 | C43: 8.192992908 | D43: 0.6992869795 | T43: 6.166666666 | U43: 2.760610889 | V43: 0.0627645536 | W43: 0.03475179344
A44: 29.4034608 | B44: 8.423861095 | C44: 8.413575912 | D44: 1.052958419 | P44: Ler dados nas curvas | T44: 6.333333333 | U44: 2.772235046 | V44: 0.07793471739 | W44: 0.05624768651
A45: 29.59231275 | B45: 8.470453896 | C45: 8.635133523 | D45: 1.395268787 | P45: Copiar curvas para | T45: 6.5 | U45: 2.786984075 | V45: 0.1002701727 | W45: 0.0777435556
A46: 29.72746901 | B46: 8.806433189 | C46: 8.834161165 | D46: 1.628912291 | P46: Mudar escalas | T46: 6.666666666 | U46: 2.806052189 | V46: 0.1297709194 | W46: 0.09923942468
A47: 29.82606555 | B47: 9.047059465 | C47: 8.998210361 | D47: 1.762532447 | T47: 6.833333333 | U47: 2.830575358 | V47: 0.1644478768 | W47: 0.09817923275
A48: 29.90105196 | B48: 8.921427354 | C48: 9.131477118 | D48: 1.844704394 | T48: 7 | U48: 2.86051137 | V48: 0.1936348033 | W48: 0.07696354754
A49: 29.96252097 | B49: 9.140905601 | C49: 9.245147386 | D49: 1.882144184 | T49: 7.166666666 | U49: 2.894723134 | V49: 0.2157498346 | W49: 0.05574785434
A50: 30.01888163 | B50: 9.319851046 | C50: 9.351256144 | D50: 1.879434572 | T50: 7.333333333 | U50: 2.932032002 | V50: 0.2307929706 | W50: 0.03453216113
A51: 30.07791356 | B51: 9.642681077 | C51: 9.462059157 | D51: 1.836336149 | T51: 7.5 | U51: 2.971259323 | V51: 0.2387642113 | W51: 0.01331647592
A52: 30.14778159 | B52: 9.663021254 | C52: 9.589588735 | D52: 1.749632299 | T52: 7.666666666 | U52: 3.011226451 | V52: 0.2396649135 | W52: -0.007446419481
A53: 30.23810956 | B53: 9.805419916 | C53: 9.744798785 | D53: 1.599687387 | T53: 7.833333333 | U53: 3.051014738 | V53: 0.2380976012 | W53: -0.001962941809
A54: 30.36122269 | B54: 10.10095367 | C54: 9.932999517 | D54: 1.35191909 | T54: 8 | U54: 3.090693973 | V54: 0.2383581154 | W54: 0.003520543857
A55: 30.53367048 | B55: 10.11329578 | C55: 10.14518277 | D55: 1.022774275 | T55: 8.166666666 | U55: 3.130568793 | V55: 0.240446456 | W55: 0.009004013535
A56: 30.77812718 | B56: 10.44072599 | C56: 10.35560873 | D56: 0.630178306 | T56: 8.333333333 | U56: 3.170943837 | V56: 0.2443626232 | W56: 0.0144874992
A57: 31.12570439 | B57: 10.39414388 | C57: 10.52268414 | D57: 0.3654452583 | T57: 8.5 | U57: 3.212753753 | V57: 0.2622223711 | W57: 0.09747154284
A58: 31.61854673 | B58: 10.69318509 | C58: 10.67700815 | D58: 0.2403996066 | T58: 8.666666666 | U58: 3.259978946 | V58: 0.3094269232 | W58: 0.1856675693
A59: 32.31223389 | B59: 10.78884261 | C59: 10.79375331 | D59: 0.110545903 | T59: 8.833333333 | U59: 3.317519004 | V59: 0.3860301529 | W59: 0.2738636038
A60: 33.27693826 | B60: 10.87786486 | C60: 10.88216704 | D60: 0.0946977233 | T60: 9 | U60: 3.390346018 | V60: 0.4933681238 | W60: 0.3702713896
A61: 34.59572309 | B61: 11.05129968 | C61: 11.05581129 | D61: 0.1762346878 | T61: 9.166666666 | U61: 3.483743667 | V61: 0.632910779 | W61: 0.4668879363
A62: 36.35888075 | B62: 11.37029214 | C62: 11.36329662 | D62: 0.107294392 | T62: 9.333333333 | U62: 3.603934739 | V62: 0.8227199149 | W62: 0.6903492178
A63: 38.65704334 | B63: 11.41929523 | C63: 11.4234527 | D63: 0.02398411461 | T63: 9.5 | U63: 3.762436296 | V63: 1.091308888 | W63: 0.8930645743
A64: 41.58461729 | B64: 11.62894638 | C64: 11.62735428 | D64: 0.06531778311 | T64: 9.666666666 | U64: 3.970173651 | V64: 1.405575552 | W64: 0.9328287263
A65: 45.27560185 | B65: 11.73037028 | C65: 11.73088507 | D65: 0.02023900686 | T65: 9.833333333 | U65: 4.22828124 | V65: 1.673127327 | W65: 0.5935429428
A66: 50 | B66: 11.91376558 | C66: 11.91368331 | D66: 0.04806632837 | T66: 10 | U66: 4.520053675 | V66: 1.809907598 | W66: 0.222715558
T67: 10.16666667 | U67: 4.81930778 | V67: 1.720709029 | W67: -0.7825039817
T68: 10.33333333 | U68: 5.08059899 | V68: 1.40496409 | W68: -0.983583135
T69: 10.5 | U69: 5.288409146 | V69: 1.095186975 | W69: -0.8584550511
T70: 10.66666667 | U70: 5.448681364 | V70: 0.8372918038 | W70: -0.6858039577
T71: 10.83333333 | U71: 5.57098171 | V71: 0.6408125022 | W71: -0.4932643894
T72: 11 | U72: 5.665794377 | V72: 0.5051017893 | W72: -0.346639661
T73: 11.16666667 | U73: 5.741185677 | V73: 0.4044546653 | W73: -0.2573323954
T74: 11.33333333 | U74: 5.802280726 | V74: 0.3335719212 | W74: -0.1691772642
T75: 11.5 | U75: 5.853554883 | V75: 0.2839093193 | W75: -0.1288386997
T76: 11.66666667 | U76: 5.897671333 | V76: 0.2476929008 | W76: -0.08850013523
T77: 11.83333333 | U77: 5.936871109 | V77: 0.2249226658 | W77: -0.04816160271
T78: 12 | U78: 5.973288407 | V78: 0.2126347989 | W78: -0.03514652569
T79: 12.16666667 | U79: 6.007736401 | V79: 0.2006342014 | W79: -0.0368553188
T80: 12.33333333 | U80: 6.040136877 | V80: 0.1880640111 | W80: -0.03856411191
T81: 12.5 | U81: 6.070394903 | V81: 0.174924228 | W81: -0.04027290501
T82: 12.66666667 | U82: 6.09841555 | V82: 0.1612166576 | W82: -0.0416551913
T83: 12.83333333 | U83: 6.124207182 | V83: 0.1487391737 | W83: -0.03321813225
T84: 13 | U84: 6.148153362 | V84: 0.1390740483 | W84: -0.02478107319
T85: 13.16666667 | U85: 6.170722816 | V85: 0.1322212814 | W85: -0.01634398217
T86: 13.33333333 | U86: 6.192384272 | V86: 0.1281808729 | W86: -0.00790690713
T87: 13.5 | U87: 6.213606455 | V87: 0.1269528229 | W87: 0.0005301679096
T88: 13.66666667 | U88: 6.234858092 | V88: 0.1285371314 | W88: 0.008967242949
T89: 13.83333333 | U89: 6.256559219 | V89: 0.131940626 | W89: 0.0106667315
T90: 14 | U90: 6.278852831 | V90: 0.1356314333 | W90: 0.01147729911
T91: 14.16666667 | U91: 6.30178407 | V91: 0.1395924336 | W91: 0.01228788271
T92: 14.33333333 | U92: 6.32539797 | V92: 0.1438236267 | W92: 0.01309846631
T93: 14.5 | U93: 6.349739562 | V93: 0.1483250126 | W93: 0.01390903393
T94: 14.66666667 | U94: 6.374853879 | V94: 0.1530965915 | W94: 0.01471961753
T95: 14.83333333 | U95: 6.400785952 | V95: 0.1581383632 | W95: 0.01553018514
T96: 15 | U96: 6.427580814 | V96: 0.1634500957 | W96: 0.01623303092
T97: 15.16666667 | U97: 6.455196614 | V97: 0.1674854312 | W97: 0.00798722688
T98: 15.33333333 | U98: 6.483256148 | V98: 0.1687721708 | W98: -0.0002585611725
T99: 15.5 | U99: 6.511301319 | V99: 0.1673103146 | W99: -0.008504349225
T100: 15.66666667 | U100: 6.538874026 | V100: 0.1630998626 | W100: -0.01675012129
T101: 15.83333333 | U101: 6.56551617 | V101: 0.1561408147 | W101: -0.02499590934
T102: 16 | U102: 6.590769653 | V102: 0.1464331709 | W102: -0.03324171338
T103: 16.16666667 | U103: 6.614176375 | V103: 0.1339769312 | W103: -0.04148748545
T104: 16.33333333 | U104: 6.635278235 | V104: 0.1187720958 | W104: -0.04973325752
T105: 16.5 | U105: 6.653617136 | V105: 0.1008186644 | W105: -0.05797904557
T106: 16.66666667 | U106: 6.668749821 | V106: 0.08071223103 | W106: -0.05829349803
T107: 16.83333333 | U107: 6.680671222 | V107: 0.06284876102 | W107: -0.04889671068
T108: 17 | U108: 6.689876138 | V108: 0.04811753889 | W108: -0.03949998728
T109: 17.16666667 | U109: 6.696886609 | V109: 0.03651856463 | W109: -0.03010323191
T110: 17.33333333 | U110: 6.702224679 | V110: 0.02805183826 | W110: -0.02070649252
T111: 17.5 | U111: 6.706412386 | V111: 0.02271735975 | W111: -0.01130976912
T112: 17.66666667 | U112: 6.709971774 | V112: 0.02051512913 | W112: -0.001913013748
T113: 17.83333333 | U113: 6.713424882 | V113: 0.02144514638 | W113: 0.00748372564
T114: 18 | U114: 6.717293754 | V114: 0.02550741152 | W114: 0.01688048101
T115: 18.16666667 | U115: 6.722100429 | V115: 0.03270192452 | W115: 0.02627720441
T116: 18.33333333 | U116: 6.728366949 | V116: 0.04302868542 | W116: 0.03567395979
T117: 18.5 | U117: 6.736594169 | V117: 0.05580410353 | W117: 0.03774481528
T118: 18.66666667 | U118: 6.746907906 | V118: 0.06776650002 | W118: 0.03403325622
T119: 18.83333333 | U119: 6.759112379 | V119: 0.07849170278 | W119: 0.03032166518
T120: 19 | U120: 6.773001389 | V120: 0.08797971181 | W120: 0.02661007415
T121: 19.16666667 | U121: 6.788368738 | V121: 0.09623052713 | W121: 0.0228984991
T122: 19.33333333 | U122: 6.805008227 | V122: 0.1032441487 | W122: 0.01918692405
T123: 19.5 | U123: 6.822713656 | V123: 0.1090205766 | W123: 0.015475349
T124: 19.66666667 | U124: 6.841278826 | V124: 0.1135598107 | W124: 0.01176378994
T125: 19.83333333 | U125: 6.860497539 | V125: 0.1168618512 | W125: 0.008052182921
T126: 20 | U126: 6.880163596 | V126: 0.1189266979 | W126: 0.004340623861
T127: 20.16666667 | U127: 6.900070798 | V127: 0.1197543508 | W127: 0.0006290168386
T128: 20.33333333 | U128: 6.920012945 | V128: 0.1193448499 | W128: -0.00307378123
T129: 20.5 | U129: 6.939787211 | V129: 0.1177572816 | W129: -0.006448281909
T130: 20.66666667 | U130: 6.95920324 | V130: 0.1150448751 | W130: -0.009822782588
T131: 20.83333333 | U131: 6.978073558 | V131: 0.1112076301 | W131: -0.01319731524
T132: 21 | U132: 6.996210692 | V132: 0.1062455468 | W132: -0.01657181592
T133: 21.16666667 | U133: 7.01342717 | V133: 0.1001586252 | W133: -0.01994634857
T134: 21.33333333 | U134: 7.029535518 | V134: 0.09294686512 | W134: -0.02332084925
T135: 21.5 | U135: 7.044348263 | V135: 0.08461026672 | W135: -0.02669536592
T136: 21.66666667 | U136: 7.057677932 | V136: 0.07514882996 | W136: -0.03006988259
T137: 21.83333333 | U137: 7.069337052 | V137: 0.06456255483 | W137: -0.03344439925
T138: 22 | U138: 7.079138151 | V138: 0.05285144134 | W138: -0.03681891592
T139: 22.16666667 | U139: 7.086893754 | V139: 0.04001548948 | W139: -0.0401934166
T140: 22.33333333 | U140: 7.092469419 | V140: 0.02741971865 | W140: -0.03188909936
T141: 22.5 | U141: 7.096277624 | V141: 0.01900938351 | W141: -0.01858618859
T142: 22.66666667 | U142: 7.099053262 | V142: 0.01503334939 | W142: -0.00528330979
T143: 22.83333333 | U143: 7.101535384 | V143: 0.0154916163 | W143: 0.008019584997
T144: 23 | U144: 7.104463039 | V144: 0.02038418425 | W144: 0.02132251176
T145: 23.16666667 | U145: 7.108575277 | V145: 0.02971105321 | W145: 0.03462542253
T146: 23.33333333 | U146: 7.114611149 | V146: 0.04347222319 | W146: 0.04792831732
T147: 23.5 | U147: 7.123309705 | V147: 0.0616676942 | W147: 0.0612312121
T148: 23.66666667 | U148: 7.135409995 | V148: 0.08429746624 | W148: 0.07453412288
T149: 23.83333333 | U149: 7.15165107 | V149: 0.1113615393 | W149: 0.08783701766
T150: 24 | U150: 7.172758109 | V150: 0.1421480171 | W150: 0.0890289762
T151: 24.16666667 | U151: 7.198724315 | V151: 0.1682985061 | W151: 0.06789511354
T152: 24.33333333 | U152: 7.228462471 | V152: 0.1874043683 | W152: 0.04676120291
T153: 24.5 | U153: 7.260798472 | V153: 0.1994656036 | W153: 0.02562732426
T154: 24.66666667 | U154: 7.294558214 | V154: 0.204482212 | W154: 0.004493445616
T155: 24.83333333 | U155: 7.328567592 | V155: 0.2024541936 | W155: -0.01664043303
T156: 25 | U156: 7.361652502 | V156: 0.1933815483 | W156: -0.03777429569
T157: 25.16666667 | U157: 7.392638839 | V157: 0.1772642761 | W157: -0.05890819033
T158: 25.33333333 | U158: 7.420352499 | V158: 0.1541023771 | W158: -0.08004206898
T159: 25.5 | U159: 7.443669398 | V159: 0.125755077 | W159: -0.07823530624
T160: 25.66666667 | U160: 7.462699586 | V160: 0.1040376979 | W160: -0.0520951442
T161: 25.83333333 | U161: 7.478835601 | V161: 0.09103371132 | W161: -0.02595495019
T162: 26 | U162: 7.493529675 | V162: 0.0867431172 | W162: 0.0001852278331
T163: 26.16666667 | U163: 7.50823404 | V163: 0.09116591555 | W163: 0.02632540586
T164: 26.33333333 | U164: 7.524400928 | V164: 0.1043021064 | W164: 0.05246558388
T165: 26.5 | U165: 7.543482571 | V165: 0.1261516897 | W165: 0.0786057619
T166: 26.66666667 | U166: 7.566920137 | V166: 0.15602225 | W166: 0.09040159022
T167: 26.83333333 | U167: 7.595214353 | V167: 0.1822257314 | W167: 0.06684285126
T168: 27 | U168: 7.627222061 | V168: 0.2005762926 | W168: 0.04328408032
T169: 27.16666667 | U169: 7.66163444 | V169: 0.2110739334 | W169: 0.01972530939
T170: 27.33333333 | U170: 7.69714267 | V170: 0.213718654 | W170: -0.003833429574
T171: 27.5 | U171: 7.732437931 | V171: 0.2085104543 | W171: -0.02739218452
T172: 27.66666667 | U172: 7.76631741 | V172: 0.1982011934 | W172: -0.02720722847
T173: 27.83333333 | U173: 7.798694413 | V173: 0.1909063763 | W173: -0.01657231152
T174: 28 | U174: 7.830150732 | V174: 0.1871565321 | W174: -0.005937362602
T175: 28.16666667 | U175: 7.861277196 | V175: 0.1869516608 | W175: 0.004697522371
T176: 28.33333333 | U176: 7.89276353 | V176: 0.1939519922 | W176: 0.06030392186
T177: 28.5 | U177: 7.927715207 | V177: 0.2312228756 | W177: 0.1632184468
T178: 28.66666667 | U178: 7.971734576 | V178: 0.3027985992 | W178: 0.2661329717
T179: 28.83333333 | U179: 8.030526291 | V179: 0.4081000678 | W179: 0.3603717964
T180: 29 | U180: 8.109295119 | V180: 0.5417705378 | W180: 0.4415697888
T181: 29.16666667 | U181: 8.212599551 | V181: 0.7029249762 | W181: 0.5373448886
T182: 29.33333333 | U182: 8.346205992 | V182: 0.9098049445 | W182: 0.7037685315
T183: 29.5 | U183: 8.518957926 | V183: 1.173630053 | W183: 0.8853989222
T184: 29.66666667 | U184: 8.740571216 | V184: 1.48693334 | W184: 0.8905495222
T185: 29.83333333 | U185: 9.010830299 | V185: 1.741074154 | W185: 0.62336213
T186: 30 | U186: 9.315631927 | V186: 1.886071531 | W186: 0.0714632833
T187: 30.16666667 | U187: 9.623053064 | V187: 1.758784373 | W187: -0.708854703
T188: 30.33333333 | U188: 9.89300553 | V188: 1.462919027 | W188: -1.028121844
T189: 30.5 | U189: 10.10824459 | V189: 1.127611491 | W189: -0.9240942412
T190: 30.66666667 | U190: 10.27178074 | V190: 0.8402548256 | W190: -0.8132777012
T191: 30.83333333 | U191: 10.39020169 | V191: 0.5888918451 | W191: -0.6469388865
T192: 31 | U192: 10.47328329 | V192: 0.4252367792 | W192: -0.3353031133
T193: 31.16666667 | U193: 10.53769184 | V193: 0.3621437122 | W193: -0.1043056201
T194: 31.33333333 | U194: 10.5950022 | V194: 0.3246284352 | W194: -0.1207695384
T195: 31.5 | U195: 10.64560314 | V195: 0.2816251863 | W195: -0.1372334566
T196: 31.66666667 | U196: 10.6885892 | V196: 0.2337096278 | W196: -0.1417756153
T197: 31.83333333 | U197: 10.72383642 | V197: 0.1905931822 | W197: -0.1169478594
T198: 32 | U198: 10.75258653 | V198: 0.1557526739 | W198: -0.09212007158
T199: 32.16666667 | U199: 10.77621887 | V199: 0.1291881027 | W199: -0.06729218783
T200: 32.33333333 | U200: 10.79611251 | V200: 0.1108657221 | W200: -0.04405125864
... 106 more rows

Sheet +I
D1: Compilação de dados e resultados da Analise_I
B4: Identifique os resultados e acrescente observações (nas células em cinza)

Sheet Analise_II
B1: Análise de Dados de Titulação II – Regressão | G1: <--- leia instruções e observações importantes | K1: pKa dos ácidos e bases em solução | N1: Clique em K2 a Q2; selecione ácidos/bases; clique em J2; leia M1 | U1: Constantes cumulativas de protonação = bp = PKp (calculado pela planilha) | AF1: pKas dos ácidos HiB, carregados da planilha Constantes | AP1: Instalação do Solver
A2: Concentrações (em mol/L) na amostra (ajustadas por regressão, em azul, e de equilíbrio) e no titulante (conhecidas) | K2: 3 | L2: 181 | M2: 24 | N2: 1 | O2: 7 | P2: 2 | Q2: 4 | S2: Titulante | V2: Titulado | AC2: Titulante | AG2: Titulado | AH2: Clique em J2 para usar estes pKas na regressão | AP2: O Solver é um suplemento gratuito do Excel usado pra Regressão Não Linear no módulo Análise II
A3: AMOSTRA Espécie | B3: =K3 -> Ácido cítrico | C3: =L3 -> Glicina | D3: Ácido ascórbico | E3: Ácido acético | F3: Hidróxido de amônio | G3: Ácido carbônico | H3: Ácido clorídrico | J3: Ácido / Base | K3: Ácido cítrico | L3: Glicina | M3: Ácido ascórbico | N3: Ácido acético | O3: Hidróxido de amônio | P3: Ácido carbônico | Q3: Ácido clorídrico | R3: Ácido forte | S3: Base forte | T3: Ác. carbônico | U3: Ácido / Base | V3: =K3 -> Ácido cítrico | W3: Glicina | X3: Ácido ascórbico | Y3: Ácido acético | Z3: Hidróxido de amônio | AA3: Ácido carbônico | AB3: Ácido clorídrico | AC3: Ácido forte | AD3: Base forte | AE3: Ác. carbônico | AF3: Ácido / Base | AG3: =IF(VLOOKUP(K$2,Constantes!$B$23:$N$303,2)="","",VLOOKUP(K$2,Constantes!$B$23:$N$303,2)) -> Ácido cítrico | AH3: =IF(VLOOKUP(L$2,Constantes!$B$23:$N$303,2)="","",VLOOKUP(L$2,Constantes!$B$23:$N$303,2)) -> o-Fenotidina | AI3: =IF(VLOOKUP(M$2,Constantes!$B$23:$N$303,2)="","",VLOOKUP(M$2,Constantes!$B$23:$N$303,2)) -> Ácido ascórbico | AJ3: =IF(VLOOKUP(N$2,Constantes!$B$23:$N$303,2)="","",VLOOKUP(N$2,Constantes!$B$23:$N$303,2)) -> Ácido acético | AK3: =IF(VLOOKUP(O$2,Constantes!$B$23:$N$303,2)="","",VLOOKUP(O$2,Constantes!$B$23:$N$303,2)) -> Hidróxido de amônio | AL3: =IF(VLOOKUP(P$2,Constantes!$B$23:$N$303,2)="","",VLOOKUP(P$2,Constantes!$B$23:$N$303,2)) -> Ácido carbônico | AM3: =IF(VLOOKUP(Q$2,Constantes!$B$23:$N$303,2)="","",VLOOKUP(Q$2,Constantes!$B$23:$N$303,2)) -> Ácido clorídrico | AP3: Verifique se o Solver já está instalado (o local depende da versão do Excel)
A4: [B] | B4: =IF(K5="",0,(B$11)/M$41) -> 8.819652295e-08 | C4: 3.663383311e-09 | D4: 0 | E4: 0 | F4: 0 | G4: =IF(P5="",0,(G$11)/R$41) -> 0 | H4: 0 | J4: Carga de B | K4: -3 | L4: -1 | M4: -2 | N4: -1 | O4: 0 | P4: -2 | Q4: -1 | R4: -1 | S4: -1 | T4: -2 | U4: Carga de B | V4: =IF(K4="","",K4) -> -3 | W4: =IF(L4="","",L4) -> -1 | X4: -2 | Y4: -1 | Z4: 0 | AA4: -2 | AB4: -1 | AC4: -1 | AD4: -1 | AE4: -2 | AF4: Carga de B | AG4: =IF(VLOOKUP(K$2,Constantes!$B$23:$N$303,3)="","",VLOOKUP(K$2,Constantes!$B$23:$N$303,3)) -> -3 | AH4: =IF(VLOOKUP(L$2,Constantes!$B$23:$N$303,3)="","",VLOOKUP(L$2,Constantes!$B$23:$N$303,3)) -> 0 | AI4: =IF(VLOOKUP(M$2,Constantes!$B$23:$N$303,3)="","",VLOOKUP(M$2,Constantes!$B$23:$N$303,3)) -> -2 | AJ4: =IF(VLOOKUP(N$2,Constantes!$B$23:$N$303,3)="","",VLOOKUP(N$2,Constantes!$B$23:$N$303,3)) -> -1 | AK4: =IF(VLOOKUP(O$2,Constantes!$B$23:$N$303,3)="","",VLOOKUP(O$2,Constantes!$B$23:$N$303,3)) -> 0 | AL4: =IF(VLOOKUP(P$2,Constantes!$B$23:$N$303,3)="","",VLOOKUP(P$2,Constantes!$B$23:$N$303,3)) -> -2 | AM4: =IF(VLOOKUP(Q$2,Constantes!$B$23:$N$303,3)="","",VLOOKUP(Q$2,Constantes!$B$23:$N$303,3)) -> -1 | AP4: Na aba Dados, bem à direita, no grupo Análise ( Excel 2007, 2010 e 2013)
A5: [HB] | B5: =IF(K5="",0,(B$11*(V$5*$AU41^(-2*V$4))*$D41)/M$41) -> 0.0001711523424 | C5: 0.02626315955 | D5: 0 | E5: 0 | F5: 0 | G5: 0 | H5: 0 | J5: pKa1 | K5: 3.128 | L5: 2.35 | M5: 4.1 | N5: 4.757 | O5: 9.244 | P5: 6.352 | Q5: -7 | R5: -6 | S5: 13.997 | T5: 6.352 | U5: bp1 | V5: =IF(K5="","1E-10",IF(K6="",10^K5,(IF(K7="",10^K6,(IF(K8="",10^K7,(IF(K9="",10^K8,(IF(K10="",10^K9,10^K10)))))))))) -> 2488857.318 | W5: =IF(L5="","1E-10",IF(L6="",10^L5,(IF(L7="",10^L6,(IF(L8="",10^L7,(IF(L9="",10^L8,(IF(L10="",10^L9,10^L10)))))))))) -> 5997910763 | X5: 6.165950019e+11 | Y5: 57147.86367 | Z5: 1753880502 | AA5: 2.133044913e+10 | AB5: 1e-07 | AC5: =IF(R5="","1E-10",IF(R6="",10^R5,10^R6)) -> 1e-06 | AD5: =IF(S5="","1E-10",IF(S6="",10^S5,10^S6)) -> 9.931160484e+13 | AE5: =IF(T5="","1E-10",IF(T6="",10^T5,10^T6)) -> 2.133044913e+10 | AF5: pKa1 = logKpn | AG5: =IF(VLOOKUP(K$2,Constantes!$B$23:$N$303,4)="","",VLOOKUP(K$2,Constantes!$B$23:$N$303,4)) -> 3.128 | AH5: =IF(VLOOKUP(L$2,Constantes!$B$23:$N$303,4)="","",VLOOKUP(L$2,Constantes!$B$23:$N$303,4)) -> 4.43 | AI5: =IF(VLOOKUP(M$2,Constantes!$B$23:$N$303,4)="","",VLOOKUP(M$2,Constantes!$B$23:$N$303,4)) -> 4.1 | AJ5: =IF(VLOOKUP(N$2,Constantes!$B$23:$N$303,4)="","",VLOOKUP(N$2,Constantes!$B$23:$N$303,4)) -> 4.757 | AK5: =IF(VLOOKUP(O$2,Constantes!$B$23:$N$303,4)="","",VLOOKUP(O$2,Constantes!$B$23:$N$303,4)) -> 9.244 | AL5: =IF(VLOOKUP(P$2,Constantes!$B$23:$N$303,4)="","",VLOOKUP(P$2,Constantes!$B$23:$N$303,4)) -> 6.352 | AM5: =IF(VLOOKUP(Q$2,Constantes!$B$23:$N$303,4)="","",VLOOKUP(Q$2,Constantes!$B$23:$N$303,4)) -> -7 | AP5: ou na aba Ferramentas (versões anteriores a 2007)
A6: [H2B] | B6: =IF(K6="",0,(B$11*(V$6*$AU41^(-4*V$4-2))*$D41^2)/M$41) -> 0.009529735432 | C6: 0.008701180836 | D6: 0 | E6: 0 | F6: 0 | G6: 0 | H6: 0 | J6: pKa2 | K6: 4.761 | L6: 9.778 | M6: 11.79 | P6: 10.329 | T6: 10.329 | U6: bp2 | V6: =IF(K6="","1E-10",IF(K7="",V5*10^K5,(IF(K8="",V5*10^K6,(IF(K9="",V5*10^K7,(IF(K10="",V5*10^K8,V5*10^K9)))))))) -> 1.435489433e+11 | W6: =IF(L6="","1E-10",IF(L7="",W5*10^L5,(IF(L8="",W5*10^L6,(IF(L9="",W5*10^L7,(IF(L10="",W5*10^L8,W5*10^L9)))))))) -> 1.342764961e+12 | X6: 7762471166286925 | Y6: 1E-10 | Z6: 1E-10 | AA6: 4.797334486e+16 | AB6: 1E-10 | AC6: =IF(R6="","1E-10",AC5*10^R5) -> 1E-10 | AD6: =IF(S6="","1E-10",AD5*10^S5) -> 1E-10 | AE6: =IF(T6="","1E-10",AE5*10^T5) -> 4.797334486e+16 | AF6: pKa2 = logKpn-1 | AG6: =IF(VLOOKUP(K$2,Constantes!$B$23:$N$303,5)="","",VLOOKUP(K$2,Constantes!$B$23:$N$303,5)) -> 4.761 | AH6: =IF(VLOOKUP(L$2,Constantes!$B$23:$N$303,5)="","",VLOOKUP(L$2,Constantes!$B$23:$N$303,5)) ->  | AI6: =IF(VLOOKUP(M$2,Constantes!$B$23:$N$303,5)="","",VLOOKUP(M$2,Constantes!$B$23:$N$303,5)) -> 11.79 | AJ6: =IF(VLOOKUP(N$2,Constantes!$B$23:$N$303,5)="","",VLOOKUP(N$2,Constantes!$B$23:$N$303,5)) ->  | AK6: =IF(VLOOKUP(O$2,Constantes!$B$23:$N$303,5)="","",VLOOKUP(O$2,Constantes!$B$23:$N$303,5)) ->  | AL6: =IF(VLOOKUP(P$2,Constantes!$B$23:$N$303,5)="","",VLOOKUP(P$2,Constantes!$B$23:$N$303,5)) -> 10.329 | AM6: =IF(VLOOKUP(Q$2,Constantes!$B$23:$N$303,5)="","",VLOOKUP(Q$2,Constantes!$B$23:$N$303,5)) -> 
A7: [H3B] | B7: =IF(K7="",0,(B$11*(V$7*$AU41^(-6*V$4-6))*$D41^3)/M$41) -> 0.01529485814 | C7: 0 | D7: 0 | E7: 0 | F7: 0 | G7: 0 | H7: 0 | J7: pKa3 | K7: 6.396 | U7: bp3 | V7: =IF(K7="","1E-10",IF(K8="",V6*10^K5,(IF(K9="",V6*10^K6,(IF(K10="",V6*10^K7,V6*10^K8)))))) -> 1.927524913e+14 | W7: =IF(L7="","1E-10",IF(L8="",W6*10^L5,(IF(L9="",W6*10^L6,(IF(L10="",W6*10^L7,W6*10^L8)))))) -> 1E-10 | X7: 1E-10 | Y7: 1E-10 | Z7: 1E-10 | AA7: 1E-10 | AB7: 1E-10 | AF7: pKa3 = logKpn-2 | AG7: =IF(VLOOKUP(K$2,Constantes!$B$23:$N$303,6)="","",VLOOKUP(K$2,Constantes!$B$23:$N$303,6)) -> 6.396 | AH7: =IF(VLOOKUP(L$2,Constantes!$B$23:$N$303,6)="","",VLOOKUP(L$2,Constantes!$B$23:$N$303,6)) ->  | AI7: =IF(VLOOKUP(M$2,Constantes!$B$23:$N$303,6)="","",VLOOKUP(M$2,Constantes!$B$23:$N$303,6)) ->  | AJ7: =IF(VLOOKUP(N$2,Constantes!$B$23:$N$303,6)="","",VLOOKUP(N$2,Constantes!$B$23:$N$303,6)) ->  | AK7: =IF(VLOOKUP(O$2,Constantes!$B$23:$N$303,6)="","",VLOOKUP(O$2,Constantes!$B$23:$N$303,6)) ->  | AL7: =IF(VLOOKUP(P$2,Constantes!$B$23:$N$303,6)="","",VLOOKUP(P$2,Constantes!$B$23:$N$303,6)) ->  | AM7: =IF(VLOOKUP(Q$2,Constantes!$B$23:$N$303,6)="","",VLOOKUP(Q$2,Constantes!$B$23:$N$303,6)) ->  | AP7: Para instalar o Solver no Excel 2007, 2010 e 2013
A8: [H4B] | B8: =IF(K8="",0,(B$11*(V$8*$AU41^(-8*V$4-12))*$D41^4)/M$41) -> 0 | C8: 0 | D8: 0 | E8: 0 | F8: 0 | G8: 0 | H8: 0 | J8: pKa4 | R8: pKw | U8: bp4 | V8: =IF(K8="","1E-10",IF(K9="",V7*10^K5,(IF(K10="",V7*10^K6,V7*10^K7)))) -> 1E-10 | W8: =IF(L8="","1E-10",IF(L9="",W7*10^L5,(IF(L10="",W7*10^L6,W7*10^L7)))) -> 1E-10 | X8: 1E-10 | Y8: 1E-10 | Z8: 1E-10 | AA8: 1E-10 | AB8: 1E-10 | AC8: Kw | AF8: pKa4 = logKpn-3 | AG8: =IF(VLOOKUP(K$2,Constantes!$B$23:$N$303,7)="","",VLOOKUP(K$2,Constantes!$B$23:$N$303,7)) ->  | AH8: =IF(VLOOKUP(L$2,Constantes!$B$23:$N$303,7)="","",VLOOKUP(L$2,Constantes!$B$23:$N$303,7)) ->  | AI8: =IF(VLOOKUP(M$2,Constantes!$B$23:$N$303,7)="","",VLOOKUP(M$2,Constantes!$B$23:$N$303,7)) ->  | AJ8: =IF(VLOOKUP(N$2,Constantes!$B$23:$N$303,7)="","",VLOOKUP(N$2,Constantes!$B$23:$N$303,7)) ->  | AK8: =IF(VLOOKUP(O$2,Constantes!$B$23:$N$303,7)="","",VLOOKUP(O$2,Constantes!$B$23:$N$303,7)) ->  | AL8: =IF(VLOOKUP(P$2,Constantes!$B$23:$N$303,7)="","",VLOOKUP(P$2,Constantes!$B$23:$N$303,7)) ->  | AM8: =IF(VLOOKUP(Q$2,Constantes!$B$23:$N$303,7)="","",VLOOKUP(Q$2,Constantes!$B$23:$N$303,7)) ->  | AP8: 1.Abra o Excel com uma planilha em branco
A9: [H5B] | B9: =IF(K9="",0,(B$11*(V$9*$AU41^(-10*V$4-20))*$D41^5)/M$41) -> 0 | C9: 0 | D9: 0 | E9: 0 | F9: 0 | G9: 0 | H9: 0 | I9: Total | J9: pKa5 | R9: 13.997 | U9: bp5 | V9: =IF(K9="","1E-10",IF(K10="",V8*10^K5,V8*10^K6)) -> 1E-10 | W9: =IF(L9="","1E-10",IF(L10="",W8*10^L5,W8*10^L6)) -> 1E-10 | X9: 1E-10 | Y9: 1E-10 | Z9: 1E-10 | AA9: 1E-10 | AB9: 1E-10 | AC9: =10^-R9 -> 1.006931669e-14 | AF9: pKa5 = logKpn-4 | AG9: =IF(VLOOKUP(K$2,Constantes!$B$23:$N$303,8)="","",VLOOKUP(K$2,Constantes!$B$23:$N$303,8)) ->  | AH9: =IF(VLOOKUP(L$2,Constantes!$B$23:$N$303,8)="","",VLOOKUP(L$2,Constantes!$B$23:$N$303,8)) ->  | AI9: =IF(VLOOKUP(M$2,Constantes!$B$23:$N$303,8)="","",VLOOKUP(M$2,Constantes!$B$23:$N$303,8)) ->  | AJ9: =IF(VLOOKUP(N$2,Constantes!$B$23:$N$303,8)="","",VLOOKUP(N$2,Constantes!$B$23:$N$303,8)) ->  | AK9: =IF(VLOOKUP(O$2,Constantes!$B$23:$N$303,8)="","",VLOOKUP(O$2,Constantes!$B$23:$N$303,8)) ->  | AL9: =IF(VLOOKUP(P$2,Constantes!$B$23:$N$303,8)="","",VLOOKUP(P$2,Constantes!$B$23:$N$303,8)) ->  | AM9: =IF(VLOOKUP(Q$2,Constantes!$B$23:$N$303,8)="","",VLOOKUP(Q$2,Constantes!$B$23:$N$303,8)) ->  | AP9: 2. Clique no canto superior esquerdo em Arquivo (ou no botão do Office, no Windows XP)
A10: [H6B] | B10: =IF(K10="",0,(B$11*(V$10*$AU41^(-12*V$4-30))*$D41^6)/M$41) -> 0 | C10: 0 | D10: 0 | E10: 0 | F10: 0 | G10: 0 | H10: 0 | I10: SS | J10: pKa6 | U10: bp6 | V10: =IF(K10="","1E-10",V9*10^K5) -> 1E-10 | W10: =IF(L10="","1E-10",W9*10^L5) -> 1E-10 | X10: 1E-10 | Y10: 1E-10 | Z10: 1E-10 | AA10: 1E-10 | AB10: 1E-10 | AF10: pKa6 = logKpn-5 | AG10: =IF(VLOOKUP(K$2,Constantes!$B$23:$N$303,9)="","",VLOOKUP(K$2,Constantes!$B$23:$N$303,9)) ->  | AH10: =IF(VLOOKUP(L$2,Constantes!$B$23:$N$303,9)="","",VLOOKUP(L$2,Constantes!$B$23:$N$303,9)) ->  | AI10: =IF(VLOOKUP(M$2,Constantes!$B$23:$N$303,9)="","",VLOOKUP(M$2,Constantes!$B$23:$N$303,9)) ->  | AJ10: =IF(VLOOKUP(N$2,Constantes!$B$23:$N$303,9)="","",VLOOKUP(N$2,Constantes!$B$23:$N$303,9)) ->  | AK10: =IF(VLOOKUP(O$2,Constantes!$B$23:$N$303,9)="","",VLOOKUP(O$2,Constantes!$B$23:$N$303,9)) ->  | AL10: =IF(VLOOKUP(P$2,Constantes!$B$23:$N$303,9)="","",VLOOKUP(P$2,Constantes!$B$23:$N$303,9)) ->  | AM10: =IF(VLOOKUP(Q$2,Constantes!$B$23:$N$303,9)="","",VLOOKUP(Q$2,Constantes!$B$23:$N$303,9)) ->  | AP10: 3. Clique em Opções no canto inferior esquerdo | AT10: (no Windows for Mac, pule etapa 2 e clique Ferramentas)
A11: S[HiB] | B11: 0.02499583411 | C11: 0.03496434405 | D11: 0 | E11: 0 | F11: 0 | G11: 0 | H11: 0 | I11: =SUM(B11:H11) -> 0.05996017817 | J11: SS[bases] | N11: Correção da calibração do sensor de pH | Q11: Força iônica, I (inicial) | S11: Amostra | T11: Titulante | Y11: Constantes cumulativas recalculadas para I inicial = | Z11: =AT41 -> 0.01086222545 | AA11: g H+= | AB11: =S23 -> 0.8987040389 | AC11: recalc. para | AD11: g H+= | AE11: 0.7815939819 | AP11: 4.Clique em Suplementos (na coluna esquerda)
A12: S[H] ligado | B12: =B5+2*B6+3*B7+4*B8+5*B9+6*B10 -> 0.06511519763 | C12: 0.04366552123 | D12: 0 | E12: 0 | F12: 0 | G12: 0 | H12: 0 | I12: =SUM(B12:H12) -> 0.1087807189 | J12: SS[H] ligado no pH inicial do titulado | N12: intersecção (ajustar opcionalmente) | P12: 7 | Q12: Outros íons | R12: SCk(z=1) | S12: 0 | T12: 0 | U12: bp1 | V12: =IF(K5="","",(V5*$AB$11^(-2*V$4))) -> 1311294.262 | W12: 4844326285 | X12: 4.022228824e+11 | Y12: 46156.55502 | Z12: 1753880502 | AA12: 1.391447337e+10 | AB12: 8.076689496e-08 | AC12: 6.108891525e-07 | AD12: 3395958805837007 | AE12: 7960215532 | AP12: 5. Clique sobre a linha do Solver na lista de suplementos
A13: [H] liberável | B13: =IF(K4="","0",(-K4*B11)-B12) -> 0.009872304707 | C13: =IF(L4="","0",(-L4*C11)-C12) -> -0.008701177172 | D13: 0 | E13: 0 | F13: 0 | G13: 0 | H13: 0 | I13: =SUM(B13:H13) -> 0.001171127534 | J13: SS[H] max. H+ livre (pode ser negativo) | N13: inclinação (ajustar opcionalmente) | P13: 1 | Q13: mol/L | R13: SCk(z=2) | S13: 0 | T13: 0 | U13: bp2 | V13: =IF(K6="","",(V6*$AB$11^(-4*V$4-2))) -> 4.933634073e+10 | W13: =IF(L6="","",(W6*$AB$11^(-4*W$4-2))) -> 1.084509566e+12 | X13: 4089782016054045 | AA13: 2.527552359e+16 | AE13: 1.09367237e+16 | AP13: 6. Clique em Ir (em baixo, depois de "Gerenciar suplementos")
A14: TITULANTE | B14: =R3 -> Ácido forte | C14: =S3 -> Base forte | D14: =T3 -> Ác. carbônico | F14: Volume de Titulado (mL) | H14: Amostra | I14: =I18-(I12+I13) -> 4.972120781e-05 | J14: Balanço parcial de carga <---> contra-íons (sinal oposto) | M14: =S15 -> -0.0003087685465 | O14: Parâmetros da eq. de Davies | Q14: (z = carga do íon) | R14: 1/2.SCkzk2 = Ik | S14: =0.5*(S12+S13*4) -> 0 | T14: =0.5*(T12+T13*4) -> 0 | U14: bp3 | V14: =IF(K7="","",(V7*$AB$11^(-6*V$4-6))) -> 5.350573346e+13 | W14: =IF(L7="","",(W7*$AB$11^(-6*W$4-6))) ->  | AP14: 7. Marque o Solver na nova janela
A15: [B] | C15: 0.1 | E15: AMOSTRA | F15: Água | G15: Titulado | H15: Titulado: [H]=10-p[H] | I15: =D41 -> 0.001479896089 | J15: =IF(C41="",B41,C41) -> 2.884016514 | K15: pH inicial | O15: para estimar coef. de atividade | Q15: Mínimo | R15: SzjCj | S15: =-(S18/S17) - (G16/E16)*(S24- $AC$9/AU41^2/S24) -> -0.0003087685465 | T15: =-T18/T17 - (T24- $AC$9/AE11^2/T24) -> 0.09999998952 | U15: bp4 | V15: =IF(K8="","",(V8*$AB$11^(-8*V$4-12))) ->  | W15: =IF(L8="","",(W8*$AB$11^(-8*W$4-12))) ->  | AP15: 8. Clique OK; basta seguir de 1 a 8 uma única vez em cada computador
A16: [HB] | E16: 20 | F16: 0 | G16: =E16+F16 -> 20 | H16: Titulado: [OH]=Kw/[H] | I16: =AB21/I15 -> 8.424330382e-12 | J16: =-LOG(AB21)-J15 -> 11.02021687 | K16: pOH inicial na força iônica, I | M16: =AT41 -> 0.01086222545 | O16: A | P16: 0.509 | Q16: de contra-íons | R16: 1/2.SCjzj2 = Ij | S16: =0.5*S17^2*ABS(S15) -> 0.0001543842732 | T16: =0.5*T17^2*ABS(T15) -> 0.04999999476 | U16: bp5 | V16: =IF(K9="","",(V9*$AB$11^(-10*V$4-20))) ->  | W16: =IF(L9="","",(W9*$AB$11^(-10*W$4-20))) ->  | AP16: 9. Abra o arquivo do CurTiPot e clique na aba Regressão
A17: [H2B] | E17: SS | H17: Amostra: CHcalc | I17: =I12+ (G16/E16)*(I15-I16) -> 0.1102606149 | O17: b | P17: 0.3 | Q17: para ácidos/bases | R17: carga contra-íon | S17: 1 | T17: 1 | U17: bp6 | V17: =IF(K10="","",(V10*$AB$11^(-12*V$4-30))) ->  | W17: =IF(L10="","",(W10*$AB$11^(-12*W$4-30))) ->  | AP17: 10. Clique na aba Dados e localize o Solver à direita, no grupo Análise
A18: S[HiB] | B18: =B15+B16+B17 -> 0 | C18: =C15+C16+C17 -> 0.1 | D18: =D15+D16+D17 -> 0 | E18: =SUM(B18:D18) -> 0.1 | F18: SS[HiB] | H18: Amostra: CHreg | I18: 0.1100015676 | J18: <---Solver: ajustar CHReg, concentrações (B11 a G11, azul) e/ou pKas | Q18: íons de ácidos/bases | R18: SziCi | S18: =SUM(V18:AB18) -> -0.001171127534 | T18: =SUM(AC18:AE18) -> -0.0001780131665 | U18: SziCi | V18: =K4*B4+(K4+1)*B5+(K4+2)*B6+(K4+3)*B7+(K4+4)*B8+(K4+5)*B9+(K4+6)*B10 -> -0.009872304707 | W18: 0.008701177172 | X18: 0 | Y18: 0 | Z18: 0 | AA18: 0 | AB18: 0 | AC18: 0 | AD18: -0.0001780131665 | AE18: 0 | AQ18: (ou localizar o Solver na aba Ferramentas, no Excel antigo)
A19: S[H] | B19: =B16+2*B17 -> 0 | C19: =C16+2*C17 -> 0 | D19: =D16+2*D17 -> 0 | E19: =SUM(B19:D19) -> 0 | F19: SS [H] pH | G19: 12.88920737 | H19: S(|RCH|a×|dpH|b×|RpH|c) | I19: =SUM($G$41:$G$201) -> 2.134127287e-06 | J19: <---Solver: minimizar S do produto dos resíduos ponderados | Q19: no pH da solução | R19: 1/2.SCizi2 = Ii | S19: =0.5*SUM(V19:AB19) -> 0.009458161535 | T19: =0.5*(SUM(AC19:AE19)) -> 8.900658325e-05 | U19: Szi2Ci | V19: =V4^2*B4+(V4+1)^2*B5+(V4+2)^2*B6+(V4+3)^2*B7+(V4+4)^2*B8+(V4+5)^2*B9+(V4+6)^2*B10 -> 0.01021513857 | W19: 0.008701184499 | X19: 0 | Y19: 0 | Z19: 0 | AA19: 0 | AB19: 0 | AC19: 0 | AD19: 0.0001780131665 | AE19: 0 | AP19: 11. Clique em Solver para utilizá-lo
H20: Pesos: expoente a | I20: 2 | J20: expoente b | K20: 0 | L20: expoente c | M20: 0 | Q20: I Total | R20: I = Ii+Ij+Ik+IH+IOH | S20: =S19+S16+S14+0.5*S24/L41+0.5*S25/L41 -> 0.01035249386 | T20: =T19+T16+T14+0.5*T24+0.5*T25 -> 0.09999998952 | AB20: Kw | AC20: Kw
Q21: Ação | R21: Parâmetro | S21: Titulado | T21: Titulante | AB21: =AC9/S23^2 -> 1.246713359e-14 | AC21: =AC9/T23^2 -> 1.64830504e-14 | AP21: Nas versões anteriores do Excel:
R22: I | S22: =AT41 -> 0.01086222545 | T22: 0.09999993245 | AP22: Feche o CurTiPot e abra uma planilha em branco
N23: Resíduos de CHreg - CHcalc | R23: g H+ | S23: =AU41 -> 0.8987040389 | T23: 0.7815939819 | AP23: Em Ferramentas/Suplementos, assinale Solver na lista.
N24: Média | O24: =AVERAGE(H41:H201) -> 8.632792509e-06 | R24: [H+] | S24: =D41 -> 0.001479896089 | T24: 1.651244646e-13 | AP24: Se os arquivos estiverem faltando, localizá-los no CD do Office
N25: Mediana | O25: =MEDIAN(H41:H201) -> -7.986993677e-06 | R25: [OH-] | S25: =AB21/D41 -> 8.424330382e-12 | T25: 0.09982197635 | AP25: Só depois que o Solver aparecer na lista Ferramentas, abrir o CurTiPot.
N26: Desvio Padrão | O26: =STDEV(H42:H201) -> 0.0001726250751 | R26: pH | S26: =IF(C41="",B41,C41) -> 2.884016514 | T26: 12.88920737
N27: DPR, % | O27: =100*O26/I17 -> 0.1565609581 | AP27: Para aprender com os autores do Excel Solver sobre a configuração, os usos e as limitações
AP28: do método generalizado dos gradientes reduzidos para otimização não linear, consulte
R29: código de cores | AP29: https://www.solver.com/excel-solver-online-help
R30: N ã o a l t e r e | AP30: https://faculty.insead.edu/delquie/msp/Download%20Solutions/Design%20and%20Use%20of%20Solver.pdf
N31: Resíduos de pHreg - pH | R31: M u d e c r I t e r o s a m e n t e
N32: Média | O32: =AVERAGE(F41:F201) -> -7.214783918e-05 | R32: Preencha, altere ou deixe em branco
N33: Mediana | O33: =MEDIAN(F41:F201) -> 0.0005823396996
N34: Desvio Padrão | O34: =STDEV(F41:F201) -> 0.01886015705
A38: Planilha para 160 pontos; pode ser ampliada ou abreviada para ganhar velocidade | G38: Para ler dados nas curvas, mudar escalas e copiar curvas para outros documentos, leia comentários nas células Q44 a Q46 da planilha Analise I
A39: Vol. Adicion. | B39: pH medido | C39: pH ajustado | D39: [H] | E39: dpH/dV | F39: pHreg-pH | G39: Fator de | H39: CHReg-CHcalc | I39: CHReg | J39: CHcalc | K39: Dil ttlante. | L39: Dil ttlado. | M39: den1 | N39: den2 | O39: den3 | P39: den4 | Q39: den5 | R39: den6 | S39: den7 | T39: den1 tlante. | U39: den2 tlante. | V39: den3 tlante. | W39: h1 | X39: h2 | Y39: h3 | Z39: h4 | AA39: h5 | AB39: h6 | AC39: h7 | AD39: h1 ttlante. | AE39: h2 ttlante. | AF39: h3 ttlante. | AG39: I1 | AH39: I2 | AI39: I3 | AJ39: I4 | AK39: I5 | AL39: I6 | AM39: I7 | AN39: I1 ttlante. | AO39: I2 ttlante. | AP39: I3 ttlante. | AQ39: Iparcial | AR39: Itotal | AS39: Clicar C22 | AT39: Itotal | AU39: g H+ | AW39: pHReg- pH | AX39: Excluir
A40: (mL) | B40: ou simulado | C40: por regressão | D40: mol/L | E40: p/ ponderação | F40: p/ ponderação | G40: ponderação | H40: mol/L | I40: mol/L | J40: mol/L | M40: =K3 -> Ácido cítrico | N40: Glicina | O40: Ácido ascórbico | P40: Ácido acético | Q40: Hidróxido de amônio | R40: Ácido carbônico | S40: Ácido clorídrico | T40: Ácido forte | U40: Base forte | V40: Ác. carbônico | W40: =K3 -> Ácido cítrico | X40: Glicina | Y40: Ácido ascórbico | Z40: Ácido acético | AA40: Hidróxido de amônio | AB40: Ácido carbônico | AC40: Ácido clorídrico | AD40: Ácido forte | AE40: Base forte | AF40: Ác. carbônico | AG40: =K3 -> Ácido cítrico | AH40: Glicina | AI40: Ácido ascórbico | AJ40: Ácido acético | AK40: Hidróxido de amônio | AL40: Ácido carbônico | AM40: Ácido clorídrico | AN40: =R3 -> Ácido forte | AO40: =S3 -> Base forte | AP40: =T3 -> Ác. carbônico | AQ40: mol/L | AR40: mol/L | AS40: para atualizar AT --> | AT40: aplicado mol/L | AX40: com X
A41: 0 | B41: 2.876152084 | C41: 2.884016514 | D41: =IF(A41="","",10^-((((B41-P$12)/P$13)+7))/$AU41) -> 0.001479896089 | E41: =IF(A42="","0",(B42-B41)/(A42-A41)) -> 0.1600091661 | F41: =IF(A41="","",IF(C41="","0,00001",(IF(ABS(C41-B41)<0.00001,0.00001,C41-B41)))) -> 0.007864429846 | G41: =IF(A41="","",IF(AX41="X",0,IF(ABS(E41)<0.00001,(0.00001^K$20)*(ABS(H41)^I$20)*ABS(F41)^M$20,((ABS(E41))^K$20)*((ABS(H41))^I$20)*ABS(F41)^M$20))) -> 6.710552368e-08 | H41: =IF(A41="","",I41-J41) -> -0.0002590473387 | I41: =IF(A41="","",L41*I$18+K41*E$19) -> 0.1100015676 | J41: =IF(A41="","",D41 -$AC$9/AU41^2/D41+L41*(W41*$B$11+X41*$C$11+Y41*$D$11+Z41*$E$11+AA41*$F$11+AB41*$G$11+AC41*$H$11)+K41*(AD41*$B$18+AE41*$C$18+AF41*$D$18)) -> 0.1102606149 | K41: =IF(A41="","",A41/(A41+$G$16)) -> 0 | L41: =IF(A41="","",$E$16/(A41+$G$16)) -> 1 | M41: =IF($A41="","",(1+(V$5*$AU41^(-2*V$4))*$D41+(V$6*$AU41^(-4*V$4-2))*$D41^2+(V$7*$AU41^(-6*V$4-6))*$D41^3+(V$8*$AU41^(-8*V$4-12))*$D41^4+(V$9*$AU41^(-10*V$4-20))*$D41^5+(V$10*$AU41^(-12*V$4-30))*$D41^6)) -> 283410.6524 | N41: 9544276.72 | O41: 9552248727 | P41: 69.30690527 | Q41: 2595561.896 | R41: 5.537632498e+10 | S41: 1 | T41: =IF($A41="","",(1+(AC$5*$AU41^(-2*AC$4))*$D41+(AC$6*$AU41^(-4*AC$4-2))*$D41^2)) -> 1.000000001 | U41: =IF($A41="","",(1+(AD$5*$AU41^(-2*AD$4))*$D41+(AD$6*$AU41^(-4*AD$4-2))*$D41^2)) -> 1.187037966e+11 | V41: =IF($A41="","",(1+(AE$5*$AU41^(-2*AE$4))*$D41+(AE$6*$AU41^(-4*AE$4-2))*$D41^2)) -> 5.537632498e+10 | W41: =IF($A41="","",((V$5*$AU41^(-2*V$4))*$D41+2*(V$6*$AU41^(-4*V$4-2))*$D41^2+3*(V$7*$AU41^(-6*V$4-6))*$D41^3+4*(V$8*$AU41^(-8*V$4-12))*$D41^4+5*(V$9*$AU41^(-10*V$4-20))*$D41^5+6*(V$10*$AU41^(-12*V$4-30))*$D41^6)/M41) -> 2.605041998 | X41: 1.248858585 | Y41: 1.937685032 | Z41: 0.9855714233 | AA41: 0.9999996147 | AB41: 1.999628145 | AC41: 1.195269667e-10 | AD41: =IF($A41="","",((AC$5*$AU41^(-2*AC$4))*$D41+2*(AC$6*$AU41^(-4*AC$4-2))*$D41^2)/T41) -> 1.195266472e-09 | AE41: =IF($A41="","",((AD$5*$AU41^(-2*AD$4))*$D41+2*(AD$6*$AU41^(-4*AD$4-2))*$D41^2)/U41) -> 1 | AF41: =IF($A41="","",((AE$5*$AU41^(-2*AE$4))*$D41+2*(AE$6*$AU41^(-4*AE$4-2))*$D41^2)/V41) -> 1.999628145 | AG41: =IF(B$11=0,"",IF($A41="","",0.5*B$11*$L41*(1*V$4^2+(V$5*$AU41^(-2*V$4))*$D41*(V$4+1)^2+(V$6*$AU41^(-4*V$4-2))*$D41^2*(V$4+2)^2+(V$7*$AU41^(-6*V$4-6))*$D41^3*(V$4+3)^2+(V$8*$AU41^(-8*V$4-12))*$D41^4*(V$4+4)^2+(V$9*$AU41^(-10*V$4-20))*$D41^5*(V$4+5)^2+(V$10*$AU41^(-12*V$4-30))*$D41^6*(V$4+6)^2)/M41)) -> 0.005107569285 | AH41: 0.00435059225 | AN41: =IF(B$18=0,"",IF($A41="","",0.5*B$18*$K41*(1*AC$4^2+(AC$5*$AU41^(-2*AC$4))*$D41*(AC$4+1)^2+(AC$6*$AU41^(-4*AC$4-2))*$D41^2*(AC$4+2)^2)/T41)) ->  | AO41: =IF(C$18=0,"",IF($A41="","",0.5*C$18*$K41*(1*AD$4^2+(AD$5*$AU41^(-2*AD$4))*$D41*(AD$4+1)^2+(AD$6*$AU41^(-4*AD$4-2))*$D41^2*(AD$4+2)^2)/U41)) -> 0 | AP41: =IF(D$18=0,"",IF($A41="","",0.5*D$18*$K41*(1*AE$4^2+(AE$5*$AU41^(-2*AE$4))*$D41*(AE$4+1)^2+(AE$6*$AU41^(-4*AE$4-2))*$D41^2*(AE$4+2)^2)/V41)) ->  | AQ41: =IF(A41="","",SUM(AG41:AP41)+0.5*(D41+ $AC$9/AU41^2/D41)+$L41*$S$16+$K41*$T$16) -> 0.01035249386 | AR41: =IF(A41="","",AQ41+$L41*S$14+$K41*$T$14) -> 0.01035249386 | AT41: 0.01086222545 | AU41: =IF(A41="","",10^(-$P$16*($AT41^0.5/(1+$AT41^0.5)-$P$17*$AT41))) -> 0.8987040389 | AW41: =IF(C41="","",C41-B41) -> 0.007864429846
A42: 0.8645206725 | B42: 3.014483316 | C42: 3.021239758 | D42: 0.001083990496 | E42: =IF(A42="","",IF(A43="",(B42-B41)/(A42-A41),((B43-B42)/(A43-A42)+(B42-B41)/(A42-A41))/2)) -> 0.1738024562 | F42: =IF(A42="","",IF(C42="","0,00001",(IF(ABS(C42-B42)<0.00001,0.00001,C42-B42)))) -> 0.006756441714 | G42: =IF(A42="","",IF(AX42="X",0,IF(ABS(E42)<0.00001,(0.00001^M$20)*(ABS(H42)^I$20)*ABS(F42)^K$20,((ABS(E42))^M$20)*((ABS(H42))^I$20)*ABS(F42)^K$20))) -> 4.004175393e-08 | H42: =IF(A42="","",I42-J42) -> -0.0002001043576 | I42: =IF(A42="","",L42*I$18+K42*E$19) -> 0.1054436566 | J42: =IF(A42="","",D42 -$AC$9/AU42^2/D42+L42*(W42*$B$11+X42*$C$11+Y42*$D$11+Z42*$E$11+AA42*$F$11+AB42*$G$11+AC42*$H$11)+K42*(AD42*$B$18+AE42*$C$18+AF42*$D$18)) -> 0.1056437609 | K42: =IF(A42="","",A42/(A42+$G$16)) -> 0.04143496446 | L42: =IF(A42="","",$E$16/(A42+$G$16)) -> 0.9585650355 | M42: 117821.9168 | N42: 6432289.873 | O42: 5026180248 | P42: 50.3182768 | Q42: 1901190.796 | R42: 2.845914877e+10 | S42: 1 | T42: =IF($A42="","",(1+(AC$5*$AU42^(-2*AC$4))*$D42+(AC$6*$AU42^(-4*AC$4-2))*$D42^2)) -> 1.000000001 | U42: 8.570534229e+10 | V42: 2.845914877e+10 | W42: 2.51900129 | X42: 1.195284338 | Y42: 1.915714619 | Z42: 0.9801265054 | AA42: 0.999999474 | AB42: 1.999485046 | AC42: 8.629961081e-11 | AD42: =IF($A42="","",((AC$5*$AU42^(-2*AC$4))*$D42+2*(AC$6*$AU42^(-4*AC$4-2))*$D42^2)/T42) -> 8.629944198e-10 | AE42: 1 | AF42: 1.999485046 | AG42: 0.006039850997 | AH42: 0.003272540873 | AN42: =IF(B$18=0,"",IF($A42="","",0.5*B$18*$K42*(1*AC$4^2+(AC$5*$AU42^(-2*AC$4))*$D42*(AC$4+1)^2+(AC$6*$AU42^(-4*AC$4-2))*$D42^2*(AC$4+2)^2)/T42)) ->  | AO42: 2.417291813e-14 | AQ42: =IF(A42="","",SUM(AG42:AP42)+0.5*(D42+ $AC$9/AU42^2/D42)+$L42*$S$16+$K42*$T$16) -> 0.0120741225 | AR42: =IF(A42="","",AQ42+$L42*S$14+$K42*$T$14) -> 0.0120741225 | AT42: 0.01263804487 | AU42: =IF(A42="","",10^(-$P$16*($AT42^0.5/(1+$AT42^0.5)-$P$17*$AT42))) -> 0.8922595594 | AW42: =IF(C42="","",C42-B42) -> 0.006756441714
A43: 1.67308486 | B43: 3.166166518 | C43: 3.15830183 | D43: 0.0007692294441 | E43: =IF(A43="","",IF(A44="",(B43-B42)/(A43-A42),((B44-B43)/(A44-A43)+(B43-B42)/(A43-A42))/2)) -> 0.1823374303 | F43: =IF(A43="","",IF(C43="","0,00001",(IF(ABS(C43-B43)<0.00001,0.00001,C43-B43)))) -> -0.007864687674 | G43: 4.242510998e-08 | H43: 0.0002059735662 | I43: 0.1015098389 | J43: 0.1013038653 | K43: 0.07719643375 | L43: 0.9228035663 | M43: 47177.11739 | N43: 4252224.899 | O43: 2525628671 | P43: 35.56297081 | Q43: 1349137.523 | R43: 1.380690885e+10 | S43: 1 | T43: 1.000000001 | U43: 6.006355931e+10 | V43: 1.380690885e+10 | W43: 2.419539988 | X43: 1.146909555 | Y43: 1.883909486 | Z43: 0.9718808644 | AA43: 0.9999992588 | AB43: 1.999265368 | AC43: 6.047999319e-11 | AD43: 6.047990928e-10 | AE43: 1 | AF43: 1.999265368 | AG43: 0.007150936546 | AH43: 0.002370042243 | AO43: 6.426228701e-14 | AQ43: 0.01390788116 | AR43: 0.01390788116 | AT43: 0.01432573567 | AU43: 0.8867017845 | AW43: -0.007864687674
A44: 2.41704896 | B44: 3.297907022 | C44: 3.295053959 | D44: 0.0005716730254 | E44: 0.1899917265 | F44: -0.002853062951 | G44: 4.341737326e-09 | H44: 6.589186085e-05 | I44: 0.09814098885 | J44: 0.09807509699 | K44: 0.1078219066 | L44: 0.8921780934 | M44: 21737.88221 | N44: 3001514.424 | O44: 1397968481 | P44: 26.35351954 | Q44: 1002647.173 | R44: 7335033589 | S44: 1 | T44: 1 | U44: 4.405936726e+10 | V44: 7335033589 | W44: 2.33120025 | X44: 1.113460383 | Y44: 1.848144182 | Z44: 0.9620544042 | AA44: 0.9999990026 | AB44: 1.998998786 | AC44: 4.436482299e-11 | AD44: 4.436477726e-10 | AE44: 1 | AF44: 1.998998786 | AG44: 0.008142655978 | AH44: 0.00176967592 | AO44: 1.223597992e-13 | AQ44: 0.01572700146 | AR44: 0.01572700146 | AT44: 0.01624094109 | AU44: 0.8809378656 | AW44: -0.002853062951
A45: 3.093775682 | B45: 3.43521781 | C45: 3.431500912 | D45: 0.0004193109619 | E45: 0.1928306863 | F45: -0.003716898286 | G45: 5.673240734e-09 | H45: 7.53209183e-05 | I45: 0.09526512175 | J45: 0.09518980083 | K45: 0.1339657804 | L45: 0.8660342196 | M45: 10028.26398 | N45: 2108603.33 | O45: 766424167.5 | P45: 19.36657446 | Q45: 735422.3203 | R45: 3803195903 | S45: 1 | T45: 1 | U45: 3.191744832e+10 | V45: 3803195903 | W45: 2.240241594 | X45: 1.085815768 | Y45: 1.80182406 | Z45: 0.9483646423 | AA45: 0.9999986402 | AB45: 1.998618434 | AC45: 3.213871648e-11 | AD45: 3.213869219e-10 | AE45: 1 | AF45: 1.998618434 | AG45: 0.009244167764 | AH45: 0.001299278746 | AO45: 2.098629237e-13 | AQ45: 0.01758509239 | AR45: 0.01758509239 | AT45: 0.01822128729 | AU45: 0.8754794852 | AW45: -0.003716898286
A46: 3.707915117 | B46: 3.547456112 | C46: 3.567845821 | D46: 0.0003256112723 | E46: 0.2436059604 | F46: 0.02038970986 | G46: 1.354768292e-07 | H46: -0.0003680717719 | I46: 0.09279733545 | J46: 0.09316540722 | K46: 0.1563998816 | L46: 0.8436001184 | M46: 5425.778928 | N46: 1588349.078 | O46: 473846405.3 | P46: 15.10549547 | Q46: 571084.2617 | R46: 2219459594 | S46: 1 | T46: 1 | U46: 2.451254171e+10 | V46: 2219459594 | W46: 2.16725858 | X46: 1.067941917 | Y46: 1.756533239 | Z46: 0.9337989275 | AA46: 0.9999982489 | AB46: 1.998201832 | AC46: 2.468247062e-11 | AD46: 2.468245613e-10 | AE46: 1 | AF46: 1.998201832 | AG46: 0.01016331072 | AH46: 0.001002023409 | AO46: 3.190201233e-13 | AQ46: 0.01927837164 | AR46: 0.01927837164 | AT46: 0.02011808513 | AU46: 0.8706517097 | AW46: 0.02038970986
A47: 4.27106019 | B47: 3.718908381 | C47: 3.704613209 | D47: 0.0002203769497 | E47: 0.2749594583 | F47: -0.01429517227 | G47: 5.261043517e-08 | H47: 0.0002293696474 | I47: 0.09064422134 | J47: 0.09041485169 | K47: 0.1759733673 | L47: 0.8240266327 | M47: 2274.356653 | N47: 1042154.636 | O47: 236626294.2 | P47: 10.46274355 | Q47: 386515.8351 | R47: 990945262.3 | S47: 1 | T47: 1 | U47: 1.644436358e+10 | V47: 990945262.3 | W47: 2.060033709 | X47: 1.047015625 | Y47: 1.675805993 | Z47: 0.9044227745 | AA47: 0.9999974128 | AB47: 1.99732195 | AC47: 1.655835777e-11 | AD47: 1.655835119e-10 | AE47: 0.9999999999 | AF47: 1.99732195 | AG47: 0.0118145438 | AH47: 0.0006773241714 | AO47: 5.350567884e-13 | AQ47: 0.02152794068 | AR47: 0.02152794068 | AT47: 0.02173009863 | AU47: 0.8668130707 | AW47: -0.01429517227
A48: 4.799745396 | B48: 3.848681582 | C48: 3.840468884 | D48: 0.0001644851915 | E48: 0.2514025079 | F48: -0.008212698561 | G48: 1.500349483e-08 | H48: 0.0001224887539 | I48: 0.08871185235 | J48: 0.0885893636 | K48: 0.1935401077 | L48: 0.8064598923 | M48: 1184.641338 | N48: 758954.0751 | O48: 141616702.4 | P48: 7.974451059 | Q48: 288488.3702 | R48: 532087015.6 | S48: 1 | T48: 1 | U48: 1.212020683e+10 | V48: 532087015.6 | W48: 1.977966111 | X48: 1.035514461 | Y48: 1.605743561 | Z48: 0.8745995188 | AA48: 0.9999965337 | AB48: 1.996369963 | AC48: 1.220422411e-11 | AD48: 1.220422049e-10 | AE48: 0.9999999999 | AF48: 1.996369963 | AG48: 0.01319757688 | AH48: 0.0005007438374 | AO48: 7.984191625e-13 | AQ48: 0.02358207246 | AR48: 0.02358207246 | AT48: 0.02418272724 | AU48: 0.8613737113 | AW48: -0.008212698561
A49: 5.312225708 | B49: 3.980563771 | C49: 3.976716518 | D49: 0.0001221119619 | E49: 0.2439103292 | F49: -0.003847252628 | G49: 3.028672755e-09 | H49: 5.503337855e-05 | I49: 0.08691576068 | J49: 0.0868607273 | K49: 0.2098679812 | L49: 0.7901320188 | M49: 629.781174 | N49: 551859.0403 | O49: 86166537.74 | P49: 6.118164603 | Q49: 214170.7891 | R49: 283618992.9 | S49: 1 | T49: 1 | U49: 8894350690 | V49: 283618992.9 | W49: 1.893177927 | X49: 1.026608153 | Y49: 1.529963409 | Z49: 0.836552289 | AA49: 0.9999953308 | AB49: 1.995059902 | AC49: 8.95600557e-12 | AD49: 8.9560036e-11 | AE49: 0.9999999999 | AF49: 1.995059902 | AG49: 0.01478409265 | AH49: 0.0003675944285 | AO49: 1.179782474e-12 | AQ49: 0.02582812503 | AR49: 0.02582812503 | AT49: 0.02660924307 | AU49: 0.8564026845 | AW49: -0.003847252628
A50: 5.824610462 | B50: 4.098658041 | C50: 4.113727093 | D50: 9.352845091e-05 | E50: 0.254672072 | F50: 0.01506905174 | G50: 4.496632917e-08 | H50: -0.0002120526566 | I50: 0.08519126959 | J50: 0.08540332225 | K50: 0.2255449495 | L50: 0.7744550505 | M50: 365.8889878 | N50: 415662.4237 | O50: 56334755 | P50: 4.879182186 | Q50: 164038.7264 | R50: 161477592.3 | S50: 1 | T50: 1 | U50: 6741246019 | V50: 161477592.3 | W50: 1.814310972 | X50: 1.020506531 | Y50: 1.460787153 | Z50: 0.7950476203 | AA50: 0.9999939039 | AB50: 1.993492335 | AC50: 6.787975372e-12 | AD50: 6.787974229e-11 | AE50: 0.9999999999 | AF50: 1.993492335 | AG50: 0.0163432149 | AH50: 0.0002777062794 | AO50: 1.672872855e-12 | AQ50: 0.02806449545 | AR50: 0.02806449545 | AT50: 0.02896120913 | AU50: 0.8519188303 | AW50: 0.01506905174
A51: 6.347111865 | B51: 4.244365119 | C51: 4.249473095 | D51: 6.732508334e-05 | E51: 0.2958871074 | F51: 0.005107975918 | G51: 5.157663392e-09 | H51: -7.181687401e-05 | I51: 0.08350180328 | J51: 0.08357362015 | K51: 0.2409035153 | L51: 0.7590964847 | M51: 192.8754322 | N51: 293488.6291 | O51: 34197040.29 | P51: 3.754817684 | Q51: 118081.151 | R51: 80554378.46 | S51: 1 | T51: 1 | U51: 4787324456 | V51: 80554378.46 | W51: 1.711826762 | X51: 1.014844953 | Y51: 1.377670561 | Z51: 0.7336754847 | AA51: 0.9999915312 | AB51: 1.990860533 | AC51: 4.820509252e-12 | AD51: 4.820508667e-11 | AE51: 0.9999999998 | AF51: 1.990860533 | AG51: 0.01856698311 | AH51: 0.0001970926819 | AO51: 2.516055862e-12 | AQ51: 0.03096010551 | AR51: 0.03096010551 | AT51: 0.03222121782 | AU51: 0.8461706964 | AW51: 0.005107975918
A52: 6.88159028 | B52: 4.411608622 | C52: 4.386980534 | D52: 4.604020027e-05 | E52: 0.2582634753 | F52: -0.02462808853 | G52: 1.189245973e-07 | H52: 0.0003448544581 | I52: 0.08184156254 | J52: 0.08149670808 | K52: 0.2559963978 | L52: 0.7440036022 | M52: 98.61226845 | N52: 197743.0189 | O52: 20119805.3 | P52: 2.864857071 | Q52: 80750.00955 | R52: 36700925.6 | S52: 1 | T52: 1 | U52: 3240750165 | V52: 36700925.6 | W52: 1.590159085 | X52: 1.010196855 | Y52: 1.291189428 | Z52: 0.6509424466 | AA52: 0.9999876161 | AB52: 1.986557543 | AC52: 3.263214271e-12 | AD52: 3.263214001e-11 | AE52: 0.9999999997 | AF52: 1.986557543 | AG52: 0.02136954609 | AH52: 0.0001327600015 | AO52: 3.949647224e-12 | AQ52: 0.03444000736 | AR52: 0.03444000736 | AT52: 0.0348434109 | AU52: 0.841887718 | AW52: -0.02462808853
A53: 7.4217405 | B53: 4.521592502 | C53: 4.524386883 | D53: 3.591870886e-05 | E53: 0.2082217003 | F53: 0.002794380994 | G53: 1.472320693e-09 | H53: -3.837083127e-05 | I53: 0.08022945706 | J53: 0.08026782789 | K53: 0.2706516933 | L53: 0.7293483067 | M53: 64.47269066 | N53: 152396.6466 | O53: 14366745.37 | P53: 2.440437036 | Q53: 62998.12313 | R53: 21764887.86 | S53: 1 | T53: 1 | U53: 2503192676 | V53: 21764887.86 | W53: 1.506379118 | X53: 1.007970438 | Y53: 1.240881585 | Z53: 0.5902373283 | AA53: 0.9999841265 | AB53: 1.982665405 | AC53: 2.520544159e-12 | AD53: 2.520543996e-11 | AE53: 0.9999999996 | AF53: 1.982665405 | AG53: 0.02319825829 | AH53: 0.0001017951426 | AO53: 5.406129857e-12 | AQ53: 0.03696319614 | AR53: 0.03696319614 | AT53: 0.03758181991 | AU53: 0.8376966547 | AW53: 0.002794380994
A54: 7.956382305 | B54: 4.635378282 | C54: 4.661040783 | D54: 2.778308763e-05 | E54: 0.2753124892 | F54: 0.02566250126 | G54: 1.154807656e-07 | H54: -0.0003398246101 | I54: 0.07869513759 | J54: 0.0790349622 | K54: 0.2845998534 | L54: 0.7154001466 | M54: 42.53362044 | N54: 116455.3759 | O54: 10270426.96 | P54: 2.1027141 | Q54: 48729.21568 | R54: 12691184.38 | S54: 1 | T54: 1 | U54: 1916297479 | V54: 12691184.38 | W54: 1.419263039 | X54: 1.006172771 | Y54: 1.195442748 | Z54: 0.5244241717 | AA54: 0.9999794784 | AB54: 1.977475963 | AC54: 1.929580724e-12 | AD54: 1.929580628e-11 | AE54: 0.9999999995 | AF54: 1.977475963 | AG54: 0.02513359898 | AH54: 7.741608436e-05 | AO54: 7.425774353e-12 | AQ54: 0.03956534459 | AR54: 0.03956534459 | AT54: 0.04059653766 | AU54: 0.8333764228 | AW54: 0.02566250126
A55: 8.474586644 | B55: 4.810427078 | C55: 4.794935703 | D55: 1.869000292e-05 | E55: 0.2912102915 | F55: -0.01549137504 | G55: 3.733646121e-08 | H55: 0.0001932264506 | I55: 0.07726297767 | J55: 0.07706975122 | K55: 0.2976193035 | L55: 0.7023806965 | M55: 23.68948709 | N55: 77153.47193 | O55: 6286290.963 | P55: 1.732042801 | Q55: 32781.0317 | R55: 5582375.891 | S55: 1 | T55: 1 | U55: 1272144588 | V55: 5582375.891 | W55: 1.288908685 | X55: 1.004153721 | Y55: 1.138868926 | Z55: 0.422647062 | AA55: 0.9999694946 | AB55: 1.966453351 | AC55: 1.280962719e-12 | AD55: 1.280962676e-11 | AE55: 0.9999999992 | AF55: 1.966453351 | AG55: 0.02834258469 | AH55: 5.132242593e-05 | AO55: 1.169754234e-11 | AQ55: 0.04339265267 | AR55: 0.04339265267 | AT55: 0.04474331923 | AU55: 0.8278726828 | AW55: -0.01549137504
A56: 8.970251266 | B56: 4.931677449 | C56: 4.933176517 | D56: 1.417882151e-05 | E56: 0.26278912 | F56: 0.001499068646 | G56: 3.096736629e-10 | H56: -1.759754707e-05 | I56: 0.0759410518 | J56: 0.07595864934 | K56: 0.3096366401 | L56: 0.6903633599 | M56: 16.45422649 | N56: 58128.45916 | O56: 4552140.26 | P56: 1.552083753 | Q56: 24868.95859 | R56: 3190928.111 | S56: 1 | T56: 1 | U56: 959411604.9 | V56: 3190928.111 | W56: 1.203436139 | X56: 1.003146941 | Y56: 1.108432195 | Z56: 0.3557048723 | AA56: 0.9999597892 | AB56: 1.955999363 | AC56: 9.660619549e-13 | AD56: 9.660619302e-12 | AE56: 0.999999999 | AF56: 1.955999363 | AG56: 0.03035299876 | AH56: 3.839584711e-05 | AO56: 1.613679877e-11 | AQ56: 0.04598689618 | AR56: 0.04598689618 | AT56: 0.04669868118 | AU56: 0.8254341179 | AW56: 0.001499068646
A57: 9.444256282 | B57: 5.064852212 | C57: 5.065649509 | D57: 1.050160475e-05 | E57: 0.279645636 | F57: 0.0007972975317 | G57: 7.852823418e-11 | H57: -8.861615777e-06 | I57: 0.0747185234 | J57: 0.07472738502 | K57: 0.3207503763 | L57: 0.6792496237 | M57: =IF($A57="","",(1+(V$5*$AU57^(-2*V$4))*$D57+(V$6*$AU57^(-4*V$4-2))*$D57^2+(V$7*$AU57^(-6*V$4-6))*$D57^3+(V$8*$AU57^(-8*V$4-12))*$D57^4+(V$9*$AU57^(-10*V$4-20))*$D57^5+(V$10*$AU57^(-12*V$4-30))*$D57^6)) -> 11.15497358 | N57: 42468.79798 | O57: 3190241.504 | P57: 1.403682486 | Q57: 18419.55981 | R57: 1711492.631 | S57: 1 | T57: 1 | U57: 701519759.6 | V57: 1711492.631 | W57: =IF($A57="","",((V$5*$AU57^(-2*V$4))*$D57+2*(V$6*$AU57^(-4*V$4-2))*$D57^2+3*(V$7*$AU57^(-6*V$4-6))*$D57^3+4*(V$8*$AU57^(-8*V$4-12))*$D57^4+5*(V$9*$AU57^(-10*V$4-20))*$D57^5+6*(V$10*$AU57^(-12*V$4-30))*$D57^6)/M57) -> 1.109478725 | X57: 1.0023219 | Y57: 1.081665538 | Z57: 0.2875881761 | AA57: 0.9999457099 | AB57: 1.940781462 | AC57: 7.063824761e-13 | AD57: 7.063824627e-12 | AE57: 0.9999999986 | AF57: 1.940781462 | AG57: =IF(B$11=0,"",IF($A57="","",0.5*B$11*$L57*(1*V$4^2+(V$5*$AU57^(-2*V$4))*$D57*(V$4+1)^2+(V$6*$AU57^(-4*V$4-2))*$D57^2*(V$4+2)^2+(V$7*$AU57^(-6*V$4-6))*$D57^3*(V$4+3)^2+(V$8*$AU57^(-8*V$4-12))*$D57^4*(V$4+4)^2+(V$9*$AU57^(-10*V$4-20))*$D57^5*(V$4+5)^2+(V$10*$AU57^(-12*V$4-30))*$D57^6*(V$4+6)^2)/M57)) -> 0.03272217846 | AH57: 2.813122765e-05 | AO57: 2.286110775e-11 | AQ57: 0.04889794382 | AR57: 0.04889794382 | AT57: 0.05120770367 | AU57: 0.820147791 | AW57: 0.0007972975317
A58: 9.90378494 | B58: 5.192755043 | C58: 5.204633236 | D58: 7.838708987e-06 | E58: 0.3166121095 | F58: 0.0118781934 | G58: 1.614254638e-08 | H58: -0.000127053321 | I58: 0.07357033086 | J58: 0.07369738418 | K58: 0.3311883415 | L58: 0.6688116585 | M58: 8.062959054 | N58: 31551.54279 | O58: 2312315.335 | P58: 1.30008575 | Q58: 13749.15885 | R58: 961150.9862 | S58: 1 | T58: 1 | U58: 521489266.8 | V58: 961150.9862 | W58: 1.025627305 | X58: 1.001720044 | Y58: 1.06200711 | Z58: 0.2308199673 | AA58: 0.9999272683 | AB58: 1.921933238 | AC58: 5.251040649e-13 | AD58: 5.251040575e-12 | AE58: 0.9999999981 | AF58: 1.921933238 | AG58: 0.03488313924 | AH58: 2.085239687e-05 | AO58: 3.175408994e-11 | AQ58: 0.05157058132 | AR58: 0.05157058132 | AT58: 0.05272494644 | AU58: 0.818465572 | AW58: 0.0118781934
A59: 10.35947646 | B59: 5.354475129 | C59: 5.338812351 | D59: 5.42819096e-06 | E59: 0.3066667539 | F59: -0.01566277807 | G59: 2.730160598e-08 | H59: 0.0001652319763 | I59: 0.07246605041 | J59: 0.07230081844 | K59: 0.3412271116 | L59: 0.6587728884 | M59: 5.489312167 | N59: 21624.30465 | O59: 1539530.202 | P59: 1.205775954 | Q59: 9521.398285 | R59: 463549.3743 | S59: 1 | T59: 1 | U59: 357597624.5 | V59: 463549.3743 | W59: 0.9177516898 | X59: 1.001167445 | Y59: 1.043364469 | Z59: 0.1706585319 | AA59: 0.9998949734 | AB59: 1.890085452 | AC59: 3.600763757e-13 | AD59: 3.600763722e-12 | AE59: 0.9999999972 | AF59: 1.890085452 | AG59: 0.03797230977 | AH59: 1.451038101e-05 | AO59: 4.771104283e-11 | AQ59: 0.05515259366 | AR59: 0.05515259366 | AT59: 0.05650982364 | AU59: 0.8144599874 | AW59: -0.01566277807
A60: 10.82138754 | B60: 5.473853331 | C60: 5.475665569 | D60: 4.137661188e-06 | E60: 0.2776615279 | F60: 0.001812238614 | G60: 3.67271663e-10 | H60: -1.916433309e-05 | I60: 0.07138002301 | J60: 0.07139918734 | K60: 0.3510999473 | L60: 0.6489000527 | M60: 4.25134252 | N60: 16366.9235 | O60: 1145452.034 | P60: 1.155789582 | Q60: 7257.963281 | R60: 273199.5805 | S60: 1 | T60: 1 | U60: 270731266.3 | V60: 273199.5805 | W60: 0.8370686606 | X60: 1.000864294 | Y60: 1.033179664 | Z60: 0.1347906096 | AA60: 0.9998622203 | AB60: 1.859762376 | AC60: 2.72607887e-13 | AD60: 2.72607885e-12 | AE60: 0.9999999963 | AF60: 1.859762376 | AG60: 0.04022314492 | AH60: 1.119094513e-05 | AO60: 6.48428887e-11 | AQ60: 0.0578915821 | AR60: 0.0578915821 | AT60: 0.05927446101 | AU60: 0.8116928935 | AW60: 0.001812238614
A61: 11.2947924 | B61: 5.614397261 | C61: 5.611756802 | D61: 3.005202831e-06 | E61: 0.2837691018 | F61: -0.002640459035 | G61: 7.926144037e-10 | H61: 2.815340838e-05 | I61: 0.07030023795 | J61: 0.07027208454 | K61: 0.3609160353 | L61: 0.6390839647 | M61: 3.245790643 | N61: 11793.98582 | O61: 811712.3841 | P61: 1.112287572 | Q61: 5271.766649 | R61: 148497.0871 | S61: 1 | T61: 1 | U61: 195133435.9 | V61: 148497.0871 | W61: 0.7398822431 | X61: 1.000587483 | Y61: 1.024137759 | Z61: 0.1009519251 | AA61: 0.9998103103 | AB61: 1.815454546 | AC61: 1.964860365e-13 | AD61: 1.964860354e-12 | AE61: 0.9999999949 | AF61: 1.815454546 | AG61: 0.0431053225 | AH61: 8.458318642e-06 | AO61: 9.247929079e-11 | AQ61: 0.06125975046 | AR61: 0.06125975046 | AT61: 0.06252967624 | AU61: 0.8085910875 | AW61: -0.002640459035
A62: 11.77711617 | B62: 5.74494266 | C62: 5.748367786 | D62: 2.232712489e-06 | E62: 0.2707611714 | F62: 0.003425126434 | G62: 1.320985884e-09 | H62: -3.634536949e-05 | I62: 0.06923319725 | J62: 0.06926954262 | K62: 0.370616267 | L62: 0.629383733 | M62: 2.603925616 | N62: 8700.592351 | O62: 590998.5961 | P62: 1.082847971 | Q62: 3916.910901 | R62: 85545.03752 | S62: 1 | T62: 1 | U62: 143973274.2 | V62: 85545.03752 | W62: 0.6478042241 | X62: 1.0003846 | Y62: 1.017921955 | Z62: 0.07650932864 | AA62: 0.9997446968 | AB62: 1.765264167 | AC62: 1.449712489e-13 | AD62: 1.449712483e-12 | AE62: 0.9999999931 | AF62: 1.765264167 | AG62: 0.0458176511 | AH62: 6.761006078e-06 | AO62: 1.287100919e-10 | AQ62: 0.06445351042 | AR62: 0.06445351042 | AT62: 0.06561476038 | AU62: 0.8057949444 | AW62: 0.003425126434
A63: 12.25745539 | B63: 5.875048819 | C63: 5.884657383 | D63: 1.660298231e-06 | E63: 0.3068458551 | F63: 0.009608564437 | G63: 9.790887828e-09 | H63: -9.894891525e-05 | I63: 0.06820225977 | J63: 0.06830120868 | K63: 0.3799882924 | L63: 0.6200117076 | M63: 2.152827185 | N63: 6426.066877 | O63: 431581.6288 | P63: 1.061195045 | Q63: 2912.964695 | R63: 50210.77005 | S63: 1 | T63: 1 | U63: 106344800.7 | V63: 50210.77005 | W63: 0.5560657927 | X63: 1.000215882 | Y63: 1.013299155 | Z63: 0.05766616154 | AA63: 0.9996567071 | AB63: 1.706567316 | AC63: 1.07081947e-13 | AD63: 1.070819467e-12 | AE63: 0.9999999906 | AF63: 1.706567316 | AG63: 0.04851459288 | AH63: 5.713476351e-06 | AO63: 1.786586132e-10 | AQ63: 0.06761627407 | AR63: 0.06761627407 | AT63: 0.06874229928 | AU63: 0.8030915866 | AW63: 0.009608564437
A64: 12.71934457 | B64: 6.033397653 | C64: 6.019900799 | D64: 1.156983184e-06 | E64: 0.2923775925 | F64: -0.0134968541 | G64: 1.674640152e-08 | H64: 0.0001294078882 | I64: 0.06723946892 | J64: 0.06711006103 | K64: 0.3887408117 | L64: 0.6112591883 | M64: 1.777537482 | N64: 4447.211545 | O64: 295435.6244 | P64: 1.042352363 | Q64: 2030.210248 | R64: 27004.18807 | S64: 1 | T64: 1 | U64: 73599972.69 | V64: 27004.18807 | W64: 0.4491042003 | X64: 1.000034031 | Y64: 1.009240255 | Z64: 0.04063152212 | AA64: 0.9995074402 | AB64: 1.624955419 | AC64: 7.411014249e-14 | AD64: 7.411014234e-13 | AE64: 0.9999999864 | AF64: 1.624955419 | AG64: 0.05177925582 | AH64: 5.169429807e-06 | AO64: 2.640903234e-10 | AQ64: 0.07131641815 | AR64: 0.07131641815 | AT64: 0.07207968971 | AU64: 0.8003414323 | AW64: -0.0134968541
A65: 13.14565363 | B65: 6.136533136 | C65: 6.156167507 | D65: 9.145988562e-07 | E65: 0.3235155809 | F65: 0.01963437162 | G65: 2.932515053e-08 | H65: -0.0001712458774 | I65: 0.06637465583 | J65: 0.0665459017 | K65: 0.3966026369 | L65: 0.6033973631 | M65: 1.602374917 | N65: 3498.775964 | O65: 230862.5603 | P65: 1.033319853 | Q65: 1605.097101 | R65: 18325.51085 | S65: 1 | T65: 1 | U65: 57903268.92 | V65: 18325.51085 | W65: 0.3838283585 | X65: 0.9999188385 | Y65: 1.007282271 | Z65: 0.03224543956 | AA65: 0.9993769847 | AB65: 1.567258099 | AC65: 5.830463431e-14 | AD65: 5.830463421e-13 | AE65: 0.9999999827 | AF65: 1.567258099 | AG65: 0.05351751503 | AH65: 5.173787491e-06 | AO65: 3.424699885e-10 | AQ65: 0.07344643993 | AR65: 0.07344643993 | AT65: 0.07449885341 | AU65: 0.7984288305 | AW65: 0.01963437162
A66: 13.5232125 | B66: 6.289483973 | C66: 6.287696362 | D66: 6.456830593e-07 | E66: 0.4328057641 | F66: -0.001787611874 | G66: 1.791880007e-10 | H66: 1.338611223e-05 | I66: 0.06562710396 | J66: 0.06561371785 | K66: 0.4033984661 | L66: 0.5966015339 | M66: 1.412499379 | N66: 2450.488665 | O66: 160042.5467 | P66: 1.023335261 | Q66: 1133.450928 | R66: 10567.61534 | S66: 1 | T66: 1 | U66: 40552036.76 | V66: 10567.61534 | W66: 0.2963254383 | X66: 0.9997363887 | Y66: 1.005108016 | Z66: 0.02280314361 | AA66: 0.9991177386 | AB66: 1.478581307 | AC66: 4.083312909e-14 | AD66: 4.083312904e-13 | AE66: 0.9999999753 | AF66: 1.478581307 | AG66: 0.05612308152 | AH66: 5.763061432e-06 | AO66: 4.973837301e-10 | AQ66: 0.07639120734 | AR66: 0.07639120734 | AT66: 0.0787272277 | AU66: 0.7952371031 | AW66: -0.001787611874
A67: 13.84523874 | B67: 6.437779284 | C67: 6.425095081 | D67: 4.591988589e-07 | E67: 0.4472401552 | F67: -0.0126842025 | G67: 6.24172723e-09 | H67: 7.900460258e-05 | I67: 0.0650026838 | J67: 0.0649236792 | K67: 0.4090749321 | L67: 0.5909250679 | M67: 1.290995606 | N67: 1740.743714 | O67: 113361.9014 | P67: 1.016574507 | Q67: 806.3799251 | R67: 6457.0473 | S67: 1 | T67: 1 | U67: 28803193.85 | V67: 6457.0473 | W67: 0.2277624071 | X67: 0.9995282651 | Y67: 1.003629106 | Z67: 0.0163042722 | AA67: 0.9987598898 | AB67: 1.394563309 | AC67: 2.900284707e-14 | AD67: 2.900284704e-13 | AE67: 0.9999999653 | AF67: 1.394563309 | AG67: 0.05809233527 | AH67: 6.995911507e-06 | AO67: 7.101207843e-10 | AQ67: 0.07864455285 | AR67: 0.07864455285 | AT67: 0.07942134594 | AU67: 0.7947305647 | AW67: -0.0126842025
A68: 14.11126965 | B68: 6.553229621 | C68: 6.559215069 | D68: 3.525641978e-07 | E68: 0.5205673592 | F68: 0.005985447414 | G68: 9.481079297e-10 | H68: -3.079136128e-05 | I68: 0.06449573336 | J68: 0.06452652472 | K68: 0.4136835068 | L68: 0.5863164932 | M68: 1.220759246 | N68: 1332.486679 | O68: 86413.94929 | P68: 1.012685353 | Q68: 619.3554722 | R68: 4470.261608 | S68: 1 | T68: 1 | U68: 22044617.54 | V68: 4470.261608 | W68: 0.1822845214 | X68: 0.9993283873 | Y68: 1.002775098 | Z68: 0.01252645032 | AA68: 0.9983854183 | AB68: 1.332693702 | AC68: 2.219742253e-14 | AD68: 2.219742252e-13 | AE68: 0.9999999546 | AF68: 1.332693702 | AG68: 0.05929216161 | AH68: 8.500810034e-06 | AO68: 9.382868769e-10 | AQ68: 0.08007555354 | AR68: 0.08007555354 | AT68: 0.08117306306 | AU68: 0.7934730307 | AW68: 0.005985447414
A69: 14.3255376 | B69: 6.683324836 | C69: 6.693045139 | D69: 2.616086794e-07 | E69: 0.7805045547 | F69: 0.009720303454 | G69: 1.605365119e-09 | H69: -4.006700787e-05 | I69: 0.06409313606 | J69: 0.06413320307 | K69: 0.4173434301 | L69: 0.5826565699 | M69: 1.162318697 | N69: 986.6520156 | O69: 63774.71396 | P69: 1.009390705 | Q69: 459.8303619 | R69: 3016.288297 | S69: 1 | T69: 1 | U69: 16319175.25 | V69: 3016.288297 | W69: 0.1404775676 | X69: 0.9990449755 | Y69: 1.00204872 | Z69: 0.009303339696 | AA69: 0.997825285 | AB69: 1.269423491 | AC69: 1.643229338e-14 | AD69: 1.643229337e-13 | AE69: 0.9999999387 | AF69: 1.269423491 | AG69: 0.06043520186 | AH69: 1.09198345e-05 | AO69: 1.278690325e-09 | AQ69: 0.08140340674 | AR69: 0.08140340674 | AT69: 0.08249486335 | AU69: 0.7925433306 | AW69: 0.009720303454
A70: 14.49494152 | B70: 6.844910381 | C70: 6.82644701 | D70: 1.804854904e-07 | E70: 0.9692769403 | F70: -0.0184633713 | G70: 3.417406238e-09 | H70: 5.845858567e-05 | I70: 0.06377837606 | J70: 0.06371991747 | K70: 0.4202048439 | L70: 0.5797951561 | M70: 1.111198879 | N70: 679.819784 | O70: 43818.7337 | P70: 1.006467508 | Q70: 317.5499824 | R70: 1899.944325 | S70: 1 | T70: 1 | U70: 11239240.96 | V70: 1899.944325 | W70: 0.1004791222 | X70: 0.9985693665 | Y70: 1.001399864 | Z70: 0.006425947673 | AA70: 0.9968508894 | AB70: 1.202254856 | AC70: 1.131714665e-14 | AD70: 1.131714665e-13 | AE70: 0.999999911 | AF70: 1.202254856 | AG70: 0.06158152523 | AH70: 1.531888558e-05 | AO70: 1.869364868e-09 | AQ70: 0.08269673197 | AR70: 0.08269673197 | AT70: 0.08348412488 | AU70: 0.7918580296 | AW70: -0.0184633713
A71: 14.62735111 | B71: 6.975294912 | C71: 6.959391117 | D71: 1.337581634e-07 | E71: 1.244214759 | F71: -0.01590379519 | G71: 1.556227665e-09 | H71: 3.944905151e-05 | I71: 0.06353449749 | J71: 0.06349504844 | K71: 0.4224218902 | L71: 0.5775781098 | M71: 1.082024077 | N71: 503.461607 | O71: 32384.01102 | P71: 1.004787292 | Q71: 235.5958348 | R71: 1330.913904 | S71: 1 | T71: 1 | U71: 8319360.246 | V71: 1330.913904 | W71: 0.07603489125 | X71: 0.9980436356 | Y71: 1.001022582 | Z71: 0.004764482596 | AA71: 0.9957554428 | AB71: 1.157664758 | AC71: 8.377026292e-15 | AD71: 8.37702629e-14 | AE71: 0.9999998798 | AF71: 1.157664758 | AG71: 0.06222571437 | AH71: 2.035754107e-05 | AO71: 2.538788306e-09 | AQ71: 0.0834564627 | AR71: 0.0834564627 | AT71: 0.08418257592 | AU71: 0.7913794902 | AW71: -0.01590379519
A72: 14.73049571 | B72: 7.130395869 | C72: 7.091979504 | D72: 9.361829379e-08 | E72: 1.645762087 | F72: -0.03841636506 | G72: 5.356810349e-09 | H72: 7.319023397e-05 | I72: 0.06334580912 | J72: 0.06327261889 | K72: 0.4241372145 | L72: 0.5758627855 | M72: 1.057245172 | N72: 352.4444124 | O72: 22629.43908 | P72: 1.003348479 | Q72: 165.1953001 | R72: 886.3115834 | S72: 1 | T72: 1 | U72: 5818990.062 | V72: 886.3115834 | W72: 0.05425989844 | X72: 0.9971835718 | Y72: 1.000692879 | Z72: 0.00333730381 | AA72: 0.993946559 | AB72: 1.115175949 | AC72: 5.859324368e-15 | AD72: 5.859324367e-14 | AE72: 0.9999998281 | AF72: 1.115175949 | AG72: 0.06282284775 | AH72: 2.87747057e-05 | AO72: 3.644422915e-09 | AQ72: 0.0841475215 | AR72: 0.0841475215 | AT72: 0.08456117548 | AU72: 0.7911219048 | AW72: -0.03841636506
A73: 14.81139319 | B73: 7.275024448 | C73: 7.223581791 | D73: 6.712948426e-08 | E73: 1.464066813 | F73: -0.05144265732 | G73: 5.948155578e-09 | H73: 7.712428657e-05 | I73: 0.0631986011 | J73: 0.06312147681 | K73: 0.4254754502 | L73: 0.5745245498 | M73: 1.040920777 | N73: 252.7933869 | O73: 16196.40211 | P73: 1.002399042 | Q73: 118.7370935 | R73: 613.8356702 | S73: 1 | T73: 1 | U73: 4169057.616 | V73: 613.8356702 | W73: 0.03937153594 | X73: 0.9960591691 | Y73: 1.000466437 | Z73: 0.002393300051 | AA73: 0.991578032 | AB73: 1.08449961 | AC73: 4.197955136e-15 | AD73: 4.197955136e-14 | AE73: 0.9999997601 | AF73: 1.08449961 | AG73: 0.06321058614 | AH73: 3.988214799e-05 | AO73: 5.102777287e-09 | AQ73: 0.08461309472 | AR73: 0.08461309472 | AT73: 0.08504886669 | AU73: 0.7907919526 | AW73: -0.05144265732
A74: 14.87616782 | B74: 7.348889091 | C74: 7.355135441 | D74: 5.66414436e-08 | E74: 1.188015881 | F74: 0.006246349391 | G74: 6.3792068e-11 | H74: -7.986993677e-06 | I74: 0.06308122392 | J74: 0.06308921091 | K74: 0.4265425003 | L74: 0.5734574997 | M74: 1.034478468 | N74: 213.3699235 | O74: 13654.19319 | P74: 1.002023427 | Q74: 100.3423235 | R74: 510.7021121 | S74: 1 | T74: 1 | U74: 3516313.816 | V74: 510.7021121 | W74: 0.03337182046 | X74: 0.9953259247 | Y74: 1.000372277 | Z74: 0.002019340838 | AA74: 0.9900341156 | AB74: 1.071655933 | AC74: 3.540686733e-15 | AD74: 3.540686732e-14 | AE74: 0.9999997156 | AF74: 1.071655933 | AG74: 0.06330794434 | AH74: 4.711198129e-05 | AO74: 6.065193873e-09 | AQ74: 0.0847708885 | AR74: 0.0847708885 | AT74: 0.0852804217 | AU74: 0.7906360179 | AW74: 0.006246349391
A75: 14.9301073 | B75: 7.415542038 | C75: 7.486657619 | D75: 4.859607531e-08 | E75: 2.149895279 | F75: 0.07111558186 | G75: 6.414850806e-09 | H75: -8.009276376e-05 | I75: 0.06298381317 | J75: 0.06306390593 | K75: 0.4274280399 | L75: 0.5725719601 | M75: 1.02952682 | N75: 183.1039865 | O75: 11701.22531 | P75: 1.001735061 | Q75: 86.23170896 | R75: 433.229808 | S75: 1 | T75: 1 | U75: 3015191.307 | V75: 433.229808 | W75: 0.02871133637 | X75: 0.9945494422 | Y75: 1.000296581 | Z75: 0.001732055699 | AA75: 0.9884033378 | AB75: 1.061462966 | AC75: 3.036090608e-15 | AD75: 3.036090608e-14 | AE75: 0.9999996683 | AF75: 1.061462966 | AG75: 0.06337677499 | AH75: 5.477560893e-05 | AO75: 7.087909131e-09 | AQ75: 0.08489154368 | AR75: 0.08489154368 | AT75: 0.08560548099 | AU75: 0.7904178983 | AW75: 0.07111558186
A76: 14.97784914 | B76: 7.561827418 | C76: 7.619427204 | D76: 3.470258487e-08 | E76: 3.239587743 | F76: 0.05759978623 | G76: 3.316020147e-09 | H76: -5.758489513e-05 | I76: 0.06289784553 | J76: 0.06295543042 | K76: 0.4282095528 | L76: 0.5717904472 | M76: 1.021065191 | N76: 131.0129801 | O76: 8351.709012 | P76: 1.001238749 | Q76: 61.86418697 | R76: 303.8846279 | S76: 1 | T76: 1 | U76: 2152700.149 | V76: 303.8846279 | W76: 0.02064670216 | X76: 0.9923748781 | Y76: 1.000153044 | Z76: 0.001237216463 | AA76: 0.983835559 | AB76: 1.043041108 | AC76: 2.167620947e-15 | AD76: 2.167620947e-14 | AE76: 0.9999995355 | AF76: 1.043041108 | AG76: 0.0635782101 | AH76: 7.637591027e-05 | AO76: 9.94587084e-09 | AQ76: 0.08515359643 | AR76: 0.08515359643 | AT76: 0.0857306268 | AU76: 0.7903341664 | AW76: 0.05759978623
A77: 15.0236293 | B77: 7.718170509 | C77: 7.753891468 | D77: 2.421327195e-08 | E77: 3.539433616 | F77: 0.03572095864 | G77: 1.199669005e-09 | H77: -3.463623832e-05 | I77: 0.06281563036 | J77: 0.0628502666 | K77: 0.4289569528 | L77: 0.5710430472 | M77: 1.014687438 | N77: 91.70011872 | O77: 5825.252476 | P77: 1.000864183 | Q77: 43.46718556 | R77: 209.2966209 | S77: 1 | T77: 1 | U77: 1501778.182 | V77: 209.2966209 | W77: 0.01448272012 | X77: 0.9891002502 | Y77: 1.000018638 | Z77: 0.0008634364008 | AA77: 0.9769941397 | AB77: 1.027956222 | AC77: 1.512187004e-15 | AD77: 1.512187004e-14 | AE77: 0.9999993341 | AF77: 1.027956222 | AG77: 0.06371494533 | AH77: 0.0001089200443 | AO77: 1.428163486e-08 | AQ77: 0.08536023016 | AR77: 0.08536023016 | AT77: 0.08582526272 | AU77: 0.7902709372 | AW77: 0.03572095864
A78: 15.07155717 | B78: 7.893767858 | C78: 7.890082836 | D78: 1.616214992e-08 | E78: 3.106684884 | F78: -0.003685021918 | G78: 1.49850658e-11 | H78: 3.871054869e-06 | I78: 0.06272978816 | J78: 0.0627259171 | K78: 0.4297373253 | L78: 0.5702626747 | M78: 1.009796141 | N78: 61.52944951 | O78: 3886.852817 | P78: 1.00057672 | Q78: 29.34647962 | R78: 138.4605519 | S78: 1 | T78: 1 | U78: 1002225.818 | V78: 138.4605519 | W78: 0.00970463175 | X78: 0.9837511793 | Y78: 0.9998697208 | Z78: 0.0005763877718 | AA78: 0.9659243625 | AB78: 1.014810556 | AC78: 1.009171908e-15 | AD78: 1.009171908e-14 | AE78: 0.9999990022 | AF78: 1.014810556 | AG78: 0.06379808153 | AH78: 0.0001620624541 | AO78: 2.143914663e-08 | AQ78: 0.08553557599 | AR78: 0.08553557599 | AT78: 0.08594252716 | AU78: 0.7901926957 | AW78: -0.003685021918
A79: 15.12589978 | B79: 8.032319015 | C79: 8.027442455 | D79: 1.174805662e-08 | E79: 2.536265994 | F79: -0.004876560168 | G79: 3.57226255e-11 | H79: 5.976840763e-06 | I79: 0.06263274011 | J79: 0.06262676327 | K79: 0.4306195677 | L79: 0.5693804323 | M79: 1.007118204 | N79: 44.99436769 | O79: 2825.008154 | P79: 1.000419176 | Q79: 21.60468745 | R79: 100.2960104 | S79: 1 | T79: 1 | U79: 728444.61 | V79: 100.2960104 | W79: 0.007069760036 | X79: 0.9777775676 | Y79: 0.9997383188 | Z79: 0.0004189999108 | AA79: 0.9537137483 | AB79: 1.006096637 | AC79: 7.334929399e-16 | AD79: 7.334929399e-15 | AE79: 0.9999986272 | AF79: 1.006096637 | AG79: 0.06379310679 | AH79: 0.0002212534353 | AO79: 2.955746818e-08 | AQ79: 0.08563396157 | AR79: 0.08563396157 | AT79: 0.08599182049 | AU79: 0.7901598412 | AW79: -0.004876560168
A80: 15.1913645 | B80: 8.197482956 | C80: 8.165043354 | D80: 8.032212066e-09 | E80: 2.008992596 | F80: -0.03243960195 | G80: 2.510939553e-09 | H80: 5.010927612e-05 | I80: 0.06251622758 | J80: 0.0624661183 | K80: 0.4316787575 | L80: 0.5683212425 | M80: 1.004864126 | N80: 31.07458913 | O80: 1931.14569 | P80: 1.000286549 | Q80: 15.08754013 | R80: 68.52006738 | S80: 1 | T80: 1 | U80: 497966.1179 | V80: 68.52006738 | W80: 0.004841454731 | X80: 0.9678211057 | Y80: 0.9995452606 | Z80: 0.0002864669294 | AA80: 0.9337201432 | AB80: 0.9963943721 | AC80: 5.014168472e-16 | AD80: 5.014168472e-15 | AE80: 0.9999979918 | AF80: 0.9963943721 | AG80: 0.06375355798 | AH80: 0.0003197476561 | AO80: 4.334418969e-08 | AQ80: 0.08574603255 | AR80: 0.08574603255 | AT80: 0.0860821862 | AU80: 0.7900996653 | AW80: -0.03243960195
A81: 15.27336539 | B81: 8.320077523 | C81: 8.302351475 | D81: 6.057107171e-09 | E81: 1.295155629 | F81: -0.0177260482 | G81: 1.182653479e-09 | H81: 3.438972927e-05 | I81: 0.06237089452 | J81: 0.06233650479 | K81: 0.4329999482 | L81: 0.5670000518 | M81: 1.003666635 | N81: 23.67672248 | O81: 1456.173593 | P81: 1.000216063 | Q81: 11.62344216 | R81: 51.76581845 | S81: 1 | T81: 1 | U81: 375474.8503 | V81: 51.76581845 | W81: 0.003653737102 | X81: 0.9577657232 | Y81: 0.9993608308 | Z81: 0.0002160159759 | AA81: 0.9139669656 | AB81: 0.9889508098 | AC81: 3.780765107e-16 | AD81: 3.780765107e-15 | AE81: 0.9999973367 | AF81: 0.9889508098 | AG81: 0.06364742586 | AH81: 0.0004186684732 | AO81: 5.766031305e-08 | AQ81: 0.08580501771 | AR81: 0.08580501771 | AT81: 0.08614961963 | AU81: 0.7900548058 | AW81: -0.0177260482
A82: 15.37824188 | B82: 8.434945773 | C82: 8.439146519 | D82: 4.649473569e-09 | E82: 1.046680342 | F82: 0.004200745286 | G82: 1.056909085e-10 | H82: -1.028060837e-05 | I82: 0.06218600008 | J82: 0.06219628068 | K82: 0.4346807829 | L82: 0.5653192171 | M82: 1.00281418 | N82: 18.4062462 | O82: 1117.918343 | P82: 1.000165846 | Q82: 9.154621036 | R82: 39.88937182 | S82: 1 | T82: 1 | U82: 288208.0963 | V82: 39.88937182 | W82: 0.002806575391 | X82: 0.9456716013 | Y82: 0.9991419809 | Z82: 0.0001658183732 | AA82: 0.8907655493 | AB82: 0.9812526443 | AC82: 2.902048525e-16 | AD82: 2.902048525e-15 | AE82: 0.9999965303 | AF82: 0.9812526443 | AG82: 0.06348867165 | AH82: 0.0005369474447 | AO82: 7.541092502e-08 | AQ82: 0.08584874496 | AR82: 0.08584874496 | AT82: 0.08616815868 | AU82: 0.7900424796 | AW82: 0.004200745286
A83: 15.51337049 | B83: 8.569816152 | C83: 8.575326443 | D83: 3.408815885e-09 | E83: 0.9222341704 | F83: 0.005510290223 | G83: 3.013468031e-10 | H83: -1.735934339e-05 | I83: 0.06194938193 | J83: 0.06196674127 | K83: 0.4368318263 | L83: 0.5631681737 | M83: 1.002061193 | N83: 13.75746782 | O83: 819.3449074 | P83: 1.000121553 | Q83: 6.978655715 | R83: 29.44443668 | S83: 1 | T83: 1 | U83: 211235.159 | V83: 29.44443668 | W83: 0.002057110398 | X83: 0.9273129127 | Y83: 0.9988062565 | Z83: 0.000121537798 | AA83: 0.8567059272 | AB83: 0.9706369625 | AC83: 2.126983643e-16 | AD83: 2.126983643e-15 | AE83: 0.9999952659 | AF83: 0.9706369625 | AG83: 0.0632734702 | AH83: 0.0007156475941 | AO83: 1.033994124e-07 | AQ83: 0.08592012328 | AR83: 0.08592012328 | AT83: 0.08636031159 | AU83: 0.7899148939 | AW83: 0.005510290223
A84: 15.68706965 | B84: 8.71683154 | C84: 8.711117268 | D84: 2.429918484e-09 | E84: 0.7339502074 | F84: -0.005714272036 | G84: 5.408135308e-10 | H84: 2.325539789e-05 | I84: 0.06164785659 | J84: 0.06162460119 | K84: 0.4395729267 | L84: 0.5604270733 | M84: 1.001469183 | N84: 10.09380113 | O84: 584.3202014 | P84: 1.000086645 | Q84: 5.26178665 | R84: 21.24776639 | S84: 1 | T84: 1 | U84: 150573.3457 | V84: 21.24776639 | W84: 0.001467107846 | X84: 0.9009297845 | Y84: 0.9983076639 | Z84: 8.66378344e-05 | AA84: 0.8099504852 | AB84: 0.9561746308 | AC84: 1.516160633e-16 | AD84: 1.516160633e-15 | AE84: 0.9999933587 | AF84: 0.9561746308 | AG84: 0.06298616145 | AH84: 0.0009706483066 | AO84: 1.459663809e-07 | AQ84: 0.08602544276 | AR84: 0.08602544276 | AT84: 0.08637003984 | AU84: 0.7899084428 | AW84: -0.005714272036
A85: 15.90815562 | B85: 8.854241125 | C85: 8.846515179 | D85: 1.770974617e-09 | E85: 0.5783688768 | F85: -0.007725946579 | G85: 1.571858871e-09 | H85: 3.964667541e-05 | I85: 0.06126829167 | J85: 0.06122864499 | K85: 0.4430234677 | L85: 0.5569765323 | M85: 1.001070308 | N85: 7.626826268 | O85: 426.0152663 | P85: 1.00006314 | Q85: 4.10607785 | R85: 15.73928174 | S85: 1 | T85: 1 | U85: 109725.9554 | V85: 15.73928174 | W85: 0.001069206315 | X85: 0.8688842072 | Y85: 0.9976665427 | Z85: 6.313613503e-05 | AA85: 0.7564585874 | AB85: 0.9387859335 | AC85: 1.104855324e-16 | AD85: 1.104855324e-15 | AE85: 0.9999908864 | AF85: 0.9387859335 | AG85: 0.06261220515 | AH85: 0.001276702103 | AO85: 2.018772432e-07 | AQ85: 0.08613082634 | AR85: 0.08613082634 | AT85: 0.08645296759 | AU85: 0.7898534841 | AW85: -0.007725946579
A86: 16.18498962 | B86: 9.002407306 | C86: 8.981622219 | D86: 1.259197037e-09 | E86: 0.4440747853 | F86: -0.02078508692 | G86: 1.760098324e-08 | H86: 0.0001326686973 | I86: 0.06079955735 | J86: 0.06066688865 | K86: 0.447284628 | L86: 0.552715372 | M86: 1.000760501 | N86: 5.710769098 | O86: 303.0605378 | P86: 1.000044884 | Q86: 3.20848113 | R86: 11.46781799 | S86: 1 | T86: 1 | U86: 78000.47779 | V86: 11.46781799 | W86: 0.0007599448642 | X86: 0.8248924698 | Y86: 0.9967101841 | Z86: 4.488200013e-05 | AA86: 0.6883260461 | AB86: 0.9144089888 | AC86: 7.854014434e-17 | AD86: 7.854014434e-16 | AE86: 0.9999871796 | AF86: 0.9144089888 | AG86: 0.06214387047 | AH86: 0.001692009934 | AO86: 2.867191591e-07 | AQ86: 0.08629213767 | AR86: 0.08629213767 | AT86: 0.08658359265 | AU86: 0.7897670328 | AW86: -0.02078508692
A87: 16.52391371 | B87: 9.122024757 | C87: 9.116515636 | D87: 9.561747787e-10 | E87: 0.3308773533 | F87: -0.005509120784 | G87: 1.734765092e-09 | H87: 4.16505113e-05 | I87: 0.06023536715 | J87: 0.06019371664 | K87: 0.4524135568 | L87: 0.5475864432 | M87: 1.000576998 | N87: 4.576129972 | O87: 230.2410447 | P87: 1.000034073 | Q87: 2.677016301 | R87: 8.940925051 | S87: 1 | T87: 1 | U87: 59213.47325 | V87: 8.940925051 | W87: 0.0005766776856 | X87: 0.7814749055 | Y87: 0.9956641992 | Z87: 3.407206095e-05 | AA87: 0.6264497905 | AB87: 0.8893441276 | AC87: 5.962291451e-17 | AD87: 5.962291451e-16 | AE87: 0.999983112 | AF87: 0.8893441276 | AG87: 0.06157347669 | AH87: 0.00209194402 | AO87: 3.820191014e-07 | AQ87: 0.08637946157 | AR87: 0.08637946157 | AT87: 0.08675162699 | AU87: 0.7896560349 | AW87: -0.005509120784
A88: 16.92716837 | B88: 9.246558599 | C88: 9.251225948 | D88: 7.179636416e-10 | E88: 0.2892604616 | F88: 0.004667349124 | G88: 1.653774515e-09 | H88: -4.066662656e-05 | I88: 0.05957758066 | J88: 0.05961824729 | K88: 0.4583933487 | L88: 0.5416066513 | M88: 1.000432656 | N88: 3.683987072 | O88: 172.9731692 | P88: 1.000025573 | Q88: 2.259222432 | R88: 6.955183004 | S88: 1 | T88: 1 | U88: 44441.64462 | V88: 6.955183004 | W88: 0.0004324762462 | X88: 0.728555082 | Y88: 0.9942243575 | Z88: 2.55722678e-05 | AA88: 0.5573698341 | AB88: 0.857083186 | AC88: 4.474869246e-17 | AD88: 4.474869246e-16 | AE88: 0.9999774986 | AF88: 0.857083186 | AG88: 0.06090595808 | AH88: 0.002570167741 | AO88: 5.157250059e-07 | AQ88: 0.08649117345 | AR88: 0.08649117345 | AT88: 0.08702489346 | AU88: 0.789476031 | AW88: 0.004667349124
A89: 17.39073853 | B89: 9.37158305 | C89: 9.38592577 | D89: 5.383737735e-10 | E89: 0.279122115 | F89: 0.01434271992 | G89: 1.929619914e-08 | H89: -0.0001389107596 | I89: 0.05883893816 | J89: 0.05897784892 | K89: 0.4651081849 | L89: 0.5348918151 | M89: 1.000324405 | N89: 3.012565656 | O89: 129.9489912 | P89: 1.000019176 | Q89: 1.944243264 | R89: 5.464200938 | S89: 1 | T89: 1 | U89: 33324.4536 | V89: 5.464200938 | W89: 0.0003243036495 | X89: 0.6680571075 | Y89: 0.9923088646 | Z89: 1.917527836e-05 | AA89: 0.48566107 | AB89: 0.8176067081 | AC89: 3.355444075e-17 | AD89: 3.355444075e-16 | AE89: 0.999969992 | AF89: 0.8176067081 | AG89: 0.06015446201 | AH89: 0.003104022971 | AO89: 6.978481784e-07 | AQ89: 0.08661217323 | AR89: 0.08661217323 | AT89: 0.08704118995 | AU89: 0.7894653161 | AW89: 0.01434271992
A90: 17.90296693 | B90: 9.519384067 | C90: 9.520485401 | D90: 3.831326301e-10 | E90: 0.2740743601 | F90: 0.001101333783 | G90: 1.311320539e-10 | H90: -1.145129049e-05 | I90: 0.05804377678 | J90: 0.05805522807 | K90: 0.4723368217 | L90: 0.5276631783 | M90: 1.00023065 | N90: 2.43180133 | O90: 92.71019415 | P90: 1.000013642 | Q90: 1.67196885 | R90: 4.174310547 | S90: 1 | T90: 1 | U90: 23708.33433 | V90: 4.174310547 | W90: 0.0002305988748 | X90: 0.5887822476 | Y90: 0.9892166725 | Z90: 1.364196088e-05 | AA90: 0.4019027327 | AB90: 0.7608475321 | AC90: 2.387166572e-17 | AD90: 2.387166572e-16 | AE90: 0.9999578207 | AF90: 0.7608475321 | AG90: 0.05934461211 | AH90: 0.003793360697 | AO90: 9.961408826e-07 | AQ90: 0.08685836116 | AR90: 0.08685836116 | AT90: 0.08722460877 | AU90: 0.7893448716 | AW90: 0.001101333783
A91: 18.44489907 | B91: 9.660071591 | C91: 9.655004978 | D91: 2.77145343e-10 | E91: 0.2492076821 | F91: -0.005066613286 | G91: 2.89038791e-09 | H91: 5.376232798e-05 | I91: 0.05722557231 | J91: 0.05717180998 | K91: 0.4797749381 | L91: 0.5202250619 | M91: 1.000166738 | N91: 2.035497986 | O91: 67.31195349 | P91: 1.000009866 | Q91: 1.486079813 | R91: 3.294877325 | S91: 1 | T91: 1 | U91: 17146.46357 | V91: 3.294877325 | W91: 0.0001667114791 | X91: 0.5087197617 | Y91: 0.9851459388 | Z91: 9.866087139e-06 | AA91: 0.3270886321 | AB91: 0.696768898 | AC91: 1.726431024e-17 | AD91: 1.726431024e-16 | AE91: 0.9999416789 | AF91: 0.696768898 | AG91: 0.05851014751 | AH91: 0.004468029283 | AO91: 1.399049245e-06 | AQ91: 0.08707779718 | AR91: 0.08707779718 | AT91: 0.08735208666 | AU91: 0.7892613267 | AW91: -0.005066613286
A92: 18.99285866 | B92: 9.790930796 | C92: 9.789367199 | D92: 2.051170836e-10 | E92: 0.2321558716 | F92: -0.001563597379 | G92: 2.614241542e-10 | H92: 1.616861633e-05 | I92: 0.05642139171 | J92: 0.05640522309 | K92: 0.4870855667 | L92: 0.5129144333 | M92: 1.000123143 | N92: 1.76583744 | O92: 50.00856812 | P92: 1.000007297 | Q92: 1.359750853 | R92: 2.695883495 | S92: 1 | T92: 1 | U92: 12681.50572 | V92: 2.695883495 | W92: 0.0001231279255 | X92: 0.4336964762 | Y92: 0.980005002 | Z92: 7.296816175e-06 | AA92: 0.2645711548 | AB92: 0.6292446846 | AC92: 1.276840279e-17 | AD92: 1.276840279e-16 | AE92: 0.999921145 | AF92: 0.6292446846 | AG92: 0.05768931193 | AH92: 0.005077963842 | AO92: 1.920456361e-06 | AQ92: 0.08724208864 | AR92: 0.08724208864 | AT92: 0.08777903556 | AU92: 0.7889825005 | AW92: -0.001563597379
A93: 19.52274218 | B93: 9.910419509 | C93: 9.923834324 | D93: 1.557821548e-10 | E93: 0.2412835156 | F93: 0.01341481509 | G93: 1.690040601e-08 | H93: -0.0001300015616 | I93: 0.05566494709 | J93: 0.05579494865 | K93: 0.493962238 | L93: 0.506037762 | M93: 1.000093518 | N93: 1.581625302 | O93: 38.21940062 | P93: =IF($A93="","",(1+(Y$5*$AU93^(-2*Y$4))*$D93+(Y$6*$AU93^(-4*Y$4-2))*$D93^2+(Y$7*$AU93^(-6*Y$4-6))*$D93^3+(Y$8*$AU93^(-8*Y$4-12))*$D93^4+(Y$9*$AU93^(-10*Y$4-20))*$D93^5+(Y$10*$AU93^(-12*Y$4-30))*$D93^6)) -> 1.000005542 | Q93: 1.273223284 | R93: 2.287844867 | S93: 1 | T93: 1 | U93: 9631.376711 | V93: 2.287844867 | W93: 9.350973479e-05 | X93: 0.3677390096 | Y93: 0.9738364666 | Z93: =IF($A93="","",((Y$5*$AU93^(-2*Y$4))*$D93+2*(Y$6*$AU93^(-4*Y$4-2))*$D93^2+3*(Y$7*$AU93^(-6*Y$4-6))*$D93^3+4*(Y$8*$AU93^(-8*Y$4-12))*$D93^4+5*(Y$9*$AU93^(-10*Y$4-20))*$D93^5+6*(Y$10*$AU93^(-12*Y$4-30))*$D93^6)/P93) -> 5.541672661e-06 | AA93: 0.2145918059 | AB93: 0.5630301667 | AC93: 9.697131293e-18 | AD93: 9.697131293e-17 | AE93: 0.9998961727 | AF93: 0.5630301667 | AG93: 0.05691680483 | AH93: 0.005593385094 | AJ93: =IF(E$11=0,"",IF($A93="","",0.5*E$11*$L93*(1*Y$4^2+(Y$5*$AU93^(-2*Y$4))*$D93*(Y$4+1)^2+(Y$6*$AU93^(-4*Y$4-2))*$D93^2*(Y$4+2)^2+(Y$7*$AU93^(-6*Y$4-6))*$D93^3*(Y$4+3)^2+(Y$8*$AU93^(-8*Y$4-12))*$D93^4*(Y$4+4)^2+(Y$9*$AU93^(-10*Y$4-20))*$D93^5*(Y$4+5)^2+(Y$10*$AU93^(-12*Y$4-30))*$D93^6*(Y$4+6)^2)/P93)) ->  | AO93: 2.564338686e-06 | AQ93: 0.08734090697 | AR93: 0.08734090697 | AT93: 0.08779182901 | AU93: 0.7889741688 | AW93: 0.01341481509
A94: 20.01457772 | B94: 10.03685423 | C94: 10.05817175 | D94: 1.164611628e-10 | E94: 0.3109445293 | F94: 0.02131751774 | G94: 3.487760867e-08 | H94: -0.0001867554783 | I94: 0.05498074645 | J94: 0.05516750193 | K94: 0.5001821551 | L94: 0.4998178449 | M94: =IF($A94="","",(1+(V$5*$AU94^(-2*V$4))*$D94+(V$6*$AU94^(-4*V$4-2))*$D94^2+(V$7*$AU94^(-6*V$4-6))*$D94^3+(V$8*$AU94^(-8*V$4-12))*$D94^4+(V$9*$AU94^(-10*V$4-20))*$D94^5+(V$10*$AU94^(-12*V$4-30))*$D94^6)) -> 1.000069818 | N94: 1.43462072 | O94: 28.79969971 | P94: 1.000004141 | Q94: 1.204258963 | R94: 1.961856934 | S94: 1 | T94: 1 | U94: 7197.319144 | V94: 1.961856934 | W94: =IF($A94="","",((V$5*$AU94^(-2*V$4))*$D94+2*(V$6*$AU94^(-4*V$4-2))*$D94^2+3*(V$7*$AU94^(-6*V$4-6))*$D94^3+4*(V$8*$AU94^(-8*V$4-12))*$D94^4+5*(V$9*$AU94^(-10*V$4-20))*$D94^5+6*(V$10*$AU94^(-12*V$4-30))*$D94^6)/M94) -> 6.981374573e-05 | X94: 0.3029516618 | Y94: 0.9652782963 | Z94: 4.141032289e-06 | AA94: 0.1696138198 | AB94: 0.4903587243 | AC94: 7.246201645e-18 | AD94: 7.246201645e-17 | AE94: 0.9998610594 | AF94: 0.4903587243 | AG94: =IF(B$11=0,"",IF($A94="","",0.5*B$11*$L94*(1*V$4^2+(V$5*$AU94^(-2*V$4))*$D94*(V$4+1)^2+(V$6*$AU94^(-4*V$4-2))*$D94^2*(V$4+2)^2+(V$7*$AU94^(-6*V$4-6))*$D94^3*(V$4+3)^2+(V$8*$AU94^(-8*V$4-12))*$D94^4*(V$4+4)^2+(V$9*$AU94^(-10*V$4-20))*$D94^5*(V$4+5)^2+(V$10*$AU94^(-12*V$4-30))*$D94^6*(V$4+6)^2)/M94)) -> 0.0562179572 | AH94: 0.006090739891 | AO94: 3.474780992e-06 | AQ94: 0.08746792104 | AR94: 0.08746792104 | AT94: 0.08806605408 | AU94: 0.7887959038 | AW94: 0.02131751774
A95: 20.45575399 | B95: 10.19780503 | C95: 10.19259596 | D95: 8.03913668e-11 | E95: 0.3871481804 | F95: -0.005209075148 | G95: 1.556276434e-09 | H95: 3.944966963e-05 | I95: 0.05438117289 | J95: 0.05434172322 | K95: 0.5056327462 | L95: 0.4943672538 | M95: 1.000048208 | N95: 1.300040947 | O95: 20.19339939 | P95: 1.000002859 | Q95: 1.140996851 | R95: 1.664049548 | S95: 1 | T95: 1 | U95: 4968.987789 | V95: 1.664049548 | W95: 4.820625096e-05 | X95: 0.2307934632 | Y95: 0.9504794664 | Z95: 2.85877041e-06 | AA95: 0.1235733917 | AB95: 0.3991012472 | AC95: 5.002424236e-18 | AD95: 5.002424236e-17 | AE95: 0.9997987518 | AF95: 0.3991012472 | AG95: 0.05560555918 | AH95: 0.006647954776 | AO95: 5.087884772e-06 | AQ95: 0.08771720344 | AR95: 0.08771720344 | AT95: 0.0880075596 | AU95: 0.7888338774 | AW95: -0.005209075148
A96: 20.84210886 | B96: 10.35600745 | C96: 10.32694674 | D96: 5.585175851e-11 | E96: 0.3869879471 | F96: -0.02906071776 | G96: 3.491906396e-08 | H96: 0.0001868664335 | I96: 0.05386674228 | J96: 0.05367987584 | K96: 0.5103093215 | L96: 0.4896906785 | M96: 1.000033479 | N96: 1.20842425 | O96: 14.33091081 | P96: 1.000001986 | Q96: 1.09795731 | R96: 1.461204539 | S96: 1 | T96: 1 | U96: 3452.026087 | V96: 1.461204539 | W96: 3.347785061e-05 | X96: 0.1724760594 | Y96: 0.9302211715 | Z96: 1.985854291e-06 | AA96: 0.0892177768 | AB96: 0.3156577801 | AC96: 3.474947457e-18 | AD96: 3.474947457e-17 | AE96: 0.9997103151 | AF96: 0.3156577801 | AG96: 0.05507999691 | AH96: 0.007084313894 | AO96: 7.391446482e-06 | AQ96: 0.08790765066 | AR96: 0.08790765066 | AT96: 0.08809111099 | AU96: 0.7887796459 | AW96: -0.02906071776
A97: 21.17714415 | B97: 10.47812833 | C97: 10.46127653 | D97: 4.216485895e-11 | E97: 0.3402292378 | F97: -0.01685179594 | G97: 8.812198132e-09 | H97: 9.387330894e-05 | I97: 0.05342845885 | J97: 0.05333458554 | K97: 0.5142936595 | L97: 0.4857063405 | M97: 1.000025263 | N97: 1.157323173 | O97: 11.06085475 | P97: 1.000001499 | Q97: 1.073952124 | R97: 1.348065 | S97: 1 | T97: 1 | U97: 2605.909825 | V97: 1.348065 | W97: 2.526193561e-05 | X97: 0.1359371163 | Y97: 0.9095913742 | Z97: 1.4989669e-06 | AA97: 0.06885979582 | AB97: 0.2582112376 | AC97: 2.622966197e-18 | AD97: 2.622966197e-17 | AE97: 0.9996162569 | AF97: 0.2582112376 | AG97: 0.05463209128 | AH97: 0.007336932335 | AO97: 9.867833002e-06 | AQ97: 0.08796050239 | AR97: 0.08796050239 | AT97: 0.08818824258 | AU97: 0.7887166718 | AW97: -0.01685179594
A98: 21.47028875 | B98: 10.5707494 | C98: 10.59557295 | D98: 3.407172798e-11 | E98: =IF(A98="","",IF(A99="",(B98-B97)/(A98-A97),(B99-B97)/(A99-A97))) -> 0.4798335813 | F98: 0.02482354608 | G98: 1.530805813e-08 | H98: -0.0001237257376 | I98: 0.05305078451 | J98: 0.05317451024 | K98: 0.5177270137 | L98: 0.4822729863 | M98: 1.000020395 | N98: 1.12708873 | O98: 9.124937465 | P98: 1.000001211 | Q98: 1.059757739 | R98: 1.281086901 | S98: 1 | T98: 1 | U98: 2105.296997 | V98: 1.281086901 | W98: 2.039504132e-05 | X98: 0.1127584079 | Y98: 0.8904104454 | Z98: 1.210895066e-06 | AA98: 0.05638811319 | AB98: 0.2194232843 | AC98: 2.118883287e-18 | AD98: 2.118883287e-17 | AE98: 0.9995250076 | AF98: 0.2194232843 | AG98: 0.05424605539 | AH98: 0.00748049297 | AO98: 1.229581894e-05 | AQ98: 0.08793725657 | AR98: 0.08793725657 | AT98: 0.08836945354 | AU98: 0.7885993919 | AW98: 0.02482354608
A99: 21.73516234 | B99: 10.74588419 | C99: 10.729918 | D99: 2.27657566e-11 | E99: 0.5501463498 | F99: -0.01596618989 | G99: 5.204912617e-09 | H99: 7.214508034e-05 | I99: 0.05271409595 | J99: 0.05264195087 | K99: 0.5207877751 | L99: 0.4792122249 | M99: 1.000013623 | N99: 1.084908179 | O99: 6.427715068 | P99: 1.000000809 | Q99: 1.039928417 | R99: 1.187771982 | S99: 1 | T99: 1 | U99: 1406.884121 | V99: 1.187771982 | W99: 1.362319351e-05 | X99: 0.07826301 | Y99: 0.8444238704 | Z99: 8.090012162e-07 | AA99: 0.03839535103 | AB99: 0.1580925994 | AC99: 1.415629245e-18 | AD99: 1.415629245e-17 | AE99: 0.9992892094 | AF99: 0.1580925994 | AG99: 0.05390198379 | AH99: 0.007722008845 | AO99: 1.85085526e-05 | AQ99: 0.08811151815 | AR99: 0.08811151815 | AT99: 0.08843329203 | AU99: 0.7885581394 | AW99: -0.01596618989
A100: 21.98845956 | B100: 10.85581918 | C100: 10.86429167 | D100: 1.767478645e-11 | E100: 0.4901203139 | F100: 0.0084724862 | G100: 1.420291949e-09 | H100: -3.768676093e-05 | I100: 0.05239609585 | J100: 0.05243378262 | K100: 0.5236786439 | L100: 0.4763213561 | M100: 1.000010576 | N100: 1.065918522 | O100: 5.213672784 | P100: 1.000000628 | Q100: 1.030999463 | R100: 1.145771117 | S100: 1 | T100: 1 | U100: 1092.459088 | V100: 1.145771117 | W100: 1.057571606e-05 | X100: 0.06184198993 | Y100: 0.8081967437 | Z100: 6.280687545e-07 | AA100: 0.03006739037 | AB100: 0.1272284821 | AC100: 1.09902472e-18 | AD100: 1.09902472e-17 | AE100: 0.9990846339 | AF100: 0.1272284821 | AG100: 0.05357690842 | AH100: 0.007812165486 | AO100: 2.396788355e-05 | AQ100: 0.08812861015 | AR100: 0.08812861015 | AT100: 0.08845318461 | AU100: 0.7885452916 | AW100: 0.0084724862
A101: 22.24972353 | B101: 10.99808109 | C101: 10.99866343 | D101: 1.273831144e-11 | E101: 0.4834919042 | F101: 0.0005823396996 | G101: 7.603417618e-12 | H101: -2.757429531e-06 | I101: 0.05207208872 | J101: 0.05207484615 | K101: 0.5266241213 | L101: 0.4733758787 | M101: 1.00000762 | N101: 1.047503539 | O101: 4.036268068 | P101: 1.000000453 | Q101: 1.022341476 | R101: 1.105038329 | S101: 1 | T101: 1 | U101: 787.5493306 | V101: 1.105038329 | W101: 7.61993224e-06 | X101: 0.04534928763 | Y101: 0.7522464612 | Z101: 4.526116927e-07 | AA101: 0.02185324237 | AB101: 0.09505570742 | AC101: 7.920014301e-19 | AD101: 7.920014301e-18 | AE101: 0.9987302383 | AF101: 0.09505570742 | AG101: 0.05324568681 | AH101: 0.007900344233 | AO101: 3.343435775e-05 | AQ101: 0.08821943854 | AR101: 0.08821943854 | AT101: 0.08850828615 | AU101: 0.7885097205 | AW101: 0.0005823396996
A102: 22.54209051 | B102: 11.12349527 | C102: 11.13300085 | D102: 9.544544886e-12 | E102: 0.4039755539 | F102: 0.009505584938 | G102: 2.637690526e-09 | H102: -5.135845136e-05 | I102: 0.05171422761 | J102: 0.05176558606 | K102: 0.5298773577 | L102: 0.4701226423 | M102: 1.000005705 | N102: 1.035583957 | O102: 3.27380541 | P102: 1.000000339 | Q102: 1.016739991 | R102: 1.078660927 | S102: 1 | T102: 1 | U102: 590.188476 | V102: 1.078660927 | W102: 5.704925656e-06 | X102: 0.03436124821 | Y102: 0.6945451226 | Z102: 3.390424648e-07 | AA102: 0.01646437764 | AB102: 0.07292558226 | AC102: 5.932725354e-19 | AD102: 5.932725354e-18 | AE102: 0.998305626 | AF102: 0.07292558226 | AG102: 0.0528798165 | AH102: 0.007936357886 | AO102: 4.489052051e-05 | AQ102: 0.08827613445 | AR102: 0.08827613445 | AT102: 0.08867033252 | AU102: 0.7884052536 | AW102: 0.009505584938
A103: 22.89409306 | B103: 11.25839062 | C103: 11.26733732 | D103: 6.997080307e-12 | E103: 0.3642263459 | F103: 0.00894669945 | G103: 3.480804653e-09 | H103: -5.89983445e-05 | I103: 0.05128984424 | J103: 0.05134884259 | K103: 0.5337353334 | L103: 0.4662646666 | M103: 1.000004179 | N103: 1.026079658 | O103: 2.666045882 | P103: 1.000000248 | Q103: 1.012272043 | R103: 1.057635648 | S103: 1 | T103: 1 | U103: 432.8191478 | V103: 1.057635648 | W103: 4.17897999e-06 | X103: 0.02541679695 | Y103: 0.624912716 | Z103: 2.484859216e-07 | AA103: 0.01212326549 | AB103: 0.05449533757 | AC103: 4.348123752e-19 | AD103: 4.348123752e-18 | AE103: 0.9976895662 | AF103: 0.05449533757 | AG103: 0.0524459124 | AH103: 0.007944138689 | AO103: 6.165800844e-05 | AQ103: 0.08836834906 | AR103: 0.08836834906 | AT103: 0.08883113182 | AU103: 0.788301801 | AW103: 0.00894669945
A104: 23.34278826 | B104: 11.41513048 | C104: 11.40169191 | D104: 4.877719275e-12 | E104: 0.2616759046 | F104: -0.01343856779 | G104: 1.334982654e-08 | H104: 0.0001155414495 | I104: 0.05075887916 | J104: 0.05064333771 | K104: 0.5385622199 | L104: 0.4614377801 | M104: 1.000002912 | N104: 1.018177001 | O104: 2.160987878 | P104: 1.000000173 | Q104: 1.008554937 | R104: 1.040163415 | S104: 1 | T104: 1 | U104: 301.9693257 | V104: 1.040163415 | W104: 2.911601483e-06 | X104: 0.01785249637 | Y104: 0.5372486973 | Z104: 1.731897399e-07 | AA104: 0.008482370586 | AB104: 0.03861286391 | AC104: 3.030555454e-19 | AD104: 3.030555454e-18 | AE104: 0.9966884054 | AF104: 0.03861286391 | AG104: 0.05190301596 | AH104: 0.00792291973 | AO104: 8.917498799e-05 | AQ104: 0.08857575646 | AR104: 0.08857575646 | AT104: 0.0889436139 | AU104: 0.7882295583 | AW104: -0.01343856779
A105: 23.93885732 | B105: 11.53178026 | C105: 11.53593016 | D105: =IF(A105="","",10^-((((B105-P$12)/P$13)+7))/$AU105) -> 3.730221165e-12 | E105: 0.1672320179 | F105: 0.00414990039 | G105: 2.12041193e-09 | H105: -4.604793079e-05 | I105: 0.05007029054 | J105: 0.05011633847 | K105: 0.5448220273 | L105: 0.4551779727 | M105: 1.000002221 | N105: 1.013890085 | O105: 1.886492859 | P105: 1.000000132 | Q105: 1.006542362 | R105: 1.030667438 | S105: 1 | T105: 1 | U105: 230.9878564 | V105: 1.030667438 | W105: 2.221491519e-06 | X105: 0.01369979379 | Y105: 0.4699158444 | Z105: 1.323441802e-07 | AA105: 0.006499837876 | AB105: 0.02975508515 | AC105: 2.315820561e-19 | AD105: 2.315820561e-18 | AE105: 0.9956707681 | AF105: 0.02975508515 | AG105: 0.05119892575 | AH105: 0.007848483518 | AO105: 0.0001179330454 | AQ105: 0.08865074098 | AR105: 0.08865074098 | AT105: 0.08941876504 | AU105: =IF(A105="","",10^(-$P$16*($AT105^0.5/(1+$AT105^0.5)-$P$17*$AT105))) -> 0.7879255104 | AW105: 0.00414990039
A106: 24.75505758 | B106: 11.65130713 | C106: 11.67026854 | D106: 2.833346508e-12 | E106: 0.1365993507 | F106: 0.01896140726 | G106: =IF(A106="","",IF(AX106="X",0,IF(ABS(E106)<0.00001,(0.00001^M$20)*(ABS(H106)^I$20)*ABS(F106)^K$20,((ABS(E106))^M$20)*((ABS(H106))^I$20)*ABS(F106)^K$20))) -> 7.642379957e-08 | H106: =IF(A106="","",I106-J106) -> -0.0002764485478 | I106: =IF(A106="","",L106*I$18+K106*E$19) -> 0.04915715611 | J106: =IF(A106="","",D106 -$AC$9/AU106^2/D106+L106*(W106*$B$11+X106*$C$11+Y106*$D$11+Z106*$E$11+AA106*$F$11+AB106*$G$11+AC106*$H$11)+K106*(AD106*$B$18+AE106*$C$18+AF106*$D$18)) -> 0.04943360466 | K106: =IF(A106="","",A106/(A106+$G$16)) -> 0.553123131 | L106: =IF(A106="","",$E$16/(A106+$G$16)) -> 0.446876869 | M106: 1.000001685 | N106: 1.010545958 | O106: 1.672778997 | P106: 1.0000001 | Q106: 1.004969351 | R106: 1.023274166 | S106: 1 | T106: =IF($A106="","",(1+(AC$5*$AU106^(-2*AC$4))*$D106+(AC$6*$AU106^(-4*AC$4-2))*$D106^2)) -> 1 | U106: 175.6168112 | V106: 1.023274166 | W106: 1.685225806e-06 | X106: 0.0104359018 | Y106: 0.4021924074 | Z106: 1.004814768e-07 | AA106: 0.004944778852 | AB106: 0.02274488997 | AC106: 1.758271971e-19 | AD106: =IF($A106="","",((AC$5*$AU106^(-2*AC$4))*$D106+2*(AC$6*$AU106^(-4*AC$4-2))*$D106^2)/T106) -> 1.758271971e-18 | AE106: 0.9943057843 | AF106: 0.02274488997 | AG106: 0.05026522332 | AH106: 0.007730849085 | AN106: =IF(B$18=0,"",IF($A106="","",0.5*B$18*$K106*(1*AC$4^2+(AC$5*$AU106^(-2*AC$4))*$D106*(AC$4+1)^2+(AC$6*$AU106^(-4*AC$4-2))*$D106^2*(AC$4+2)^2)/T106)) ->  | AO106: 0.0001574801203 | AQ106: =IF(A106="","",SUM(AG106:AP106)+0.5*(D106+ $AC$9/AU106^2/D106)+$L106*$S$16+$K106*$T$16) -> 0.08874210967 | AR106: =IF(A106="","",AQ106+$L106*S$14+$K106*$T$14) -> 0.08874210967 | AT106: 0.08968073165 | AU106: 0.7877586511 | AW106: =IF(C106="","",C106-B106) -> 0.01896140726
A107: 25.90093998 | B107: 11.79979947 | C107: 11.80481195 | D107: 2.012507489e-12 | E107: 0.1106332297 | F107: =IF(A107="","",IF(C107="","0,00001",(IF(ABS(C107-B107)<0.00001,0.00001,C107-B107)))) -> 0.005012481089 | G107: 1.000848026e-08 | H107: -0.0001000423923 | I107: 0.04792998472 | J107: 0.04803002711 | K107: 0.5642790756 | L107: 0.4357209244 | M107: 1.000001198 | N107: 1.007493135 | O107: 1.478178007 | P107: 1.000000071 | Q107: 1.003529698 | R107: 1.016542106 | S107: 1 | T107: 1 | U107: 125.069076 | V107: 1.016542106 | W107: 1.198160925e-06 | X107: 0.007437405368 | Y107: 0.3234914958 | Z107: 7.139429625e-08 | AA107: 0.0035172827 | AB107: 0.01627296382 | AC107: 1.249290818e-19 | AD107: 1.249290818e-18 | AE107: 0.9920044184 | AF107: 0.01627296382 | AG107: 0.04901040313 | AH107: 0.00756069485 | AO107: 0.000225586969 | AQ107: 0.08910791732 | AR107: 0.08910791732 | AT107: 0.08948174881 | AU107: 0.7878853431 | AW107: 0.005012481089
A108: 27.55026346 | B108: 11.96054978 | C108: 11.9393096 | D108: 1.390034336e-12 | E108: =IF(A108="","",IF(A109="",(B108-B107)/(A108-A107),(B109-B107)/(A109-A107))) -> 0.0656432466 | F108: -0.02124018582 | G108: 3.50963059e-07 | H108: 0.0005924213526 | I108: 0.04626749027 | J108: 0.04567506892 | K108: 0.5793924461 | L108: 0.4206075539 | M108: 1.000000827 | N108: 1.005174578 | O108: 1.330159873 | P108: 1.000000049 | Q108: 1.002437954 | R108: 1.011421552 | S108: 1 | T108: 1 | U108: 86.67910201 | V108: 1.011421552 | W108: 8.271291551e-07 | X108: 0.005147939215 | Y108: 0.2482106724 | Z108: 4.930317466e-08 | AA108: 0.002432024954 | AB108: 0.01129259533 | AC108: 8.627300117e-20 | AD108: 8.627300117e-19 | AE108: 0.9884631938 | AF108: 0.01129259533 | AG108: 0.04731044315 | AH108: 0.007315280128 | AO108: 0.0003342169177 | AQ108: 0.08983022343 | AR108: 0.08983022343 | AT108: 0.08959090533 | AU108: 0.7878158043 | AW108: -0.02124018582
A109: 29.99650993 | B109: 12.06864598 | C109: 12.07342958 | D109: 1.085016053e-12 | E109: 0.04226374271 | F109: 0.004783602811 | G109: 3.106769771e-08 | H109: -0.0001762603123 | I109: 0.04400369856 | J109: 0.04417995887 | K109: 0.5999720775 | L109: 0.4000279225 | M109: 1.000000641 | N109: 1.004029692 | O109: 1.25651194 | P109: 1.000000038 | Q109: 1.001902989 | R109: 1.008873771 | S109: 1 | T109: 1 | U109: 67.72243278 | V109: 1.008873771 | W109: 6.41125474e-07 | X109: 0.004013518939 | Y109: 0.2041460444 | Z109: 3.839475106e-08 | AA109: 0.001899374013 | AB109: 0.00879573351 | AC109: 6.718493059e-20 | AD109: 6.718493059e-19 | AE109: 0.9852338441 | AF109: 0.00879573351 | AG109: 0.04499562613 | AH109: 0.006965288986 | AO109: 0.0004429640615 | AQ109: 0.08995796949 | AR109: 0.08995796949 | AT109: 0.09104740288 | AU109: 0.7868969364 | AW109: 0.004783602811
A110: 33.77778213 | B110: 12.22374803 | C110: 12.20811224 | D110: 7.592834128e-13 | E110: 0.02732191667 | F110: -0.01563578969 | G110: 6.473443772e-07 | H110: 0.0008045771418 | I110: 0.04090967059 | J110: 0.04010509345 | K110: 0.6280992036 | L110: 0.3719007964 | M110: 1.000000448 | N110: 1.002819032 | O110: 1.17938914 | P110: 1.000000027 | Q110: 1.001331692 | R110: 1.006205783 | S110: 1 | T110: 1 | U110: 47.67668756 | V110: 1.006205783 | W110: 4.482208766e-07 | X110: 0.002811107546 | Y110: 0.1521034362 | Z110: 2.685962945e-08 | AA110: 0.001329921327 | AB110: 0.006167515557 | AC110: 4.70002349e-20 | AD110: 4.70002349e-19 | AE110: 0.9790253885 | AF110: 0.006167515557 | AG110: 0.04183185734 | AH110: 0.006483356907 | AO110: 0.0006587068395 | AQ110: 0.0911482791 | AR110: 0.0911482791 | AT110: 0.09124992374 | AU110: 0.7867704826 | AW110: -0.01563578969
A111: 39.99999998 | B111: 12.3419605 | C111: 12.34225893 | D111: 5.793903054e-13 | E111: 0.01899844661 | F111: 0.0002984269636 | G111: 4.241218989e-10 | H111: -2.059422004e-05 | I111: 0.03666718921 | J111: 0.03668778343 | K111: 0.6666666666 | L111: 0.3333333334 | M111: 1.000000338 | N111: 1.002143422 | O111: 1.135907779 | P111: 1.00000002 | Q111: 1.001016181 | R111: 1.004701589 | S111: 1 | T111: 1 | U111: 36.49014464 | V111: 1.004701589 | W111: 3.383613304e-07 | X111: 0.002138837989 | Y111: 0.1196468432 | Z111: 2.042244619e-08 | AA111: 0.001015149783 | AB111: 0.004679591285 | AC111: 3.573615057e-20 | AD111: 3.573615057e-19 | AE111: 0.9725953402 | AF111: 0.004679591285 | AG111: 0.03749374413 | AH111: 0.005814926833 | AO111: 0.0009134886599 | AQ111: 0.09169536909 | AR111: 0.09169536909 | AT111: 0.09354530155 | AU111: 0.7853590861 | AW111: 0.0002984269636
D112: =IF(A112="","",10^-((((B112-P$12)/P$13)+7))/$AU112) ->  | E112: =IF(A112="","",IF(A113="",(B112-B111)/(A112-A111),(B113-B111)/(A113-A111))) ->  | F112: =IF(A112="","",IF(C112="","0,00001",(IF(ABS(C112-B112)<0.00001,0.00001,C112-B112)))) ->  | G112: =IF(A112="","",IF(AX112="X",0,IF(ABS(E112)<0.00001,(0.00001^M$20)*(ABS(H112)^I$20)*ABS(F112)^K$20,((ABS(E112))^M$20)*((ABS(H112))^I$20)*ABS(F112)^K$20))) ->  | I112: =IF(A112="","",L112*I$18+K112*E$19) ->  | J112: =IF(A112="","",D112 -$AC$9/AU112^2/D112+L112*(W112*$B$11+X112*$C$11+Y112*$D$11+Z112*$E$11+AA112*$F$11+AB112*$G$11+AC112*$H$11)+K112*(AD112*$B$18+AE112*$C$18+AF112*$D$18)) ->  | K112: =IF(A112="","",A112/(A112+$G$16)) ->  | L112: =IF(A112="","",$E$16/(A112+$G$16)) ->  | M112: =IF($A112="","",(1+(V$5*$AU112^(-2*V$4))*$D112+(V$6*$AU112^(-4*V$4-2))*$D112^2+(V$7*$AU112^(-6*V$4-6))*$D112^3+(V$8*$AU112^(-8*V$4-12))*$D112^4+(V$9*$AU112^(-10*V$4-20))*$D112^5+(V$10*$AU112^(-12*V$4-30))*$D112^6)) ->  | N112: =IF($A112="","",(1+(W$5*$AU112^(-2*W$4))*$D112+(W$6*$AU112^(-4*W$4-2))*$D112^2+(W$7*$AU112^(-6*W$4-6))*$D112^3+(W$8*$AU112^(-8*W$4-12))*$D112^4+(W$9*$AU112^(-10*W$4-20))*$D112^5+(W$10*$AU112^(-12*W$4-30))*$D112^6)) ->  | O112: =IF($A112="","",(1+(X$5*$AU112^(-2*X$4))*$D112+(X$6*$AU112^(-4*X$4-2))*$D112^2+(X$7*$AU112^(-6*X$4-6))*$D112^3+(X$8*$AU112^(-8*X$4-12))*$D112^4+(X$9*$AU112^(-10*X$4-20))*$D112^5+(X$10*$AU112^(-12*X$4-30))*$D112^6)) ->  | P112: =IF($A112="","",(1+(Y$5*$AU112^(-2*Y$4))*$D112+(Y$6*$AU112^(-4*Y$4-2))*$D112^2+(Y$7*$AU112^(-6*Y$4-6))*$D112^3+(Y$8*$AU112^(-8*Y$4-12))*$D112^4+(Y$9*$AU112^(-10*Y$4-20))*$D112^5+(Y$10*$AU112^(-12*Y$4-30))*$D112^6)) ->  | Q112: =IF($A112="","",(1+(Z$5*$AU112^(-2*Z$4))*$D112+(Z$6*$AU112^(-4*Z$4-2))*$D112^2+(Z$7*$AU112^(-6*Z$4-6))*$D112^3+(Z$8*$AU112^(-8*Z$4-12))*$D112^4+(Z$9*$AU112^(-10*Z$4-20))*$D112^5+(Z$10*$AU112^(-12*Z$4-30))*$D112^6)) ->  | R112: =IF($A112="","",(1+(AA$5*$AU112^(-2*AA$4))*$D112+(AA$6*$AU112^(-4*AA$4-2))*$D112^2+(AA$7*$AU112^(-6*AA$4-6))*$D112^3+(AA$8*$AU112^(-8*AA$4-12))*$D112^4+(AA$9*$AU112^(-10*AA$4-20))*$D112^5+(AA$10*$AU112^(-12*AA$4-30))*$D112^6)) ->  | S112: =IF($A112="","",(1+(AB$5*$AU112^(-2*AB$4))*$D112+(AB$6*$AU112^(-4*AB$4-2))*$D112^2+(AB$7*$AU112^(-6*AB$4-6))*$D112^3+(AB$8*$AU112^(-8*AB$4-12))*$D112^4+(AB$9*$AU112^(-10*AB$4-20))*$D112^5+(AB$10*$AU112^(-12*AB$4-30))*$D112^6)) ->  | T112: =IF($A112="","",(1+(AC$5*$AU112^(-2*AC$4))*$D112+(AC$6*$AU112^(-4*AC$4-2))*$D112^2)) ->  | U112: =IF($A112="","",(1+(AD$5*$AU112^(-2*AD$4))*$D112+(AD$6*$AU112^(-4*AD$4-2))*$D112^2)) ->  | V112: =IF($A112="","",(1+(AE$5*$AU112^(-2*AE$4))*$D112+(AE$6*$AU112^(-4*AE$4-2))*$D112^2)) ->  | W112: =IF($A112="","",((V$5*$AU112^(-2*V$4))*$D112+2*(V$6*$AU112^(-4*V$4-2))*$D112^2+3*(V$7*$AU112^(-6*V$4-6))*$D112^3+4*(V$8*$AU112^(-8*V$4-12))*$D112^4+5*(V$9*$AU112^(-10*V$4-20))*$D112^5+6*(V$10*$AU112^(-12*V$4-30))*$D112^6)/M112) ->  | X112: =IF($A112="","",((W$5*$AU112^(-2*W$4))*$D112+2*(W$6*$AU112^(-4*W$4-2))*$D112^2+3*(W$7*$AU112^(-6*W$4-6))*$D112^3+4*(W$8*$AU112^(-8*W$4-12))*$D112^4+5*(W$9*$AU112^(-10*W$4-20))*$D112^5+6*(W$10*$AU112^(-12*W$4-30))*$D112^6)/N112) ->  | Y112: =IF($A112="","",((X$5*$AU112^(-2*X$4))*$D112+2*(X$6*$AU112^(-4*X$4-2))*$D112^2+3*(X$7*$AU112^(-6*X$4-6))*$D112^3+4*(X$8*$AU112^(-8*X$4-12))*$D112^4+5*(X$9*$AU112^(-10*X$4-20))*$D112^5+6*(X$10*$AU112^(-12*X$4-30))*$D112^6)/O112) ->  | Z112: =IF($A112="","",((Y$5*$AU112^(-2*Y$4))*$D112+2*(Y$6*$AU112^(-4*Y$4-2))*$D112^2+3*(Y$7*$AU112^(-6*Y$4-6))*$D112^3+4*(Y$8*$AU112^(-8*Y$4-12))*$D112^4+5*(Y$9*$AU112^(-10*Y$4-20))*$D112^5+6*(Y$10*$AU112^(-12*Y$4-30))*$D112^6)/P112) ->  | AA112: =IF($A112="","",((Z$5*$AU112^(-2*Z$4))*$D112+2*(Z$6*$AU112^(-4*Z$4-2))*$D112^2+3*(Z$7*$AU112^(-6*Z$4-6))*$D112^3+4*(Z$8*$AU112^(-8*Z$4-12))*$D112^4+5*(Z$9*$AU112^(-10*Z$4-20))*$D112^5+6*(Z$10*$AU112^(-12*Z$4-30))*$D112^6)/Q112) ->  | AB112: =IF($A112="","",((AA$5*$AU112^(-2*AA$4))*$D112+2*(AA$6*$AU112^(-4*AA$4-2))*$D112^2+3*(AA$7*$AU112^(-6*AA$4-6))*$D112^3+4*(AA$8*$AU112^(-8*AA$4-12))*$D112^4+5*(AA$9*$AU112^(-10*AA$4-20))*$D112^5+6*(AA$10*$AU112^(-12*AA$4-30))*$D112^6)/R112) ->  | AC112: =IF($A112="","",((AB$5*$AU112^(-2*AB$4))*$D112+2*(AB$6*$AU112^(-4*AB$4-2))*$D112^2+3*(AB$7*$AU112^(-6*AB$4-6))*$D112^3+4*(AB$8*$AU112^(-8*AB$4-12))*$D112^4+5*(AB$9*$AU112^(-10*AB$4-20))*$D112^5+6*(AB$10*$AU112^(-12*AB$4-30))*$D112^6)/S112) ->  | AD112: =IF($A112="","",((AC$5*$AU112^(-2*AC$4))*$D112+2*(AC$6*$AU112^(-4*AC$4-2))*$D112^2)/T112) ->  | AE112: =IF($A112="","",((AD$5*$AU112^(-2*AD$4))*$D112+2*(AD$6*$AU112^(-4*AD$4-2))*$D112^2)/U112) ->  | AF112: =IF($A112="","",((AE$5*$AU112^(-2*AE$4))*$D112+2*(AE$6*$AU112^(-4*AE$4-2))*$D112^2)/V112) ->  | AG112: =IF(B$11=0,"",IF($A112="","",0.5*B$11*$L112*(1*V$4^2+(V$5*$AU112^(-2*V$4))*$D112*(V$4+1)^2+(V$6*$AU112^(-4*V$4-2))*$D112^2*(V$4+2)^2+(V$7*$AU112^(-6*V$4-6))*$D112^3*(V$4+3)^2+(V$8*$AU112^(-8*V$4-12))*$D112^4*(V$4+4)^2+(V$9*$AU112^(-10*V$4-20))*$D112^5*(V$4+5)^2+(V$10*$AU112^(-12*V$4-30))*$D112^6*(V$4+6)^2)/M112)) ->  | AH112: =IF(C$11=0,"",IF($A112="","",0.5*C$11*$L112*(1*W$4^2+(W$5*$AU112^(-2*W$4))*$D112*(W$4+1)^2+(W$6*$AU112^(-4*W$4-2))*$D112^2*(W$4+2)^2+(W$7*$AU112^(-6*W$4-6))*$D112^3*(W$4+3)^2+(W$8*$AU112^(-8*W$4-12))*$D112^4*(W$4+4)^2+(W$9*$AU112^(-10*W$4-20))*$D112^5*(W$4+5)^2+(W$10*$AU112^(-12*W$4-30))*$D112^6*(W$4+6)^2)/N112)) ->  | AI112: =IF(D$11=0,"",IF($A112="","",0.5*D$11*$L112*(1*X$4^2+(X$5*$AU112^(-2*X$4))*$D112*(X$4+1)^2+(X$6*$AU112^(-4*X$4-2))*$D112^2*(X$4+2)^2+(X$7*$AU112^(-6*X$4-6))*$D112^3*(X$4+3)^2+(X$8*$AU112^(-8*X$4-12))*$D112^4*(X$4+4)^2+(X$9*$AU112^(-10*X$4-20))*$D112^5*(X$4+5)^2+(X$10*$AU112^(-12*X$4-30))*$D112^6*(X$4+6)^2)/O112)) ->  | AJ112: =IF(E$11=0,"",IF($A112="","",0.5*E$11*$L112*(1*Y$4^2+(Y$5*$AU112^(-2*Y$4))*$D112*(Y$4+1)^2+(Y$6*$AU112^(-4*Y$4-2))*$D112^2*(Y$4+2)^2+(Y$7*$AU112^(-6*Y$4-6))*$D112^3*(Y$4+3)^2+(Y$8*$AU112^(-8*Y$4-12))*$D112^4*(Y$4+4)^2+(Y$9*$AU112^(-10*Y$4-20))*$D112^5*(Y$4+5)^2+(Y$10*$AU112^(-12*Y$4-30))*$D112^6*(Y$4+6)^2)/P112)) ->  | AK112: =IF(F$11=0,"",IF($A112="","",0.5*F$11*$L112*(1*Z$4^2+(Z$5*$AU112^(-2*Z$4))*$D112*(Z$4+1)^2+(Z$6*$AU112^(-4*Z$4-2))*$D112^2*(Z$4+2)^2+(Z$7*$AU112^(-6*Z$4-6))*$D112^3*(Z$4+3)^2+(Z$8*$AU112^(-8*Z$4-12))*$D112^4*(Z$4+4)^2+(Z$9*$AU112^(-10*Z$4-20))*$D112^5*(Z$4+5)^2+(Z$10*$AU112^(-12*Z$4-30))*$D112^6*(Z$4+6)^2)/Q112)) ->  | AL112: =IF(G$11=0,"",IF($A112="","",0.5*G$11*$L112*(1*AA$4^2+(AA$5*$AU112^(-2*AA$4))*$D112*(AA$4+1)^2+(AA$6*$AU112^(-4*AA$4-2))*$D112^2*(AA$4+2)^2+(AA$7*$AU112^(-6*AA$4-6))*$D112^3*(AA$4+3)^2+(AA$8*$AU112^(-8*AA$4-12))*$D112^4*(AA$4+4)^2+(AA$9*$AU112^(-10*AA$4-20))*$D112^5*(AA$4+5)^2+(AA$10*$AU112^(-12*AA$4-30))*$D112^6*(AA$4+6)^2)/R112)) ->  | AM112: =IF(H$11=0,"",IF($A112="","",0.5*H$11*$L112*(1*AB$4^2+(AB$5*$AU112^(-2*AB$4))*$D112*(AB$4+1)^2+(AB$6*$AU112^(-4*AB$4-2))*$D112^2*(AB$4+2)^2+(AB$7*$AU112^(-6*AB$4-6))*$D112^3*(AB$4+3)^2+(AB$8*$AU112^(-8*AB$4-12))*$D112^4*(AB$4+4)^2+(AB$9*$AU112^(-10*AB$4-20))*$D112^5*(AB$4+5)^2+(AB$10*$AU112^(-12*AB$4-30))*$D112^6*(AB$4+6)^2)/S112)) ->  | AN112: =IF(B$18=0,"",IF($A112="","",0.5*B$18*$K112*(1*AC$4^2+(AC$5*$AU112^(-2*AC$4))*$D112*(AC$4+1)^2+(AC$6*$AU112^(-4*AC$4-2))*$D112^2*(AC$4+2)^2)/T112)) ->  | AO112: =IF(C$18=0,"",IF($A112="","",0.5*C$18*$K112*(1*AD$4^2+(AD$5*$AU112^(-2*AD$4))*$D112*(AD$4+1)^2+(AD$6*$AU112^(-4*AD$4-2))*$D112^2*(AD$4+2)^2)/U112)) ->  | AP112: =IF(D$18=0,"",IF($A112="","",0.5*D$18*$K112*(1*AE$4^2+(AE$5*$AU112^(-2*AE$4))*$D112*(AE$4+1)^2+(AE$6*$AU112^(-4*AE$4-2))*$D112^2*(AE$4+2)^2)/V112)) ->  | AQ112: =IF(A112="","",SUM(AG112:AP112)+0.5*(D112+ $AC$9/AU112^2/D112)+$L112*$S$16+$K112*$T$16) ->  | AR112: =IF(A112="","",AQ112+$L112*S$14+$K112*$T$14) ->  | AU112: =IF(A112="","",10^(-$P$16*($AT112^0.5/(1+$AT112^0.5)-$P$17*$AT112))) ->  | AW112: =IF(C112="","",C112-B112) -> 
H170: =IF(A170="","",I170-J170) -> 
D176: =IF(A176="","",10^-((((B176-P$12)/P$13)+7))/$AU176) ->  | E176: =IF(A176="","",IF(A177="",(B176-B175)/(A176-A175),(B177-B175)/(A177-A175))) ->  | F176: =IF(A176="","",IF(C176="","0,00001",(IF(ABS(C176-B176)<0.00001,0.00001,C176-B176)))) ->  | G176: =IF(A176="","",IF(AX176="X",0,IF(ABS(E176)<0.00001,(0.00001^M$20)*(ABS(H176)^I$20)*ABS(F176)^K$20,((ABS(E176))^M$20)*((ABS(H176))^I$20)*ABS(F176)^K$20))) ->  | I176: =IF(A176="","",L176*I$18+K176*E$19) ->  | J176: =IF(A176="","",D176 -$AC$9/AU176^2/D176+L176*(W176*$B$11+X176*$C$11+Y176*$D$11+Z176*$E$11+AA176*$F$11+AB176*$G$11+AC176*$H$11)+K176*(AD176*$B$18+AE176*$C$18+AF176*$D$18)) ->  | K176: =IF(A176="","",A176/(A176+$G$16)) ->  | L176: =IF(A176="","",$E$16/(A176+$G$16)) ->  | M176: =IF($A176="","",(1+(V$5*$AU176^(-2*V$4))*$D176+(V$6*$AU176^(-4*V$4-2))*$D176^2+(V$7*$AU176^(-6*V$4-6))*$D176^3+(V$8*$AU176^(-8*V$4-12))*$D176^4+(V$9*$AU176^(-10*V$4-20))*$D176^5+(V$10*$AU176^(-12*V$4-30))*$D176^6)) ->  | N176: =IF($A176="","",(1+(W$5*$AU176^(-2*W$4))*$D176+(W$6*$AU176^(-4*W$4-2))*$D176^2+(W$7*$AU176^(-6*W$4-6))*$D176^3+(W$8*$AU176^(-8*W$4-12))*$D176^4+(W$9*$AU176^(-10*W$4-20))*$D176^5+(W$10*$AU176^(-12*W$4-30))*$D176^6)) ->  | O176: =IF($A176="","",(1+(X$5*$AU176^(-2*X$4))*$D176+(X$6*$AU176^(-4*X$4-2))*$D176^2+(X$7*$AU176^(-6*X$4-6))*$D176^3+(X$8*$AU176^(-8*X$4-12))*$D176^4+(X$9*$AU176^(-10*X$4-20))*$D176^5+(X$10*$AU176^(-12*X$4-30))*$D176^6)) ->  | P176: =IF($A176="","",(1+(Y$5*$AU176^(-2*Y$4))*$D176+(Y$6*$AU176^(-4*Y$4-2))*$D176^2+(Y$7*$AU176^(-6*Y$4-6))*$D176^3+(Y$8*$AU176^(-8*Y$4-12))*$D176^4+(Y$9*$AU176^(-10*Y$4-20))*$D176^5+(Y$10*$AU176^(-12*Y$4-30))*$D176^6)) ->  | Q176: =IF($A176="","",(1+(Z$5*$AU176^(-2*Z$4))*$D176+(Z$6*$AU176^(-4*Z$4-2))*$D176^2+(Z$7*$AU176^(-6*Z$4-6))*$D176^3+(Z$8*$AU176^(-8*Z$4-12))*$D176^4+(Z$9*$AU176^(-10*Z$4-20))*$D176^5+(Z$10*$AU176^(-12*Z$4-30))*$D176^6)) ->  | R176: =IF($A176="","",(1+(AA$5*$AU176^(-2*AA$4))*$D176+(AA$6*$AU176^(-4*AA$4-2))*$D176^2+(AA$7*$AU176^(-6*AA$4-6))*$D176^3+(AA$8*$AU176^(-8*AA$4-12))*$D176^4+(AA$9*$AU176^(-10*AA$4-20))*$D176^5+(AA$10*$AU176^(-12*AA$4-30))*$D176^6)) ->  | S176: =IF($A176="","",(1+(AB$5*$AU176^(-2*AB$4))*$D176+(AB$6*$AU176^(-4*AB$4-2))*$D176^2+(AB$7*$AU176^(-6*AB$4-6))*$D176^3+(AB$8*$AU176^(-8*AB$4-12))*$D176^4+(AB$9*$AU176^(-10*AB$4-20))*$D176^5+(AB$10*$AU176^(-12*AB$4-30))*$D176^6)) ->  | T176: =IF($A176="","",(1+(AC$5*$AU176^(-2*AC$4))*$D176+(AC$6*$AU176^(-4*AC$4-2))*$D176^2)) ->  | U176: =IF($A176="","",(1+(AD$5*$AU176^(-2*AD$4))*$D176+(AD$6*$AU176^(-4*AD$4-2))*$D176^2)) ->  | V176: =IF($A176="","",(1+(AE$5*$AU176^(-2*AE$4))*$D176+(AE$6*$AU176^(-4*AE$4-2))*$D176^2)) ->  | W176: =IF($A176="","",((V$5*$AU176^(-2*V$4))*$D176+2*(V$6*$AU176^(-4*V$4-2))*$D176^2+3*(V$7*$AU176^(-6*V$4-6))*$D176^3+4*(V$8*$AU176^(-8*V$4-12))*$D176^4+5*(V$9*$AU176^(-10*V$4-20))*$D176^5+6*(V$10*$AU176^(-12*V$4-30))*$D176^6)/M176) ->  | X176: =IF($A176="","",((W$5*$AU176^(-2*W$4))*$D176+2*(W$6*$AU176^(-4*W$4-2))*$D176^2+3*(W$7*$AU176^(-6*W$4-6))*$D176^3+4*(W$8*$AU176^(-8*W$4-12))*$D176^4+5*(W$9*$AU176^(-10*W$4-20))*$D176^5+6*(W$10*$AU176^(-12*W$4-30))*$D176^6)/N176) ->  | Y176: =IF($A176="","",((X$5*$AU176^(-2*X$4))*$D176+2*(X$6*$AU176^(-4*X$4-2))*$D176^2+3*(X$7*$AU176^(-6*X$4-6))*$D176^3+4*(X$8*$AU176^(-8*X$4-12))*$D176^4+5*(X$9*$AU176^(-10*X$4-20))*$D176^5+6*(X$10*$AU176^(-12*X$4-30))*$D176^6)/O176) ->  | Z176: =IF($A176="","",((Y$5*$AU176^(-2*Y$4))*$D176+2*(Y$6*$AU176^(-4*Y$4-2))*$D176^2+3*(Y$7*$AU176^(-6*Y$4-6))*$D176^3+4*(Y$8*$AU176^(-8*Y$4-12))*$D176^4+5*(Y$9*$AU176^(-10*Y$4-20))*$D176^5+6*(Y$10*$AU176^(-12*Y$4-30))*$D176^6)/P176) ->  | AA176: =IF($A176="","",((Z$5*$AU176^(-2*Z$4))*$D176+2*(Z$6*$AU176^(-4*Z$4-2))*$D176^2+3*(Z$7*$AU176^(-6*Z$4-6))*$D176^3+4*(Z$8*$AU176^(-8*Z$4-12))*$D176^4+5*(Z$9*$AU176^(-10*Z$4-20))*$D176^5+6*(Z$10*$AU176^(-12*Z$4-30))*$D176^6)/Q176) ->  | AB176: =IF($A176="","",((AA$5*$AU176^(-2*AA$4))*$D176+2*(AA$6*$AU176^(-4*AA$4-2))*$D176^2+3*(AA$7*$AU176^(-6*AA$4-6))*$D176^3+4*(AA$8*$AU176^(-8*AA$4-12))*$D176^4+5*(AA$9*$AU176^(-10*AA$4-20))*$D176^5+6*(AA$10*$AU176^(-12*AA$4-30))*$D176^6)/R176) ->  | AC176: =IF($A176="","",((AB$5*$AU176^(-2*AB$4))*$D176+2*(AB$6*$AU176^(-4*AB$4-2))*$D176^2+3*(AB$7*$AU176^(-6*AB$4-6))*$D176^3+4*(AB$8*$AU176^(-8*AB$4-12))*$D176^4+5*(AB$9*$AU176^(-10*AB$4-20))*$D176^5+6*(AB$10*$AU176^(-12*AB$4-30))*$D176^6)/S176) ->  | AD176: =IF($A176="","",((AC$5*$AU176^(-2*AC$4))*$D176+2*(AC$6*$AU176^(-4*AC$4-2))*$D176^2)/T176) ->  | AE176: =IF($A176="","",((AD$5*$AU176^(-2*AD$4))*$D176+2*(AD$6*$AU176^(-4*AD$4-2))*$D176^2)/U176) ->  | AF176: =IF($A176="","",((AE$5*$AU176^(-2*AE$4))*$D176+2*(AE$6*$AU176^(-4*AE$4-2))*$D176^2)/V176) ->  | AG176: =IF(B$11=0,"",IF($A176="","",0.5*B$11*$L176*(1*V$4^2+(V$5*$AU176^(-2*V$4))*$D176*(V$4+1)^2+(V$6*$AU176^(-4*V$4-2))*$D176^2*(V$4+2)^2+(V$7*$AU176^(-6*V$4-6))*$D176^3*(V$4+3)^2+(V$8*$AU176^(-8*V$4-12))*$D176^4*(V$4+4)^2+(V$9*$AU176^(-10*V$4-20))*$D176^5*(V$4+5)^2+(V$10*$AU176^(-12*V$4-30))*$D176^6*(V$4+6)^2)/M176)) ->  | AH176: =IF(C$11=0,"",IF($A176="","",0.5*C$11*$L176*(1*W$4^2+(W$5*$AU176^(-2*W$4))*$D176*(W$4+1)^2+(W$6*$AU176^(-4*W$4-2))*$D176^2*(W$4+2)^2+(W$7*$AU176^(-6*W$4-6))*$D176^3*(W$4+3)^2+(W$8*$AU176^(-8*W$4-12))*$D176^4*(W$4+4)^2+(W$9*$AU176^(-10*W$4-20))*$D176^5*(W$4+5)^2+(W$10*$AU176^(-12*W$4-30))*$D176^6*(W$4+6)^2)/N176)) ->  | AI176: =IF(D$11=0,"",IF($A176="","",0.5*D$11*$L176*(1*X$4^2+(X$5*$AU176^(-2*X$4))*$D176*(X$4+1)^2+(X$6*$AU176^(-4*X$4-2))*$D176^2*(X$4+2)^2+(X$7*$AU176^(-6*X$4-6))*$D176^3*(X$4+3)^2+(X$8*$AU176^(-8*X$4-12))*$D176^4*(X$4+4)^2+(X$9*$AU176^(-10*X$4-20))*$D176^5*(X$4+5)^2+(X$10*$AU176^(-12*X$4-30))*$D176^6*(X$4+6)^2)/O176)) ->  | AJ176: =IF(E$11=0,"",IF($A176="","",0.5*E$11*$L176*(1*Y$4^2+(Y$5*$AU176^(-2*Y$4))*$D176*(Y$4+1)^2+(Y$6*$AU176^(-4*Y$4-2))*$D176^2*(Y$4+2)^2+(Y$7*$AU176^(-6*Y$4-6))*$D176^3*(Y$4+3)^2+(Y$8*$AU176^(-8*Y$4-12))*$D176^4*(Y$4+4)^2+(Y$9*$AU176^(-10*Y$4-20))*$D176^5*(Y$4+5)^2+(Y$10*$AU176^(-12*Y$4-30))*$D176^6*(Y$4+6)^2)/P176)) ->  | AK176: =IF(F$11=0,"",IF($A176="","",0.5*F$11*$L176*(1*Z$4^2+(Z$5*$AU176^(-2*Z$4))*$D176*(Z$4+1)^2+(Z$6*$AU176^(-4*Z$4-2))*$D176^2*(Z$4+2)^2+(Z$7*$AU176^(-6*Z$4-6))*$D176^3*(Z$4+3)^2+(Z$8*$AU176^(-8*Z$4-12))*$D176^4*(Z$4+4)^2+(Z$9*$AU176^(-10*Z$4-20))*$D176^5*(Z$4+5)^2+(Z$10*$AU176^(-12*Z$4-30))*$D176^6*(Z$4+6)^2)/Q176)) ->  | AL176: =IF(G$11=0,"",IF($A176="","",0.5*G$11*$L176*(1*AA$4^2+(AA$5*$AU176^(-2*AA$4))*$D176*(AA$4+1)^2+(AA$6*$AU176^(-4*AA$4-2))*$D176^2*(AA$4+2)^2+(AA$7*$AU176^(-6*AA$4-6))*$D176^3*(AA$4+3)^2+(AA$8*$AU176^(-8*AA$4-12))*$D176^4*(AA$4+4)^2+(AA$9*$AU176^(-10*AA$4-20))*$D176^5*(AA$4+5)^2+(AA$10*$AU176^(-12*AA$4-30))*$D176^6*(AA$4+6)^2)/R176)) ->  | AM176: =IF(H$11=0,"",IF($A176="","",0.5*H$11*$L176*(1*AB$4^2+(AB$5*$AU176^(-2*AB$4))*$D176*(AB$4+1)^2+(AB$6*$AU176^(-4*AB$4-2))*$D176^2*(AB$4+2)^2+(AB$7*$AU176^(-6*AB$4-6))*$D176^3*(AB$4+3)^2+(AB$8*$AU176^(-8*AB$4-12))*$D176^4*(AB$4+4)^2+(AB$9*$AU176^(-10*AB$4-20))*$D176^5*(AB$4+5)^2+(AB$10*$AU176^(-12*AB$4-30))*$D176^6*(AB$4+6)^2)/S176)) ->  | AN176: =IF(B$18=0,"",IF($A176="","",0.5*B$18*$K176*(1*AC$4^2+(AC$5*$AU176^(-2*AC$4))*$D176*(AC$4+1)^2+(AC$6*$AU176^(-4*AC$4-2))*$D176^2*(AC$4+2)^2)/T176)) ->  | AO176: =IF(C$18=0,"",IF($A176="","",0.5*C$18*$K176*(1*AD$4^2+(AD$5*$AU176^(-2*AD$4))*$D176*(AD$4+1)^2+(AD$6*$AU176^(-4*AD$4-2))*$D176^2*(AD$4+2)^2)/U176)) ->  | AP176: =IF(D$18=0,"",IF($A176="","",0.5*D$18*$K176*(1*AE$4^2+(AE$5*$AU176^(-2*AE$4))*$D176*(AE$4+1)^2+(AE$6*$AU176^(-4*AE$4-2))*$D176^2*(AE$4+2)^2)/V176)) ->  | AQ176: =IF(A176="","",SUM(AG176:AP176)+0.5*(D176+ $AC$9/AU176^2/D176)+$L176*$S$16+$K176*$T$16) ->  | AR176: =IF(A176="","",AQ176+$L176*S$14+$K176*$T$14) ->  | AU176: =IF(A176="","",10^(-$P$16*($AT176^0.5/(1+$AT176^0.5)-$P$17*$AT176))) ->  | AW176: =IF(C176="","",C176-B176) -> 

Sheet +II
C1: Compilação de dados e resultados da Analise_II
B4: Identifique os resultados e acrescente observações (nas células em cinza)

Sheet Graficos
A1: Curvas de Titulação e derivada 1ª | B1: Curvas de Titulação e derivada 1ª
A2: Origem dos dados das curvas (sobrepostas) | H2: Habilite as macros. instruções na célula A22 da planilha pH
A3: TRUE | B3: FALSE | C3: =IF(Simulador!B41="","Não há dados","") ->  | D3: FALSE | F3: FALSE | G3: =IF(Simulador!D41="","Não há dados","") -> Não há dados | H3: Atualizar curva(s) após cada alteração no Simulador, Analise Inicial ou Analise
A4: FALSE | B4: FALSE | C4: =IF(Analise_I!B41="","Não há dados","") ->  | D4: TRUE | F4: TRUE | G4: =IF(Analise_I!C41="","Não há dados","") ->  | H4: Para ampliar uma região da curva | L4: Para identificar dados
A5: TRUE | B5: FALSE | C5: =IF(Analise_II!B41="","Não há dados","") ->  | D5: FALSE | F5: TRUE | G5: =IF(Analise_II!C41="","Não há dados","") ->  | H5: Para copiar/colar gráfico
S9: Simulador | W9: Simulador com dispersão | AA9: Analise Inicial | AD9: Anal. Inicial c/ Interp/Alisamento | AI9: Analise | AM9: Analise curva ajustada
R10: Vol | S10: pH | T10: Vol_ | U10: dpH/dVol | V10: Vol | W10: pH | X10: Vol_ | Y10: dpH/dVol | Z10: Vol | AA10: pH | AB10: Vol_ | AC10: dpH/dVol | AD10: Vol | AE10: pH | AF10: Vol_ | AG10: dpH/dVol | AH10: Vol | AI10: pH | AJ10: Vol_ | AK10: dpH/dVol | AL10: Vol | AM10: pH | AN10: Vol_ | AO10: dpH/dVol
R11: 0 | S11: 1.81710728 | AD11: 0 | AE11: 2.264430757 | AH11: 0 | AI11: 2.280828266
R12: 2.300444881 | S12: 2.032047847 | AD12: 0.1666666666 | AE12: 2.267924381 | AF12: 0.08333333331 | AG12: 0.02096174515 | AH12: 0.8968889408 | AI12: 2.471416604 | AN12: 0.4484444704 | AO12: 0.22481004
R13: 4.325429893 | S13: 2.246139619 | AD13: 0.3333333333 | AE13: 2.271548045 | AF13: 0.2499999999 | AG13: 0.02174198728 | AH13: 1.864139493 | AI13: 2.662466106 | AN13: 1.380514217 | AO13: 0.2085826765
R14: 5.99828897 | S14: 2.459283742 | AD14: 0.4999999999 | AE14: 2.275431791 | AF14: 0.4166666666 | AG14: 0.02330247154 | AH14: 2.960579823 | AI14: 2.860585269 | AN14: 2.412359658 | AO14: 0.1839643499
R15: 7.285792693 | S15: 2.671584097 | AD15: 0.6666666665 | AE15: 2.279705657 | AF15: 0.5833333332 | AG15: 0.02564319793 | AH15: 4.198095335 | AI15: 3.094987973 | AN15: 3.579337579 | AO15: 0.1628816784
R16: 8.215073279 | S16: 2.883229976 | AD16: 0.8333333331 | AE16: 2.284499685 | AF16: 0.7499999998 | AG16: 0.02876416644 | AH16: 5.548356443 | AI16: 3.273530873 | AN16: 4.873225889 | AO16: 0.149122995
R17: 8.852646874 | S17: 3.094410642 | AD17: 0.9999999998 | AE17: 2.289943914 | AF17: 0.9166666665 | AG17: 0.03266537709 | AH17: 6.970387358 | AI17: 3.48312634 | AN17: 6.259371901 | AO17: 0.1413928919
R18: 9.2745252 | S18: 3.30527868 | AD18: 1.166666666 | AE18: 2.296168386 | AF18: 1.083333333 | AG18: 0.03734682986 | AH18: 8.440223346 | AI18: 3.674415939 | AN18: 7.705305352 | AO18: 0.1365969728
R19: 9.547219322 | S19: 3.515944529 | AD19: 1.333333333 | AE19: 2.30330314 | AF19: 1.25 | AG19: 0.04280852476 | AH19: 9.957522729 | AI19: 3.877844612 | AN19: 9.198873038 | AO19: 0.1321530539
R20: 9.721389825 | S20: 3.726483798 | AD20: 1.5 | AE20: 2.311478217 | AF20: 1.416666666 | AG20: 0.0490504618 | AH20: 11.52782908 | AI20: 4.087831509 | AN20: 10.7426759 | AO20: 0.1276143834
R21: 9.832768243 | S21: 3.936947231 | AD21: 1.666666666 | AE21: 2.320823657 | AF21: 1.583333333 | AG21: 0.05607264096 | AH21: 13.14204026 | AI21: 4.259504498 | AN21: 12.33493467 | AO21: 0.1241623136
R22: 9.90564075 | S22: 4.147369551 | AD22: 1.833333333 | AE22: 2.331469501 | AF22: 1.75 | AG22: 0.06387506224 | AH22: 14.76872213 | AI22: 4.483821406 | AN22: 13.9553812 | AO22: 0.123276105
R23: 9.956512634 | S23: 4.357776426 | AD23: 2 | AE23: 2.343545788 | AF23: 1.916666666 | AG23: 0.07245772566 | AH23: 16.35673224 | AI23: 4.682407754 | AN23: 15.56272719 | AO23: 0.12633582
R24: 9.997179995 | S24: 4.568190023 | AD24: 2.166666666 | AE24: 2.35718256 | AF24: 2.083333333 | AG24: 0.08182063121 | AH24: 17.84478189 | AI24: 4.889359112 | AN24: 17.10075707 | AO24: 0.1348327435
R25: 10.03719048 | S25: 4.77863392 | AD25: 2.333333333 | AE25: 2.372509857 | AF25: 2.249999999 | AG25: 0.09196377888 | AH25: 19.18178251 | AI25: 5.096008105 | AN25: 18.5132822 | AO25: 0.1500313747
R26: 10.08594962 | S26: 4.989138153 | AD26: 2.499999999 | AE26: 2.389657718 | AF26: 2.416666666 | AG26: 0.1028871685 | AH26: 20.35166759 | AI26: 5.295324571 | AN26: 19.76672505 | AO26: 0.171515203
R27: 10.15480396 | S27: 5.19974506 | AD27: 2.666666666 | AE27: 2.408674229 | AF27: 2.583333333 | AG27: 0.1140990624 | AH27: 21.38416074 | AI27: 5.501157879 | AN27: 20.86791417 | AO27: 0.1946487583
R28: 10.25942792 | S28: 5.410516065 | AD28: 2.833333333 | AE28: 2.429286247 | AF28: 2.749999999 | AG28: 0.1236721117 | AH28: 22.34268564 | AI28: 5.68758888 | AN28: 21.86342319 | AO28: 0.2103222589
R29: 10.42273882 | S29: 5.621538207 | AD29: 2.999999999 | AE29: 2.451141944 | AF29: 2.916666666 | AG29: 0.1311341815 | AH29: 23.29700056 | AI29: 5.878136282 | AN29: 22.8198431 | AO29: 0.2118736797
R30: 10.67815734 | S30: 5.832925811 | AD30: 3.166666666 | AE30: 2.473889489 | AF30: 3.083333333 | AG30: 0.1364852716 | AH30: 24.29234983 | AI30: 6.093405653 | AN30: 23.7946752 | AO30: 0.2033535783
R31: 11.07177505 | S31: 6.044806516 | AD31: 3.333333333 | AE31: 2.497177053 | AF31: 3.249999999 | AG31: 0.1397253822 | AH31: 25.32645341 | AI31: 6.30686813 | AN31: 24.80940162 | AO31: 0.195614609
R32: 11.65903527 | S32: 6.257274861 | AD32: 3.499999999 | AE32: 2.520652805 | AF32: 3.416666666 | AG32: 0.1408545132 | AH32: 26.34764129 | AI32: 6.490152638 | AN32: 25.83704735 | AO32: 0.1978794964
R33: 12.48750729 | S33: 6.470307321 | AD33: 3.666666666 | AE33: 2.543964916 | AF33: 3.583333332 | AG33: 0.1398726646 | AH33: 27.28032907 | AI33: 6.698478665 | AN33: 26.81398518 | AO33: 0.2164266809
R34: 13.56029251 | S34: 6.683685244 | AD34: 3.833333332 | AE34: 2.566761555 | AF34: 3.749999999 | AG34: 0.1367798364 | AH34: 28.06266316 | AI34: 6.892121522 | AN34: 27.67149612 | AO34: 0.2578843367
R35: 14.79919435 | S35: 6.897030459 | AD35: 3.999999999 | AE35: 2.588690894 | AF35: 3.916666666 | AG35: 0.1315760287 | AH35: 28.66974633 | AI35: 7.086581212 | AN35: 28.36620475 | AO35: 0.3322290662
R36: 16.05457621 | S36: 7.109980469 | AD36: 4.166666666 | AE36: 2.6094011 | AF36: 4.083333332 | AG36: 0.1242612413 | AH36: 29.11192482 | AI36: 7.302716183 | AN36: 28.89083558 | AO36: 0.4561985601
R37: 17.17392253 | S37: 7.322349098 | AD37: 4.333333332 | AE37: 2.628540346 | AF37: 4.249999999 | AG37: 0.1148354744 | AH37: 29.4190841 | AI37: 7.518335162 | AN37: 29.26550446 | AO37: 0.6571289713
R38: 18.06846906 | S38: 7.534138681 | AD38: 4.499999999 | AE38: 2.645756801 | AF38: 4.416666666 | AG38: 0.1032987278 | AH38: 29.62547963 | AI38: 7.703871614 | AN38: 29.52228186 | AO38: 0.9789790197
R39: 18.72548406 | S39: 7.745454677 | AD39: 4.666666666 | AE39: 2.660703188 | AF39: 4.583333332 | AG39: 0.08967832521 | AH39: 29.76118141 | AI39: 7.908323363 | AN39: 29.69333052 | AO39: 1.491900927
R40: 19.17987486 | S40: 7.956424946 | AD40: 4.833333332 | AE40: 2.673401197 | AF40: 4.749999999 | AG40: 0.07618805358 | AH40: 29.84931106 | AI40: 8.114990925 | AN40: 29.80524623 | AO40: 2.304150297
R41: 19.4818174 | S41: 8.167159479 | AD41: 4.999999999 | AE41: 2.684507535 | AF41: 4.916666666 | AG41: 0.06663802393 | AH41: 29.90638508 | AI41: 8.250635592 | AN41: 29.87784807 | AO41: 3.573411757
R42: 19.67773418 | S42: 8.37774006 | AD42: 5.166666665 | AE42: 2.69474164 | AF42: 5.083333332 | AG42: 0.06140463511 | AH42: 29.94375132 | AI42: 8.572292406 | AN42: 29.9250682 | AO42: 5.489142484
R43: 19.80371252 | S43: 8.588223243 | AD43: 5.333333332 | AE43: 2.704822955 | AF43: 5.249999999 | AG43: 0.06048788712 | AH43: 29.9691216 | AI43: 8.673532361 | AN43: 29.95643646 | AO43: 8.117082683
R44: 19.88554013 | S44: 8.7986469 | AD44: 5.499999999 | AE44: 2.715470918 | AF44: 5.416666665 | AG44: 0.06388777997 | AH44: 29.98785839 | AI44: 8.949234132 | AN44: 29.97848999 | AO44: 10.94439693
R45: 19.94107383 | S45: 9.009036466 | AD45: 5.666666665 | AE45: 2.727404971 | AF45: 5.583333332 | AG45: 0.07160431366 | AH45: 30.00398196 | AI45: 9.184584567 | AN45: 29.99592017 | AO45: 12.49770051
R46: 19.98292472 | S46: 9.2194099 | AD46: 5.833333332 | AE46: 2.741344552 | AF46: 5.749999999 | AG46: 0.08363748817 | AH46: 30.02097933 | AI46: 9.201918642 | AN46: 30.01248064 | AO46: 11.62271405
R47: 20.02083247 | S47: 9.429781521 | AD47: 5.999999999 | AE47: 2.758009102 | AF47: 5.916666665 | AG47: 0.09998730353 | AH47: 30.04253083 | AI47: 9.554593925 | AN47: 30.03175508 | AO47: 9.099409829
R48: 20.06373116 | S48: 9.640165182 | AD48: 6.166666665 | AE48: 2.778118062 | AF48: 6.083333332 | AG48: 0.1206537597 | AH48: 30.07328099 | AI48: 9.73971454 | AN48: 30.05790591 | AO48: 6.399229626
R49: 20.12175506 | S49: 9.850577309 | AD49: 6.333333332 | AE49: 2.802382641 | AF49: 6.249999999 | AG49: 0.1455874699 | AH49: 30.11979206 | AI49: 9.921328281 | AN49: 30.09653652 | AO49: 4.25766573
R50: 20.20853606 | S50: 10.06104025 | AD50: 6.499999998 | AE50: 2.831008392 | AF50: 6.416666665 | AG50: 0.1717545053 | AH50: 30.19183496 | AI50: 10.1180939 | AN50: 30.15581351 | AO50: 2.764008512
R51: 20.34421444 | S51: 10.27158619 | AD51: 6.666666665 | AE51: 2.863410251 | AF51: 6.583333332 | AG51: 0.1944111576 | AH51: 30.30418158 | AI51: 10.34027488 | AN51: 30.24800827 | AO51: 1.779362779
R52: 20.55962799 | S52: 10.48226136 | AD52: 6.833333332 | AE52: 2.898934338 | AF52: 6.749999998 | AG52: 0.2131445221 | AH52: 30.4790272 | AI52: 10.52651412 | AN52: 30.39160439 | AO52: 1.14611777
R53: 20.90204921 | S53: 10.69312861 | AD53: 6.999999998 | AE53: 2.936926771 | AF53: 6.916666665 | AG53: 0.2279545985 | AH53: 30.74902797 | AI53: 10.71671407 | AN53: 30.61402759 | AO53: 0.7433834788
R54: 21.44228573 | S54: 10.90426337 | AD54: 7.166666665 | AE54: 2.976733669 | AF54: 7.083333332 | AG54: 0.2388413871 | AH54: 31.16063285 | AI54: 10.92176638 | AN54: 30.95483041 | AO54: 0.4881568422
R55: 22.28144268 | S55: 11.11573345 | AD55: 7.333333332 | AE55: 3.01770115 | AF55: 7.249999998 | AG55: 0.2458048877 | AH55: 31.77710976 | AI55: 11.12364183 | AN55: 31.4688713 | AO55: 0.32612706
R56: 23.55372362 | S56: 11.32755316 | AD56: 7.499999998 | AE56: 3.059175334 | AF56: 7.416666665 | AG56: 0.2488451003 | AH56: 32.6814223 | AI56: 11.33513084 | AN56: 32.22926603 | AO56: 0.2224583507
R57: 25.42594758 | S57: 11.53962406 | AD57: 7.666666665 | AE57: 3.100491065 | AF57: 7.583333332 | AG57: 0.2478943847 | AH57: 33.98339205 | AI57: 11.51566154 | AN57: 33.33240718 | AO57: 0.1546306755
R58: 28.12249205 | S58: 11.75171817 | AD58: 7.833333332 | AE58: 3.140938728 | AF58: 7.749999998 | AG58: 0.2426859814 | AH58: 35.84640703 | AI58: 11.74212336 | AN58: 34.91489954 | AO58: 0.1081948383
R59: 32.06528099 | S59: 11.96355437 | AD59: 7.999999998 | AE59: 3.179797751 | AF59: 7.916666665 | AG59: 0.2331541374 | AH59: 38.56744421 | AI59: 11.91912719 | AN59: 37.20692562 | AO59: 0.07419561899
R60: 38.31748274 | S60: 12.1749088 | AD60: 8.166666665 | AE60: 3.21634756 | AF60: 8.083333331 | AG60: 0.2192988529 | AH60: 42.78070786 | AI60: 12.13457903 | AN60: 40.67407603 | AO60: 0.04798630512
R61: 50 | S61: 12.38564394 | AD61: 8.333333331 | AE61: 3.249867581 | AF61: 8.249999998 | AG61: 0.2011201277 | AH61: 49.99999998 | AI61: 12.32998402 | AN61: 46.39035392 | AO61: 0.02801805278
AD62: 8.499999998 | AE62: 3.280400863 | AF62: 8.416666665 | AG62: 0.1831996899
AD63: 8.666666665 | AE63: 3.312480925 | AF63: 8.583333331 | AG63: 0.1924803753
AD64: 8.833333331 | AE64: 3.352277322 | AF64: 8.749999998 | AG64: 0.2387783833
AD65: 8.999999998 | AE65: 3.406043123 | AF65: 8.916666665 | AG65: 0.3225948028
AD66: 9.166666665 | AE66: 3.483243179 | AF66: 9.083333331 | AG66: 0.4632003348
AD67: 9.333333331 | AE67: 3.597547315 | AF67: 9.249999998 | AG67: 0.6858248193
AD68: 9.499999998 | AE68: 3.761903179 | AF68: 9.416666664 | AG68: 0.9861351803
AD69: 9.666666664 | AE69: 3.986099841 | AF69: 9.583333331 | AG69: 1.345179973
AD70: 9.833333331 | AE70: 4.276542236 | AF70: 9.749999998 | AG70: 1.74265437
AD71: 9.999999998 | AE71: 4.621865878 | AF71: 9.916666664 | AG71: 2.071941857
AD72: 10.16666666 | AE72: 4.973397354 | AF72: 10.08333333 | AG72: 2.109188856
AD73: 10.33333333 | AE73: 5.274088693 | AF73: 10.25 | AG73: 1.80414803
AD74: 10.5 | AE74: 5.512375877 | AF74: 10.41666666 | AG74: 1.429723106
AD75: 10.66666666 | AE75: 5.69616402 | AF75: 10.58333333 | AG75: 1.10272886
AD76: 10.83333333 | AE76: 5.838072842 | AF76: 10.75 | AG76: 0.8514529327
AD77: 11 | AE77: 5.949849564 | AF77: 10.91666666 | AG77: 0.6706603295
AD78: 11.16666666 | AE78: 6.037280462 | AF78: 11.08333333 | AG78: 0.5245853871
AD79: 11.33333333 | AE79: 6.10487626 | AF79: 11.25 | AG79: 0.4055747922
AD80: 11.5 | AE80: 6.157083452 | AF80: 11.41666666 | AG80: 0.3132431474
AD81: 11.66666666 | AE81: 6.19824799 | AF81: 11.58333333 | AG81: 0.2469872289
AD82: 11.83333333 | AE82: 6.232707066 | AF82: 11.75 | AG82: 0.2067544558
AD83: 12 | AE83: 6.26477964 | AF83: 11.91666666 | AG83: 0.1924354443
AD84: 12.16666666 | AE84: 6.297157605 | AF84: 12.08333333 | AG84: 0.1942677891
AD85: 12.33333333 | AE85: 6.329644337 | AF85: 12.25 | AG85: 0.1949203961
AD86: 12.5 | AE86: 6.361746335 | AF86: 12.41666666 | AG86: 0.1926119894
AD87: 12.66666666 | AE87: 6.392970097 | AF87: 12.58333333 | AG87: 0.1873425691
AD88: 12.83333333 | AE88: 6.422822119 | AF88: 12.75 | AG88: 0.1791121351
AD89: 13 | AE89: 6.450820724 | AF89: 12.91666666 | AG89: 0.1679916247
AD90: 13.16666666 | AE90: 6.476838106 | AF90: 13.08333333 | AG90: 0.1561042969
AD91: 13.33333333 | AE91: 6.501152921 | AF91: 13.25 | AG91: 0.1458888896
AD92: 13.5 | AE92: 6.524066224 | AF92: 13.41666666 | AG92: 0.1374798159
AD93: 13.66666666 | AE93: 6.54587907 | AF93: 13.58333333 | AG93: 0.1308770757
AD94: 13.83333333 | AE94: 6.566892515 | AF94: 13.75 | AG94: 0.1260806689
AD95: 14 | AE95: 6.587407614 | AF95: 13.91666666 | AG95: 0.1230905957
AD96: 14.16666666 | AE96: 6.607725423 | AF96: 14.08333333 | AG96: 0.121906856
AD97: 14.33333333 | AE97: 6.628142569 | AF97: 14.25 | AG97: 0.1225028729
AD98: 14.5 | AE98: 6.648781688 | AF98: 14.41666666 | AG98: 0.1238347148
AD99: 14.66666666 | AE99: 6.669538358 | AF99: 14.58333333 | AG99: 0.1245400227
AD100: 14.83333333 | AE100: 6.690292878 | AF100: 14.75 | AG100: 0.1245271159
AD101: 15 | AE101: 6.710925543 | AF101: 14.91666666 | AG101: 0.1237959943
AD102: 15.16666666 | AE102: 6.731316653 | AF102: 15.08333333 | AG102: 0.1223466581
AD103: 15.33333333 | AE103: 6.751346504 | AF103: 15.25 | AG103: 0.1201791071
AD104: 15.5 | AE104: 6.770895395 | AF104: 15.41666666 | AG104: 0.1172933415
AD105: 15.66666666 | AE105: 6.789843621 | AF105: 15.58333333 | AG105: 0.1136893611
AD106: 15.83333333 | AE106: 6.808071482 | AF106: 15.75 | AG106: 0.1093671661
AD107: 16 | AE107: 6.825459275 | AF107: 15.91666666 | AG107: 0.1043267563
AD108: 16.16666666 | AE108: 6.841920213 | AF108: 16.08333333 | AG108: 0.09876562985
AD109: 16.33333333 | AE109: 6.857515631 | AF109: 16.25 | AG109: 0.09357250769
AD110: 16.5 | AE110: 6.872348508 | AF110: 16.41666666 | AG110: 0.08899726106
AD111: 16.66666666 | AE111: 6.886521825 | AF111: 16.58333333 | AG111: 0.08503990339
AD112: 16.83333333 | AE112: 6.900138565 | AF112: 16.75 | AG112: 0.08170043468
AD113: 17 | AE113: 6.913301707 | AF113: 16.91666666 | AG113: 0.07897885492
AD114: 17.16666666 | AE114: 6.926114234 | AF114: 17.08333333 | AG114: 0.07687516413
AD115: 17.33333333 | AE115: 6.938679128 | AF115: 17.25 | AG115: 0.07538936229
AD116: 17.5 | AE116: 6.95109937 | AF116: 17.41666666 | AG116: 0.07452144942
AD117: 17.66666666 | AE117: 6.963477941 | AF117: 17.58333333 | AG117: 0.0742714255
AD118: 17.83333333 | AE118: 6.975917822 | AF118: 17.75 | AG118: 0.07463929054
AD119: 18 | AE119: 6.988521996 | AF119: 17.91666666 | AG119: 0.07562504454
AD120: 18.16666666 | AE120: 7.001392765 | AF120: 18.08333333 | AG120: 0.07722461291
AD121: 18.33333333 | AE121: 7.014613229 | AF121: 18.25 | AG121: 0.07932278316
AD122: 18.5 | AE122: 7.028245056 | AF122: 18.41666666 | AG122: 0.08179096015
AD123: 18.66666666 | AE123: 7.042348786 | AF123: 18.58333333 | AG123: 0.08462238262
AD124: 18.83333333 | AE124: 7.056984961 | AF124: 18.75 | AG124: 0.08781705059
AD125: 19 | AE125: 7.072214122 | AF125: 18.91666666 | AG125: 0.09137496405
AD126: 19.16666666 | AE126: 7.088096809 | AF126: 19.08333333 | AG126: 0.095296123
AD127: 19.33333333 | AE127: 7.104693564 | AF127: 19.25 | AG127: 0.09958052743
AD128: 19.5 | AE128: 7.122064927 | AF128: 19.41666666 | AG128: 0.1042281774
AD129: 19.66666666 | AE129: 7.140271439 | AF129: 19.58333333 | AG129: 0.1092390728
AD130: 19.83333333 | AE130: 7.159373641 | AF130: 19.75 | AG130: 0.1146132137
AD131: 20 | AE131: 7.179432074 | AF131: 19.91666666 | AG131: 0.1203506001
AD132: 20.16666666 | AE132: 7.20050728 | AF132: 20.08333333 | AG132: 0.1264512319
AD133: 20.33333333 | AE133: 7.222659798 | AF133: 20.25 | AG133: 0.1329151093
AD134: 20.5 | AE134: 7.24591979 | AF134: 20.41666666 | AG134: 0.1395599537
AD135: 20.66666666 | AE135: 7.270113221 | AF135: 20.58333333 | AG135: 0.1451605831
AD136: 20.83333333 | AE136: 7.294981922 | AF136: 20.75 | AG136: 0.1492122094
AD137: 21 | AE137: 7.320267466 | AF137: 20.91666666 | AG137: 0.1517132611
AD138: 21.16666666 | AE138: 7.345711422 | AF138: 21.08333333 | AG138: 0.1526637381
AD139: 21.33333333 | AE139: 7.371055362 | AF139: 21.25 | AG139: 0.1520636406
AD140: 21.49999999 | AE140: 7.396040857 | AF140: 21.41666666 | AG140: 0.1499129685
AD141: 21.66666666 | AE141: 7.420409477 | AF141: 21.58333333 | AG141: 0.1462117217
AD142: 21.83333333 | AE142: 7.443902794 | AF142: 21.74999999 | AG142: 0.1409599004
AD143: 21.99999999 | AE143: 7.466262378 | AF143: 21.91666666 | AG143: 0.1341575045
AD144: 22.16666666 | AE144: 7.4872298 | AF144: 22.08333333 | AG144: 0.1258045339
AD145: 22.33333333 | AE145: 7.506546632 | AF145: 22.24999999 | AG145: 0.1159009888
AD146: 22.49999999 | AE146: 7.523954443 | AF146: 22.41666666 | AG146: 0.104446869
AD147: 22.66666666 | AE147: 7.539201837 | AF147: 22.58333333 | AG147: 0.09148436342
AD148: 22.83333333 | AE148: 7.552278 | AF148: 22.74999999 | AG148: 0.07845697676
AD149: 22.99999999 | AE149: 7.563466911 | AF149: 22.91666666 | AG149: 0.06713346666
AD150: 23.16666666 | AE150: 7.573070564 | AF150: 23.08333333 | AG150: 0.05762191563
AD151: 23.33333333 | AE151: 7.581390951 | AF151: 23.24999999 | AG151: 0.04992232366
AD152: 23.49999999 | AE152: 7.588730066 | AF152: 23.41666666 | AG152: 0.04403469077
AD153: 23.66666666 | AE153: 7.595389902 | AF153: 23.58333333 | AG153: 0.03995901694
AD154: 23.83333333 | AE154: 7.601672453 | AF154: 23.74999999 | AG154: 0.03769530219
AD155: 23.99999999 | AE155: 7.60787971 | AF155: 23.91666666 | AG155: 0.0372435465
AD156: 24.16666666 | AE156: 7.614313669 | AF156: 24.08333333 | AG156: 0.03860374988
AD157: 24.33333333 | AE157: 7.621276321 | AF157: 24.24999999 | AG157: 0.04177591233
AD158: 24.49999999 | AE158: 7.62906966 | AF158: 24.41666666 | AG158: 0.04676003385
AD159: 24.66666666 | AE159: 7.637989535 | AF159: 24.58333333 | AG159: 0.05351925398
AD160: 24.83333333 | AE160: 7.648188828 | AF160: 24.74999999 | AG160: 0.06119575487
AD161: 24.99999999 | AE161: 7.659676513 | AF161: 24.91666666 | AG161: 0.06892611067
AD162: 25.16666666 | AE162: 7.672455236 | AF162: 25.08333333 | AG162: 0.0766723393
AD163: 25.33333333 | AE163: 7.686527643 | AF163: 25.24999999 | AG163: 0.08443444076
AD164: 25.49999999 | AE164: 7.701896379 | AF164: 25.41666666 | AG164: 0.09221241505
AD165: 25.66666666 | AE165: 7.718564089 | AF165: 25.58333333 | AG165: 0.1000062622
AD166: 25.83333333 | AE166: 7.736533419 | AF166: 25.74999999 | AG166: 0.1078159821
AD167: 25.99999999 | AE167: 7.755807015 | AF167: 25.91666666 | AG167: 0.1156415749
AD168: 26.16666666 | AE168: 7.776387522 | AF168: 26.08333333 | AG168: 0.1234830405
AD169: 26.33333333 | AE169: 7.798310418 | AF169: 26.24999999 | AG169: 0.1315373777
AD170: 26.49999999 | AE170: 7.821848973 | AF170: 26.41666666 | AG170: 0.1412313292
AD171: 26.66666666 | AE171: 7.847381159 | AF171: 26.58333333 | AG171: 0.1531931146
AD172: 26.83333333 | AE172: 7.875285403 | AF172: 26.74999999 | AG172: 0.167425464
AD173: 26.99999999 | AE173: 7.905940132 | AF173: 26.91666666 | AG173: 0.1839283772
AD174: 27.16666666 | AE174: 7.939723775 | AF174: 27.08333333 | AG174: 0.2027018544
AD175: 27.33333333 | AE175: 7.977014757 | AF175: 27.24999999 | AG175: 0.2237458955
AD176: 27.49999999 | AE176: 8.018149769 | AF176: 27.41666666 | AG176: 0.2468100681
AD177: 27.66666666 | AE177: 8.062462647 | AF177: 27.58333333 | AG177: 0.2658772688
AD178: 27.83333333 | AE178: 8.108259974 | AF178: 27.74999999 | AG178: 0.274783965
AD179: 27.99999999 | AE179: 8.153801713 | AF179: 27.91666666 | AG179: 0.273250433
AD180: 28.16666666 | AE180: 8.197347825 | AF180: 28.08333333 | AG180: 0.2612766727
AD181: 28.33333333 | AE181: 8.237184971 | AF181: 28.24999999 | AG181: 0.2390228726
AD182: 28.49999999 | AE182: 8.274289735 | AF182: 28.41666666 | AG182: 0.2226285885
AD183: 28.66666666 | AE183: 8.314594847 | AF183: 28.58333333 | AG183: 0.2418306669
AD184: 28.83333333 | AE184: 8.364566746 | AF184: 28.74999999 | AG184: 0.2998313987
AD185: 28.99999999 | AE185: 8.43084767 | AF185: 28.91666666 | AG185: 0.3976855427
AD186: 29.16666666 | AE186: 8.521976254 | AF186: 29.08333333 | AG186: 0.5467715049
AD187: 29.33333333 | AE187: 8.647661895 | AF187: 29.24999999 | AG187: 0.7541138418
AD188: 29.49999999 | AE188: 8.818747737 | AF188: 29.41666666 | AG188: 1.026515056
AD189: 29.66666666 | AE189: 9.047310751 | AF189: 29.58333333 | AG189: 1.371378081
AD190: 29.83333333 | AE190: 9.338591325 | AF190: 29.74999999 | AG190: 1.747683443
AD191: 29.99999999 | AE191: 9.684764652 | AF191: 29.91666666 | AG191: 2.077039963
AD192: 30.16666666 | AE192: 10.03839092 | AF192: 30.08333333 | AG192: 2.121757587
AD193: 30.33333333 | AE193: 10.34079731 | AF193: 30.24999999 | AG193: 1.814438345
AD194: 30.49999999 | AE194: 10.5766805 | AF194: 30.41666666 | AG194: 1.415299169
AD195: 30.66666666 | AE195: 10.75500919 | AF195: 30.58333333 | AG195: 1.06997212
AD196: 30.83333333 | AE196: 10.8875504 | AF196: 30.74999999 | AG196: 0.7952472843
AD197: 30.99999999 | AE197: 10.98421011 | AF197: 30.91666666 | AG197: 0.5799582694
AD198: 31.16666666 | AE198: 11.05354281 | AF198: 31.08333333 | AG198: 0.4159961504
AD199: 31.33333333 | AE199: 11.10302454 | AF199: 31.24999999 | AG199: 0.2968904308
AD200: 31.49999999 | AE200: 11.14001926 | AF200: 31.41666666 | AG200: 0.2219682995
AD201: 31.66666666 | AE201: 11.16939744 | AF201: 31.58333333 | AG201: 0.1762690483
AD202: 31.83333333 | AE202: 11.19309964 | AF202: 31.74999999 | AG202: 0.1422132305
AD203: 31.99999999 | AE203: 11.2128989 | AF203: 31.91666666 | AG203: 0.1187955807
... 108 more rows

Sheet Constantes
C1: Base de Dados | D1: de Constantes de Dissociação de Ácidos / Protonação de Bases
B3: Valores de pKa de ~250 ácidos e bases comuns, na temperatura e força iônica indicadas nas coluna K e L, via de regra, 25 ºC e 0 mol/L (ou seja, valores de pKa0, presumidos nos cálculos do CurTiPot)
B4: Não se dá garantia de que os pKas compilados ou os cálculos efetuados com CurTiPot sejam corretos ou exatos. CurTiPot considera somente os equilíbrios de protonação em água, ignorando outros equilíbrios e reações químicas, inclusive entre dois ou mais sistemas ácido-base, quando presentes simultaneamente.
B5: Adições podem ser feitas no final ou em qualquer ponto mediante inserção novas linhas e renumerando sequencialmente a coluna B (de 1 a 280)
B6: Compilações de Constantes e breve bibliografia sobre equilíbrios ácido-base
B7: Mini-SCDatabase - constantes de estabilidade (equilíbrio) com correção de efeito de temperatura e força iônica | H7: http://www.acadsoft.co.uk/scdbase/scdbase.htm | N7: Tutorial sobre ácidos e bases (e outros equilíbrios), em inglês | T7: http://www.asdlib.org/onlineArticles/ecourseware/Text_Files_files/Chapter6.pdf
B8: Dissociation constants of inorganic and organic compounds (compliation with 33 pages) | H8: https://www.chem.wisc.edu/areas/reich/pkatable/pKa_compilation-1-Williams.pdf | N8: Tutorial sobre titulação de ácidos e bases (em inglês) | T8: http://www.asdlib.org/onlineArticles/ecourseware/Text_Files_files/Chapter9.pdf
